{"text_format":"1","workbook":"xlsx","n_sheets":5,"sheets":["Instructions","Index","Price List","Websites","Changes"],"not_rendered":{"charts":0,"images":3,"macros":1,"external_links":0,"defined_names":18,"comments":0,"pivot_tables":0},"unopened":[],"bounds":{"document_bytes":16777216,"sheet_cells":100000,"rows_first":2000,"rows_last":500,"rows_between":2000,"halvings":0,"cell_chars":16384,"cell_head_chars":4096},"cells_cut":0,"cells_raw":0,"read":"whole","date_system":"1900"}

{"sheet":"Instructions","index":0,"n_rows":58,"n_cols":9,"rows_kept":58,"cut":false,"hidden":false,"merged":[[7,2,7,7],[36,3,36,4]]}
["Manufacturer","Bati Orient"]
["File as","B"]
["Product Code","A"]
["CCTD Effective Date","1/1/25 (Updated)"]
[]
[]
[]
["Enter your Company Name"]
[]
[null,"Click on \"Index\" to set the print area for the price list index"]
[null,"Then you can send it to print"]
[]
[]
[null,"Click on \"Suggested Price List\" to set the print area for Conestoga Tile's suggested price list."]
[null,"Then you can send it to print"]
[]
[]
[null,"Enter your discount codes if you want a personal net cost sheet."]
[]
[null,"Product"]
[null,"Code","Disc. %"]
[null,{"$f":"+B3","v":"A"}]
[]
[null,"Click on \"Your Cost\" to set the print area for your personal cost report."]
[null,"Then you can send it to print"]
[]
[]
["Discount: ","To help establish your price list, enter the gross profit percent for each type of product."]
[null,"If you want to use Conestoga Tile's list price, leave them blank."]
[]
["Round Nickel: ","If you always want your price to round to the nearest nickel, enter \"YES\"."]
[null,"If you enter \"NO\", it will NOT round to the nearest nickel."]
[]
["Ending Cents: ","If you always want your price to end with a certain cents, enter that cent value."]
[null,"If you leave it \"blank\" will NOT round to this cent value."]
[]
[null,"Group","GP Margin","GP Margin % for",null,"Round Nickel","add/subtract","Ending Cents"]
[null,1,null,"Field Tile",null,"No",0]
[null,2,null,"Trim",null,"No",0,null,"  "]
[null,3,null,"Decos",null,"No",0]
[null,4,null,0,null,"No",0]
[null,5,null,0,null,"No",0]
[null,6,null,0,null,"No",0]
[null,7,null,0,null,"No",0]
[]
["If you want to manually adjust your price list, hit \"F5\" and go to \"Customer_Cost\" to manually adjust pricing."]
["You can enter a value in the column labeled \"Adj.\" to change your price manually."]
[]
[null,"Click on \"Your Price Calculation\" to set the print area for your personal cost calculation report."]
[null,"Then you can send it to print"]
[]
[]
[null,"Click on \"Your Price List\" to set the print area for your personal price list."]
[null,"Then you can send it to print"]
[null,null,null,null,null,null,null,"Yes"]
[]
["If you have any questions on how to best use this spreadsheet, please feel free to contact"]
["Jim Vogel at (800) 422-6860, ext. 4201 or via e-mail at jimvogel@cctd.com"]

{"sheet":"Index","index":1,"n_rows":51,"n_cols":16,"rows_kept":51,"cut":false,"hidden":false,"merged":[[5,0,5,10],[48,0,48,10],[50,0,50,10],[2,5,2,10],[3,4,3,7]]}
[]
[]
[null,null,null,null,null,{"$f":"\"File '\"&Instructions!B2&\"' - \"&Instructions!B1","v":"File 'B' - Bati Orient"}]
[]
[]
[{"$f":"\"Price List Index - \"&Instructions!B4","v":"Price List Index - 1/1/25 (Updated)"}]
[]
[]
[]
[]
["Page",null,"Series",null,"Product Type"]
[1,null,"Décor & Style",null,"ARNO01 - ECO12"]
[2,null,"Décor & Style",null,"ECO13 - GAMI63R/30"]
[3,null,"Décor & Style",null,"GAMI74 - MAGR47"]
[4,null,"Décor & Style",null,"MAGR88 - MAMI185"]
[5,null,"Décor & Style",null,"MAMI186 - PIMI27"]
[6,null,"Décor & Style",null,"PIMI28 - VEMI170"]
[7,null,"Décor & Style",null,"VENO02 - VEVI02"]
[7,null,"Cement Tiles",null,"CIBE01 - CIMI09"]
[8,null,"Cement Tiles",null,"CIMI13 - CIMI48"]
[]
[]
[]
[]
[]
[]
[]
[]
[]
[]
[]
[]
[null,null,null,null,null,null,null,null,null,null,null,null,null,null,null," "]
[]
[]
[]
[]
[]
[]
[]
[]
[]
[]
[]
[]
[]
[]
[]
["This price list is available electronically on an Excel spreadsheet at www.conestogatile.com/pricelists."]
[]
["The spreadsheet has many special features to assist you.  Apply your discount to generate your net costs for your purchasing department.  Apply your standard gross margin percentage or custom prices to generate your own custom price list for your showroom.  Print out individual price list for each series that can be attached to the back of your sample boards for easy reference."]

{"sheet":"Price List","index":2,"n_rows":578,"n_cols":41,"rows_kept":578,"cut":false,"hidden":false,"merged":[[13,30,13,32],[9,22,9,23],[9,25,9,32],[12,22,12,23],[567,3,567,4],[18,2,18,19],[17,14,17,15],[561,2,561,19],[12,14,12,19],[551,3,551,19],[559,3,559,19],[9,14,9,19],[563,2,563,19],[14,13,15,19],[10,14,10,15],[557,3,557,19],[553,3,553,19],[555,3,555,19]]}
[null,"Field Tile",null,null,"Size",null,"Field",null,null,null,null,null,null,null,null,"SF/CTN",null,null,{"$f":"IF(Suggested=\"Yes\",AA1,AG1)","v":0},"SF",{"$f":"+Instructions!$B$3","v":"A"},null,{"$f":"+Instructions!$C$22","v":0},{"$f":"ROUND($AA1*(1-W1)+0.004999,2)","v":0},null,"new",0,{"$f":"+W1","v":0},0,{"$f":"(AG1-AC1)/AG1","v":{"$error":"#DIV/0!"}},null,1,{"$f":"SUM(AJ1:AL1)+AE1","v":0},null,null,{"$f":"ROUND(AC1/(1-VLOOKUP(AF1,Group,2,FALSE)),2)","v":0},{"$f":"IF(VLOOKUP(AF1,Group,5,FALSE)=\"YES\",VLOOKUP(ROUND(ROUND(AJ1,1)-AJ1,2),Round,2,FALSE)+VLOOKUP(AF1,Group,6,FALSE),0)","v":0},{"$f":"IF(VLOOKUP(AF1,Group,7,FALSE)=\"\",0,ROUND(AJ1-0.04999,1)-AJ1+AM1)","v":0},{"$f":"IF(VLOOKUP(AF1,Group,7,FALSE)=\"\",\"\",VLOOKUP(AF1,Group,7,FALSE))","v":""},null,"X"]
[null,"Trim",null,null,"Size",null,"Shape",null,"Description",null,null,null,null,null,null,null,null,null,{"$f":"IF(Suggested=\"Yes\",AA2,AG2)","v":0},"EA",{"$f":"+Instructions!$B$3","v":"A"},null,{"$f":"+Instructions!$C$22","v":0},0,null,"new",0,0,0,{"$error":"#DIV/0!"},null,2,0,null,null,0,0,0,"",null,"X"]
[null,"Decos",null,null,"Size",null,"Shape",null,"Description",null,null,null,null,null,null,null,null,null,0.05,"EA",{"$f":"+Instructions!$B$3","v":"A"},null,{"$f":"+Instructions!$C$22","v":0},0.05,null,"new",0.05,0,0.05,0,null,3,0.05,null,null,0.05,0,0,"",null,"X"]
[null,0,null,null,"Size",null,"Shape",null,"Description",null,null,null,null,null,null,null,null,null,0,"EA",{"$f":"+Instructions!$B$3","v":"A"},null,{"$f":"+Instructions!$C$22","v":0},0,null,"new",0,0,0,{"$error":"#DIV/0!"},null,4,0,null,null,0,0,0,"",null,"X"]
[null,0,null,null,"Size",null,"Shape",null,"Description",null,null,null,null,null,null,null,null,null,0,"EA",{"$f":"+Instructions!$B$3","v":"A"},null,{"$f":"+Instructions!$C$22","v":0},0,null,"new",0,0,0,{"$error":"#DIV/0!"},null,5,0,null,null,0,0,0,"",null,"X"]
[null,0,null,null,"Size",null,"Shape",null,"Description",null,null,null,null,null,null,null,null,null,0,"EA",{"$f":"+Instructions!$B$3","v":"A"},null,{"$f":"+Instructions!$C$22","v":0},0,null,"new",0,0,0,{"$error":"#DIV/0!"},null,6,0,null,null,0,0,0,"",null,"X"]
[null,0,null,null,"Size",null,"Shape",null,"Description",null,null,null,null,null,null,null,null,null,0,"EA",{"$f":"+Instructions!$B$3","v":"A"},null,{"$f":"+Instructions!$C$22","v":0},0,null,"new",0,0,0,{"$error":"#DIV/0!"},null,7,0,null,null,0,0,0,"",null,"X"]
[null,"Format",null,null,null,null,null,null,null,null,null,null,null,null,null,null,"Stock","a",1000,"ABC",null,null,0.1,1000,null,"ABC",1000,0.1,1000,0.1,10,null,1000,null,null,null,null,null,null,null,"X"]
[null,null,null,null,null,null,null,null,null,null,null,null,null,null,null,null,null,null,null,null,null,null,null,null,null,null,null,null,null,null,null,null,null,null,null,null,null,null,null,null,"X"]
[null,null,null,null,null,null,null,null,null,null,null,null,null,null,"Price List",null,null,null,null,null,null,null,"Cust. Cost",null,null,"Customer Cost Calculation",null,null,null,null,null,null,null,null,null,null,null,null,null,null,"X"]
[null,null,null,"Sizes & Shapes",null,null,null,null,null,null,null,null,null,null,"Full Carton",null,"Stock","Note",{"$f":"IF(Suggested=\"Yes\",AA11,AG11)","v":"List Price"},"U/M","Code",null,"Disc.","Net",null,"Chg","List Price","Disc","Act. Cost","GP%","Adj.","Group","Price",null,null,"Calc Price",".05 Round","Cents","Round to",null,"X"]
[null,null,null,null,null,null,null,null,null,null,null,null,null,null,null,null,null,null,null,null,null,null,null,null,null,null,null,null,null,null,null,null,null,null,null,null,null,null,null,null,"X"]
[null,null,null,null,null,null,null,null,null,null,null,null,null,null,{"$f":"\"File '\"&Instructions!B2&\"' - \"&Instructions!B1","v":"File 'B' - Bati Orient"},null,null,null,null,null,null,null,"Cost",null,null,null,null,null,null,null,null,null,"Retail Price Calculations",null,null,null,null,null,null,null,"X"]
[null,null,null,null,null,null,null,null,null,null,null,null,null,null,null,null,null,null,null,{"$f":"+Instructions!B4","v":"1/1/25 (Updated)"},null,null,null,null,null,null,null,null,null,null,{"$f":"TODAY()","v":"2025-04-30"},null,null,null,null,null,null,null,null,null,"X"]
[null,null,null,null,null,null,null,null,null,null,null,null,null,{"$f":"IF(Instructions!C8=\"\",\"\",+Instructions!C8)","v":""},null,null,null,null,null,null,null,null,null,null,null,null,null,null,null,null,null,null,null,null,null,null,null,null,null,null,"X"]
[null,null,{"$f":"\"Product Code '\"&Instructions!B3&\"'\"","v":"Product Code 'A'"},null,null,null,null,null,null,null,null,null,null,null,null,null,null,null,null,null,null,null,null,null,null,null,null,null,null,null,null,null,{"$f":"IF(Instructions!$C$8=\"\",\"\",Instructions!$C$8)","v":""},null,null,null,null,null,null,null,"X"]
[null,null,null,null,null,null,null,null,null,null,null,null,null,null,null,null,null,null,null,null,null,null,null,null,null,null,null,null,null,null,null,null,null,null,null,null,null,null,null,null,"X"]
[null,null,"Sizes & Shapes",null,null,null,null,null,null,null,null,null,null,null,"Full Carton",null,"Stock","Note",{"$f":"+S$11","v":"List Price"},"U/M",{"$f":"+U$11","v":"Code"},null,"Disc.","Net",null,"Chg","List Price",{"$f":"+AB$11","v":"Disc"},"Act. Cost","GP%","Adj.",{"$f":"+AF$11","v":"Group"},"Price",null,null,"Calc Price",".05 Round","Cents","Round to",null,"X"]
[null,null,"ALL ITEMS MARKED WITH PACKAGING QUANTITY ARE SOLD IN MULTIPLES OF THAT QUANTITY ONLY",null,null,null,null,null,null,null,null,null,null,null,null,null,null,null,null,null,null,null,null,null,null,null,null,null,null,null,null,null,null,null,null,null,null,null,null,null,"X"]
[null,null,null,null,null,null,null,null,null,null,null,null," ",null,null,null,null,null,null,null,null,null,null,null,null,null,null,null,null,null,null,null,null,null,null,null,null,null,null,null,"X"]
[null,null,"DÉCOR & STYLE",null,null,null,null,null,null,null,null," ","  "," "," ",null,null,"Item # Lookup:","BO"]
[null,null,null,null,null,null,null,null,null,null,null,null,null,null," ",null,null,null,null,null,null,null,null,null,null,null,null,null,null,null,null,null,null,null,null,null,null,null,null,null,"X"]
[9.75,"Decos",null,null,"12\" x 12\"",null,"Mosaic",null,null,"ARNO01",null,"Black Slate 1\" x 1\"",null,null," "," ",null,null,{"$f":"IF(Suggested=\"Yes\",AA23,AG23)","v":52.5},"EA",{"$f":"+Instructions!$B$3","v":"A"},null,{"$f":"+Instructions!$C$22","v":0},{"$f":"ROUND($AA23*(1-W23)+0.004999,2)","v":52.5},null,"",52.5,{"$f":"+W23","v":0},52.5,{"$f":"(AG23-AC23)/AG23","v":0},null,3,{"$f":"SUM(AJ23:AL23)+AE23","v":52.5},null,null,{"$f":"ROUND(AC23/(1-VLOOKUP(AF23,Group,2,FALSE)),2)","v":52.5},{"$f":"IF(VLOOKUP(AF23,Group,5,FALSE)=\"YES\",VLOOKUP(ROUND(ROUND(AJ23,1)-AJ23,2),Round,2,FALSE)+VLOOKUP(AF23,Group,6,FALSE),0)","v":0},{"$f":"IF(VLOOKUP(AF23,Group,7,FALSE)=\"\",0,ROUND(AJ23-0.04999,1)-AJ23+AM23)","v":0},{"$f":"IF(VLOOKUP(AF23,Group,7,FALSE)=\"\",\"\",VLOOKUP(AF23,Group,7,FALSE))","v":""},null,"X"]
[null,"Decos",null,null,"12\" x 12\"",null,"Mosaic",null,null,"ARNO02",null,"Black Slate 3/4\" x 1-5/8\" Brick",null,null,null,null,null,null,52.5,"EA",{"$f":"+Instructions!$B$3","v":"A"},null,{"$f":"+Instructions!$C$22","v":0},52.5,null,"",52.5,0,52.5,0,null,3,52.5,null,null,52.5,0,0,"",null,"X"]
[null,"Decos",null,null,"4-3/4\" x 12\"",null,"Border",null,null,"ARNO03",null,"Black Slate",null,null," ",null,null,null,33.5,"EA",{"$f":"+Instructions!$B$3","v":"A"},null,{"$f":"+Instructions!$C$22","v":0},33.5,null,"",33.5,0,33.5,0,null,3,33.5,null,null,33.5,0,0,"",null,"X"]
[null,"Decos",null,null,"6\" x 12\" x 1/2\"",null,"Mosaic",null,null,"ARNO14",null,"Grey Wall Slate",null,null,null,null,null,null,25.15,"EA",{"$f":"+Instructions!$B$3","v":"A"},null,{"$f":"+Instructions!$C$22","v":0},25.15,null,"",25.15,0,25.15,0,null,3,25.15,null,null,25.15,0,0,"",null,"X"]
[null,"Decos",null,null,"4\" x 14\"",null,"Wall Cladding",null,null,"ARNO20",null,"Black Slate",null,null,null,"12 PCS/CTN",null,null,20.25,"EA",{"$f":"+Instructions!$B$3","v":"A"},null,{"$f":"+Instructions!$C$22","v":0},20.25,null,"",20.25,{"$f":"+W27","v":0},20.25,0,null,3,20.25,null,null,20.25,0,0,"",null,"X"]
[null,"Decos",null,null,"12\" x 12\"",null,"Mosaic",null,null,"ARNO22",null,"Black Slate Baguette Squares",null,null,null,null,null,null,34.950000000000003,"EA",{"$f":"+Instructions!$B$3","v":"A"},null,{"$f":"+Instructions!$C$22","v":0},34.950000000000003,null,"",34.950000000000003,0,34.950000000000003,0,null,3,34.950000000000003,null,null,34.950000000000003,0,0,"",null,"X"]
[null,"Decos",null,null,"12\" x 12\"",null,"Mosaic",null,null,"ARRO01",null,"Rust Slate 1\" x 1\"",null,null,null,null,null,null,57.3,"EA",{"$f":"+Instructions!$B$3","v":"A"},null,{"$f":"+Instructions!$C$22","v":0},57.3,null,"",57.3,{"$f":"+W29","v":0},57.3,0,null,3,57.3,null,null,57.3,0,0,"",null,"X"]
[null,"Decos",null,null,"12\" x 12\"",null,"Mosaic",null,null,"ARRO02",null,"Rust Slate 3/4\" x 1-5/8\"",null,null,null,null,null,null,57.3,"EA",{"$f":"+Instructions!$B$3","v":"A"},null,{"$f":"+Instructions!$C$22","v":0},57.3,null,"",57.3,0,57.3,0,null,3,57.3,null,null,57.3,0,0,"",null,"X"]
[null,"Decos"," ",null,"4-3/4\" x 12\"",null,"Border",null,null,"ARRO03",null,"Rust Slate",null,null,null,null,null,null,34,"EA",{"$f":"+Instructions!$B$3","v":"A"},null,{"$f":"+Instructions!$C$22","v":0},34,null,"",34,0,34,0,null,3,34,null,null,34,0,0,"",null,"X"]
[null,"Decos",null,null,"12\" x 11.6\"",null,"Mosaic",null,null,"ARRO16",null,"Beige/Brown Slate/Glass Baguette",null,null,null,null,null,null,88.75,"EA",{"$f":"+Instructions!$B$3","v":"A"},null,{"$f":"+Instructions!$C$22","v":0},88.75,null,"",88.75,0,88.75,0,null,3,88.75,null,null,88.75,0,0,"",null,"X"]
[null,"Decos",null,null,"12\" x 12\"",null,"Mosaic",null,null,"ARRO17",null,"Brown Slate/Beige Brown Glass Glossy 5/8\" x 5/8\"",null,null,null,null,null,"a",88.7,"EA",{"$f":"+Instructions!$B$3","v":"A"},null,{"$f":"+Instructions!$C$22","v":0},88.7,null,"",88.7,0,88.7,0,null,3,88.7,null,null,88.7,0,0,"",null,"X"]
[null,"Decos",null,null,"4\" x 14\"",null,"Wall Cladding",null,null,"ARRO19",null,"Rust Slate",null,null,null,"12 PCS/CTN",null,null,21.25,"EA",{"$f":"+Instructions!$B$3","v":"A"},null,{"$f":"+Instructions!$C$22","v":0},21.25,null,"",21.25,{"$f":"+W34","v":0},21.25,0,null,3,21.25,null,null,21.25,0,0,"",null,"X"]
[null,"Decos",null,null,"12.2\" x 12.2\"",null,"Mosaic",null,null,"BEGR03",null,"Grey Concrete Circle Mix",null,null,null,null,null,null,{"$f":"IF(Suggested=\"Yes\",AA35,AG35)","v":57.8},"EA",{"$f":"+Instructions!$B$3","v":"A"},null,{"$f":"+Instructions!$C$22","v":0},{"$f":"ROUND($AA35*(1-W35)+0.004999,2)","v":57.8},null,"new",57.8,{"$f":"+W35","v":0},{"$f":"+X35","v":57.8},{"$f":"(AG35-AC35)/AG35","v":0},null,3,{"$f":"SUM(AJ35:AL35)+AE35","v":57.8},null,null,{"$f":"ROUND(AC35/(1-VLOOKUP(AF35,Group,2,FALSE)),2)","v":57.8},{"$f":"IF(VLOOKUP(AF35,Group,5,FALSE)=\"YES\",VLOOKUP(ROUND(ROUND(AJ35,1)-AJ35,2),Round,2,FALSE)+VLOOKUP(AF35,Group,6,FALSE),0)","v":0},{"$f":"IF(VLOOKUP(AF35,Group,7,FALSE)=\"\",0,ROUND(AJ35-0.04999,1)-AJ35+AM35)","v":0},{"$f":"IF(VLOOKUP(AF35,Group,7,FALSE)=\"\",\"\",VLOOKUP(AF35,Group,7,FALSE))","v":""},null,"X"]
[null,"Decos",null,null,"11.7\" x 11.7\"",null,"Mosaic",null,null,"BEGR04",null,"Grey Concrete Multi Star Mix",null,null,null,null,null,null,57.8,"EA",{"$f":"+Instructions!$B$3","v":"A"},null,{"$f":"+Instructions!$C$22","v":0},57.8,null,"new",57.8,0,57.8,0,null,3,57.8,null,null,57.8,0,0,"",null,"X"]
[null,"Decos",null,null,"12\" x 12\"",null,"Mosaic",null,null,"BEMI13",null,"Red White Square Mix",null,null,null,null,null,null,57.8,"EA",{"$f":"+Instructions!$B$3","v":"A"},null,{"$f":"+Instructions!$C$22","v":0},57.8,null,"new",57.8,0,57.8,0,null,3,57.8,null,null,57.8,0,0,"",null,"X"]
[null,"Decos",null,null,"12\" x 12\"",null,"Mosaic",null,null,"BEMI14",null,"Grey Mix Square Mix",null,null,null,null,null,null,{"$f":"IF(Suggested=\"Yes\",AA38,AG38)","v":57.8},"EA",{"$f":"+Instructions!$B$3","v":"A"},null,{"$f":"+Instructions!$C$22","v":0},{"$f":"ROUND($AA38*(1-W38)+0.004999,2)","v":57.8},null,"new",57.8,{"$f":"+W38","v":0},{"$f":"+X38","v":57.8},{"$f":"(AG38-AC38)/AG38","v":0},null,3,{"$f":"SUM(AJ38:AL38)+AE38","v":57.8},null,null,{"$f":"ROUND(AC38/(1-VLOOKUP(AF38,Group,2,FALSE)),2)","v":57.8},{"$f":"IF(VLOOKUP(AF38,Group,5,FALSE)=\"YES\",VLOOKUP(ROUND(ROUND(AJ38,1)-AJ38,2),Round,2,FALSE)+VLOOKUP(AF38,Group,6,FALSE),0)","v":0},{"$f":"IF(VLOOKUP(AF38,Group,7,FALSE)=\"\",0,ROUND(AJ38-0.04999,1)-AJ38+AM38)","v":0},{"$f":"IF(VLOOKUP(AF38,Group,7,FALSE)=\"\",\"\",VLOOKUP(AF38,Group,7,FALSE))","v":""},null,"X"]
[null,"Decos",null,null,"12.2\" x 12.2\"",null,"Mosaic",null,null,"BERO01",null,"Red Concrete Circle Mix",null,null,null,null,null,null,{"$f":"IF(Suggested=\"Yes\",AA39,AG39)","v":57.8},"EA",{"$f":"+Instructions!$B$3","v":"A"},null,{"$f":"+Instructions!$C$22","v":0},{"$f":"ROUND($AA39*(1-W39)+0.004999,2)","v":57.8},null,"new",57.8,{"$f":"+W39","v":0},{"$f":"+X39","v":57.8},{"$f":"(AG39-AC39)/AG39","v":0},null,3,{"$f":"SUM(AJ39:AL39)+AE39","v":57.8},null,null,{"$f":"ROUND(AC39/(1-VLOOKUP(AF39,Group,2,FALSE)),2)","v":57.8},{"$f":"IF(VLOOKUP(AF39,Group,5,FALSE)=\"YES\",VLOOKUP(ROUND(ROUND(AJ39,1)-AJ39,2),Round,2,FALSE)+VLOOKUP(AF39,Group,6,FALSE),0)","v":0},{"$f":"IF(VLOOKUP(AF39,Group,7,FALSE)=\"\",0,ROUND(AJ39-0.04999,1)-AJ39+AM39)","v":0},{"$f":"IF(VLOOKUP(AF39,Group,7,FALSE)=\"\",\"\",VLOOKUP(AF39,Group,7,FALSE))","v":""},null,"X"]
[null,"Decos",null,null,"11.7\" x 11.7\"",null,"Mosaic",null,null,"BERO02",null,"Red Concrete Multi Star Mix",null,null,null,null,null,null,{"$f":"IF(Suggested=\"Yes\",AA40,AG40)","v":57.8},"EA",{"$f":"+Instructions!$B$3","v":"A"},null,{"$f":"+Instructions!$C$22","v":0},{"$f":"ROUND($AA40*(1-W40)+0.004999,2)","v":57.8},null,"new",57.8,{"$f":"+W40","v":0},{"$f":"+X40","v":57.8},{"$f":"(AG40-AC40)/AG40","v":0},null,3,{"$f":"SUM(AJ40:AL40)+AE40","v":57.8},null,null,{"$f":"ROUND(AC40/(1-VLOOKUP(AF40,Group,2,FALSE)),2)","v":57.8},{"$f":"IF(VLOOKUP(AF40,Group,5,FALSE)=\"YES\",VLOOKUP(ROUND(ROUND(AJ40,1)-AJ40,2),Round,2,FALSE)+VLOOKUP(AF40,Group,6,FALSE),0)","v":0},{"$f":"IF(VLOOKUP(AF40,Group,7,FALSE)=\"\",0,ROUND(AJ40-0.04999,1)-AJ40+AM40)","v":0},{"$f":"IF(VLOOKUP(AF40,Group,7,FALSE)=\"\",\"\",VLOOKUP(AF40,Group,7,FALSE))","v":""},null,"X"]
[null,"Decos",null,null,"12.6\" x 12.6\"",null,"Mosaic",null,null,"BOBO08",null,"Fossil Wood Stone Beige Brown Mix",null,null,null,null,null,null,61.85,"EA",{"$f":"+Instructions!$B$3","v":"A"},null,{"$f":"+Instructions!$C$22","v":0},61.85,null,"",61.85,0,61.85,0,null,3,61.85,null,null,61.85,0,0,"",null,"X"]
[null,"Decos",null,null,"13\" x 11.8\"",null,"Mosaic",null,null,"BOBO09",null,"Fossil Wood Stone Beige Brown Mix Baguette",null,null,null,null,null,null,71.400000000000006,"EA",{"$f":"+Instructions!$B$3","v":"A"},null,{"$f":"+Instructions!$C$22","v":0},71.400000000000006,null,"",71.400000000000006,0,71.400000000000006,0,null,3,71.400000000000006,null,null,71.400000000000006,0,0,"",null,"X"]
[null,"Decos",null,null,"12\" x 12\" x 0.4\"",null,"Mosaic",null,null,"BOCA01",null,"Coffee Tree Logs Wood Log Sliced Round",null,null,null,null,null,"b",54.3,"EA",{"$f":"+Instructions!$B$3","v":"A"},null,{"$f":"+Instructions!$C$22","v":0},54.3,null,"",54.3,{"$f":"+W43","v":0},54.3,0,null,3,54.3,null,null,54.3,0,0,"",null,"X"]
[null,"Decos",null,null,"11.8\" x 11.8\"",null,"Mosaic",null,null,"BOFO01",null,"Cubic Fossil Wood Stone",null,null,null,null,null,null,77.3,"EA",{"$f":"+Instructions!$B$3","v":"A"},null,{"$f":"+Instructions!$C$22","v":0},77.3,null,"",77.3,0,77.3,0,null,3,77.3,null,null,77.3,0,0,"",null,"X"]
[null,"Decos",null,null,"12\" x 11.8\"",null,"Mosaic",null,null,"BOFO03",null,"New Fossil Wood Brick",null,null,null,null,null,null,80.150000000000006,"EA",{"$f":"+Instructions!$B$3","v":"A"},null,{"$f":"+Instructions!$C$22","v":0},80.150000000000006,null,"new",80.150000000000006,0,80.150000000000006,0,null,3,80.150000000000006,null,null,80.150000000000006,0,0,"",null,"X"]
[null,"Decos",null,null,"13\" x 14.4\"",null,"Mosaic",null,null,"BOMA01",null,"Natural Wood",null,null,null,null,null,"c",47.2,"EA",{"$f":"+Instructions!$B$3","v":"A"},null,{"$f":"+Instructions!$C$22","v":0},47.2,null,"",47.2,0,47.2,0,null,3,47.2,null,null,47.2,0,0,"",null,"X"]
[null,"Decos",null,null,"13\" x 14.4\"",null,"Mosaic",null,null,"BOMI01",null,"Washed Wood",null,null,null,null,null,"c",47.2,"EA",{"$f":"+Instructions!$B$3","v":"A"},null,{"$f":"+Instructions!$C$22","v":0},47.2,null,"",47.2,0,47.2,0,null,3,47.2,null,null,47.2,0,0,"",null,"X"]
[null,"Decos",null,null,"11.9\" x 11.8\"",null,"Mosaic",null,null,"CEBE09",null,"2\" x 4\" Glazed Ceramic Beige Mix Rough Surface",null,null,null,null,null,null,76.400000000000006,"EA",{"$f":"+Instructions!$B$3","v":"A"},null,{"$f":"+Instructions!$C$22","v":0},76.400000000000006,null,"",76.400000000000006,0,76.400000000000006,0,null,3,76.400000000000006,null,null,76.400000000000006,0,0,"",null,"X"]
[null,"Decos",null,null,"11.8\" x 12.2\"",null,"Mosaic",null,null,"CEBE10",null,"Slate Stone Beige Glazed Ceramic 2\" x 6\" Brick",null,null,null,null,null,null,{"$f":"IF(Suggested=\"Yes\",AA49,AG49)","v":58.05},"EA",{"$f":"+Instructions!$B$3","v":"A"},null,{"$f":"+Instructions!$C$22","v":0},{"$f":"ROUND($AA49*(1-W49)+0.004999,2)","v":58.05},null,"",58.05,{"$f":"+W49","v":0},{"$f":"+X49","v":58.05},{"$f":"(AG49-AC49)/AG49","v":0},null,3,{"$f":"SUM(AJ49:AL49)+AE49","v":58.05},null,null,{"$f":"ROUND(AC49/(1-VLOOKUP(AF49,Group,2,FALSE)),2)","v":58.05},{"$f":"IF(VLOOKUP(AF49,Group,5,FALSE)=\"YES\",VLOOKUP(ROUND(ROUND(AJ49,1)-AJ49,2),Round,2,FALSE)+VLOOKUP(AF49,Group,6,FALSE),0)","v":0},{"$f":"IF(VLOOKUP(AF49,Group,7,FALSE)=\"\",0,ROUND(AJ49-0.04999,1)-AJ49+AM49)","v":0},{"$f":"IF(VLOOKUP(AF49,Group,7,FALSE)=\"\",\"\",VLOOKUP(AF49,Group,7,FALSE))","v":""},null,"X"]
[null,"Decos",null,null,"11.8\" x 11.8\"",null,"Mosaic",null,null,"CEBL17",null,"Ceramic Patchwork Square Blue",null,null,null,null,null,null,63.6,"EA",{"$f":"+Instructions!$B$3","v":"A"},null,{"$f":"+Instructions!$C$22","v":0},63.6,null,"",63.6,0,63.6,0,null,3,63.6,null,null,63.6,0,0,"",null,"X"]
[null,"Decos",null,null,"11.8\" x 11.8\"",null,"Mosaic",null,null,"CEBL18",null,"Ceramic Patchwork Square Blue & White Mix",null,null,null,null,null,null,{"$f":"IF(Suggested=\"Yes\",AA51,AG51)","v":63.6},"EA",{"$f":"+Instructions!$B$3","v":"A"},null,{"$f":"+Instructions!$C$22","v":0},{"$f":"ROUND($AA51*(1-W51)+0.004999,2)","v":63.6},null,"",63.6,{"$f":"+W51","v":0},63.6,{"$f":"(AG51-AC51)/AG51","v":0},null,3,{"$f":"SUM(AJ51:AL51)+AE51","v":63.6},null,null,{"$f":"ROUND(AC51/(1-VLOOKUP(AF51,Group,2,FALSE)),2)","v":63.6},{"$f":"IF(VLOOKUP(AF51,Group,5,FALSE)=\"YES\",VLOOKUP(ROUND(ROUND(AJ51,1)-AJ51,2),Round,2,FALSE)+VLOOKUP(AF51,Group,6,FALSE),0)","v":0},{"$f":"IF(VLOOKUP(AF51,Group,7,FALSE)=\"\",0,ROUND(AJ51-0.04999,1)-AJ51+AM51)","v":0},{"$f":"IF(VLOOKUP(AF51,Group,7,FALSE)=\"\",\"\",VLOOKUP(AF51,Group,7,FALSE))","v":""},null,"X"]
[null,"Decos",null,null,"11.8\" x 11.8\"",null,"Mosaic",null,null,"CEBL19",null,"Ceramic Patchwork Diamond Blue",null,null,null,null,null,null,66.75,"EA",{"$f":"+Instructions!$B$3","v":"A"},null,{"$f":"+Instructions!$C$22","v":0},66.75,null,"",66.75,0,66.75,0,null,3,66.75,null,null,66.75,0,0,"",null,"X"]
[null,"Decos",null,null,"11.6\" x 11.5\"",null,"Mosaic",null,null,"CEBL25",null,"Mini Subway White Glazed Porcelain 2\" x 4\"",null,null,null,null,null,null,{"$f":"IF(Suggested=\"Yes\",AA53,AG53)","v":26.65},"EA",{"$f":"+Instructions!$B$3","v":"A"},null,{"$f":"+Instructions!$C$22","v":0},{"$f":"ROUND($AA53*(1-W53)+0.004999,2)","v":26.65},null,"",26.65,0,26.65,{"$f":"(AG53-AC53)/AG53","v":0},null,3,{"$f":"SUM(AJ53:AL53)+AE53","v":26.65},null,null,{"$f":"ROUND(AC53/(1-VLOOKUP(AF53,Group,2,FALSE)),2)","v":26.65},{"$f":"IF(VLOOKUP(AF53,Group,5,FALSE)=\"YES\",VLOOKUP(ROUND(ROUND(AJ53,1)-AJ53,2),Round,2,FALSE)+VLOOKUP(AF53,Group,6,FALSE),0)","v":0},{"$f":"IF(VLOOKUP(AF53,Group,7,FALSE)=\"\",0,ROUND(AJ53-0.04999,1)-AJ53+AM53)","v":0},{"$f":"IF(VLOOKUP(AF53,Group,7,FALSE)=\"\",\"\",VLOOKUP(AF53,Group,7,FALSE))","v":""},null,"X"]
[null,"Decos",null,null,"11.8\" x 11.8\"",null,"Mosaic",null,null,"CEBL29",null,"Blue & White Palm Tree Pattern Glazed Ceramic 3\" x 3\"",null,null,null,null,null,null,76.45,"EA",{"$f":"+Instructions!$B$3","v":"A"},null,{"$f":"+Instructions!$C$22","v":0},76.45,null,"",76.45,0,76.45,0,null,3,76.45,null,null,76.45,0,0,"",null,"X"]
[null,"Decos",null,null,"11.6\" x 11.6\"",null,"Mosaic",null,null,"CEBL30",null,"Blue Mix Geometric Pattern Glazed Ceramic 4\" x 4\"",null,null,null,null,null,null,52.65,"EA",{"$f":"+Instructions!$B$3","v":"A"},null,{"$f":"+Instructions!$C$22","v":0},52.65,null,"",52.65,0,52.65,0,null,3,52.65,null,null,52.65,0,0,"",null,"X"]
[null,"Decos",null,null,"11.8\" x 11.8\"",null,"Mosaic",null,null,"CEBL36",null,"Ceramic Wood Rectangles Mix Grey 0.7\" x 4\"",null,null,null,null,null,null,83.6,"EA",{"$f":"+Instructions!$B$3","v":"A"},null,{"$f":"+Instructions!$C$22","v":0},83.6,null,"",83.6,0,83.6,0,null,3,83.6,null,null,83.6,0,0,"",null,"X"]
[null,"Decos",null,null,"11.2\" x 11.2\"",null,"Mosaic",null,null,"CEBL47",null,"Zellige Glazed Ceramic White 3\" x 3\"",null,null,null,null,null,null,45.9,"EA",{"$f":"+Instructions!$B$3","v":"A"},null,{"$f":"+Instructions!$C$22","v":0},45.9,null,"",45.9,0,45.9,0,null,3,45.9,null,null,45.9,0,0,"",null,"X"]
[null,"Decos",null,null,"11.2\" x 11.2\"",null,"Mosaic",null,null,"CEBL48",null,"Zellige Glazed Ceramic Soft Blue Mix 3\" x 3\"",null,null,null,null,null,null,{"$f":"IF(Suggested=\"Yes\",AA58,AG58)","v":45.9},"EA",{"$f":"+Instructions!$B$3","v":"A"},null,{"$f":"+Instructions!$C$22","v":0},{"$f":"ROUND($AA58*(1-W58)+0.004999,2)","v":45.9},null,"",45.9,{"$f":"+W58","v":0},{"$f":"+X58","v":45.9},{"$f":"(AG58-AC58)/AG58","v":0},null,3,{"$f":"SUM(AJ58:AL58)+AE58","v":45.9},null,null,{"$f":"ROUND(AC58/(1-VLOOKUP(AF58,Group,2,FALSE)),2)","v":45.9},{"$f":"IF(VLOOKUP(AF58,Group,5,FALSE)=\"YES\",VLOOKUP(ROUND(ROUND(AJ58,1)-AJ58,2),Round,2,FALSE)+VLOOKUP(AF58,Group,6,FALSE),0)","v":0},{"$f":"IF(VLOOKUP(AF58,Group,7,FALSE)=\"\",0,ROUND(AJ58-0.04999,1)-AJ58+AM58)","v":0},{"$f":"IF(VLOOKUP(AF58,Group,7,FALSE)=\"\",\"\",VLOOKUP(AF58,Group,7,FALSE))","v":""},null,"X"]
[null,"Decos",null,null,"11.2\" x 11.6\"",null,"Mosaic",null,null,"CEBL49",null,"White Brick Pattern Glossy Glazed Ceramic 2\" x 6\"",null,null,null,null,null,null,29.45,"EA",{"$f":"+Instructions!$B$3","v":"A"},null,{"$f":"+Instructions!$C$22","v":0},29.45,null,"",29.45,0,29.45,0,null,3,29.45,null,null,29.45,0,0,"",null,"X"]
[null,"Decos",null,null,"11.8\" x 11.8\"",null,"Mosaic",null," ","CEGR28",null,"Silver Industrial Relief Pattern Glazed Ceramic 4\" x 4\"",null,null,null,null,null,null,75.150000000000006,"EA",{"$f":"+Instructions!$B$3","v":"A"},null,{"$f":"+Instructions!$C$22","v":0},75.150000000000006,null,"",75.150000000000006,{"$f":"+W60","v":0},75.150000000000006,0,null,3,75.150000000000006,null,null,75.150000000000006,0,0,"",null,"X"]
[null,"Decos",null,null,"11.8\" x 11.4\"",null,"Mosaic",null," ","CEGR29",null,"Silver Industrial Linear Relief Pattern Glazed Ceramic 2.8\" x 6\"",null,null,null,null,null,null,{"$f":"IF(Suggested=\"Yes\",AA61,AG61)","v":75.150000000000006},"EA",{"$f":"+Instructions!$B$3","v":"A"},null,{"$f":"+Instructions!$C$22","v":0},{"$f":"ROUND($AA61*(1-W61)+0.004999,2)","v":75.150000000000006},null,"",75.150000000000006,{"$f":"+W61","v":0},{"$f":"+X61","v":75.150000000000006},{"$f":"(AG61-AC61)/AG61","v":0},null,3,{"$f":"SUM(AJ61:AL61)+AE61","v":75.150000000000006},null,null,{"$f":"ROUND(AC61/(1-VLOOKUP(AF61,Group,2,FALSE)),2)","v":75.150000000000006},{"$f":"IF(VLOOKUP(AF61,Group,5,FALSE)=\"YES\",VLOOKUP(ROUND(ROUND(AJ61,1)-AJ61,2),Round,2,FALSE)+VLOOKUP(AF61,Group,6,FALSE),0)","v":0},{"$f":"IF(VLOOKUP(AF61,Group,7,FALSE)=\"\",0,ROUND(AJ61-0.04999,1)-AJ61+AM61)","v":0},{"$f":"IF(VLOOKUP(AF61,Group,7,FALSE)=\"\",\"\",VLOOKUP(AF61,Group,7,FALSE))","v":""},null,"X"]
[null,"Decos",null,null,"11.9\" x 11.8\"",null,"Mosaic",null,null,"CEGR32",null,"2\" x 4\" Glazed Ceramic Grey Beige Mix Rough Surface",null,null,null,null,null,null,{"$f":"IF(Suggested=\"Yes\",AA62,AG62)","v":76.400000000000006},"EA",{"$f":"+Instructions!$B$3","v":"A"},null,{"$f":"+Instructions!$C$22","v":0},{"$f":"ROUND($AA62*(1-W62)+0.004999,2)","v":76.400000000000006},null,"",76.400000000000006,{"$f":"+W62","v":0},{"$f":"+X62","v":76.400000000000006},{"$f":"(AG62-AC62)/AG62","v":0},null,3,{"$f":"SUM(AJ62:AL62)+AE62","v":76.400000000000006},null,null,{"$f":"ROUND(AC62/(1-VLOOKUP(AF62,Group,2,FALSE)),2)","v":76.400000000000006},{"$f":"IF(VLOOKUP(AF62,Group,5,FALSE)=\"YES\",VLOOKUP(ROUND(ROUND(AJ62,1)-AJ62,2),Round,2,FALSE)+VLOOKUP(AF62,Group,6,FALSE),0)","v":0},{"$f":"IF(VLOOKUP(AF62,Group,7,FALSE)=\"\",0,ROUND(AJ62-0.04999,1)-AJ62+AM62)","v":0},{"$f":"IF(VLOOKUP(AF62,Group,7,FALSE)=\"\",\"\",VLOOKUP(AF62,Group,7,FALSE))","v":""},null,"X"]
[null,"Decos",null,null,"11.2\" x 11.2\"",null,"Mosaic",null,null,"CEGR35",null,"Zellige Glazed Ceramic Grey Mix 3\" x 3\"",null,null,null,null,null,null,{"$f":"IF(Suggested=\"Yes\",AA63,AG63)","v":45.9},"EA",{"$f":"+Instructions!$B$3","v":"A"},null,{"$f":"+Instructions!$C$22","v":0},{"$f":"ROUND($AA63*(1-W63)+0.004999,2)","v":45.9},null,"",45.9,{"$f":"+W63","v":0},{"$f":"+X63","v":45.9},{"$f":"(AG63-AC63)/AG63","v":0},null,3,{"$f":"SUM(AJ63:AL63)+AE63","v":45.9},null,null,{"$f":"ROUND(AC63/(1-VLOOKUP(AF63,Group,2,FALSE)),2)","v":45.9},{"$f":"IF(VLOOKUP(AF63,Group,5,FALSE)=\"YES\",VLOOKUP(ROUND(ROUND(AJ63,1)-AJ63,2),Round,2,FALSE)+VLOOKUP(AF63,Group,6,FALSE),0)","v":0},{"$f":"IF(VLOOKUP(AF63,Group,7,FALSE)=\"\",0,ROUND(AJ63-0.04999,1)-AJ63+AM63)","v":0},{"$f":"IF(VLOOKUP(AF63,Group,7,FALSE)=\"\",\"\",VLOOKUP(AF63,Group,7,FALSE))","v":""},null,"X"]
[null,"Decos",null,null,"11.8\" x 12.2\"",null,"Mosaic",null,null,"CEGR36",null,"Slate Stone Grey Glazed Ceramic 2\" x 6\" Brick",null,null,null,null,null,null,45.9,"EA",{"$f":"+Instructions!$B$3","v":"A"},null,{"$f":"+Instructions!$C$22","v":0},45.9,null,"",45.9,0,45.9,0,null,3,45.9,null,null,45.9,0,0,"",null,"X"]
[null,"Decos",null,null,"11.8\" x 11.8\"",null,"Mosaic",null,null,"CEGR37",null,"Grey Mix Pattern Deco Brick Matte Glazed Porcelain 1\" x 3\"",null,null,null,null,null,null,77.05,"EA",{"$f":"+Instructions!$B$3","v":"A"},null,{"$f":"+Instructions!$C$22","v":0},77.05,null,"",77.05,0,77.05,0,null,3,77.05,null,null,77.05,0,0,"",null,"X"]
[null,"Decos",null,null,"11.8\" x 11.8\"",null,"Mosaic",null,null,"CEMA04",null,"Gold Brown Mix Flower Pattern Glazed Ceramic 3\" x 3\"",null,null,null,null,null,null,{"$f":"IF(Suggested=\"Yes\",AA66,AG66)","v":90.4},"EA",{"$f":"+Instructions!$B$3","v":"A"},null,{"$f":"+Instructions!$C$22","v":0},{"$f":"ROUND($AA66*(1-W66)+0.004999,2)","v":90.4},null,"",90.4,0,90.4,{"$f":"(AG66-AC66)/AG66","v":0},null,3,{"$f":"SUM(AJ66:AL66)+AE66","v":90.4},null,null,{"$f":"ROUND(AC66/(1-VLOOKUP(AF66,Group,2,FALSE)),2)","v":90.4},{"$f":"IF(VLOOKUP(AF66,Group,5,FALSE)=\"YES\",VLOOKUP(ROUND(ROUND(AJ66,1)-AJ66,2),Round,2,FALSE)+VLOOKUP(AF66,Group,6,FALSE),0)","v":0},{"$f":"IF(VLOOKUP(AF66,Group,7,FALSE)=\"\",0,ROUND(AJ66-0.04999,1)-AJ66+AM66)","v":0},{"$f":"IF(VLOOKUP(AF66,Group,7,FALSE)=\"\",\"\",VLOOKUP(AF66,Group,7,FALSE))","v":""},null,"X"]
[null,"Decos",null,null,"12\" x 12\"",null,"Mosaic",null,null,"CEMA07",null,"Beige Brown Mix Wood 1.1\" x 4\" Glazed Ceramic",null,null,null,null,null,null,{"$f":"IF(Suggested=\"Yes\",AA67,AG67)","v":74.900000000000006},"EA",{"$f":"+Instructions!$B$3","v":"A"},null,{"$f":"+Instructions!$C$22","v":0},{"$f":"ROUND($AA67*(1-W67)+0.004999,2)","v":74.900000000000006},null,"",74.900000000000006,0,74.900000000000006,{"$f":"(AG67-AC67)/AG67","v":0},null,3,{"$f":"SUM(AJ67:AL67)+AE67","v":74.900000000000006},null,null,{"$f":"ROUND(AC67/(1-VLOOKUP(AF67,Group,2,FALSE)),2)","v":74.900000000000006},{"$f":"IF(VLOOKUP(AF67,Group,5,FALSE)=\"YES\",VLOOKUP(ROUND(ROUND(AJ67,1)-AJ67,2),Round,2,FALSE)+VLOOKUP(AF67,Group,6,FALSE),0)","v":0},{"$f":"IF(VLOOKUP(AF67,Group,7,FALSE)=\"\",0,ROUND(AJ67-0.04999,1)-AJ67+AM67)","v":0},{"$f":"IF(VLOOKUP(AF67,Group,7,FALSE)=\"\",\"\",VLOOKUP(AF67,Group,7,FALSE))","v":""},null,"X"]
[null,"Decos",null,null,"11.8\" x 11.8\"",null,"Mosaic",null,null,"CEMI09",null,"Ceramic Patchwork Square Black & White Mix",null,null,null,null,null,null,61.3,"EA",{"$f":"+Instructions!$B$3","v":"A"},null,{"$f":"+Instructions!$C$22","v":0},61.3,null,"",61.3,{"$f":"+W68","v":0},61.3,0,null,3,61.3,null,null,61.3,0,0,"",null,"X"]
[null,"Decos",null,null,"11.7\" x 13.2\"",null,"Mosaic",null,null,"CEMI45",null,"Multi Color Beige Mix Deco Brick Pattern Matte Glazed Ceramic 1\" x 3\"",null,null,null,null,null,null,79.849999999999994,"EA",{"$f":"+Instructions!$B$3","v":"A"},null,{"$f":"+Instructions!$C$22","v":0},79.849999999999994,null,"",79.849999999999994,0,79.849999999999994,0,null,3,79.849999999999994,null,null,79.849999999999994,0,0,"",null,"X"]
[null,"Decos",null,null,"11.8\" x 11.8\"",null,"Mosaic",null,null,"CEMI46",null,"Black & White Palm Tree Pattern Glazed Ceramic 3\" x 3\"",null,null,null,null,null,null,{"$f":"IF(Suggested=\"Yes\",AA70,AG70)","v":79.900000000000006},"EA",{"$f":"+Instructions!$B$3","v":"A"},null,{"$f":"+Instructions!$C$22","v":0},{"$f":"ROUND($AA70*(1-W70)+0.004999,2)","v":79.900000000000006},null,"",79.900000000000006,0,79.900000000000006,{"$f":"(AG70-AC70)/AG70","v":0},null,3,{"$f":"SUM(AJ70:AL70)+AE70","v":79.900000000000006},null,null,{"$f":"ROUND(AC70/(1-VLOOKUP(AF70,Group,2,FALSE)),2)","v":79.900000000000006},{"$f":"IF(VLOOKUP(AF70,Group,5,FALSE)=\"YES\",VLOOKUP(ROUND(ROUND(AJ70,1)-AJ70,2),Round,2,FALSE)+VLOOKUP(AF70,Group,6,FALSE),0)","v":0},{"$f":"IF(VLOOKUP(AF70,Group,7,FALSE)=\"\",0,ROUND(AJ70-0.04999,1)-AJ70+AM70)","v":0},{"$f":"IF(VLOOKUP(AF70,Group,7,FALSE)=\"\",\"\",VLOOKUP(AF70,Group,7,FALSE))","v":""},null,"X"]
[null,"Decos",null,null,"10.2\" x 11.7\"",null,"Mosaic",null,null,"CEMI47",null,"Grey Blue Mix Triangle Glazed Ceramic 3\"",null,null,null,null,null,null,59.15,"EA",{"$f":"+Instructions!$B$3","v":"A"},null,{"$f":"+Instructions!$C$22","v":0},59.15,null,"",59.15,0,59.15,0,null,3,59.15,null,null,59.15,0,0,"",null,"X"]
[null,"Decos",null,null,"11.8\" x 11.8\"",null,"Mosaic",null," ","CEMI48",null,"Rust Industrial Relief Pattern Glazed Ceramic 4\" x 4\"",null,null,null,null,null,null,75.150000000000006,"EA",{"$f":"+Instructions!$B$3","v":"A"},null,{"$f":"+Instructions!$C$22","v":0},75.150000000000006,null,"",75.150000000000006,0,75.150000000000006,0,null,3,75.150000000000006,null,null,75.150000000000006,0,0,"",null,"X"]
[null,"Decos",null,null,"11.8\" x 11.4\"",null,"Mosaic",null,null,"CEMI49",null,"Rust Industrial Linear Relief Pattern Glazed Ceramic 2.8\" x 6\"",null,null,null,null,null,null,75.150000000000006,"EA",{"$f":"+Instructions!$B$3","v":"A"},null,{"$f":"+Instructions!$C$22","v":0},75.150000000000006,null,"",75.150000000000006,{"$f":"+W73","v":0},75.150000000000006,0,null,3,75.150000000000006,null,null,75.150000000000006,0,0,"",null,"X"]
[null,"Decos",null,null,"11.8\" x 11.8\"",null,"Mosaic",null,null,"CEMI50",null,"Ceramic Wood Rectangles Mix Beige Blue 0.7\" x 4\"",null,null,null,null,null,null,83.6,"EA",{"$f":"+Instructions!$B$3","v":"A"},null,{"$f":"+Instructions!$C$22","v":0},83.6,null,"",83.6,0,83.6,0,null,3,83.6,null,null,83.6,0,0,"",null,"X"]
[null,"Decos",null,null,"11.8\" x 11.8\"",null,"Mosaic",null,null,"CEMI51",null,"Aztec Native Series Black & White Glazed Ceramic 4\" x 4\"",null,null,null,null,null,null,75.150000000000006,"EA",{"$f":"+Instructions!$B$3","v":"A"},null,{"$f":"+Instructions!$C$22","v":0},75.150000000000006,null,"",75.150000000000006,0,75.150000000000006,0,null,3,75.150000000000006,null,null,75.150000000000006,0,0,"",null,"X"]
[null,"Decos",null,null,"11.8\" x 11.8\"",null,"Mosaic",null,null,"CEMI52",null,"Island Native Series Black & White Glazed Ceramic 4\" x 4\"",null,null,null,null,null,null,75.150000000000006,"EA",{"$f":"+Instructions!$B$3","v":"A"},null,{"$f":"+Instructions!$C$22","v":0},75.150000000000006,null,"",75.150000000000006,0,75.150000000000006,0,null,3,75.150000000000006,null,null,75.150000000000006,0,0,"",null,"X"]
[null,"Decos",null,null,"11.8\" x 11.8\"",null,"Mosaic",null,null,"CEMI53",null,"Maori Native Series Black & White Glazed Ceramic 4\" x 4\"",null,null,null,null,null,null,75.150000000000006,"EA",{"$f":"+Instructions!$B$3","v":"A"},null,{"$f":"+Instructions!$C$22","v":0},75.150000000000006,null,"",75.150000000000006,0,75.150000000000006,0,null,3,75.150000000000006,null,null,75.150000000000006,0,0,"",null,"X"]
[null,"Decos",null,null,"12\" x 12\"",null,"Mosaic",null,null,"CEMI64",null,"4\" x 4\" Floral Palm Grey Beige",null,null,null,null,null,null,71.8,"EA",{"$f":"+Instructions!$B$3","v":"A"},null,{"$f":"+Instructions!$C$22","v":0},71.8,null,"",71.8,0,71.8,0,null,3,71.8,null,null,71.8,0,0,"",null,"X"]
[null,"Decos",null,null,"12\" x 12\"",null,"Mosaic",null,null,"CEMI67",null,"Multicolor Wood 1.1\" x 4\" Glazed Ceramic",null,null,null,null,null,null,{"$f":"IF(Suggested=\"Yes\",AA79,AG79)","v":78.05},"EA",{"$f":"+Instructions!$B$3","v":"A"},null,{"$f":"+Instructions!$C$22","v":0},{"$f":"ROUND($AA79*(1-W79)+0.004999,2)","v":78.05},null,"",78.05,{"$f":"+W79","v":0},{"$f":"+X79","v":78.05},{"$f":"(AG79-AC79)/AG79","v":0},null,3,{"$f":"SUM(AJ79:AL79)+AE79","v":78.05},null,null,{"$f":"ROUND(AC79/(1-VLOOKUP(AF79,Group,2,FALSE)),2)","v":78.05},{"$f":"IF(VLOOKUP(AF79,Group,5,FALSE)=\"YES\",VLOOKUP(ROUND(ROUND(AJ79,1)-AJ79,2),Round,2,FALSE)+VLOOKUP(AF79,Group,6,FALSE),0)","v":0},{"$f":"IF(VLOOKUP(AF79,Group,7,FALSE)=\"\",0,ROUND(AJ79-0.04999,1)-AJ79+AM79)","v":0},{"$f":"IF(VLOOKUP(AF79,Group,7,FALSE)=\"\",\"\",VLOOKUP(AF79,Group,7,FALSE))","v":""},null,"X"]
[null,"Decos",null,null,"11.8\" x 11.8\"",null,"Mosaic",null,null,"CEMI68",null,"4\" x 4\" Floral Multicolor",null,null,null,null,null,null,77.400000000000006,"EA",{"$f":"+Instructions!$B$3","v":"A"},null,{"$f":"+Instructions!$C$22","v":0},77.400000000000006,null,"",77.400000000000006,0,77.400000000000006,0,null,3,77.400000000000006,null,null,77.400000000000006,0,0,"",null,"X"]
[null,"Decos",null,null,"11.6\" x 11.5\"",null,"Mosaic",null,null,"CENO31",null,"Mini Subway Black Glazed Porcelain 2\" x 4\"",null,null,null,null,null,null,28.15,"EA",{"$f":"+Instructions!$B$3","v":"A"},null,{"$f":"+Instructions!$C$22","v":0},28.15,null,"",28.15,{"$f":"+W81","v":0},{"$f":"+X81","v":28.15},0,null,3,28.15,null,null,28.15,0,0,"",null,"X"]
[null,"Decos",null,null,"11.2\" x 11.6\"",null,"Mosaic",null,null,"CENO40",null,"Black Brick Pattern Glossy Glazed Ceramic 2\" x 6\"",null,null,null,null,null,null,29.2,"EA",{"$f":"+Instructions!$B$3","v":"A"},null,{"$f":"+Instructions!$C$22","v":0},29.2,null,"",29.2,{"$f":"+W82","v":0},{"$f":"+X82","v":29.2},0,null,3,29.2,null,null,29.2,0,0,"",null,"X"]
[null,"Decos",null,null,"11.2\" x 11.2\"",null,"Mosaic",null,null,"CEVE16",null,"Zellige Glazed Ceramic Soft Green Mix 3\" x 3\"",null,null,null,null,null,null,{"$f":"IF(Suggested=\"Yes\",AA83,AG83)","v":45.9},"EA",{"$f":"+Instructions!$B$3","v":"A"},null,{"$f":"+Instructions!$C$22","v":0},{"$f":"ROUND($AA83*(1-W83)+0.004999,2)","v":45.9},null,"",45.9,{"$f":"+W83","v":0},{"$f":"+X83","v":45.9},{"$f":"(AG83-AC83)/AG83","v":0},null,3,{"$f":"SUM(AJ83:AL83)+AE83","v":45.9},null,null,{"$f":"ROUND(AC83/(1-VLOOKUP(AF83,Group,2,FALSE)),2)","v":45.9},{"$f":"IF(VLOOKUP(AF83,Group,5,FALSE)=\"YES\",VLOOKUP(ROUND(ROUND(AJ83,1)-AJ83,2),Round,2,FALSE)+VLOOKUP(AF83,Group,6,FALSE),0)","v":0},{"$f":"IF(VLOOKUP(AF83,Group,7,FALSE)=\"\",0,ROUND(AJ83-0.04999,1)-AJ83+AM83)","v":0},{"$f":"IF(VLOOKUP(AF83,Group,7,FALSE)=\"\",\"\",VLOOKUP(AF83,Group,7,FALSE))","v":""},null,"X"]
[null,"Decos",null,null,"11.8\" x 11.8\"",null,"Mosaic",null,null,"ECO08",null,"Black Slate 2\" x 2\"",null,null,null,null,null,null,49.4,"EA",{"$f":"+Instructions!$B$3","v":"A"},null,{"$f":"+Instructions!$C$22","v":0},49.4,null,"",49.4,0,49.4,0,null,3,49.4,null,null,49.4,0,0,"",null,"X"]
[null,"Decos",null,null,"11.8\" x 11.8\"",null,"Mosaic",null,null,"ECO09",null,"Rust Slate 2\" x 2\"",null,null,null,null,null,null,{"$f":"IF(Suggested=\"Yes\",AA85,AG85)","v":49.4},"EA",{"$f":"+Instructions!$B$3","v":"A"},null,{"$f":"+Instructions!$C$22","v":0},{"$f":"ROUND($AA85*(1-W85)+0.004999,2)","v":49.4},null,"",49.4,{"$f":"+W85","v":0},{"$f":"+X85","v":49.4},{"$f":"(AG85-AC85)/AG85","v":0},null,3,{"$f":"SUM(AJ85:AL85)+AE85","v":49.4},null,null,{"$f":"ROUND(AC85/(1-VLOOKUP(AF85,Group,2,FALSE)),2)","v":49.4},{"$f":"IF(VLOOKUP(AF85,Group,5,FALSE)=\"YES\",VLOOKUP(ROUND(ROUND(AJ85,1)-AJ85,2),Round,2,FALSE)+VLOOKUP(AF85,Group,6,FALSE),0)","v":0},{"$f":"IF(VLOOKUP(AF85,Group,7,FALSE)=\"\",0,ROUND(AJ85-0.04999,1)-AJ85+AM85)","v":0},{"$f":"IF(VLOOKUP(AF85,Group,7,FALSE)=\"\",\"\",VLOOKUP(AF85,Group,7,FALSE))","v":""},null,"X"]
[null,"Decos",null,null,"11.8\" x 11.8\"",null,"Mosaic",null,null,"ECO11",null,"Grey Mix Sliced Matte Pebble",null,null,null,null,null,null,42.45,"EA",{"$f":"+Instructions!$B$3","v":"A"},null,{"$f":"+Instructions!$C$22","v":0},42.45,null,"",42.45,0,42.45,0,null,3,42.45,null,null,42.45,0,0,"",null,"X"]
[null,"Decos",null,null,"11.8\" x 11.8\"",null,"Mosaic",null,null,"ECO12",null,"Grey Mix Mini Opus Marble",null,null,null,null,null,null,36.1,"EA",{"$f":"+Instructions!$B$3","v":"A"},null,{"$f":"+Instructions!$C$22","v":0},36.1,null,"",36.1,0,36.1,0,null,3,36.1,null,null,36.1,0,0,"",null,"X"]
[null,null,null,null,null,null,null,null,null,"",null,"",null,null,null,null,null,null,null,null,null,null,null,null,null,null,null,null,null,null,null,null,null,null,null,null,null,null,null,null,"X"]
[null,null,"continued on next page",null,null,null,null,null,null,"",null,"",null,null,null,null,null,null,null,null,null,null,null,null,null,null,null,null,null,null,null,null,null,null,null,null,null,null,null,null,"X"]
[null,null,"DÉCOR & STYLE - continued",null,null,null,null,null,null,null,null,null,null,null,null,null,null,"Item # Lookup:","BO"]
[null,null,null,null,null,null,null,null,null,null,null,null,null,null,null,null,null,null,null,null,null,null,null,null,null,null,null,null,null,null,null,null,null,null,null,null,null,null,null,null,"X"]
[null,"Decos",null,null,"11.8\" x 11.8\"",null,"Mosaic",null,null,"ECO13",null,"Round Marble Light & Dark Grey Mix",null,null,null,null,null,null,54.5,"EA",{"$f":"+Instructions!$B$3","v":"A"},null,{"$f":"+Instructions!$C$22","v":0},54.5,null,"",54.5,0,54.5,0,null,3,54.5,null,null,54.5,0,0,"",null,"X"]
[null,"Decos",null,null,"11.8\" x 11.8\"",null,"Mosaic",null,null,"ECO14",null,"Round Marble Off White Mix",null,null,null,"  ",null,null,{"$f":"IF(Suggested=\"Yes\",AA93,AG93)","v":54.5},"EA",{"$f":"+Instructions!$B$3","v":"A"},null,{"$f":"+Instructions!$C$22","v":0},{"$f":"ROUND($AA93*(1-W93)+0.004999,2)","v":54.5},null,"",54.5,{"$f":"+W93","v":0},{"$f":"+X93","v":54.5},{"$f":"(AG93-AC93)/AG93","v":0},null,3,{"$f":"SUM(AJ93:AL93)+AE93","v":54.5},null,null,{"$f":"ROUND(AC93/(1-VLOOKUP(AF93,Group,2,FALSE)),2)","v":54.5},{"$f":"IF(VLOOKUP(AF93,Group,5,FALSE)=\"YES\",VLOOKUP(ROUND(ROUND(AJ93,1)-AJ93,2),Round,2,FALSE)+VLOOKUP(AF93,Group,6,FALSE),0)","v":0},{"$f":"IF(VLOOKUP(AF93,Group,7,FALSE)=\"\",0,ROUND(AJ93-0.04999,1)-AJ93+AM93)","v":0},{"$f":"IF(VLOOKUP(AF93,Group,7,FALSE)=\"\",\"\",VLOOKUP(AF93,Group,7,FALSE))","v":""},null,"X"]
[null,"Decos",null,null,"11.8\" x 11.8\"",null,"Mosaic",null,null,"ECO21",null,"Glass Stripe Effect Polished 2\" x 2\" Grey Mix",null,null,null,null,null,null,67.55,"EA",{"$f":"+Instructions!$B$3","v":"A"},null,{"$f":"+Instructions!$C$22","v":0},67.55,null,"",67.55,0,67.55,0,null,3,67.55,null,null,67.55,0,0,"",null,"X"]
[null,"Decos",null,null,"11.8\" x 11.8\"",null,"Mosaic",null,null,"ECO23",null,"Baguette Glass Polished Grey Brown Mix",null,null,null,null,null,null,67.5,"EA",{"$f":"+Instructions!$B$3","v":"A"},null,{"$f":"+Instructions!$C$22","v":0},67.5,null,"",67.5,0,67.5,0,null,3,67.5,null,null,67.5,0,0,"",null,"X"]
[null,"Decos",null,null,"11.8\" x 11.8\"",null,"Mosaic",null,null,"ECO25",null,"Baguette Glass Polished Grey Mix",null,null,null,null,null,null,67.55,"EA",{"$f":"+Instructions!$B$3","v":"A"},null,{"$f":"+Instructions!$C$22","v":0},67.55,null,"",67.55,0,67.55,0,null,3,67.55,null,null,67.55,0,0,"",null,"X"]
[null,"Decos",null,null,"11.8\" x 11.8\"",null,"Mosaic",null,null,"ECO27",null,"Glass Brick 1\" x 2\" Glossy Silver",null,null,null,null,null,null,{"$f":"IF(Suggested=\"Yes\",AA97,AG97)","v":67.55},"EA",{"$f":"+Instructions!$B$3","v":"A"},null,{"$f":"+Instructions!$C$22","v":0},{"$f":"ROUND($AA97*(1-W97)+0.004999,2)","v":67.55},null,"",67.55,{"$f":"+W97","v":0},{"$f":"+X97","v":67.55},{"$f":"(AG97-AC97)/AG97","v":0},null,3,{"$f":"SUM(AJ97:AL97)+AE97","v":67.55},null,null,{"$f":"ROUND(AC97/(1-VLOOKUP(AF97,Group,2,FALSE)),2)","v":67.55},{"$f":"IF(VLOOKUP(AF97,Group,5,FALSE)=\"YES\",VLOOKUP(ROUND(ROUND(AJ97,1)-AJ97,2),Round,2,FALSE)+VLOOKUP(AF97,Group,6,FALSE),0)","v":0},{"$f":"IF(VLOOKUP(AF97,Group,7,FALSE)=\"\",0,ROUND(AJ97-0.04999,1)-AJ97+AM97)","v":0},{"$f":"IF(VLOOKUP(AF97,Group,7,FALSE)=\"\",\"\",VLOOKUP(AF97,Group,7,FALSE))","v":""},null,"X"]
[null,"Decos",null,null,"12\" x 12\"",null,"Mosaic",null,null,"GABE01R",null,"Beige Matte Pebble",null,null,null,null,null,"d",{"$f":"IF(Suggested=\"Yes\",AA98,AG98)","v":36.15},"EA",{"$f":"+Instructions!$B$3","v":"A"},null,{"$f":"+Instructions!$C$22","v":0},{"$f":"ROUND($AA98*(1-W98)+0.004999,2)","v":36.15},null,"",36.15,{"$f":"+W98","v":0},{"$f":"+X98","v":36.15},{"$f":"(AG98-AC98)/AG98","v":0},null,3,{"$f":"SUM(AJ98:AL98)+AE98","v":36.15},null,null,{"$f":"ROUND(AC98/(1-VLOOKUP(AF98,Group,2,FALSE)),2)","v":36.15},{"$f":"IF(VLOOKUP(AF98,Group,5,FALSE)=\"YES\",VLOOKUP(ROUND(ROUND(AJ98,1)-AJ98,2),Round,2,FALSE)+VLOOKUP(AF98,Group,6,FALSE),0)","v":0},{"$f":"IF(VLOOKUP(AF98,Group,7,FALSE)=\"\",0,ROUND(AJ98-0.04999,1)-AJ98+AM98)","v":0},{"$f":"IF(VLOOKUP(AF98,Group,7,FALSE)=\"\",\"\",VLOOKUP(AF98,Group,7,FALSE))","v":""},null,"X"]
[null,"Decos",null,null,"4\" x 12\"",null,"Border",null,null,"GABE02R/30",null,"Beige Matte Pebble",null,null,null,null,null,"d",19.850000000000001,"EA",{"$f":"+Instructions!$B$3","v":"A"},null,{"$f":"+Instructions!$C$22","v":0},19.850000000000001,null,"",19.850000000000001,0,19.850000000000001,0,null,3,19.850000000000001,null,null,19.850000000000001,0,0,"",null,"X"]
[null,"Decos",null,null,"12\" x 12\"",null,"Mosaic",null,null,"GABE03",null,"Beige Polished Pebble",null,null,null,null,null,null,33.25,"EA",{"$f":"+Instructions!$B$3","v":"A"},null,{"$f":"+Instructions!$C$22","v":0},33.25,null,"",33.25,0,33.25,0,null,3,33.25,null,null,33.25,0,0,"",null,"X"]
[null,"Decos",null,null,"4\" x 12\"",null,"Border",null,null,"GABE04/30",null,"Beige Polished Pebble",null,null,null,null,null,null,17.7,"EA",{"$f":"+Instructions!$B$3","v":"A"},null,{"$f":"+Instructions!$C$22","v":0},17.7,null,"",17.7,0,17.7,0,null,3,17.7,null,null,17.7,0,0,"",null,"X"]
[null,"Decos",null,null,"12\" x 12\"",null,"Mosaic",null,null,"GABE11",null,"Beige Sliced Matte Pebble",null,null,null,null,null,null,43.95,"EA",{"$f":"+Instructions!$B$3","v":"A"},null,{"$f":"+Instructions!$C$22","v":0},43.95,null,"",43.95,0,43.95,0,null,3,43.95,null,null,43.95,0,0,"",null,"X"]
[null,"Decos",null,null,"4\" x 12\"",null,"Border",null,null,"GABE12/30",null,"Beige Sliced Matte Pebble",null,null,null,null,null,null,21.75,"EA",{"$f":"+Instructions!$B$3","v":"A"},null,{"$f":"+Instructions!$C$22","v":0},21.75,null,"",21.75,0,21.75,0,null,3,21.75,null,null,21.75,0,0,"",null,"X"]
[null,"Decos",null,null,"12\" x 12\"",null,"Mosaic",null,null,"GABE14",null,"Beige XL Sliced Matte Pebble",null,null,null,null,null,null,38.799999999999997,"EA",{"$f":"+Instructions!$B$3","v":"A"},null,{"$f":"+Instructions!$C$22","v":0},38.799999999999997,null,"",38.799999999999997,0,38.799999999999997,0,null,3,38.799999999999997,null,null,38.799999999999997,0,0,"",null,"X"]
[null,"Decos",null,null,"4\" x 12\"",null,"Border",null,null,"GABE15/30",null,"Beige XL Sliced Matte Pebble",null,null,null,null,null,null,19.850000000000001,"EA",{"$f":"+Instructions!$B$3","v":"A"},null,{"$f":"+Instructions!$C$22","v":0},19.850000000000001,null,"",19.850000000000001,0,19.850000000000001,0,null,3,19.850000000000001,null,null,19.850000000000001,0,0,"",null,"X"]
[null,"Decos",null,null,"12\" x 12\"",null,"Mosaic",null,null,"GABE17",null,"Beige Sliced Polished Pebble",null,null,null,null,null,null,43.05,"EA",{"$f":"+Instructions!$B$3","v":"A"},null,{"$f":"+Instructions!$C$22","v":0},43.05,null,"",43.05,0,43.05,0,null,3,43.05,null,null,43.05,0,0,"",null,"X"]
[null,"Decos",null,null,"4\" x 12\"",null,"Border",null,null,"GABE18/30",null,"Beige Sliced Polished Pebble",null,null,null,null,null,null,30.3,"EA",{"$f":"+Instructions!$B$3","v":"A"},null,{"$f":"+Instructions!$C$22","v":0},30.3,null,"",30.3,0,30.3,0,null,3,30.3,null,null,30.3,0,0,"",null,"X"]
[null,"Decos",null,null,"11.8\" x 11.8\"",null,"Mosaic",null,null,"GABE19",null,"Sliced Onyx Crema Polished Pebble",null,null,null,null,null,null,79.45,"EA",{"$f":"+Instructions!$B$3","v":"A"},null,{"$f":"+Instructions!$C$22","v":0},79.45,null,"",79.45,0,79.45,0,null,3,79.45,null,null,79.45,0,0,"",null,"X"]
[null,"Decos",null,null,"11.8\" x 12\"",null,"Mosaic",null,null,"GABE21",null,"Onyx Light Beige Pebble",null,null,null,null,null,null,69.5,"EA",{"$f":"+Instructions!$B$3","v":"A"},null,{"$f":"+Instructions!$C$22","v":0},69.5,null,"",69.5,0,69.5,0,null,3,69.5,null,null,69.5,0,0,"",null,"X"]
[null,"Decos",null,null,"12\" x 12\"",null,"Mosaic",null,null,"GABL01R",null,"White Matte Pebble",null,null,null,null,null,"d",36,"EA",{"$f":"+Instructions!$B$3","v":"A"},null,{"$f":"+Instructions!$C$22","v":0},36,null,"",36,0,36,0,null,3,36,null,null,36,0,0,"",null,"X"]
[null,"Decos",null,null,"4\" x 12\"",null,"Border",null,null,"GABL02R/30",null,"White Matte Pebble",null,null,null,null,null,"d",21.25,"EA",{"$f":"+Instructions!$B$3","v":"A"},null,{"$f":"+Instructions!$C$22","v":0},21.25,null,"",21.25,0,21.25,0,null,3,21.25,null,null,21.25,0,0,"",null,"X"]
[null,"Decos",null,null,"12\" x 12\"",null,"Mosaic",null,null,"GABL03",null,"White Polished Pebble",null,null,null,null,null,null,33.25,"EA",{"$f":"+Instructions!$B$3","v":"A"},null,{"$f":"+Instructions!$C$22","v":0},33.25,null,"",33.25,0,33.25,0,null,3,33.25,null,null,33.25,0,0,"",null,"X"]
[null,"Decos",null,null,"4\" x 12\"",null,"Border",null,null,"GABL04/30",null,"White Polished Pebble",null,null,null,null,null,null,{"$f":"IF(Suggested=\"Yes\",AA113,AG113)","v":20.75},"EA",{"$f":"+Instructions!$B$3","v":"A"},null,{"$f":"+Instructions!$C$22","v":0},{"$f":"ROUND($AA113*(1-W113)+0.004999,2)","v":20.75},null,"",20.75,{"$f":"+W113","v":0},20.75,{"$f":"(AG113-AC113)/AG113","v":0},null,3,{"$f":"SUM(AJ113:AL113)+AE113","v":20.75},null,null,{"$f":"ROUND(AC113/(1-VLOOKUP(AF113,Group,2,FALSE)),2)","v":20.75},{"$f":"IF(VLOOKUP(AF113,Group,5,FALSE)=\"YES\",VLOOKUP(ROUND(ROUND(AJ113,1)-AJ113,2),Round,2,FALSE)+VLOOKUP(AF113,Group,6,FALSE),0)","v":0},{"$f":"IF(VLOOKUP(AF113,Group,7,FALSE)=\"\",0,ROUND(AJ113-0.04999,1)-AJ113+AM113)","v":0},{"$f":"IF(VLOOKUP(AF113,Group,7,FALSE)=\"\",\"\",VLOOKUP(AF113,Group,7,FALSE))","v":""},null,"X"]
[null,"Decos",null,null,"12\" x 12\"",null,"Mosaic",null,null,"GABL17",null,"White Sliced Matte Pebble",null,null,null,null,null,null,43.95,"EA",{"$f":"+Instructions!$B$3","v":"A"},null,{"$f":"+Instructions!$C$22","v":0},43.95,null,"",43.95,0,43.95,0,null,3,43.95,null,null,43.95,0,0,"",null,"X"]
[null,"Decos",null,null,"4\" x 12\"",null,"Border",null,null,"GABL18/30",null,"White Sliced Matte Pebble",null,null,null,null,null,null,23.35,"EA",{"$f":"+Instructions!$B$3","v":"A"},null,{"$f":"+Instructions!$C$22","v":0},23.35,null,"",23.35,0,23.35,0,null,3,23.35,null,null,23.35,0,0,"",null,"X"]
[null,"Decos",null,null,"12\" x 12\"",null,"Mosaic",null,null,"GABL20",null,"White XL Sliced Matte Pebble",null,null,null,null,null,null,39.9,"EA",{"$f":"+Instructions!$B$3","v":"A"},null,{"$f":"+Instructions!$C$22","v":0},39.9,null,"",39.9,0,39.9,0,null,3,39.9,null,null,39.9,0,0,"",null,"X"]
[null,"Decos",null,null,"4\" x 12\"",null,"Border",null,null,"GABL21/30",null,"White XL Sliced Matte Pebble",null,null,null,null,null,null,25.75,"EA",{"$f":"+Instructions!$B$3","v":"A"},null,{"$f":"+Instructions!$C$22","v":0},25.75,null,"",25.75,0,25.75,0,null,3,25.75,null,null,25.75,0,0,"",null,"X"]
[null,"Decos",null,null,"6\" x 12\"",null,"Mosaic",null,null,"GABL22",null,"White Stacked Pebble",null,null,null,null,null,"e",38.700000000000003,"EA",{"$f":"+Instructions!$B$3","v":"A"},null,{"$f":"+Instructions!$C$22","v":0},38.700000000000003,null,"",38.700000000000003,0,38.700000000000003,0,null,3,38.700000000000003,null,null,38.700000000000003,0,0,"",null,"X"]
[null,"Decos",null,null,"12\" x 12\"",null,"Mosaic",null,null,"GABL23",null,"White Sliced Polished Pebble",null,null,null,null,null,null,62.15,"EA",{"$f":"+Instructions!$B$3","v":"A"},null,{"$f":"+Instructions!$C$22","v":0},62.15,null,"",62.15,0,62.15,0,null,3,62.15,null,null,62.15,0,0,"",null,"X"]
[null,"Decos",null,null,"4\" x 12\"",null,"Border",null,null,"GABL24/30",null,"White Sliced Polished Pebble",null,null,null,null,null,null,{"$f":"IF(Suggested=\"Yes\",AA120,AG120)","v":32.85},"EA",{"$f":"+Instructions!$B$3","v":"A"},null,{"$f":"+Instructions!$C$22","v":0},{"$f":"ROUND($AA120*(1-W120)+0.004999,2)","v":32.85},null,"",32.85,{"$f":"+W120","v":0},{"$f":"+X120","v":32.85},{"$f":"(AG120-AC120)/AG120","v":0},null,3,{"$f":"SUM(AJ120:AL120)+AE120","v":32.85},null,null,{"$f":"ROUND(AC120/(1-VLOOKUP(AF120,Group,2,FALSE)),2)","v":32.85},{"$f":"IF(VLOOKUP(AF120,Group,5,FALSE)=\"YES\",VLOOKUP(ROUND(ROUND(AJ120,1)-AJ120,2),Round,2,FALSE)+VLOOKUP(AF120,Group,6,FALSE),0)","v":0},{"$f":"IF(VLOOKUP(AF120,Group,7,FALSE)=\"\",0,ROUND(AJ120-0.04999,1)-AJ120+AM120)","v":0},{"$f":"IF(VLOOKUP(AF120,Group,7,FALSE)=\"\",\"\",VLOOKUP(AF120,Group,7,FALSE))","v":""},null,"X"]
[null,"Decos",null,null,"12\" x 12\"",null,"Mosaic",null,null,"GABL27",null,"White Sliced Polished Pebble",null,null,null,null,null,null,62,"EA",{"$f":"+Instructions!$B$3","v":"A"},null,{"$f":"+Instructions!$C$22","v":0},62,null,"",62,0,62,0,null,3,62,null,null,62,0,0,"",null,"X"]
[null,"Decos",null,null,"12\" x 12\"",null,"Mosaic",null,null,"GAGR01R",null,"Grey Matte Pebble",null,null,null,null,null,"d",37.299999999999997,"EA",{"$f":"+Instructions!$B$3","v":"A"},null,{"$f":"+Instructions!$C$22","v":0},37.299999999999997,null,"",37.299999999999997,0,37.299999999999997,0,null,3,37.299999999999997,null,null,37.299999999999997,0,0,"",null,"X"]
[null,"Decos",null,null,"4\" x 12\"",null,"Border",null,null,"GAGR02R/30",null,"Grey Matte Pebble",null,null,null,null,null,"d",21.25,"EA",{"$f":"+Instructions!$B$3","v":"A"},null,{"$f":"+Instructions!$C$22","v":0},21.25,null,"",21.25,0,21.25,0,null,3,21.25,null,null,21.25,0,0,"",null,"X"]
[null,"Decos",null,null,"12\" x 12\"",null,"Mosaic",null,null,"GAGR03",null,"Grey Mix Reconstituted Pebble",null,null,null,null,null,"f",69.05,"EA",{"$f":"+Instructions!$B$3","v":"A"},null,{"$f":"+Instructions!$C$22","v":0},69.05,null,"",69.05,0,69.05,0,null,3,69.05,null,null,69.05,0,0,"",null,"X"]
[null,"Decos",null,null,"4\" x 12\"",null,"Border",null,null,"GAGR04/30",null,"Grey Mix Reconstituted Pebble",null,null,null,null,null,"f",29.2,"EA",{"$f":"+Instructions!$B$3","v":"A"},null,{"$f":"+Instructions!$C$22","v":0},29.2,null,"",29.2,0,29.2,0,null,3,29.2,null,null,29.2,0,0,"",null,"X"]
[null,"Decos",null,null,"12\" x 12\"",null,"Mosaic",null,null,"GAGR07R",null,"Grey/Beige Mix Matte Pebble",null,null,null,null,null,"d",37.299999999999997,"EA",{"$f":"+Instructions!$B$3","v":"A"},null,{"$f":"+Instructions!$C$22","v":0},37.299999999999997,null,"",37.299999999999997,0,37.299999999999997,0,null,3,37.299999999999997,null,null,37.299999999999997,0,0,"",null,"X"]
[null,"Decos",null,null,"4\" x 12\"",null,"Border",null,null,"GAGR08R/30",null,"Grey/Beige Mix Matte Pebble",null,null,null,null,null,"d",21.25,"EA",{"$f":"+Instructions!$B$3","v":"A"},null,{"$f":"+Instructions!$C$22","v":0},21.25,null,"",21.25,0,21.25,0,null,3,21.25,null,null,21.25,0,0,"",null,"X"]
[null,"Decos",null,null,"11.8\" x 11.8\"",null,"Mosaic",null,null,"GAGR09",null,"Marble Striped Sliced Tumbled Grey Pebble",null,null,null,null,null,null,{"$f":"IF(Suggested=\"Yes\",AA128,AG128)","v":46.05},"EA",{"$f":"+Instructions!$B$3","v":"A"},null,{"$f":"+Instructions!$C$22","v":0},{"$f":"ROUND($AA128*(1-W128)+0.004999,2)","v":46.05},null,"",46.05,{"$f":"+W128","v":0},{"$f":"+X128","v":46.05},{"$f":"(AG128-AC128)/AG128","v":0},null,3,{"$f":"SUM(AJ128:AL128)+AE128","v":46.05},null,null,{"$f":"ROUND(AC128/(1-VLOOKUP(AF128,Group,2,FALSE)),2)","v":46.05},{"$f":"IF(VLOOKUP(AF128,Group,5,FALSE)=\"YES\",VLOOKUP(ROUND(ROUND(AJ128,1)-AJ128,2),Round,2,FALSE)+VLOOKUP(AF128,Group,6,FALSE),0)","v":0},{"$f":"IF(VLOOKUP(AF128,Group,7,FALSE)=\"\",0,ROUND(AJ128-0.04999,1)-AJ128+AM128)","v":0},{"$f":"IF(VLOOKUP(AF128,Group,7,FALSE)=\"\",\"\",VLOOKUP(AF128,Group,7,FALSE))","v":""},null,"X"]
[null,"Decos",null,null,"12\" x 12\"",null,"Mosaic",null,null,"GAGR10",null,"Light Grey Mix Shiny Engineered Stone Pebble",null,null,null,null,null,"j",98.7,"EA",{"$f":"+Instructions!$B$3","v":"A"},null,{"$f":"+Instructions!$C$22","v":0},98.7,null,"",98.7,0,98.7,0,null,3,98.7,null,null,98.7,0,0,"",null,"X"]
[null,"Decos",null,null,"12\" x 12\"",null,"Mosaic",null,null,"GAGR11",null,"Light Grey Mix Matte Engineered Stone Pebble",null,null,null,null,null,"j",{"$f":"IF(Suggested=\"Yes\",AA130,AG130)","v":96.9},"EA",{"$f":"+Instructions!$B$3","v":"A"},null,{"$f":"+Instructions!$C$22","v":0},{"$f":"ROUND($AA130*(1-W130)+0.004999,2)","v":96.9},null,"",96.9,0,96.9,{"$f":"(AG130-AC130)/AG130","v":0},null,3,{"$f":"SUM(AJ130:AL130)+AE130","v":96.9},null,null,{"$f":"ROUND(AC130/(1-VLOOKUP(AF130,Group,2,FALSE)),2)","v":96.9},{"$f":"IF(VLOOKUP(AF130,Group,5,FALSE)=\"YES\",VLOOKUP(ROUND(ROUND(AJ130,1)-AJ130,2),Round,2,FALSE)+VLOOKUP(AF130,Group,6,FALSE),0)","v":0},{"$f":"IF(VLOOKUP(AF130,Group,7,FALSE)=\"\",0,ROUND(AJ130-0.04999,1)-AJ130+AM130)","v":0},{"$f":"IF(VLOOKUP(AF130,Group,7,FALSE)=\"\",\"\",VLOOKUP(AF130,Group,7,FALSE))","v":""},null,"X"]
[null,"Decos",null,null,"12\" x 12\"",null,"Mosaic",null,null,"GAJA04",null,"Golden Mix Sliced Matte Pebble",null,null,null,null,null,null,41.3,"EA",{"$f":"+Instructions!$B$3","v":"A"},null,{"$f":"+Instructions!$C$22","v":0},41.3,null,"",41.3,0,41.3,0,null,3,41.3,null,null,41.3,0,0,"",null,"X"]
[null,"Decos",null,null,"4\" x 12\"",null,"Border",null,null,"GAJA05/30",null,"Golden Mix Sliced Matte Pebble",null,null,null,null,null,null,21.25,"EA",{"$f":"+Instructions!$B$3","v":"A"},null,{"$f":"+Instructions!$C$22","v":0},21.25,null,"",21.25,0,21.25,0,null,3,21.25,null,null,21.25,0,0,"",null,"X"]
[null,"Decos",null,null,"12\" x 12\"",null,"Mosaic",null,null,"GAJA06R",null,"Golden Matte Pebble",null,null,null,null,null,"d",37,"EA",{"$f":"+Instructions!$B$3","v":"A"},null,{"$f":"+Instructions!$C$22","v":0},37,null,"",37,0,37,0,null,3,37,null,null,37,0,0,"",null,"X"]
[null,"Decos",null,null,"4\" x 12\"",null,"Border",null,null,"GAJA07R/30",null,"Golden Matte Pebble",null,null,null,null,null,"d",21.25,"EA",{"$f":"+Instructions!$B$3","v":"A"},null,{"$f":"+Instructions!$C$22","v":0},21.25,null,"",21.25,0,21.25,0,null,3,21.25,null,null,21.25,0,0,"",null,"X"]
[null,"Decos",null,null,"12\" x 12\"",null,"Mosaic",null,null,"GAMA01",null,"Brown Polished Pebble",null,null,null,null,null,null,35.1,"EA",{"$f":"+Instructions!$B$3","v":"A"},null,{"$f":"+Instructions!$C$22","v":0},35.1,null,"",35.1,0,35.1,0,null,3,35.1,null,null,35.1,0,0,"",null,"X"]
[null,"Decos",null,null,"4\" x 12\"",null,"Border",null,null,"GAMA02/30",null,"Brown Polished Pebble",null,null,null,null,null,null,20.75,"EA",{"$f":"+Instructions!$B$3","v":"A"},null,{"$f":"+Instructions!$C$22","v":0},20.75,null,"",20.75,0,20.75,0,null,3,20.75,null,null,20.75,0,0,"",null,"X"]
[null,"Decos",null,null,"12\" x 12\"",null,"Mosaic",null,null,"GAMA11",null,"Brown Sliced Polished Pebble",null,null,null,null,null,null,60.8,"EA",{"$f":"+Instructions!$B$3","v":"A"},null,{"$f":"+Instructions!$C$22","v":0},60.8,null,"",60.8,0,60.8,0,null,3,60.8,null,null,60.8,0,0,"",null,"X"]
[null,"Decos",null,null,"4\" x 12\"",null,"Border",null,null,"GAMA12/30",null,"Brown Sliced Polished Pebble",null,null,null,null,null,null,32.85,"EA",{"$f":"+Instructions!$B$3","v":"A"},null,{"$f":"+Instructions!$C$22","v":0},32.85,null,"",32.85,0,32.85,0,null,3,32.85,null,null,32.85,0,0,"",null,"X"]
[null,"Decos",null,null,"12\" x 12\"",null,"Mosaic",null,null,"GAMI03R",null,"White/Green Mix Matte Pebble",null,null,null,null,null,"d",35.450000000000003,"EA",{"$f":"+Instructions!$B$3","v":"A"},null,{"$f":"+Instructions!$C$22","v":0},35.450000000000003,null,"",35.450000000000003,0,35.450000000000003,0,null,3,35.450000000000003,null,null,35.450000000000003,0,0,"",null,"X"]
[null,"Decos",null,null,"12\" x 12\"",null,"Mosaic",null,null,"GAMI04",null,"Mix Polished Pebble",null,null,null,null,null,null,33.25,"EA",{"$f":"+Instructions!$B$3","v":"A"},null,{"$f":"+Instructions!$C$22","v":0},33.25,null,"",33.25,0,33.25,0,null,3,33.25,null,null,33.25,0,0,"",null,"X"]
[null,"Decos",null,null,"4\" x 12\"",null,"Border",null,null,"GAMI10R/30",null,"White/Green Mix Matte Pebble",null,null,null,null,null,"d",21.25,"EA",{"$f":"+Instructions!$B$3","v":"A"},null,{"$f":"+Instructions!$C$22","v":0},21.25,null,"",21.25,0,21.25,0,null,3,21.25,null,null,21.25,0,0,"",null,"X"]
[null,"Decos",null,null,"4\" x 12\"",null,"Border",null,null,"GAMI11/30",null,"Mix Polished Pebble",null,null,null,null,null,null,18.8,"EA",{"$f":"+Instructions!$B$3","v":"A"},null,{"$f":"+Instructions!$C$22","v":0},18.8,null,"",18.8,0,18.8,0,null,3,18.8,null,null,18.8,0,0,"",null,"X"]
[null,"Decos"," ",null,"12\" x 12\"",null,"Mosaic",null,null,"GAMI36",null,"White/Beige Mix Sliced Matte Pebble",null,null,null,null,null,null,40.6,"EA",{"$f":"+Instructions!$B$3","v":"A"},null,{"$f":"+Instructions!$C$22","v":0},40.6,null,"",40.6,0,40.6,0,null,3,40.6,null,null,40.6,0,0,"",null,"X"]
[null,"Decos",null,null,"4\" x 12\"",null,"Border",null,null,"GAMI37/30",null,"White/Beige Mix Sliced Matte Pebble",null,null,null,null,null,null,23.35,"EA",{"$f":"+Instructions!$B$3","v":"A"},null,{"$f":"+Instructions!$C$22","v":0},23.35,null,"",23.35,0,23.35,0,null,3,23.35,null,null,23.35,0,0,"",null,"X"]
[null,"Decos",null,null,"12\" x 12\"",null,"Mosaic",null,null,"GAMI38",null,"White/Green Mix Sliced Matte Pebble",null,null,null,null,null,null,41.4,"EA",{"$f":"+Instructions!$B$3","v":"A"},null,{"$f":"+Instructions!$C$22","v":0},41.4,null,"",41.4,0,41.4,0,null,3,41.4,null,null,41.4,0,0,"",null,"X"]
[null,"Decos",null,null,"4\" x 12\"",null,"Border",null,null,"GAMI39/30",null,"White/Green Mix Sliced Matte Pebble",null,null,null,null,null,null,21.25,"EA",{"$f":"+Instructions!$B$3","v":"A"},null,{"$f":"+Instructions!$C$22","v":0},21.25,null,"",21.25,0,21.25,0,null,3,21.25,null,null,21.25,0,0,"",null,"X"]
[null,"Decos",null,null,"12\" x 12\"",null,"Mosaic",null,null,"GAMI40",null,"White/Black Mix Sliced Matte Pebble",null,null,null,null,null,null,41.4,"EA",{"$f":"+Instructions!$B$3","v":"A"},null,{"$f":"+Instructions!$C$22","v":0},41.4,null,"",41.4,0,41.4,0,null,3,41.4,null,null,41.4,0,0,"",null,"X"]
[null,"Decos",null,null,"4\" x 12\"",null,"Border",null,null,"GAMI41/30",null,"White/Black Mix Sliced Matte Pebble",null,null,null,null,null,null,21.25,"EA",{"$f":"+Instructions!$B$3","v":"A"},null,{"$f":"+Instructions!$C$22","v":0},21.25,null,"",21.25,0,21.25,0,null,3,21.25,null,null,21.25,0,0,"",null,"X"]
[null,"Decos",null,null,"12\" x 12\"",null,"Mosaic",null,null,"GAMI42R",null,"White/Black Mix Matte Pebble",null,null,null,null,null,"d",35.35,"EA",{"$f":"+Instructions!$B$3","v":"A"},null,{"$f":"+Instructions!$C$22","v":0},35.35,null,"",35.35,0,35.35,0,null,3,35.35,null,null,35.35,0,0,"",null,"X"]
[null,"Decos",null,null,"4\" x 12\"",null,"Border",null,null,"GAMI43R/30",null,"White/Black Mix Matte Pebble",null,null,null,null,null,"d",21.25,"EA",{"$f":"+Instructions!$B$3","v":"A"},null,{"$f":"+Instructions!$C$22","v":0},{"$f":"ROUND($AA150*(1-W150)+0.004999,2)","v":21.25},null,"",21.25,0,21.25,{"$f":"(AG150-AC150)/AG150","v":0},null,3,21.25,null,null,21.25,{"$f":"IF(VLOOKUP(AF150,Group,5,FALSE)=\"YES\",VLOOKUP(ROUND(ROUND(AJ150,1)-AJ150,2),Round,2,FALSE)+VLOOKUP(AF150,Group,6,FALSE),0)","v":0},{"$f":"IF(VLOOKUP(AF150,Group,7,FALSE)=\"\",0,ROUND(AJ150-0.04999,1)-AJ150+AM150)","v":0},"",null,"X"]
[null,"Decos",null,null,"12\" x 12\"",null,"Mosaic",null,null,"GAMI56R",null,"White/Pink/Beige Mix Matte Pebble",null,null,null,null,null,"d",{"$f":"IF(Suggested=\"Yes\",AA151,AG151)","v":37.35},"EA",{"$f":"+Instructions!$B$3","v":"A"},null,{"$f":"+Instructions!$C$22","v":0},{"$f":"ROUND($AA151*(1-W151)+0.004999,2)","v":37.35},null,"",37.35,{"$f":"+W151","v":0},{"$f":"+X151","v":37.35},{"$f":"(AG151-AC151)/AG151","v":0},null,3,{"$f":"SUM(AJ151:AL151)+AE151","v":37.35},null,null,{"$f":"ROUND(AC151/(1-VLOOKUP(AF151,Group,2,FALSE)),2)","v":37.35},{"$f":"IF(VLOOKUP(AF151,Group,5,FALSE)=\"YES\",VLOOKUP(ROUND(ROUND(AJ151,1)-AJ151,2),Round,2,FALSE)+VLOOKUP(AF151,Group,6,FALSE),0)","v":0},{"$f":"IF(VLOOKUP(AF151,Group,7,FALSE)=\"\",0,ROUND(AJ151-0.04999,1)-AJ151+AM151)","v":0},{"$f":"IF(VLOOKUP(AF151,Group,7,FALSE)=\"\",\"\",VLOOKUP(AF151,Group,7,FALSE))","v":""},null,"X"]
[null,"Decos",null,null,"4\" x 12\"",null,"Border",null,null,"GAMI57R/30",null,"White/Pink/Beige Mix Matte Pebble",null,null,null,null,null,"d",23.35,"EA",{"$f":"+Instructions!$B$3","v":"A"},null,{"$f":"+Instructions!$C$22","v":0},23.35,null,"",23.35,0,23.35,0,null,3,23.35,null,null,23.35,0,0,"",null,"X"]
[null,"Decos",null,null,"12\" x 12\"",null,"Mosaic",null,null,"GAMI58R",null,"Speckled/Green/White Mix Matte Pebble",null,null,null,null,null,"d",37.35,"EA",{"$f":"+Instructions!$B$3","v":"A"},null,{"$f":"+Instructions!$C$22","v":0},37.35,null,"",37.35,0,37.35,0,null,3,37.35,null,null,37.35,0,0,"",null,"X"]
[null,"Decos",null,null,"4\" x 12\"",null,"Border",null,null,"GAMI59R/30",null,"Speckled/Green/White Mix Matte Pebble",null,null,null,null,null,"d",21.25,"EA",{"$f":"+Instructions!$B$3","v":"A"},null,{"$f":"+Instructions!$C$22","v":0},21.25,null,"",21.25,0,21.25,0,null,3,21.25,null,null,21.25,0,0,"",null,"X"]
[null,"Decos",null,null,"12\" x 12\"",null,"Mosaic",null,null,"GAMI62R",null,"White/Black/Beige Mix Matte Pebble",null,null,null,null,null,"d",37.35,"EA",{"$f":"+Instructions!$B$3","v":"A"},null,{"$f":"+Instructions!$C$22","v":0},37.35,null,"",37.35,0,37.35,0,null,3,37.35,null,null,37.35,0,0,"",null,"X"]
[null,"Decos",null,null,"4\" x 12\"",null,"Border",null,null,"GAMI63R/30",null,"White/Black/Beige Mix Matte Pebble",null,null,null,null,null,"d",21.7,"EA",{"$f":"+Instructions!$B$3","v":"A"},null,{"$f":"+Instructions!$C$22","v":0},21.7,null,"",21.7,0,21.7,0,null,3,21.7,null,null,21.7,0,0,"",null,"X"]
[null,null,null,null,null,null,null,null,null,"",null,"",null,null,null,null,null,null,null,null,null,null,null,null,null,null,null,null,null,null,null,null,null,null,null,null,null,null,null,null,"X"]
[null,null,"continued on next page",null,null,null,null,null,null,"",null,"",null,null,null,null,null,null,null,null,null,null,null,null,null,null,null,null,null,null,null,null,null,null,null,null,null,null,null,null,"X"]
[null,null,"DÉCOR & STYLE - continued",null,null,null,null,null,null,null,null,null,null,null,null,null,null,"Item # Lookup:","BO"]
[null,null,null,null,null,null,null,null,null,null,null,null,null,null,null,null,null,null,null,null,null,null,null,null,null,null,null,null,null,null,null,null,null,null,null,null,null,null,null,null,"X"]
[null,"Decos",null,null,"12\" x 12\"",null,"Mosaic",null,null,"GAMI74",null,"White/Beige Mix XL Sliced Matte Pebble",null,null,null,null,null,null,41.6,"EA",{"$f":"+Instructions!$B$3","v":"A"},null,{"$f":"+Instructions!$C$22","v":0},41.6,null,"",41.6,0,41.6,0,null,3,41.6,null,null,41.6,0,0,"",null,"X"]
[null,"Decos",null,null,"4\" x 12\"",null,"Border",null,null,"GAMI75/30",null,"White/Beige Mix XL Sliced Matte Pebble",null,null,null,null,null,null,21.25,"EA",{"$f":"+Instructions!$B$3","v":"A"},null,{"$f":"+Instructions!$C$22","v":0},21.25,null,"",21.25,0,21.25,0,null,3,21.25,null,null,21.25,0,0,"",null,"X"]
[null,"Decos",null,null,"12\" x 12\"",null,"Mosaic",null,null,"GAMI76",null,"Grey/Green/White Mix XL Sliced Matte Pebble",null,null,null,null,null,null,{"$f":"IF(Suggested=\"Yes\",AA163,AG163)","v":45.55},"EA",{"$f":"+Instructions!$B$3","v":"A"},null,{"$f":"+Instructions!$C$22","v":0},{"$f":"ROUND($AA163*(1-W163)+0.004999,2)","v":45.55},null,"",45.55,{"$f":"+W163","v":0},{"$f":"+X163","v":45.55},{"$f":"(AG163-AC163)/AG163","v":0},null,3,{"$f":"SUM(AJ163:AL163)+AE163","v":45.55},null,null,{"$f":"ROUND(AC163/(1-VLOOKUP(AF163,Group,2,FALSE)),2)","v":45.55},{"$f":"IF(VLOOKUP(AF163,Group,5,FALSE)=\"YES\",VLOOKUP(ROUND(ROUND(AJ163,1)-AJ163,2),Round,2,FALSE)+VLOOKUP(AF163,Group,6,FALSE),0)","v":0},{"$f":"IF(VLOOKUP(AF163,Group,7,FALSE)=\"\",0,ROUND(AJ163-0.04999,1)-AJ163+AM163)","v":0},{"$f":"IF(VLOOKUP(AF163,Group,7,FALSE)=\"\",\"\",VLOOKUP(AF163,Group,7,FALSE))","v":""},null,"X"]
[null,"Decos",null,null,"12\" x 12\"",null,"Mosaic",null,null,"GAMI80",null,"Color Mix XL Sliced Matte Pebble",null,null,null,null,null,null,41,"EA",{"$f":"+Instructions!$B$3","v":"A"},null,{"$f":"+Instructions!$C$22","v":0},41,null,"",41,0,41,0,null,3,41,null,null,41,0,0,"",null,"X"]
[null,"Decos",null,null,"4\" x 12\"",null,"Border",null,null,"GAMI81/30",null,"Color Mix XL Sliced Matte Pebble",null,null,null,null,null,null,21.25,"EA",{"$f":"+Instructions!$B$3","v":"A"},null,{"$f":"+Instructions!$C$22","v":0},21.25,null,"",21.25,0,21.25,0,null,3,21.25,null,null,21.25,0,0,"",null,"X"]
[null,"Decos",null,null,"12\" x 12\"",null,"Mosaic",null,null,"GAMI82R",null,"White/Grey/Beige/Black Mix Matte Pebble",null,null,null,null,null,"d",35.35,"EA",{"$f":"+Instructions!$B$3","v":"A"},null,{"$f":"+Instructions!$C$22","v":0},35.35,null,"",35.35,0,35.35,0,null,3,35.35,null,null,35.35,0,0,"",null,"X"]
[null,"Decos",null,null,"12\" x 12\"",null,"Mosaic",null,null,"GAMI83",null,"White/Pink/Beige/Black Sliced Matte Pebble",null,null,null,null,null,null,41.6,"EA",{"$f":"+Instructions!$B$3","v":"A"},null,{"$f":"+Instructions!$C$22","v":0},41.6,null,"",41.6,0,41.6,0,null,3,41.6,null,null,41.6,0,0,"",null,"X"]
[null,"Decos",null,null,"4\" x 12\"",null,"Border",null,null,"GAMI84R/30",null,"White/Grey/Beige/Black Mix Matte Pebble",null,null,null,null,null,"d",21.25,"EA",{"$f":"+Instructions!$B$3","v":"A"},null,{"$f":"+Instructions!$C$22","v":0},21.25,null,"",21.25,0,21.25,0,null,3,21.25,null,null,21.25,0,0,"",null,"X"]
[null,"Decos",null,null,"4\" x 12\"",null,"Border",null,null,"GAMI85/30",null,"White/Pink/Beige/Black Sliced Matte Pebble",null,null,null,null,null,null,25.75,"EA",{"$f":"+Instructions!$B$3","v":"A"},null,{"$f":"+Instructions!$C$22","v":0},25.75,null,"",25.75,0,25.75,0,null,3,25.75,null,null,25.75,0,0,"",null,"X"]
[null,"Decos",null,null,"12\" x 12\"",null,"Mosaic",null,null,"GAMI86",null,"Mix Sliced Polished Pebble",null,null,null,null,"Stock",null,43.05,"EA",{"$f":"+Instructions!$B$3","v":"A"},null,{"$f":"+Instructions!$C$22","v":0},43.05,null,"",43.05,0,43.05,0,null,3,43.05,null,null,43.05,0,0,"",null,"X"]
[null,"Decos",null,null,"4\" x 12\"",null,"Border",null,null,"GAMI87/30",null,"Mix Sliced Polished Pebble",null,null,null,null,null,null,32.85,"EA",{"$f":"+Instructions!$B$3","v":"A"},null,{"$f":"+Instructions!$C$22","v":0},32.85,null,"",32.85,0,32.85,0,null,3,32.85,null,null,32.85,0,0,"",null,"X"]
[null,"Decos",null,null,"6\" x 12\"",null,"Mosaic",null,null,"GAMI92",null,"Golden Mix Stacked Sliced Pebble",null,null,null,null,null,null,26.2,"EA",{"$f":"+Instructions!$B$3","v":"A"},null,{"$f":"+Instructions!$C$22","v":0},26.2,null,"",26.2,0,26.2,0,null,3,26.2,null,null,26.2,0,0,"",null,"X"]
[null,"Decos",null,null,"12\" x 12\"",null,"Mosaic",null,null,"GAMI97",null,"Grey Blue Mix Shiny Engineered Stone Pebble",null,null,null,null,null,"j",{"$f":"IF(Suggested=\"Yes\",AA173,AG173)","v":102.35},"EA",{"$f":"+Instructions!$B$3","v":"A"},null,{"$f":"+Instructions!$C$22","v":0},{"$f":"ROUND($AA173*(1-W173)+0.004999,2)","v":102.35},null,"",102.35,0,102.35,{"$f":"(AG173-AC173)/AG173","v":0},null,3,{"$f":"SUM(AJ173:AL173)+AE173","v":102.35},null,null,{"$f":"ROUND(AC173/(1-VLOOKUP(AF173,Group,2,FALSE)),2)","v":102.35},{"$f":"IF(VLOOKUP(AF173,Group,5,FALSE)=\"YES\",VLOOKUP(ROUND(ROUND(AJ173,1)-AJ173,2),Round,2,FALSE)+VLOOKUP(AF173,Group,6,FALSE),0)","v":0},{"$f":"IF(VLOOKUP(AF173,Group,7,FALSE)=\"\",0,ROUND(AJ173-0.04999,1)-AJ173+AM173)","v":0},{"$f":"IF(VLOOKUP(AF173,Group,7,FALSE)=\"\",\"\",VLOOKUP(AF173,Group,7,FALSE))","v":""},null,"X"]
[null,"Decos",null,null,"12\" x 12\"",null,"Mosaic",null,null,"GAMI98",null,"Grey Blue Mix Matte Engineered Stone Pebble",null,null,null,null,null,"j",{"$f":"IF(Suggested=\"Yes\",AA174,AG174)","v":96.9},"EA",{"$f":"+Instructions!$B$3","v":"A"},null,{"$f":"+Instructions!$C$22","v":0},{"$f":"ROUND($AA174*(1-W174)+0.004999,2)","v":96.9},null,"",96.9,0,96.9,{"$f":"(AG174-AC174)/AG174","v":0},null,3,{"$f":"SUM(AJ174:AL174)+AE174","v":96.9},null,null,{"$f":"ROUND(AC174/(1-VLOOKUP(AF174,Group,2,FALSE)),2)","v":96.9},{"$f":"IF(VLOOKUP(AF174,Group,5,FALSE)=\"YES\",VLOOKUP(ROUND(ROUND(AJ174,1)-AJ174,2),Round,2,FALSE)+VLOOKUP(AF174,Group,6,FALSE),0)","v":0},{"$f":"IF(VLOOKUP(AF174,Group,7,FALSE)=\"\",0,ROUND(AJ174-0.04999,1)-AJ174+AM174)","v":0},{"$f":"IF(VLOOKUP(AF174,Group,7,FALSE)=\"\",\"\",VLOOKUP(AF174,Group,7,FALSE))","v":""},null,"X"]
[null,"Decos",null,null,"12.2\" x 12.2\"",null,"Mosaic",null,null,"GAMI100",null,"Multicolor Sliced Pebble",null,null,null,null,null,null,{"$f":"IF(Suggested=\"Yes\",AA175,AG175)","v":72.2},"EA",{"$f":"+Instructions!$B$3","v":"A"},null,{"$f":"+Instructions!$C$22","v":0},{"$f":"ROUND($AA175*(1-W175)+0.004999,2)","v":72.2},null,"new",72.2,{"$f":"+W175","v":0},{"$f":"+X175","v":72.2},{"$f":"(AG175-AC175)/AG175","v":0},null,3,{"$f":"SUM(AJ175:AL175)+AE175","v":72.2},null,null,{"$f":"ROUND(AC175/(1-VLOOKUP(AF175,Group,2,FALSE)),2)","v":72.2},{"$f":"IF(VLOOKUP(AF175,Group,5,FALSE)=\"YES\",VLOOKUP(ROUND(ROUND(AJ175,1)-AJ175,2),Round,2,FALSE)+VLOOKUP(AF175,Group,6,FALSE),0)","v":0},{"$f":"IF(VLOOKUP(AF175,Group,7,FALSE)=\"\",0,ROUND(AJ175-0.04999,1)-AJ175+AM175)","v":0},{"$f":"IF(VLOOKUP(AF175,Group,7,FALSE)=\"\",\"\",VLOOKUP(AF175,Group,7,FALSE))","v":""},null,"X"]
[null,"Decos",null,null,"12\" x 12\"",null,"Mosaic",null,null,"GAMI101",null,"Multicolor Sliced Pebble Mix",null,null,null,null,null,null,{"$f":"IF(Suggested=\"Yes\",AA176,AG176)","v":39.65},"EA",{"$f":"+Instructions!$B$3","v":"A"},null,{"$f":"+Instructions!$C$22","v":0},{"$f":"ROUND($AA176*(1-W176)+0.004999,2)","v":39.65},null,"new",39.65,0,39.65,{"$f":"(AG176-AC176)/AG176","v":0},null,3,{"$f":"SUM(AJ176:AL176)+AE176","v":39.65},null,null,{"$f":"ROUND(AC176/(1-VLOOKUP(AF176,Group,2,FALSE)),2)","v":39.65},{"$f":"IF(VLOOKUP(AF176,Group,5,FALSE)=\"YES\",VLOOKUP(ROUND(ROUND(AJ176,1)-AJ176,2),Round,2,FALSE)+VLOOKUP(AF176,Group,6,FALSE),0)","v":0},{"$f":"IF(VLOOKUP(AF176,Group,7,FALSE)=\"\",0,ROUND(AJ176-0.04999,1)-AJ176+AM176)","v":0},{"$f":"IF(VLOOKUP(AF176,Group,7,FALSE)=\"\",\"\",VLOOKUP(AF176,Group,7,FALSE))","v":""},null,"X"]
[null,"Decos",null,null,"12\" x 12\"",null,"Mosaic",null,null,"GANO01R",null,"Black Matte Pebble",null,null,"  ",null,null,"d",40.4,"EA",{"$f":"+Instructions!$B$3","v":"A"},null,{"$f":"+Instructions!$C$22","v":0},40.4,null,"",40.4,0,40.4,0,null,3,40.4,null,null,40.4,0,0,"",null,"X"]
[null,"Decos",null,null,"4\" x 12\"",null,"Border",null,null,"GANO02R/30",null,"Black Matte Pebble",null,null,null,null,null,"d",23.35,"EA",{"$f":"+Instructions!$B$3","v":"A"},null,{"$f":"+Instructions!$C$22","v":0},23.35,null,"",23.35,0,23.35,0,null,3,23.35,null,null,23.35,0,0,"",null,"X"]
[null,"Decos",null,null,"12\" x 12\"",null,"Mosaic",null,null,"GANO03",null,"Black Polished Pebble",null,null,null,null,null,null,34.4,"EA",{"$f":"+Instructions!$B$3","v":"A"},null,{"$f":"+Instructions!$C$22","v":0},34.4,null,"",34.4,0,34.4,0,null,3,34.4,null,null,34.4,0,0,"",null,"X"]
[null,"Decos",null,null,"4\" x 12\"",null,"Border",null,null,"GANO04/30",null,"Black Polished Pebble",null,null,null,null,null,null,20.75,"EA",{"$f":"+Instructions!$B$3","v":"A"},null,{"$f":"+Instructions!$C$22","v":0},20.75,null,"",20.75,0,20.75,0,null,3,20.75,null,null,20.75,0,0,"",null,"X"]
[null,"Decos",null,null,"12\" x 12\"",null,"Mosaic",null,null,"GANO15",null,"Black Sliced Matte Pebble",null,null,null,null,null," ",41.15,"EA",{"$f":"+Instructions!$B$3","v":"A"},null,{"$f":"+Instructions!$C$22","v":0},41.15,null,"",41.15,0,41.15,0,null,3,41.15,null,null,41.15,0,0,"",null,"X"]
[null,"Decos",null,null,"4\" x 12\"",null,"Border",null,null,"GANO16/30",null,"Black Sliced Matte Pebble",null,null,null,null,null,null,23.35,"EA",{"$f":"+Instructions!$B$3","v":"A"},null,{"$f":"+Instructions!$C$22","v":0},23.35,null,"",23.35,0,23.35,0,null,3,23.35,null,null,23.35,0,0,"",null,"X"]
[null,"Decos",null,null,"6\" x 12\"",null,"Mosaic",null,null,"GANO18",null,"Black Stacked Pebble",null,null,null,null,null,"e",36.549999999999997,"EA",{"$f":"+Instructions!$B$3","v":"A"},null,{"$f":"+Instructions!$C$22","v":0},36.549999999999997,null,"",36.549999999999997,0,36.549999999999997,0,null,3,36.549999999999997,null,null,36.549999999999997,0,0,"",null,"X"]
[null,"Decos",null,null,"12\" x 12\"",null,"Mosaic",null,null,"GANO19",null,"Black Sliced Polished Pebble",null,null,null,null,null,null,57.35,"EA",{"$f":"+Instructions!$B$3","v":"A"},null,{"$f":"+Instructions!$C$22","v":0},57.35,null,"",57.35,0,57.35,0,null,3,57.35,null,null,57.35,0,0,"",null,"X"]
[null,"Decos",null,null,"4\" x 12\"",null,"Border",null,null,"GANO20/30",null,"Black Sliced Polished Pebble",null,null,null,null,null,null,32.85,"EA",{"$f":"+Instructions!$B$3","v":"A"},null,{"$f":"+Instructions!$C$22","v":0},32.85,null,"",32.85,0,32.85,0,null,3,32.85,null,null,32.85,0,0,"",null,"X"]
[null,"Decos",null,null,"6\" x 12\"",null,"Mosaic",null,null,"GANO21",null,"Black Stacked Sliced Pebble",null,null,null,null,null,null,{"$f":"IF(Suggested=\"Yes\",AA186,AG186)","v":27.25},"EA",{"$f":"+Instructions!$B$3","v":"A"},null,{"$f":"+Instructions!$C$22","v":0},{"$f":"ROUND($AA186*(1-W186)+0.004999,2)","v":27.25},null,"",27.25,{"$f":"+W186","v":0},{"$f":"+X186","v":27.25},{"$f":"(AG186-AC186)/AG186","v":0},null,3,{"$f":"SUM(AJ186:AL186)+AE186","v":27.25},null,null,{"$f":"ROUND(AC186/(1-VLOOKUP(AF186,Group,2,FALSE)),2)","v":27.25},{"$f":"IF(VLOOKUP(AF186,Group,5,FALSE)=\"YES\",VLOOKUP(ROUND(ROUND(AJ186,1)-AJ186,2),Round,2,FALSE)+VLOOKUP(AF186,Group,6,FALSE),0)","v":0},{"$f":"IF(VLOOKUP(AF186,Group,7,FALSE)=\"\",0,ROUND(AJ186-0.04999,1)-AJ186+AM186)","v":0},{"$f":"IF(VLOOKUP(AF186,Group,7,FALSE)=\"\",\"\",VLOOKUP(AF186,Group,7,FALSE))","v":""},null,"X"]
[null,"Decos",null,null,"12\" x 12\"",null,"Mosaic",null,null,"GANO23",null,"Black XL Sliced Pebble",null,null,null,null,null,null,{"$f":"IF(Suggested=\"Yes\",AA187,AG187)","v":52.55},"EA",{"$f":"+Instructions!$B$3","v":"A"},null,{"$f":"+Instructions!$C$22","v":0},{"$f":"ROUND($AA187*(1-W187)+0.004999,2)","v":52.55},null,"",52.55,{"$f":"+W187","v":0},{"$f":"+X187","v":52.55},{"$f":"(AG187-AC187)/AG187","v":0},null,3,{"$f":"SUM(AJ187:AL187)+AE187","v":52.55},null,null,{"$f":"ROUND(AC187/(1-VLOOKUP(AF187,Group,2,FALSE)),2)","v":52.55},{"$f":"IF(VLOOKUP(AF187,Group,5,FALSE)=\"YES\",VLOOKUP(ROUND(ROUND(AJ187,1)-AJ187,2),Round,2,FALSE)+VLOOKUP(AF187,Group,6,FALSE),0)","v":0},{"$f":"IF(VLOOKUP(AF187,Group,7,FALSE)=\"\",0,ROUND(AJ187-0.04999,1)-AJ187+AM187)","v":0},{"$f":"IF(VLOOKUP(AF187,Group,7,FALSE)=\"\",\"\",VLOOKUP(AF187,Group,7,FALSE))","v":""},null,"X"]
[null,"Decos",null,null,"12\" x 12\"",null,"Mosaic",null,null,"GASC01",null,"Dark Sliced Matte Pebble",null,null,null,null,null,null,57.85,"EA",{"$f":"+Instructions!$B$3","v":"A"},null,{"$f":"+Instructions!$C$22","v":0},57.85,null,"",57.85,0,57.85,0,null,3,57.85,null,null,57.85,0,0,"",null,"X"]
[null,"Decos",null,null,"4\" x 12\"",null,"Border",null,null,"GASC02/30",null,"Dark Sliced Matte Pebble",null,null,null,null,null,null,31.55,"EA",{"$f":"+Instructions!$B$3","v":"A"},null,{"$f":"+Instructions!$C$22","v":0},31.55,null,"",31.55,0,31.55,0,null,3,31.55,null,null,31.55,0,0,"",null,"X"]
[null,"Decos",null,null,"12\" x 12\"",null,"Mosaic",null,null,"GATU01",null,"Turquoise Mix Reconstituted Pebble",null,null,null,null,null,"f",61.9,"EA",{"$f":"+Instructions!$B$3","v":"A"},null,{"$f":"+Instructions!$C$22","v":0},61.9,null,"",61.9,0,61.9,0,null,3,61.9,null,null,61.9,0,0,"",null,"X"]
[null,"Decos",null,null,"4\" x 12\"",null,"Border",null,null,"GATU02/30",null,"Turquoise Mix Reconstituted Pebble",null,null,null,null,null,"f",{"$f":"IF(Suggested=\"Yes\",AA191,AG191)","v":25.55},"EA",{"$f":"+Instructions!$B$3","v":"A"},null,{"$f":"+Instructions!$C$22","v":0},{"$f":"ROUND($AA191*(1-W191)+0.004999,2)","v":25.55},null,"",25.55,{"$f":"+W191","v":0},{"$f":"+X191","v":25.55},{"$f":"(AG191-AC191)/AG191","v":0},null,3,{"$f":"SUM(AJ191:AL191)+AE191","v":25.55},null,null,{"$f":"ROUND(AC191/(1-VLOOKUP(AF191,Group,2,FALSE)),2)","v":25.55},{"$f":"IF(VLOOKUP(AF191,Group,5,FALSE)=\"YES\",VLOOKUP(ROUND(ROUND(AJ191,1)-AJ191,2),Round,2,FALSE)+VLOOKUP(AF191,Group,6,FALSE),0)","v":0},{"$f":"IF(VLOOKUP(AF191,Group,7,FALSE)=\"\",0,ROUND(AJ191-0.04999,1)-AJ191+AM191)","v":0},{"$f":"IF(VLOOKUP(AF191,Group,7,FALSE)=\"\",\"\",VLOOKUP(AF191,Group,7,FALSE))","v":""},null,"X"]
[null,"Decos",null,null,"12\" x 12\"",null,"Mosaic",null,null,"GAVE03",null,"Cristal Green Matte Opus",null,null,null,null,null,"g",65.150000000000006,"EA",{"$f":"+Instructions!$B$3","v":"A"},null,{"$f":"+Instructions!$C$22","v":0},65.150000000000006,null,"",65.150000000000006,0,65.150000000000006,0,null,3,65.150000000000006,null,null,65.150000000000006,0,0,"",null,"X"]
[null,"Decos",null,null,"4\" x 12\"",null,"Border",null,null,"GAVE04/30",null,"Cristal Green Matte Opus",null,null,null,null,null,"g",26.35,"EA",{"$f":"+Instructions!$B$3","v":"A"},null,{"$f":"+Instructions!$C$22","v":0},26.35,null,"",26.35,0,26.35,0,null,3,26.35,null,null,26.35,0,0,"",null,"X"]
[null,"Decos",null,null,"11.8\" x 11.8\"",null,"Mosaic",null,null,"GAVE11",null,"Crystal Green Semi-Precious Stone",null,null,null,null,null,null,98.3,"EA",{"$f":"+Instructions!$B$3","v":"A"},null,{"$f":"+Instructions!$C$22","v":0},98.3,null,"",98.3,0,98.3,0,null,3,98.3,null,null,98.3,0,0,"",null,"X"]
[null,"Decos",null,null,"12\" x 12\"",null,"Mosaic",null,null,"MABE131",null,"Mini Opus Matte Beige Brown Marble Stone",null,null,null,null,null,null,57.1,"EA",{"$f":"+Instructions!$B$3","v":"A"},null,{"$f":"+Instructions!$C$22","v":0},57.1,null,"",57.1,0,{"$f":"+X195","v":57.1},0,null,3,57.1,null,null,57.1,0,0,"",null,"X"]
[null,"Decos",null,null,"11.9\" x 11.9\"",null,"Mosaic",null,null,"MABE132",null,"6\" x 6\" Green Palm Leaf Printed Beige Marble",null,null,null,null,null,null,{"$f":"IF(Suggested=\"Yes\",AA196,AG196)","v":89.45},"EA",{"$f":"+Instructions!$B$3","v":"A"},null,{"$f":"+Instructions!$C$22","v":0},{"$f":"ROUND($AA196*(1-W196)+0.004999,2)","v":89.45},null,"",89.45,{"$f":"+W196","v":0},89.45,{"$f":"(AG196-AC196)/AG196","v":0},null,3,{"$f":"SUM(AJ196:AL196)+AE196","v":89.45},null,null,{"$f":"ROUND(AC196/(1-VLOOKUP(AF196,Group,2,FALSE)),2)","v":89.45},{"$f":"IF(VLOOKUP(AF196,Group,5,FALSE)=\"YES\",VLOOKUP(ROUND(ROUND(AJ196,1)-AJ196,2),Round,2,FALSE)+VLOOKUP(AF196,Group,6,FALSE),0)","v":0},{"$f":"IF(VLOOKUP(AF196,Group,7,FALSE)=\"\",0,ROUND(AJ196-0.04999,1)-AJ196+AM196)","v":0},{"$f":"IF(VLOOKUP(AF196,Group,7,FALSE)=\"\",\"\",VLOOKUP(AF196,Group,7,FALSE))","v":""},null,"X"]
[null,"Decos",null,null,"12\" x 12\"",null,"Mosaic",null,null,"MABE133",null,"3\" x 3\" Cross & Star Beige Marble",null,null,null,null,null,null,75.5,"EA",{"$f":"+Instructions!$B$3","v":"A"},null,{"$f":"+Instructions!$C$22","v":0},75.5,null,"",75.5,0,{"$f":"+X197","v":75.5},0,null,3,75.5,null,null,75.5,0,0,"",null,"X"]
[null,"Decos",null,null,"12\" x 12\"",null,"Mosaic",null,null,"MABE134",null,"Beige Marble 1\" x 6\" Baguette",null,null,null,null,null,null,64.8,"EA",{"$f":"+Instructions!$B$3","v":"A"},null,{"$f":"+Instructions!$C$22","v":0},64.8,null,"new",64.8,0,64.8,0,null,3,64.8,null,null,64.8,0,0,"",null,"X"]
[null,"Decos",null,null,"11.6\" x 12\"",null,"Mosaic",null,null,"MABG01",null,"White/Beige Mix Cubic Opus",null,null,null,null,null,null,39.75,"EA",{"$f":"+Instructions!$B$3","v":"A"},null,{"$f":"+Instructions!$C$22","v":0},39.75,null,"",39.75,0,39.75,0,null,3,39.75,null,null,39.75,0,0,"",null,"X"]
[null,"Decos",null,null,"12\" x 12\"",null,"Mosaic",null,null,"MABL01",null,"Onyx White Matte Opus",null,null,null,null,null,null,{"$f":"IF(Suggested=\"Yes\",AA200,AG200)","v":35.5},"EA",{"$f":"+Instructions!$B$3","v":"A"},null,{"$f":"+Instructions!$C$22","v":0},{"$f":"ROUND($AA200*(1-W200)+0.004999,2)","v":35.5},null,"",35.5,{"$f":"+W200","v":0},35.5,{"$f":"(AG200-AC200)/AG200","v":0},null,3,{"$f":"SUM(AJ200:AL200)+AE200","v":35.5},null,null,{"$f":"ROUND(AC200/(1-VLOOKUP(AF200,Group,2,FALSE)),2)","v":35.5},{"$f":"IF(VLOOKUP(AF200,Group,5,FALSE)=\"YES\",VLOOKUP(ROUND(ROUND(AJ200,1)-AJ200,2),Round,2,FALSE)+VLOOKUP(AF200,Group,6,FALSE),0)","v":0},{"$f":"IF(VLOOKUP(AF200,Group,7,FALSE)=\"\",0,ROUND(AJ200-0.04999,1)-AJ200+AM200)","v":0},{"$f":"IF(VLOOKUP(AF200,Group,7,FALSE)=\"\",\"\",VLOOKUP(AF200,Group,7,FALSE))","v":""},null,"X"]
[null,"Decos",null,null,"4\" x 12\"",null,"Border",null,null,"MABL02/30",null,"Onyx White Matte Opus",null,null,null,null,null,null,21.95,"EA",{"$f":"+Instructions!$B$3","v":"A"},null,{"$f":"+Instructions!$C$22","v":0},21.95,null,"",21.95,0,21.95,0,null,3,21.95,null,null,21.95,0,0,"",null,"X"]
[null,"Decos",null,null,"11.6\" x 11.6\"",null,"Mosaic",null,null,"MABL55",null,"White Marble",null,null,null,null,null,null,40.700000000000003,"EA",{"$f":"+Instructions!$B$3","v":"A"},null,{"$f":"+Instructions!$C$22","v":0},40.700000000000003,null,"",40.700000000000003,0,40.700000000000003,0,null,3,40.700000000000003,null,null,40.700000000000003,0,0,"",null,"X"]
[null,"Decos",null,null,"12\" x 12\"",null,"Mosaic",null,null,"MABL64",null,"White Matte Opus",null,null,null,null,null,null,34.799999999999997,"EA",{"$f":"+Instructions!$B$3","v":"A"},null,{"$f":"+Instructions!$C$22","v":0},34.799999999999997,null,"",34.799999999999997,0,34.799999999999997,0,null,3,34.799999999999997,null,null,34.799999999999997,0,0,"",null,"X"]
[null,"Decos",null,null,"4\" x 12\"",null,"Border",null,null,"MABL65/30",null,"White Matte Opus",null,null,null,null,null,null,21.95,"EA",{"$f":"+Instructions!$B$3","v":"A"},null,{"$f":"+Instructions!$C$22","v":0},21.95,null,"",21.95,0,21.95,0,null,3,21.95,null,null,21.95,0,0,"",null,"X"]
[null,"Decos",null,null,"12\" x 12\"",null,"Mosaic",null,null,"MABL74",null,"White Cubic Opus",null,null,null,null,null,null,37.4,"EA",{"$f":"+Instructions!$B$3","v":"A"},null,{"$f":"+Instructions!$C$22","v":0},37.4,null,"",37.4,0,37.4,0,null,3,37.4,null,null,37.4,0,0,"",null,"X"]
[null,"Decos",null,null,"5-1/2\" x 12\"",null,"Border",null,null,"MABL75/30",null,"White Cubic Opus",null,null,null,null,null,null,23.35,"EA",{"$f":"+Instructions!$B$3","v":"A"},null,{"$f":"+Instructions!$C$22","v":0},23.35,null,"",23.35,0,23.35,0,null,3,23.35,null,null,23.35,0,0,"",null,"X"]
[null,"Decos",null,null,"12\" x 12\"",null,"Mosaic",null,null,"MABL95",null,"White Marble Sliced Matte Pebble",null,null,null,null,null,null,49.25,"EA",{"$f":"+Instructions!$B$3","v":"A"},null,{"$f":"+Instructions!$C$22","v":0},49.25,null,"",49.25,0,{"$f":"+X207","v":49.25},0,null,3,49.25,null,null,49.25,0,0,"",null,"X"]
[null,"Decos",null,null,"6\" x 12\"",null,"Mosaic",null,null,"MABL104",null,"White Mix Marble",null,null,null,null,null,null,32.15,"EA",{"$f":"+Instructions!$B$3","v":"A"},null,{"$f":"+Instructions!$C$22","v":0},32.15,null,"",32.15,0,{"$f":"+X208","v":32.15},0,null,3,32.15,null,null,32.15,0,0,"",null,"X"]
[null,"Decos",null,null,"11.4\" x 17.7\"",null,"Mosaic",null,null,"MABL105",null,"Opus White Marble",null,null,null,null,null,null,67.8,"EA",{"$f":"+Instructions!$B$3","v":"A"},null,{"$f":"+Instructions!$C$22","v":0},67.8,null,"",67.8,0,{"$f":"+X209","v":67.8},0,null,3,67.8,null,null,67.8,0,0,"",null,"X"]
[null,"Decos",null,null,"11\" x 11\"",null,"Mosaic",null,null,"MABL109",null,"Herringbone Crystal White Marble Polished 1\" x 2\"",null,null,null,null,null,null,50.85,"EA",{"$f":"+Instructions!$B$3","v":"A"},null,{"$f":"+Instructions!$C$22","v":0},50.85,null,"",50.85,0,{"$f":"+X210","v":50.85},0,null,3,50.85,null,null,50.85,0,0,"",null,"X"]
[null,"Decos",null,null,"12\" x 12\"",null,"Mosaic",null,null,"MABL117",null,"Mini Opus Matte White Grey Marble Stone",null,null,null,null,null,null,{"$f":"IF(Suggested=\"Yes\",AA211,AG211)","v":50.65},"EA",{"$f":"+Instructions!$B$3","v":"A"},null,{"$f":"+Instructions!$C$22","v":0},{"$f":"ROUND($AA211*(1-W211)+0.004999,2)","v":50.65},null,"",50.65,{"$f":"+W211","v":0},{"$f":"+X211","v":50.65},{"$f":"(AG211-AC211)/AG211","v":0},null,3,{"$f":"SUM(AJ211:AL211)+AE211","v":50.65},null,null,{"$f":"ROUND(AC211/(1-VLOOKUP(AF211,Group,2,FALSE)),2)","v":50.65},{"$f":"IF(VLOOKUP(AF211,Group,5,FALSE)=\"YES\",VLOOKUP(ROUND(ROUND(AJ211,1)-AJ211,2),Round,2,FALSE)+VLOOKUP(AF211,Group,6,FALSE),0)","v":0},{"$f":"IF(VLOOKUP(AF211,Group,7,FALSE)=\"\",0,ROUND(AJ211-0.04999,1)-AJ211+AM211)","v":0},{"$f":"IF(VLOOKUP(AF211,Group,7,FALSE)=\"\",\"\",VLOOKUP(AF211,Group,7,FALSE))","v":""},null,"X"]
[null,"Decos",null,null,"11.9\" x 11.9\"",null,"Mosaic",null,null,"MABL118",null,"6\" x 6\" Grey Palm Leaf Printed White Marble",null,null,null,null,null,null,89.45,"EA",{"$f":"+Instructions!$B$3","v":"A"},null,{"$f":"+Instructions!$C$22","v":0},89.45,null,"",89.45,0,89.45,0,null,3,89.45,null,null,89.45,0,0,"",null,"X"]
[null,"Decos",null,null,"12\" x 12\"",null,"Mosaic",null,null,"MABL119",null,"2\" x 4\" Brick Pattern White Grey Marble",null,null,null,null,null,null,50.45,"EA",{"$f":"+Instructions!$B$3","v":"A"},null,{"$f":"+Instructions!$C$22","v":0},50.45,null,"",50.45,0,50.45,0,null,3,50.45,null,null,50.45,0,0,"",null,"X"]
[null,"Decos",null,null,"10\" x 12\"",null,"Mosaic",null,null,"MABL120",null,"2\" x 6\" Picket White Grey Marble",null,null,null,null,null,null,54.3,"EA",{"$f":"+Instructions!$B$3","v":"A"},null,{"$f":"+Instructions!$C$22","v":0},54.3,null,"",54.3,0,{"$f":"+X214","v":54.3},0,null,3,54.3,null,null,54.3,0,0,"",null,"X"]
[null,"Decos",null,null,"9.7\" x 11\"",null,"Mosaic",null,null,"MABL121",null,"Irregular Hexagon White Grey Marble",null,null,null,null,null,null,{"$f":"IF(Suggested=\"Yes\",AA215,AG215)","v":53.55},"EA",{"$f":"+Instructions!$B$3","v":"A"},null,{"$f":"+Instructions!$C$22","v":0},{"$f":"ROUND($AA215*(1-W215)+0.004999,2)","v":53.55},null,"",53.55,{"$f":"+W215","v":0},{"$f":"+X215","v":53.55},{"$f":"(AG215-AC215)/AG215","v":0},null,3,{"$f":"SUM(AJ215:AL215)+AE215","v":53.55},null,null,{"$f":"ROUND(AC215/(1-VLOOKUP(AF215,Group,2,FALSE)),2)","v":53.55},{"$f":"IF(VLOOKUP(AF215,Group,5,FALSE)=\"YES\",VLOOKUP(ROUND(ROUND(AJ215,1)-AJ215,2),Round,2,FALSE)+VLOOKUP(AF215,Group,6,FALSE),0)","v":0},{"$f":"IF(VLOOKUP(AF215,Group,7,FALSE)=\"\",0,ROUND(AJ215-0.04999,1)-AJ215+AM215)","v":0},{"$f":"IF(VLOOKUP(AF215,Group,7,FALSE)=\"\",\"\",VLOOKUP(AF215,Group,7,FALSE))","v":""},null,"X"]
[null,"Decos",null,null,"12\" x 12\"",null,"Mosaic",null,null,"MABL122",null,"3\" x 3\" Cross & Star White Grey Marble",null,null,null,null,null,null,75.5,"EA",{"$f":"+Instructions!$B$3","v":"A"},null,{"$f":"+Instructions!$C$22","v":0},75.5,null,"",75.5,0,75.5,0,null,3,75.5,null,null,75.5,0,0,"",null,"X"]
[null,"Decos",null,null,"12\" x 12\"",null,"Mosaic",null,null,"MABL125",null,"White Marble 1\" x 6\" Baguette",null,null,null,null,null,null,64.8,"EA",{"$f":"+Instructions!$B$3","v":"A"},null,{"$f":"+Instructions!$C$22","v":0},64.8,null,"new",64.8,0,64.8,0,null,3,64.8,null,null,64.8,0,0,"",null,"X"]
[null,"Decos",null,null,"12\" x 12\"",null,"Mosaic",null,null,"MACA01",null,"Cappuccino Cubic Opus",null,null,null,null,null,null,32.15,"EA",{"$f":"+Instructions!$B$3","v":"A"},null,{"$f":"+Instructions!$C$22","v":0},32.15,null,"",32.15,0,32.15,0,null,3,32.15,null,null,32.15,0,0,"",null,"X"]
[null,"Decos",null,null,"5-1/2\" x 12\"",null,"Border",null,null,"MACA02/30",null,"Cappuccino Cubic Opus",null,null,null," ",null,null,23.35,"EA",{"$f":"+Instructions!$B$3","v":"A"},null,{"$f":"+Instructions!$C$22","v":0},23.35,null,"",23.35,0,23.35,0,null,3,23.35,null,null,23.35,0,0,"",null,"X"]
[null,"Decos",null,null,"11.6\" x 12\"",null,"Mosaic",null,null,"MACA03",null,"Cappuccino Cubic Opus",null,null,null,null,null,null,41.75,"EA",{"$f":"+Instructions!$B$3","v":"A"},null,{"$f":"+Instructions!$C$22","v":0},41.75,null,"",41.75,0,41.75,0,null,3,41.75,null,null,41.75,0,0,"",null,"X"]
[null,"Decos",null,null,"12\" x 12\"",null,"Mosaic",null,null,"MACA04",null,"Cappuccino Mix Cubic Opus",null,null,null,null,null,null,34.700000000000003,"EA",{"$f":"+Instructions!$B$3","v":"A"},null,{"$f":"+Instructions!$C$22","v":0},34.700000000000003,null,"",34.700000000000003,0,34.700000000000003,0,null,3,34.700000000000003,null,null,34.700000000000003,0,0,"",null,"X"]
[null,"Decos",null,null,"6\" x 12\"",null,"Mosaic",null,null,"MACA05",null,"Brown Beige Mix Marble",null,null,null,null,null,null,{"$f":"IF(Suggested=\"Yes\",AA222,AG222)","v":32.15},"EA",{"$f":"+Instructions!$B$3","v":"A"},null,{"$f":"+Instructions!$C$22","v":0},{"$f":"ROUND($AA222*(1-W222)+0.004999,2)","v":32.15},null,"",32.15,{"$f":"+W222","v":0},32.15,{"$f":"(AG222-AC222)/AG222","v":0},null,3,{"$f":"SUM(AJ222:AL222)+AE222","v":32.15},null,null,{"$f":"ROUND(AC222/(1-VLOOKUP(AF222,Group,2,FALSE)),2)","v":32.15},{"$f":"IF(VLOOKUP(AF222,Group,5,FALSE)=\"YES\",VLOOKUP(ROUND(ROUND(AJ222,1)-AJ222,2),Round,2,FALSE)+VLOOKUP(AF222,Group,6,FALSE),0)","v":0},{"$f":"IF(VLOOKUP(AF222,Group,7,FALSE)=\"\",0,ROUND(AJ222-0.04999,1)-AJ222+AM222)","v":0},{"$f":"IF(VLOOKUP(AF222,Group,7,FALSE)=\"\",\"\",VLOOKUP(AF222,Group,7,FALSE))","v":""},null,"X"]
[null,"Decos",null,null,"12\" x 12\"",null,"Mosaic",null,null,"MAGR01",null,"Grey Matte Opus",null,null,null,null,null,null,35.6,"EA",{"$f":"+Instructions!$B$3","v":"A"},null,{"$f":"+Instructions!$C$22","v":0},35.6,null,"",35.6,0,35.6,0,null,3,35.6,null,null,35.6,0,0,"",null,"X"]
[null,"Decos",null,null,"4\" x 12\"",null,"Border",null,null,"MAGR02/30",null,"Grey Matte Opus",null,null,null,null,null,null,19.05,"EA",{"$f":"+Instructions!$B$3","v":"A"},null,{"$f":"+Instructions!$C$22","v":0},19.05,null,"",19.05,0,19.05,0,null,3,19.05,null,null,19.05,0,0,"",null,"X"]
[null,"Decos",null,null,"11.6\" x 11.6\"",null,"Mosaic",null,null,"MAGR47",null,"Grey Marble",null,null,null,null,null,null,35.700000000000003,"EA",{"$f":"+Instructions!$B$3","v":"A"},null,{"$f":"+Instructions!$C$22","v":0},35.700000000000003,null,"",35.700000000000003,0,35.700000000000003,0,null,3,35.700000000000003,null,null,35.700000000000003,0,0,"",null,"X"]
[null,null,null,null,null,null,null,null,null,"",null,"",null,null,null,null,null,null,null,null,null,null,null,null,null,null,null,null,null,null,null,null,null,null,null,null,null,null,null,null,"X"]
[null,null,"continued on next page",null,null,null,null,null,null,"",null,"",null,null,null,null,null,null,null,null,null,null,null,null,null,null,null,null,null,null,null,null,null,null,null,null,null,null,null,null,"X"]
[null,null,"DÉCOR & STYLE - continued",null,null,null,null,null,null,null,null,null,null,null,null,null,null,"Item # Lookup:","BO"]
[null,null,null,null,null,null,null,null,null,null,null,null,null,null,null,null,null,null,null,null,null,null,null,null,null,null,null,null,null,null,null,null,null,null,null,null,null,null,null,null,"X"]
[null,"Decos",null,null,"12\" x 12\"",null,"Mosaic",null,null,"MAGR88",null,"Grey Cubic Opus",null,null,null,null,null,null,32.15,"EA",{"$f":"+Instructions!$B$3","v":"A"},null,{"$f":"+Instructions!$C$22","v":0},32.15,null,"",32.15,0,32.15,0,null,3,32.15,null,null,32.15,0,0,"",null,"X"]
[null,"Decos",null,null,"5-1/2\" x 12\"",null,"Border",null,null,"MAGR89/30",null,"Grey Cubic Opus",null,null,null," ",null,null,23.35,"EA",{"$f":"+Instructions!$B$3","v":"A"},null,{"$f":"+Instructions!$C$22","v":0},23.35,null,"",23.35,0,23.35,0,null,3,23.35,null,null,23.35,0,0,"",null,"X"]
[null,"Decos",null,null,"11.6\" x 12\"",null,"Mosaic",null,null,"MAGR92",null,"Dark Grey Cubic Opus",null,null,null,null,null,null,43.25,"EA",{"$f":"+Instructions!$B$3","v":"A"},null,{"$f":"+Instructions!$C$22","v":0},43.25,null,"",43.25,0,43.25,0,null,3,43.25,null,null,43.25,0,0,"",null,"X"]
[null,"Decos",null,null,"11.8\" x 11.8\"",null,"Mosaic",null,null,"MAGR103",null,"Marble Grey White Sand Blasted Honed Mix",null,null,null,null,null,null,79.25,"EA",{"$f":"+Instructions!$B$3","v":"A"},null,{"$f":"+Instructions!$C$22","v":0},79.25,null,"",79.25,0,79.25,0,null,3,79.25,null,null,79.25,0,0,"",null,"X"]
[null,"Decos",null,null,"12\" x 12\"",null,"Mosaic",null,null,"MAGR104",null,"Grey Mix Cubic Opus",null,null,null,null,null,null,39.75,"EA",{"$f":"+Instructions!$B$3","v":"A"},null,{"$f":"+Instructions!$C$22","v":0},39.75,null,"",39.75,0,39.75,0,null,3,39.75,null,null,39.75,0,0,"",null,"X"]
[null,"Decos",null,null,"6.8\" x 16\"",null,"Mosaic",null,null,"MAGR105",null,"Grey Nature Print Marble Brick",null,null,null,null,null,null,79.400000000000006,"EA",{"$f":"+Instructions!$B$3","v":"A"},null,{"$f":"+Instructions!$C$22","v":0},79.400000000000006,null,"",79.400000000000006,0,79.400000000000006,0,null,3,79.400000000000006,null,null,79.400000000000006,0,0,"",null,"X"]
[null,"Decos",null,null,"11.8\" x 11.8\"",null,"Mosaic",null,null,"MAGR106",null,"Black/Grey/White Marble Mix",null,null,null,null,null,null,{"$f":"IF(Suggested=\"Yes\",AA236,AG236)","v":88.8},"EA",{"$f":"+Instructions!$B$3","v":"A"},null,{"$f":"+Instructions!$C$22","v":0},{"$f":"ROUND($AA236*(1-W236)+0.004999,2)","v":88.8},null,"",88.8,{"$f":"+W236","v":0},88.8,{"$f":"(AG236-AC236)/AG236","v":0},null,3,{"$f":"SUM(AJ236:AL236)+AE236","v":88.8},null,null,{"$f":"ROUND(AC236/(1-VLOOKUP(AF236,Group,2,FALSE)),2)","v":88.8},{"$f":"IF(VLOOKUP(AF236,Group,5,FALSE)=\"YES\",VLOOKUP(ROUND(ROUND(AJ236,1)-AJ236,2),Round,2,FALSE)+VLOOKUP(AF236,Group,6,FALSE),0)","v":0},{"$f":"IF(VLOOKUP(AF236,Group,7,FALSE)=\"\",0,ROUND(AJ236-0.04999,1)-AJ236+AM236)","v":0},{"$f":"IF(VLOOKUP(AF236,Group,7,FALSE)=\"\",\"\",VLOOKUP(AF236,Group,7,FALSE))","v":""},null,"X"]
[null,"Decos",null,null,"12.5\" x 12.5\"",null,"Mosaic",null,null,"MAGR107",null,"Hexagon Limestone Multi Finish Grey",null,null,null,null,null,null,72.95,"EA",{"$f":"+Instructions!$B$3","v":"A"},null,{"$f":"+Instructions!$C$22","v":0},72.95,null,"",72.95,0,72.95,0,null,3,72.95,null,null,72.95,0,0,"",null,"X"]
[null,"Decos",null,null,"11.7\" x 11.7\"",null,"Mosaic",null,null,"MAGR108",null,"Brick Limestone Multi Finish Grey 2\" x 4\"",null,null,null,null,null,null,72.900000000000006,"EA",{"$f":"+Instructions!$B$3","v":"A"},null,{"$f":"+Instructions!$C$22","v":0},72.900000000000006,null,"",72.900000000000006,0,72.900000000000006,0,null,3,72.900000000000006,null,null,72.900000000000006,0,0,"",null,"X"]
[null,"Decos",null,null,"12.4\" x 9.5\"",null,"Mosaic",null,null,"MAGR110",null,"3D Diamond Limestone Multi Finish Grey",null,null,null,null,null,null,75.8,"EA",{"$f":"+Instructions!$B$3","v":"A"},null,{"$f":"+Instructions!$C$22","v":0},75.8,null,"",75.8,0,75.8,0,null,3,75.8,null,null,75.8,0,0,"",null,"X"]
[null,"Decos",null,null,"11.4\" x 17.7\"",null,"Mosaic",null,null,"MAGR113",null,"Opus Light Grey Marble",null,null,null,null,null,null,60.45,"EA",{"$f":"+Instructions!$B$3","v":"A"},null,{"$f":"+Instructions!$C$22","v":0},60.45,null,"",60.45,0,60.45,0,null,3,60.45,null,null,60.45,0,0,"",null,"X"]
[null,"Decos",null,null,"12\" x 12\"",null,"Mosaic",null,null,"MAGR116",null,"Elongated Hexagon Ice Grey Leaves",null,null,null,null,null,null,{"$f":"IF(Suggested=\"Yes\",AA241,AG241)","v":48.65},"EA",{"$f":"+Instructions!$B$3","v":"A"},null,{"$f":"+Instructions!$C$22","v":0},{"$f":"ROUND($AA241*(1-W241)+0.004999,2)","v":48.65},null,"",48.65,{"$f":"+W241","v":0},48.65,{"$f":"(AG241-AC241)/AG241","v":0},null,3,{"$f":"SUM(AJ241:AL241)+AE241","v":48.65},null,null,{"$f":"ROUND(AC241/(1-VLOOKUP(AF241,Group,2,FALSE)),2)","v":48.65},{"$f":"IF(VLOOKUP(AF241,Group,5,FALSE)=\"YES\",VLOOKUP(ROUND(ROUND(AJ241,1)-AJ241,2),Round,2,FALSE)+VLOOKUP(AF241,Group,6,FALSE),0)","v":0},{"$f":"IF(VLOOKUP(AF241,Group,7,FALSE)=\"\",0,ROUND(AJ241-0.04999,1)-AJ241+AM241)","v":0},{"$f":"IF(VLOOKUP(AF241,Group,7,FALSE)=\"\",\"\",VLOOKUP(AF241,Group,7,FALSE))","v":""},null,"X"]
[null,"Decos",null,null,"11.8\" x 11.8\"",null,"Mosaic",null,null,"MAGR117",null,"2\" x 4\" Brick Ice Grey",null,null,null,null,null,null,{"$f":"IF(Suggested=\"Yes\",AA242,AG242)","v":50.15},"EA",{"$f":"+Instructions!$B$3","v":"A"},null,{"$f":"+Instructions!$C$22","v":0},{"$f":"ROUND($AA242*(1-W242)+0.004999,2)","v":50.15},null,"",50.15,0,50.15,{"$f":"(AG242-AC242)/AG242","v":0},null,3,{"$f":"SUM(AJ242:AL242)+AE242","v":50.15},null,null,{"$f":"ROUND(AC242/(1-VLOOKUP(AF242,Group,2,FALSE)),2)","v":50.15},{"$f":"IF(VLOOKUP(AF242,Group,5,FALSE)=\"YES\",VLOOKUP(ROUND(ROUND(AJ242,1)-AJ242,2),Round,2,FALSE)+VLOOKUP(AF242,Group,6,FALSE),0)","v":0},{"$f":"IF(VLOOKUP(AF242,Group,7,FALSE)=\"\",0,ROUND(AJ242-0.04999,1)-AJ242+AM242)","v":0},{"$f":"IF(VLOOKUP(AF242,Group,7,FALSE)=\"\",\"\",VLOOKUP(AF242,Group,7,FALSE))","v":""},null,"X"]
[null,"Decos",null,null,"12\" x 12\"",null,"Mosaic",null,null,"MAGR120",null,"Beige Limestone Matte Mini Opus",null,null,null,null,null,null,{"$f":"IF(Suggested=\"Yes\",AA243,AG243)","v":50.65},"EA",{"$f":"+Instructions!$B$3","v":"A"},null,{"$f":"+Instructions!$C$22","v":0},{"$f":"ROUND($AA243*(1-W243)+0.004999,2)","v":50.65},null,"",50.65,{"$f":"+W243","v":0},{"$f":"+X243","v":50.65},{"$f":"(AG243-AC243)/AG243","v":0},null,3,{"$f":"SUM(AJ243:AL243)+AE243","v":50.65},null,null,{"$f":"ROUND(AC243/(1-VLOOKUP(AF243,Group,2,FALSE)),2)","v":50.65},{"$f":"IF(VLOOKUP(AF243,Group,5,FALSE)=\"YES\",VLOOKUP(ROUND(ROUND(AJ243,1)-AJ243,2),Round,2,FALSE)+VLOOKUP(AF243,Group,6,FALSE),0)","v":0},{"$f":"IF(VLOOKUP(AF243,Group,7,FALSE)=\"\",0,ROUND(AJ243-0.04999,1)-AJ243+AM243)","v":0},{"$f":"IF(VLOOKUP(AF243,Group,7,FALSE)=\"\",\"\",VLOOKUP(AF243,Group,7,FALSE))","v":""},null,"X"]
[null,"Decos",null,null,"12\" x 12\"",null,"Mosaic",null,null,"MAGR121",null,"Mini Opus Matte Grey Mix Marble Stone",null,null,null,null,null,null,{"$f":"IF(Suggested=\"Yes\",AA244,AG244)","v":57.1},"EA",{"$f":"+Instructions!$B$3","v":"A"},null,{"$f":"+Instructions!$C$22","v":0},{"$f":"ROUND($AA244*(1-W244)+0.004999,2)","v":57.1},null,"",57.1,0,57.1,{"$f":"(AG244-AC244)/AG244","v":0},null,3,{"$f":"SUM(AJ244:AL244)+AE244","v":57.1},null,null,{"$f":"ROUND(AC244/(1-VLOOKUP(AF244,Group,2,FALSE)),2)","v":57.1},{"$f":"IF(VLOOKUP(AF244,Group,5,FALSE)=\"YES\",VLOOKUP(ROUND(ROUND(AJ244,1)-AJ244,2),Round,2,FALSE)+VLOOKUP(AF244,Group,6,FALSE),0)","v":0},{"$f":"IF(VLOOKUP(AF244,Group,7,FALSE)=\"\",0,ROUND(AJ244-0.04999,1)-AJ244+AM244)","v":0},{"$f":"IF(VLOOKUP(AF244,Group,7,FALSE)=\"\",\"\",VLOOKUP(AF244,Group,7,FALSE))","v":""},null,"X"]
[null,"Decos",null,null,"12\" x 12\"",null,"Mosaic",null,null,"MAGR122",null,"Hexagon Grey Mix Honed Marble 4\" x 5\"",null,null,null,null,null,null,48.45,"EA",{"$f":"+Instructions!$B$3","v":"A"},null,{"$f":"+Instructions!$C$22","v":0},48.45,null,"new",48.45,0,48.45,0,null,3,48.45,null,null,48.45,0,0,"",null,"X"]
[null,"Decos",null,null,"12\" x 12\"",null,"Mosaic",null,null,"MAMA45",null,"Forest Brown Polished Marble 2\" x 2\"",null,null,null,null,null,null,46,"EA",{"$f":"+Instructions!$B$3","v":"A"},null,{"$f":"+Instructions!$C$22","v":0},46,null,"",46,{"$f":"+W246","v":0},46,0,null,3,46,null,null,46,0,0,"",null,"X"]
[null,"Decos",null,null,"12\" x 12\"",null,"Mosaic",null,null,"MAMI09",null,"Onyx White/Red Opus",null,null,null,null,null,null,40.700000000000003,"EA",{"$f":"+Instructions!$B$3","v":"A"},null,{"$f":"+Instructions!$C$22","v":0},40.700000000000003,null,"",40.700000000000003,{"$f":"+W247","v":0},40.700000000000003,0,null,3,40.700000000000003,null,null,40.700000000000003,0,0,"",null,"X"]
[null,"Decos",null,null,"4\" x 12\"",null,"Border",null,null,"MAMI10/30",null,"Onyx White/Red Opus",null,null,null,null,null,null,19.05,"EA",{"$f":"+Instructions!$B$3","v":"A"},null,{"$f":"+Instructions!$C$22","v":0},19.05,null,"",19.05,{"$f":"+W248","v":0},19.05,0,null,3,19.05,null,null,19.05,0,0,"",null,"X"]
[null,"Decos",null,null,"12\" x 12\"",null,"Mosaic",null,null,"MAMI11",null,"White/Grey/Black Opus",null,null,null,null,null,null,{"$f":"IF(Suggested=\"Yes\",AA249,AG249)","v":35.6},"EA",{"$f":"+Instructions!$B$3","v":"A"},null,{"$f":"+Instructions!$C$22","v":0},{"$f":"ROUND($AA249*(1-W249)+0.004999,2)","v":35.6},null,"",35.6,{"$f":"+W249","v":0},35.6,{"$f":"(AG249-AC249)/AG249","v":0},null,3,{"$f":"SUM(AJ249:AL249)+AE249","v":35.6},null,null,{"$f":"ROUND(AC249/(1-VLOOKUP(AF249,Group,2,FALSE)),2)","v":35.6},{"$f":"IF(VLOOKUP(AF249,Group,5,FALSE)=\"YES\",VLOOKUP(ROUND(ROUND(AJ249,1)-AJ249,2),Round,2,FALSE)+VLOOKUP(AF249,Group,6,FALSE),0)","v":0},{"$f":"IF(VLOOKUP(AF249,Group,7,FALSE)=\"\",0,ROUND(AJ249-0.04999,1)-AJ249+AM249)","v":0},{"$f":"IF(VLOOKUP(AF249,Group,7,FALSE)=\"\",\"\",VLOOKUP(AF249,Group,7,FALSE))","v":""},null,"X"]
[null,"Decos",null,null,"4\" x 12\"",null,"Border",null,null,"MAMI12/30",null,"White/Grey/Black Opus",null,null,null,null,null,null,19.05,"EA",{"$f":"+Instructions!$B$3","v":"A"},null,{"$f":"+Instructions!$C$22","v":0},19.05,null,"",19.05,0,19.05,0,null,3,19.05,null,null,19.05,0,0,"",null,"X"]
[null,"Decos",null,null,"11\" x 12\"",null,"Mosaic",null,null,"MAMI15",null,"Grey/Black/White Marble",null,null,null,null,null,null,40.700000000000003,"EA",{"$f":"+Instructions!$B$3","v":"A"},null,{"$f":"+Instructions!$C$22","v":0},40.700000000000003,null,"",40.700000000000003,0,40.700000000000003,0,null,3,40.700000000000003,null,null,40.700000000000003,0,0,"",null,"X"]
[null,"Decos",null,null,"11.6\" x 11.6\"",null,"Mosaic",null,null,"MAMI19",null,"White/Grey Marble",null,null,null,null,null,null,40.700000000000003,"EA",{"$f":"+Instructions!$B$3","v":"A"},null,{"$f":"+Instructions!$C$22","v":0},40.700000000000003,null,"",40.700000000000003,0,40.700000000000003,0,null,3,40.700000000000003,null,null,40.700000000000003,0,0,"",null,"X"]
[null,"Decos",null,null,"12\" x 12\"",null,"Mosaic",null,null,"MAMI29",null,"Grey Stone/Grey Glass/Décor 1\" x 1\"",null,null,null,null,null,"a",89.15,"EA",{"$f":"+Instructions!$B$3","v":"A"},null,{"$f":"+Instructions!$C$22","v":0},89.15,null,"",89.15,0,89.15,0,null,3,89.15,null,null,89.15,0,0,"",null,"X"]
[null,"Decos",null,null,"12\" x 12\"",null,"Mosaic",null,null,"MAMI30",null,"Grey Stone/Brown Glass/Décor 1\" x 1\"",null,null,null,null,null,"a",89.15,"EA",{"$f":"+Instructions!$B$3","v":"A"},null,{"$f":"+Instructions!$C$22","v":0},89.15,null,"",89.15,0,89.15,0,null,3,89.15,null,null,89.15,0,0,"",null,"X"]
[null,"Decos"," ",null,"12\" x 12\"",null,"Mosaic",null,null,"MAMI32",null,"Red Stone/Brown Glass/Décor 1\" x 1\"",null,null,null,null,null,"a",89.15,"EA",{"$f":"+Instructions!$B$3","v":"A"},null,{"$f":"+Instructions!$C$22","v":0},89.15,null,"",89.15,0,89.15,0,null,3,89.15,null,null,89.15,0,0,"",null,"X"]
[null,"Decos",null,null,"12\" x 12\"",null,"Mosaic",null,null,"MAMI33",null,"Beige Stone/Brown Glass/Décor 1\" x 1\"",null,null,null,null,null,"a",{"$f":"IF(Suggested=\"Yes\",AA256,AG256)","v":93.05},"EA",{"$f":"+Instructions!$B$3","v":"A"},null,{"$f":"+Instructions!$C$22","v":0},{"$f":"ROUND($AA256*(1-W256)+0.004999,2)","v":93.05},null,"",93.05,{"$f":"+W256","v":0},{"$f":"+X256","v":93.05},{"$f":"(AG256-AC256)/AG256","v":0},null,3,{"$f":"SUM(AJ256:AL256)+AE256","v":93.05},null,null,{"$f":"ROUND(AC256/(1-VLOOKUP(AF256,Group,2,FALSE)),2)","v":93.05},{"$f":"IF(VLOOKUP(AF256,Group,5,FALSE)=\"YES\",VLOOKUP(ROUND(ROUND(AJ256,1)-AJ256,2),Round,2,FALSE)+VLOOKUP(AF256,Group,6,FALSE),0)","v":0},{"$f":"IF(VLOOKUP(AF256,Group,7,FALSE)=\"\",0,ROUND(AJ256-0.04999,1)-AJ256+AM256)","v":0},{"$f":"IF(VLOOKUP(AF256,Group,7,FALSE)=\"\",\"\",VLOOKUP(AF256,Group,7,FALSE))","v":""},null,"X"]
[null,"Decos",null,null,"12\" x 12\"",null,"Mosaic",null,null,"MAMI50",null,"Blue Glossy Glass/Shell Mix 2\" x 2\"",null,null,null,null,null,"a",93,"EA",{"$f":"+Instructions!$B$3","v":"A"},null,{"$f":"+Instructions!$C$22","v":0},93,null,"",93,0,93,0,null,3,93,null,null,93,0,0,"",null,"X"]
[null,"Decos",null,null,"12\" x 12\"",null,"Mosaic",null,null,"MAMI51",null,"Beige Marble/Silver Beige Glass/Décor 1\" x 1\"",null,null,null,null,null,"a",85.25,"EA",{"$f":"+Instructions!$B$3","v":"A"},null,{"$f":"+Instructions!$C$22","v":0},85.25,null,"",85.25,0,85.25,0,null,3,85.25,null,null,85.25,0,0,"",null,"X"]
[null,"Decos",null,null,"12\" x 12\"",null,"Mosaic",null,null,"MAMI54",null,"Grey Marble/Glass/Metal 7/8\" x 7/8\"",null,null,null,null,null,"a",74.75,"EA",{"$f":"+Instructions!$B$3","v":"A"},null,{"$f":"+Instructions!$C$22","v":0},74.75,null,"",74.75,0,74.75,0,null,3,74.75,null,null,74.75,0,0,"",null,"X"]
[null,"Decos",null,null,"12\" x 12\"",null,"Mosaic",null,null,"MAMI57",null,"Beige/Brown Mix Marble/Polished/Glass 7/8\" x 7/8\"",null,null,null,null,null,"a",76.400000000000006,"EA",{"$f":"+Instructions!$B$3","v":"A"},null,{"$f":"+Instructions!$C$22","v":0},76.400000000000006,null,"",76.400000000000006,0,76.400000000000006,0,null,3,76.400000000000006,null,null,76.400000000000006,0,0,"",null,"X"]
[null,"Decos",null,null,"12\" x 12\"",null,"Mosaic",null,null,"MAMI78",null,"Beige/Brown Opus",null,null,null,null,null,null,55.6,"EA",{"$f":"+Instructions!$B$3","v":"A"},null,{"$f":"+Instructions!$C$22","v":0},55.6,null,"",55.6,0,55.6,0,null,3,55.6,null,null,55.6,0,0,"",null,"X"]
[null,"Decos",null,null,"4\" x 12\"",null,"Border",null,null,"MAMI79/30",null,"Beige/Brown Opus",null,null,null,null,null,null,31.55,"EA",{"$f":"+Instructions!$B$3","v":"A"},null,{"$f":"+Instructions!$C$22","v":0},31.55,null,"",31.55,0,31.55,0,null,3,31.55,null,null,31.55,0,0,"",null,"X"]
[null,"Decos",null,null,"12\" x 12\"",null,"Mosaic",null,null,"MAMI83",null,"Grey/Red Mix Stone 7/8\" x 7/8\"",null,null,null,null,null,"a",93.05,"EA",{"$f":"+Instructions!$B$3","v":"A"},null,{"$f":"+Instructions!$C$22","v":0},93.05,null,"",93.05,0,93.05,0,null,3,93.05,null,null,93.05,0,0,"",null,"X"]
[null,"Decos",null,null,"12\" x 12\"",null,"Mosaic",null,null,"MAMI86",null,"White/Grey/Dark Grey Cubic Opus",null,null,null,null,null,null,32.450000000000003,"EA",{"$f":"+Instructions!$B$3","v":"A"},null,{"$f":"+Instructions!$C$22","v":0},32.450000000000003,null,"",32.450000000000003,0,32.450000000000003,0,null,3,32.450000000000003,null,null,32.450000000000003,0,0,"",null,"X"]
[null,"Decos",null,null,"12\" x 12\"",null,"Mosaic",null,null,"MAMI92",null,"Marble Beige/Glass Beige/Brown",null,null,null,null,null,null,85.2,"EA",{"$f":"+Instructions!$B$3","v":"A"},null,{"$f":"+Instructions!$C$22","v":0},85.2,null,"",85.2,0,85.2,0,null,3,85.2,null,null,85.2,0,0,"",null,"X"]
[null,"Decos",null,null,"12\" x 12\"",null,"Mosaic",null,null,"MAMI93",null,"Marble Beige/Glass Beige/Brown",null,null,null,null,null,null,85.2,"EA",{"$f":"+Instructions!$B$3","v":"A"},null,{"$f":"+Instructions!$C$22","v":0},85.2,null,"",85.2,0,85.2,0,null,3,85.2,null,null,85.2,0,0,"",null,"X"]
[null,"Decos",null,null,"12\" x 12\"",null,"Mosaic",null,null,"MAMI94",null,"Marble Grey/Glass Black/Grey/White",null,null,null,null,null,null,85.2,"EA",{"$f":"+Instructions!$B$3","v":"A"},null,{"$f":"+Instructions!$C$22","v":0},85.2,null,"",85.2,0,85.2,0,null,3,85.2,null,null,85.2,0,0,"",null,"X"]
[null,"Decos",null,null,"12\" x 12\"",null,"Mosaic",null,null,"MAMI95",null,"Marble Grey/Glass Black/Grey/White",null,null,null,null,null,null,85.2,"EA",{"$f":"+Instructions!$B$3","v":"A"},null,{"$f":"+Instructions!$C$22","v":0},85.2,null,"",85.2,0,85.2,0,null,3,85.2,null,null,85.2,0,0,"",null,"X"]
[null,"Decos",null,null,"5-1/2\" x 12\"",null,"Border",null,null,"MAMI96/30",null,"White/Grey/Dark Grey Cubic Opus",null,null,null," ",null,null,23.35,"EA",{"$f":"+Instructions!$B$3","v":"A"},null,{"$f":"+Instructions!$C$22","v":0},23.35,null,"",23.35,0,23.35,0,null,3,23.35,null,null,23.35,0,0,"",null,"X"]
[null,"Decos",null,null,"12\" x 12\"",null,"Mosaic",null,null,"MAMI101",null,"Black Round Décor Glass Stone Mix",null,null,null,null,null,null,{"$f":"IF(Suggested=\"Yes\",AA270,AG270)","v":96.95},"EA",{"$f":"+Instructions!$B$3","v":"A"},null,{"$f":"+Instructions!$C$22","v":0},{"$f":"ROUND($AA270*(1-W270)+0.004999,2)","v":96.95},null,"",96.95,{"$f":"+W270","v":0},96.95,{"$f":"(AG270-AC270)/AG270","v":0},null,3,{"$f":"SUM(AJ270:AL270)+AE270","v":96.95},null,null,{"$f":"ROUND(AC270/(1-VLOOKUP(AF270,Group,2,FALSE)),2)","v":96.95},{"$f":"IF(VLOOKUP(AF270,Group,5,FALSE)=\"YES\",VLOOKUP(ROUND(ROUND(AJ270,1)-AJ270,2),Round,2,FALSE)+VLOOKUP(AF270,Group,6,FALSE),0)","v":0},{"$f":"IF(VLOOKUP(AF270,Group,7,FALSE)=\"\",0,ROUND(AJ270-0.04999,1)-AJ270+AM270)","v":0},{"$f":"IF(VLOOKUP(AF270,Group,7,FALSE)=\"\",\"\",VLOOKUP(AF270,Group,7,FALSE))","v":""},null,"X"]
[null,"Decos",null,null,"4\" x 12\"",null,"Border",null,null,"MAMI102",null,"Black Round Décor Glass Stone Mix",null,null,null," ",null,null,38.450000000000003,"EA",{"$f":"+Instructions!$B$3","v":"A"},null,{"$f":"+Instructions!$C$22","v":0},38.450000000000003,null,"",38.450000000000003,0,38.450000000000003,0,null,3,38.450000000000003,null,null,38.450000000000003,0,0,"",null,"X"]
[null,"Decos",null,null,"12\" x 12\"",null,"Mosaic",null,null,"MAMI103",null,"Beige Round Décor Glass Stone Mix",null,null,null,null,null,null,96.95,"EA",{"$f":"+Instructions!$B$3","v":"A"},null,{"$f":"+Instructions!$C$22","v":0},96.95,null,"",96.95,0,96.95,0,null,3,96.95,null,null,96.95,0,0,"",null,"X"]
[null,"Decos",null,null,"4\" x 12\"",null,"Border",null,null,"MAMI104",null,"Beige Round Décor Glass Stone Mix",null,null,null,null,null,null,38.450000000000003,"EA",{"$f":"+Instructions!$B$3","v":"A"},null,{"$f":"+Instructions!$C$22","v":0},38.450000000000003,null,"",38.450000000000003,0,38.450000000000003,0,null,3,38.450000000000003,null,null,38.450000000000003,0,0,"",null,"X"]
[null,"Decos",null,null,"11.6\" x 12\"",null,"Mosaic",null,null,"MAMI119",null,"Mother Of Pearl Tan Glass/Shell Brown Brick",null,null,null,null,null,null,81.05,"EA",{"$f":"+Instructions!$B$3","v":"A"},null,{"$f":"+Instructions!$C$22","v":0},81.05,null,"",81.05,0,81.05,0,null,3,81.05,null,null,81.05,0,0,"",null,"X"]
[null,"Decos",null,null,"11.6\" x 12\"",null,"Mosaic",null,null,"MAMI120",null,"Mother Of Pearl Beige/White/Shell Beige Brick",null,null,null,null,null,null,81.05,"EA",{"$f":"+Instructions!$B$3","v":"A"},null,{"$f":"+Instructions!$C$22","v":0},81.05,null,"",81.05,0,81.05,0,null,3,81.05,null,null,81.05,0,0,"",null,"X"]
[null,"Decos",null,null,"11.6\" x 12\"",null,"Mosaic",null,null,"MAMI123",null,"Cappuccino/Onyx Cream Cubic Opus",null,null,null,null,null,null,39.200000000000003,"EA",{"$f":"+Instructions!$B$3","v":"A"},null,{"$f":"+Instructions!$C$22","v":0},39.200000000000003,null,"",39.200000000000003,0,39.200000000000003,0,null,3,39.200000000000003,null,null,39.200000000000003,0,0,"",null,"X"]
[null,"Decos",null,null,"12\" x 12\"",null,"Mosaic",null,null,"MAMI143",null,"Glass/Marble Black Matte & Glossy Hexagon",null,null,null,null,null,null,{"$f":"IF(Suggested=\"Yes\",AA277,AG277)","v":88.8},"EA",{"$f":"+Instructions!$B$3","v":"A"},null,{"$f":"+Instructions!$C$22","v":0},{"$f":"ROUND($AA277*(1-W277)+0.004999,2)","v":88.8},null,"",88.8,{"$f":"+W277","v":0},{"$f":"+X277","v":88.8},{"$f":"(AG277-AC277)/AG277","v":0},null,3,{"$f":"SUM(AJ277:AL277)+AE277","v":88.8},null,null,{"$f":"ROUND(AC277/(1-VLOOKUP(AF277,Group,2,FALSE)),2)","v":88.8},{"$f":"IF(VLOOKUP(AF277,Group,5,FALSE)=\"YES\",VLOOKUP(ROUND(ROUND(AJ277,1)-AJ277,2),Round,2,FALSE)+VLOOKUP(AF277,Group,6,FALSE),0)","v":0},{"$f":"IF(VLOOKUP(AF277,Group,7,FALSE)=\"\",0,ROUND(AJ277-0.04999,1)-AJ277+AM277)","v":0},{"$f":"IF(VLOOKUP(AF277,Group,7,FALSE)=\"\",\"\",VLOOKUP(AF277,Group,7,FALSE))","v":""},null,"X"]
[null,"Decos",null,null,"11.8\" x 11.8\"",null,"Mosaic",null,null,"MAMI150",null,"Baguette Stone Grey Black Aluminum Mix",null,null,null,null,null,null,79.150000000000006,"EA",{"$f":"+Instructions!$B$3","v":"A"},null,{"$f":"+Instructions!$C$22","v":0},79.150000000000006,null,"",79.150000000000006,{"$f":"+W278","v":0},{"$f":"+X278","v":79.150000000000006},0,null,3,79.150000000000006,null,null,79.150000000000006,0,0,"",null,"X"]
[null,"Decos",null,null,"11.8\" x 11.8\"",null,"Mosaic",null,null,"MAMI151",null,"Baguette Stone Grey Beige Black Aluminum Mix",null,null,null,null,null,null,79.150000000000006,"EA",{"$f":"+Instructions!$B$3","v":"A"},null,{"$f":"+Instructions!$C$22","v":0},79.150000000000006,null,"",79.150000000000006,0,79.150000000000006,0,null,3,79.150000000000006,null,null,79.150000000000006,0,0,"",null,"X"]
[null,"Decos",null,null,"11.6\" x 12\"",null,"Mosaic",null,null,"MAMI152",null,"White/Grey/Black Mix Cubic Opus",null,null,null,null,null,null,39.75,"EA",{"$f":"+Instructions!$B$3","v":"A"},null,{"$f":"+Instructions!$C$22","v":0},39.75,null,"",39.75,0,39.75,0,null,3,39.75,null,null,39.75,0,0,"",null,"X"]
[null,"Decos",null,null,"11.8\" x 11.8\"",null,"Mosaic",null,null,"MAMI153",null,"Stone Grey Black Aluminum Mix",null,null,null,null,null,null,79.150000000000006,"EA",{"$f":"+Instructions!$B$3","v":"A"},null,{"$f":"+Instructions!$C$22","v":0},79.150000000000006,null,"",79.150000000000006,0,79.150000000000006,0,null,3,79.150000000000006,null,null,79.150000000000006,0,0,"",null,"X"]
[null,"Decos",null,null,"11.4\" x 12\"",null,"Mosaic",null,null,"MAMI164",null,"Mother Of Pearl Glass/Marble White Mix Brick",null,null,null,null,null,null,{"$f":"IF(Suggested=\"Yes\",AA282,AG282)","v":79.349999999999994},"EA",{"$f":"+Instructions!$B$3","v":"A"},null,{"$f":"+Instructions!$C$22","v":0},{"$f":"ROUND($AA282*(1-W282)+0.004999,2)","v":79.349999999999994},null,"",79.349999999999994,0,79.349999999999994,{"$f":"(AG282-AC282)/AG282","v":0},null,3,{"$f":"SUM(AJ282:AL282)+AE282","v":79.349999999999994},null,null,{"$f":"ROUND(AC282/(1-VLOOKUP(AF282,Group,2,FALSE)),2)","v":79.349999999999994},{"$f":"IF(VLOOKUP(AF282,Group,5,FALSE)=\"YES\",VLOOKUP(ROUND(ROUND(AJ282,1)-AJ282,2),Round,2,FALSE)+VLOOKUP(AF282,Group,6,FALSE),0)","v":0},{"$f":"IF(VLOOKUP(AF282,Group,7,FALSE)=\"\",0,ROUND(AJ282-0.04999,1)-AJ282+AM282)","v":0},{"$f":"IF(VLOOKUP(AF282,Group,7,FALSE)=\"\",\"\",VLOOKUP(AF282,Group,7,FALSE))","v":""},null,"X"]
[null,"Decos",null,null,"11.4\" x 12\"",null,"Mosaic",null,null,"MAMI165",null,"Mother Of Pearl Glass/Marble Taupe Grey Mix Brick",null,null,null,null,null,null,79.349999999999994,"EA",{"$f":"+Instructions!$B$3","v":"A"},null,{"$f":"+Instructions!$C$22","v":0},79.349999999999994,null,"",79.349999999999994,0,79.349999999999994,0,null,3,79.349999999999994,null,null,79.349999999999994,0,0,"",null,"X"]
[null,"Decos",null,null,"11.7\" x 11.7\"",null,"Mosaic",null,null,"MAMI166",null,"Mother Of Pearl Glass/Marble White Mix 7/8\" x 7/8\"",null,null,null,null,null,null,{"$f":"IF(Suggested=\"Yes\",AA284,AG284)","v":79.349999999999994},"EA",{"$f":"+Instructions!$B$3","v":"A"},null,{"$f":"+Instructions!$C$22","v":0},{"$f":"ROUND($AA284*(1-W284)+0.004999,2)","v":79.349999999999994},null,"",79.349999999999994,0,79.349999999999994,{"$f":"(AG284-AC284)/AG284","v":0},null,3,{"$f":"SUM(AJ284:AL284)+AE284","v":79.349999999999994},null,null,{"$f":"ROUND(AC284/(1-VLOOKUP(AF284,Group,2,FALSE)),2)","v":79.349999999999994},{"$f":"IF(VLOOKUP(AF284,Group,5,FALSE)=\"YES\",VLOOKUP(ROUND(ROUND(AJ284,1)-AJ284,2),Round,2,FALSE)+VLOOKUP(AF284,Group,6,FALSE),0)","v":0},{"$f":"IF(VLOOKUP(AF284,Group,7,FALSE)=\"\",0,ROUND(AJ284-0.04999,1)-AJ284+AM284)","v":0},{"$f":"IF(VLOOKUP(AF284,Group,7,FALSE)=\"\",\"\",VLOOKUP(AF284,Group,7,FALSE))","v":""},null,"X"]
[null,"Decos",null,null,"11.7\" x 11.7\"",null,"Mosaic",null,null,"MAMI167",null,"Mother Of Pearl Glass/Marble Beige Brown Mix 7/8\" x 7/8\"",null,null,null,null,null,null,{"$f":"IF(Suggested=\"Yes\",AA285,AG285)","v":79.349999999999994},"EA",{"$f":"+Instructions!$B$3","v":"A"},null,{"$f":"+Instructions!$C$22","v":0},{"$f":"ROUND($AA285*(1-W285)+0.004999,2)","v":79.349999999999994},null,"",79.349999999999994,0,79.349999999999994,{"$f":"(AG285-AC285)/AG285","v":0},null,3,{"$f":"SUM(AJ285:AL285)+AE285","v":79.349999999999994},null,null,{"$f":"ROUND(AC285/(1-VLOOKUP(AF285,Group,2,FALSE)),2)","v":79.349999999999994},{"$f":"IF(VLOOKUP(AF285,Group,5,FALSE)=\"YES\",VLOOKUP(ROUND(ROUND(AJ285,1)-AJ285,2),Round,2,FALSE)+VLOOKUP(AF285,Group,6,FALSE),0)","v":0},{"$f":"IF(VLOOKUP(AF285,Group,7,FALSE)=\"\",0,ROUND(AJ285-0.04999,1)-AJ285+AM285)","v":0},{"$f":"IF(VLOOKUP(AF285,Group,7,FALSE)=\"\",\"\",VLOOKUP(AF285,Group,7,FALSE))","v":""},null,"X"]
[null,"Decos",null,null,"11.2\" x 10.4\"",null,"Mosaic",null,null,"MAMI168",null,"Hexagon Mix Marble/Aluminum Multi Finish Silver",null,null,null,null,null,null,79.400000000000006,"EA",{"$f":"+Instructions!$B$3","v":"A"},null,{"$f":"+Instructions!$C$22","v":0},79.400000000000006,null,"",79.400000000000006,0,79.400000000000006,0,null,3,79.400000000000006,null,null,79.400000000000006,0,0,"",null,"X"]
[null,"Decos",null,null,"11.6\" x 12\"",null,"Mosaic",null,null,"MAMI174",null,"Mother Of Pearl Glass Marble Beige Mix Hexagon",null,null,null,null,null,null,{"$f":"IF(Suggested=\"Yes\",AA287,AG287)","v":98.1},"EA",{"$f":"+Instructions!$B$3","v":"A"},null,{"$f":"+Instructions!$C$22","v":0},{"$f":"ROUND($AA287*(1-W287)+0.004999,2)","v":98.1},null,"",98.1,{"$f":"+W287","v":0},{"$f":"+X287","v":98.1},{"$f":"(AG287-AC287)/AG287","v":0},null,3,{"$f":"SUM(AJ287:AL287)+AE287","v":98.1},null,null,{"$f":"ROUND(AC287/(1-VLOOKUP(AF287,Group,2,FALSE)),2)","v":98.1},{"$f":"IF(VLOOKUP(AF287,Group,5,FALSE)=\"YES\",VLOOKUP(ROUND(ROUND(AJ287,1)-AJ287,2),Round,2,FALSE)+VLOOKUP(AF287,Group,6,FALSE),0)","v":0},{"$f":"IF(VLOOKUP(AF287,Group,7,FALSE)=\"\",0,ROUND(AJ287-0.04999,1)-AJ287+AM287)","v":0},{"$f":"IF(VLOOKUP(AF287,Group,7,FALSE)=\"\",\"\",VLOOKUP(AF287,Group,7,FALSE))","v":""},null,"X"]
[null,"Decos",null,null,"11.6\" x 12\"",null,"Mosaic",null,null,"MAMI175",null,"Mother Of Pearl Glass Marble White Mix Hexagon",null,null,null,null,null,null,102.5,"EA",{"$f":"+Instructions!$B$3","v":"A"},null,{"$f":"+Instructions!$C$22","v":0},102.5,null,"",102.5,0,102.5,0,null,3,102.5,null,null,102.5,0,0,"",null,"X"]
[null,"Decos",null,null,"11.8\" x 11.8\"",null,"Mosaic",null,null,"MAMI180",null,"2\" x 2\" Marble & Glass White Mix",null,null,null,null,null,null,{"$f":"IF(Suggested=\"Yes\",AA289,AG289)","v":89.25},"EA",{"$f":"+Instructions!$B$3","v":"A"},null,{"$f":"+Instructions!$C$22","v":0},{"$f":"ROUND($AA289*(1-W289)+0.004999,2)","v":89.25},null,"",89.25,{"$f":"+W289","v":0},{"$f":"+X289","v":89.25},{"$f":"(AG289-AC289)/AG289","v":0},null,3,{"$f":"SUM(AJ289:AL289)+AE289","v":89.25},null,null,{"$f":"ROUND(AC289/(1-VLOOKUP(AF289,Group,2,FALSE)),2)","v":89.25},{"$f":"IF(VLOOKUP(AF289,Group,5,FALSE)=\"YES\",VLOOKUP(ROUND(ROUND(AJ289,1)-AJ289,2),Round,2,FALSE)+VLOOKUP(AF289,Group,6,FALSE),0)","v":0},{"$f":"IF(VLOOKUP(AF289,Group,7,FALSE)=\"\",0,ROUND(AJ289-0.04999,1)-AJ289+AM289)","v":0},{"$f":"IF(VLOOKUP(AF289,Group,7,FALSE)=\"\",\"\",VLOOKUP(AF289,Group,7,FALSE))","v":""},null,"X"]
[null,"Decos",null,null,"11.8\" x 11.8\"",null,"Mosaic",null,null,"MAMI181",null,"Glass 2\" x 2\" Grey Mix",null,null,null,null,null,null,{"$f":"IF(Suggested=\"Yes\",AA290,AG290)","v":89.25},"EA",{"$f":"+Instructions!$B$3","v":"A"},null,{"$f":"+Instructions!$C$22","v":0},{"$f":"ROUND($AA290*(1-W290)+0.004999,2)","v":89.25},null,"",89.25,{"$f":"+W290","v":0},{"$f":"+X290","v":89.25},{"$f":"(AG290-AC290)/AG290","v":0},null,3,{"$f":"SUM(AJ290:AL290)+AE290","v":89.25},null,null,{"$f":"ROUND(AC290/(1-VLOOKUP(AF290,Group,2,FALSE)),2)","v":89.25},{"$f":"IF(VLOOKUP(AF290,Group,5,FALSE)=\"YES\",VLOOKUP(ROUND(ROUND(AJ290,1)-AJ290,2),Round,2,FALSE)+VLOOKUP(AF290,Group,6,FALSE),0)","v":0},{"$f":"IF(VLOOKUP(AF290,Group,7,FALSE)=\"\",0,ROUND(AJ290-0.04999,1)-AJ290+AM290)","v":0},{"$f":"IF(VLOOKUP(AF290,Group,7,FALSE)=\"\",\"\",VLOOKUP(AF290,Group,7,FALSE))","v":""},null,"X"]
[null,"Decos",null,null,"12\" x 12\"",null,"Mosaic",null,null,"MAMI182",null,"Elongated Hexagon Royal Vein Leaves",null,null,null,null,null,null,49.55,"EA",{"$f":"+Instructions!$B$3","v":"A"},null,{"$f":"+Instructions!$C$22","v":0},49.55,null,"",49.55,0,49.55,0,null,3,49.55,null,null,49.55,0,0,"",null,"X"]
[null,"Decos",null,null,"11.8\" x 11.8\"",null,"Mosaic",null,null,"MAMI183",null,"2\" x 4\" Brick Royal Vein",null,null,null,null,null,null,{"$f":"IF(Suggested=\"Yes\",AA292,AG292)","v":50.15},"EA",{"$f":"+Instructions!$B$3","v":"A"},null,{"$f":"+Instructions!$C$22","v":0},{"$f":"ROUND($AA292*(1-W292)+0.004999,2)","v":50.15},null,"",50.15,{"$f":"+W292","v":0},50.15,{"$f":"(AG292-AC292)/AG292","v":0},null,3,{"$f":"SUM(AJ292:AL292)+AE292","v":50.15},null,null,{"$f":"ROUND(AC292/(1-VLOOKUP(AF292,Group,2,FALSE)),2)","v":50.15},{"$f":"IF(VLOOKUP(AF292,Group,5,FALSE)=\"YES\",VLOOKUP(ROUND(ROUND(AJ292,1)-AJ292,2),Round,2,FALSE)+VLOOKUP(AF292,Group,6,FALSE),0)","v":0},{"$f":"IF(VLOOKUP(AF292,Group,7,FALSE)=\"\",0,ROUND(AJ292-0.04999,1)-AJ292+AM292)","v":0},{"$f":"IF(VLOOKUP(AF292,Group,7,FALSE)=\"\",\"\",VLOOKUP(AF292,Group,7,FALSE))","v":""},null,"X"]
[null,"Decos",null,null,"11.8\" x 11.8\"",null,"Mosaic",null,null,"MAMI184",null,"Hexagon Royal Vein",null,null,null,null,null,null,{"$f":"IF(Suggested=\"Yes\",AA293,AG293)","v":49.55},"EA",{"$f":"+Instructions!$B$3","v":"A"},null,{"$f":"+Instructions!$C$22","v":0},{"$f":"ROUND($AA293*(1-W293)+0.004999,2)","v":49.55},null,"",49.55,0,49.55,{"$f":"(AG293-AC293)/AG293","v":0},null,3,{"$f":"SUM(AJ293:AL293)+AE293","v":49.55},null,null,{"$f":"ROUND(AC293/(1-VLOOKUP(AF293,Group,2,FALSE)),2)","v":49.55},{"$f":"IF(VLOOKUP(AF293,Group,5,FALSE)=\"YES\",VLOOKUP(ROUND(ROUND(AJ293,1)-AJ293,2),Round,2,FALSE)+VLOOKUP(AF293,Group,6,FALSE),0)","v":0},{"$f":"IF(VLOOKUP(AF293,Group,7,FALSE)=\"\",0,ROUND(AJ293-0.04999,1)-AJ293+AM293)","v":0},{"$f":"IF(VLOOKUP(AF293,Group,7,FALSE)=\"\",\"\",VLOOKUP(AF293,Group,7,FALSE))","v":""},null,"X"]
[null,"Decos",null,null,"12\" x 12\"",null,"Mosaic",null,null,"MAMI185",null,"Baguette Royal Vein",null,null,null,null,null,null,{"$f":"IF(Suggested=\"Yes\",AA294,AG294)","v":49.55},"EA",{"$f":"+Instructions!$B$3","v":"A"},null,{"$f":"+Instructions!$C$22","v":0},{"$f":"ROUND($AA294*(1-W294)+0.004999,2)","v":49.55},null,"",49.55,0,49.55,{"$f":"(AG294-AC294)/AG294","v":0},null,3,{"$f":"SUM(AJ294:AL294)+AE294","v":49.55},null,null,{"$f":"ROUND(AC294/(1-VLOOKUP(AF294,Group,2,FALSE)),2)","v":49.55},{"$f":"IF(VLOOKUP(AF294,Group,5,FALSE)=\"YES\",VLOOKUP(ROUND(ROUND(AJ294,1)-AJ294,2),Round,2,FALSE)+VLOOKUP(AF294,Group,6,FALSE),0)","v":0},{"$f":"IF(VLOOKUP(AF294,Group,7,FALSE)=\"\",0,ROUND(AJ294-0.04999,1)-AJ294+AM294)","v":0},{"$f":"IF(VLOOKUP(AF294,Group,7,FALSE)=\"\",\"\",VLOOKUP(AF294,Group,7,FALSE))","v":""},null,"X"]
[null,null,null,null,null,null,null,null,null,null,null,"",null,null,null,null,null,null,null,null,null,null,null,null,null,null,null,null,null,null,null,null,null,null,null,null,null,null,null,null,"X"]
[null,null,"continued on next page",null,null,null,null,null,null,null,null,"",null,null,null,null,null,null,null,null,null,null,null,null,null,null,null,null,null,null,null,null,null,null,null,null,null,null,null,null,"X"]
[null,null,"DÉCOR & STYLE - continued",null,null,null,null,null,null,null,null,null,null,null,null,null,null,"Item # Lookup:","BO"]
[null,null,null,null,null,null,null,null,null,null,null,null,null,null,null,null,null,null,null,null,null,null,null,null,null,null,null,null,null,null,null,null,null,null,null,null,null,null,null,null,"X"]
[null,"Decos",null,null,"11.4\" x 11.3\"",null,"Mosaic",null,null,"MAMI186",null,"Grey White Multicolor Marble Diamond Honed",null,null,null,null,null,null,{"$f":"IF(Suggested=\"Yes\",AA299,AG299)","v":42.75},"EA",{"$f":"+Instructions!$B$3","v":"A"},null,{"$f":"+Instructions!$C$22","v":0},{"$f":"ROUND($AA299*(1-W299)+0.004999,2)","v":42.75},null,"",42.75,0,42.75,{"$f":"(AG299-AC299)/AG299","v":0},null,3,{"$f":"SUM(AJ299:AL299)+AE299","v":42.75},null,null,{"$f":"ROUND(AC299/(1-VLOOKUP(AF299,Group,2,FALSE)),2)","v":42.75},{"$f":"IF(VLOOKUP(AF299,Group,5,FALSE)=\"YES\",VLOOKUP(ROUND(ROUND(AJ299,1)-AJ299,2),Round,2,FALSE)+VLOOKUP(AF299,Group,6,FALSE),0)","v":0},{"$f":"IF(VLOOKUP(AF299,Group,7,FALSE)=\"\",0,ROUND(AJ299-0.04999,1)-AJ299+AM299)","v":0},{"$f":"IF(VLOOKUP(AF299,Group,7,FALSE)=\"\",\"\",VLOOKUP(AF299,Group,7,FALSE))","v":""},null,"X"]
[null,"Decos",null,null,"12\" x 12\"",null,"Mosaic",null,null,"MAMI187",null,"Mini Opus Beige Grey Marble Mix & Blue Glass",null,null,null,null,null,null,{"$f":"IF(Suggested=\"Yes\",AA300,AG300)","v":43.75},"EA",{"$f":"+Instructions!$B$3","v":"A"},null,{"$f":"+Instructions!$C$22","v":0},{"$f":"ROUND($AA300*(1-W300)+0.004999,2)","v":43.75},null,"",43.75,{"$f":"+W300","v":0},{"$f":"+X300","v":43.75},{"$f":"(AG300-AC300)/AG300","v":0},null,3,{"$f":"SUM(AJ300:AL300)+AE300","v":43.75},null,null,{"$f":"ROUND(AC300/(1-VLOOKUP(AF300,Group,2,FALSE)),2)","v":43.75},{"$f":"IF(VLOOKUP(AF300,Group,5,FALSE)=\"YES\",VLOOKUP(ROUND(ROUND(AJ300,1)-AJ300,2),Round,2,FALSE)+VLOOKUP(AF300,Group,6,FALSE),0)","v":0},{"$f":"IF(VLOOKUP(AF300,Group,7,FALSE)=\"\",0,ROUND(AJ300-0.04999,1)-AJ300+AM300)","v":0},{"$f":"IF(VLOOKUP(AF300,Group,7,FALSE)=\"\",\"\",VLOOKUP(AF300,Group,7,FALSE))","v":""},null,"X"]
[null,"Decos",null,null,"12\" x 12\"",null,"Mosaic",null,null,"MAMI188",null,"Mini Opus Beige Grey Marble Mix & Green Glass",null,null,null,null,null,null,43.75,"EA",{"$f":"+Instructions!$B$3","v":"A"},null,{"$f":"+Instructions!$C$22","v":0},43.75,null,"",43.75,0,43.75,0,null,3,43.75,null,null,43.75,0,0,"",null,"X"]
[null,"Decos",null,null,"10.3\" x 12.5\"",null,"Mosaic",null,null,"MAMI191",null,"2\" x 6\" Elongated Round White Grey Beige Marble Mix",null,null,null,null,null,null,75.5,"EA",{"$f":"+Instructions!$B$3","v":"A"},null,{"$f":"+Instructions!$C$22","v":0},75.5,null,"",75.5,0,75.5,0,null,3,75.5,null,null,75.5,0,0,"",null,"X"]
[null,"Decos",null,null,"10\" x 12\"",null,"Mosaic",null,null,"MAMI192",null,"2\" x 6\" Picket White Grey Beige Marble Mix",null,null,null,null,null,null,71.8,"EA",{"$f":"+Instructions!$B$3","v":"A"},null,{"$f":"+Instructions!$C$22","v":0},71.8,null,"",71.8,0,71.8,0,null,3,71.8,null,null,71.8,0,0,"",null,"X"]
[null,"Decos",null,null,"11.2\" x 11.2\"",null,"Mosaic",null,null,"MAMI193",null,"Star & Square White & Grey Mix Marble",null,null,null,null,null,null,{"$f":"IF(Suggested=\"Yes\",AA304,AG304)","v":72.2},"EA",{"$f":"+Instructions!$B$3","v":"A"},null,{"$f":"+Instructions!$C$22","v":0},{"$f":"ROUND($AA304*(1-W304)+0.004999,2)","v":72.2},null,"",72.2,{"$f":"+W304","v":0},{"$f":"+X304","v":72.2},{"$f":"(AG304-AC304)/AG304","v":0},null,3,{"$f":"SUM(AJ304:AL304)+AE304","v":72.2},null,null,{"$f":"ROUND(AC304/(1-VLOOKUP(AF304,Group,2,FALSE)),2)","v":72.2},{"$f":"IF(VLOOKUP(AF304,Group,5,FALSE)=\"YES\",VLOOKUP(ROUND(ROUND(AJ304,1)-AJ304,2),Round,2,FALSE)+VLOOKUP(AF304,Group,6,FALSE),0)","v":0},{"$f":"IF(VLOOKUP(AF304,Group,7,FALSE)=\"\",0,ROUND(AJ304-0.04999,1)-AJ304+AM304)","v":0},{"$f":"IF(VLOOKUP(AF304,Group,7,FALSE)=\"\",\"\",VLOOKUP(AF304,Group,7,FALSE))","v":""},null,"X"]
[null,"Decos",null,null,"11.2\" x 11.2\"",null,"Mosaic",null,null,"MAMI194",null,"Star & Square White & Beige Mix Marble",null,null,null,null,null,null,72.2,"EA",{"$f":"+Instructions!$B$3","v":"A"},null,{"$f":"+Instructions!$C$22","v":0},72.2,null,"",72.2,0,72.2,0,null,3,72.2,null,null,72.2,0,0,"",null,"X"]
[null,"Decos",null,null,"12\" x 10.4\"",null,"Mosaic",null,null,"MAMI197",null,"Hexagon Beige Brown Mix Honed Marble 4\" x 5\"",null,null,null,null,null,null,{"$f":"IF(Suggested=\"Yes\",AA306,AG306)","v":48.5},"EA",{"$f":"+Instructions!$B$3","v":"A"},null,{"$f":"+Instructions!$C$22","v":0},{"$f":"ROUND($AA306*(1-W306)+0.004999,2)","v":48.5},null,"new",48.5,{"$f":"+W306","v":0},{"$f":"+X306","v":48.5},{"$f":"(AG306-AC306)/AG306","v":0},null,3,{"$f":"SUM(AJ306:AL306)+AE306","v":48.5},null,null,{"$f":"ROUND(AC306/(1-VLOOKUP(AF306,Group,2,FALSE)),2)","v":48.5},{"$f":"IF(VLOOKUP(AF306,Group,5,FALSE)=\"YES\",VLOOKUP(ROUND(ROUND(AJ306,1)-AJ306,2),Round,2,FALSE)+VLOOKUP(AF306,Group,6,FALSE),0)","v":0},{"$f":"IF(VLOOKUP(AF306,Group,7,FALSE)=\"\",0,ROUND(AJ306-0.04999,1)-AJ306+AM306)","v":0},{"$f":"IF(VLOOKUP(AF306,Group,7,FALSE)=\"\",\"\",VLOOKUP(AF306,Group,7,FALSE))","v":""},null,"X"]
[null,"Decos",null,null,"11.8\" x 11.8\"",null,"Mosaic",null,null,"MAMI198",null,"Blue Mother of Pearl Glass Mix 1\" x 1\"",null,null,null,null,null,"a",85.15,"EA",{"$f":"+Instructions!$B$3","v":"A"},null,{"$f":"+Instructions!$C$22","v":0},85.15,null,"new",85.15,0,85.15,0,null,3,85.15,null,null,85.15,0,0,"",null,"X"]
[null,"Decos",null,null,"12.7\" x 12.3\"",null,"Mosaic",null,null,"MAMI199",null,"Blue Mother of Pearl Glass Mix 1/2\" x 1\" Brick",null,null,null,null,null,"a",86.4,"EA",{"$f":"+Instructions!$B$3","v":"A"},null,{"$f":"+Instructions!$C$22","v":0},86.4,null,"new",86.4,0,86.4,0,null,3,86.4,null,null,86.4,0,0,"",null,"X"]
[null,"Decos",null,null,"11.9\" x 11.9\"",null,"Mosaic",null,null,"MAMI203",null,"Black Marble & Black Ceramic Picket & Square Mix",null,null,null,null,null,null,81.3,"EA",{"$f":"+Instructions!$B$3","v":"A"},null,{"$f":"+Instructions!$C$22","v":0},81.3,null,"new",81.3,0,81.3,0,null,3,81.3,null,null,81.3,0,0,"",null,"X"]
[null,"Decos",null,null,"11.9\" x 11.9\"",null,"Mosaic",null,null,"MAMI204",null,"White Mix Marble & White Ceramic Picket & Square Mix",null,null,null,null,null,null,{"$f":"IF(Suggested=\"Yes\",AA310,AG310)","v":74.05},"EA",{"$f":"+Instructions!$B$3","v":"A"},null,{"$f":"+Instructions!$C$22","v":0},{"$f":"ROUND($AA310*(1-W310)+0.004999,2)","v":74.05},null,"new",74.05,{"$f":"+W310","v":0},{"$f":"+X310","v":74.05},{"$f":"(AG310-AC310)/AG310","v":0},null,3,{"$f":"SUM(AJ310:AL310)+AE310","v":74.05},null,null,{"$f":"ROUND(AC310/(1-VLOOKUP(AF310,Group,2,FALSE)),2)","v":74.05},{"$f":"IF(VLOOKUP(AF310,Group,5,FALSE)=\"YES\",VLOOKUP(ROUND(ROUND(AJ310,1)-AJ310,2),Round,2,FALSE)+VLOOKUP(AF310,Group,6,FALSE),0)","v":0},{"$f":"IF(VLOOKUP(AF310,Group,7,FALSE)=\"\",0,ROUND(AJ310-0.04999,1)-AJ310+AM310)","v":0},{"$f":"IF(VLOOKUP(AF310,Group,7,FALSE)=\"\",\"\",VLOOKUP(AF310,Group,7,FALSE))","v":""},null,"X"]
[null,"Decos",null,null,"11.9\" x 11.9\"",null,"Mosaic",null,null,"MAMI205",null,"Beige Marble & Off White Ceramic Picket & Square Mix",null,null,null,null,null,null,74.05,"EA",{"$f":"+Instructions!$B$3","v":"A"},null,{"$f":"+Instructions!$C$22","v":0},74.05,null,"new",74.05,0,74.05,0,null,3,74.05,null,null,74.05,0,0,"",null,"X"]
[null,"Decos",null,null,"3/4\" x 12\"",null,"Rope",null,null,"MANO62",null,"Black Marble Honed",null,null,null,null,null,null,21.45,"EA",{"$f":"+Instructions!$B$3","v":"A"},null,{"$f":"+Instructions!$C$22","v":0},21.45,null,"",21.45,0,21.45,0,null,3,21.45,null,null,21.45,0,0,"",null,"X"]
[null,"Decos",null,null,"12\" x 12\"",null,"Mosaic",null,null,"MAVE01",null,"Forest Green Marble 2\" x 2\"",null,null,null,null,null,null,{"$f":"IF(Suggested=\"Yes\",AA313,AG313)","v":48.55},"EA",{"$f":"+Instructions!$B$3","v":"A"},null,{"$f":"+Instructions!$C$22","v":0},{"$f":"ROUND($AA313*(1-W313)+0.004999,2)","v":48.55},null,"",48.55,{"$f":"+W313","v":0},48.55,{"$f":"(AG313-AC313)/AG313","v":0},null,3,{"$f":"SUM(AJ313:AL313)+AE313","v":48.55},null,null,{"$f":"ROUND(AC313/(1-VLOOKUP(AF313,Group,2,FALSE)),2)","v":48.55},{"$f":"IF(VLOOKUP(AF313,Group,5,FALSE)=\"YES\",VLOOKUP(ROUND(ROUND(AJ313,1)-AJ313,2),Round,2,FALSE)+VLOOKUP(AF313,Group,6,FALSE),0)","v":0},{"$f":"IF(VLOOKUP(AF313,Group,7,FALSE)=\"\",0,ROUND(AJ313-0.04999,1)-AJ313+AM313)","v":0},{"$f":"IF(VLOOKUP(AF313,Group,7,FALSE)=\"\",\"\",VLOOKUP(AF313,Group,7,FALSE))","v":""},null,"X"]
[null,"Decos",null,null,"12\" x 12\"",null,"Mosaic",null,null,"MAVE04",null,"Green Bali Stone 4\" x 4\"",null,null,null,null,null,null,49.15,"EA",{"$f":"+Instructions!$B$3","v":"A"},null,{"$f":"+Instructions!$C$22","v":0},49.15,null,"new",49.15,0,49.15,0,null,3,49.15,null,null,49.15,0,0,"",null,"X"]
[null,"Decos",null,null,"12\" x 12\"",null,"Mosaic",null,null,"MAVI01",null,"Purple Mix Marble/Glass 7/8\" x 7/8\"",null,null,null,null,null,"a",85.8,"EA",{"$f":"+Instructions!$B$3","v":"A"},null,{"$f":"+Instructions!$C$22","v":0},85.8,null,"",85.8,0,85.8,0,null,3,85.8,null,null,85.8,0,0,"",null,"X"]
[null,"Decos",null,null,"12.2\" x 12.2\"",null,"Mosaic",null,null,"MEAR19",null,"Silver Brushed Stainless Steel Pebbles",null,null,null,null,null,"a",103.75,"EA",{"$f":"+Instructions!$B$3","v":"A"},null,{"$f":"+Instructions!$C$22","v":0},103.75,null,"",103.75,0,103.75,0,null,3,103.75,null,null,103.75,0,0,"",null,"X"]
[null,"Decos",null,null,"12.2\" x 12.2\"",null,"Mosaic",null,null,"MEAR20",null,"Brushed Stainless Steel Silver Round",null,null,null,null,null,"a",103.75,"EA",{"$f":"+Instructions!$B$3","v":"A"},null,{"$f":"+Instructions!$C$22","v":0},103.75,null,"",103.75,0,103.75,0,null,3,103.75,null,null,103.75,0,0,"",null,"X"]
[null,"Decos",null,null,"11.8\" x 11.8\"",null,"Mosaic",null,null,"MEAR22",null,"Medium Hexagon Silver Aluminum",null,null,null,null,null,"a",{"$f":"IF(Suggested=\"Yes\",AA318,AG318)","v":97.25},"EA",{"$f":"+Instructions!$B$3","v":"A"},null,{"$f":"+Instructions!$C$22","v":0},{"$f":"ROUND($AA318*(1-W318)+0.004999,2)","v":97.25},null,"",97.25,{"$f":"+W318","v":0},{"$f":"+X318","v":97.25},{"$f":"(AG318-AC318)/AG318","v":0},null,3,{"$f":"SUM(AJ318:AL318)+AE318","v":97.25},null,null,{"$f":"ROUND(AC318/(1-VLOOKUP(AF318,Group,2,FALSE)),2)","v":97.25},{"$f":"IF(VLOOKUP(AF318,Group,5,FALSE)=\"YES\",VLOOKUP(ROUND(ROUND(AJ318,1)-AJ318,2),Round,2,FALSE)+VLOOKUP(AF318,Group,6,FALSE),0)","v":0},{"$f":"IF(VLOOKUP(AF318,Group,7,FALSE)=\"\",0,ROUND(AJ318-0.04999,1)-AJ318+AM318)","v":0},{"$f":"IF(VLOOKUP(AF318,Group,7,FALSE)=\"\",\"\",VLOOKUP(AF318,Group,7,FALSE))","v":""},null,"X"]
[null,"Decos",null,null,"11.9\" x 11.9\"",null,"Mosaic",null,null,"MEAR23",null,"Mini Hexagon Silver Aluminum",null,null,null,null,null,"a",97.2,"EA",{"$f":"+Instructions!$B$3","v":"A"},null,{"$f":"+Instructions!$C$22","v":0},97.2,null,"",97.2,0,97.2,0,null,3,97.2,null,null,97.2,0,0,"",null,"X"]
[null,"Decos",null,null,"11.4\" x 12.2\"",null,"Mosaic",null,null,"MEGR01",null,"Hexagon Aluminum Mix Grey",null,null,null,null,null,null,74.2,"EA",{"$f":"+Instructions!$B$3","v":"A"},null,{"$f":"+Instructions!$C$22","v":0},74.2,null,"",74.2,0,74.2,0,null,3,74.2,null,null,74.2,0,0,"",null,"X"]
[null,"Decos",null,null,"12\" x 12.2\"",null,"Mosaic",null,null,"MEMI27",null,"Beige Marble/Beige Glass/Aluminum Mix",null,null,null,null,null,"a",85.45,"EA",{"$f":"+Instructions!$B$3","v":"A"},null,{"$f":"+Instructions!$C$22","v":0},85.45,null,"",85.45,0,85.45,0,null,3,85.45,null,null,85.45,0,0,"",null,"X"]
[null,"Decos",null,null,"11.8\" x 11.8\"",null,"Mosaic",null,null,"MEMI51",null,"Catalpa Wood/Gold Aluminum",null,null,null,null,null,"h",{"$f":"IF(Suggested=\"Yes\",AA322,AG322)","v":75.05},"EA",{"$f":"+Instructions!$B$3","v":"A"},null,{"$f":"+Instructions!$C$22","v":0},{"$f":"ROUND($AA322*(1-W322)+0.004999,2)","v":75.05},null,"",75.05,{"$f":"+W322","v":0},75.05,{"$f":"(AG322-AC322)/AG322","v":0},null,3,{"$f":"SUM(AJ322:AL322)+AE322","v":75.05},null,null,{"$f":"ROUND(AC322/(1-VLOOKUP(AF322,Group,2,FALSE)),2)","v":75.05},{"$f":"IF(VLOOKUP(AF322,Group,5,FALSE)=\"YES\",VLOOKUP(ROUND(ROUND(AJ322,1)-AJ322,2),Round,2,FALSE)+VLOOKUP(AF322,Group,6,FALSE),0)","v":0},{"$f":"IF(VLOOKUP(AF322,Group,7,FALSE)=\"\",0,ROUND(AJ322-0.04999,1)-AJ322+AM322)","v":0},{"$f":"IF(VLOOKUP(AF322,Group,7,FALSE)=\"\",\"\",VLOOKUP(AF322,Group,7,FALSE))","v":""},null,"X"]
[null,"Decos",null,null,"11.8\" x 11.8\"",null,"Mosaic",null,null,"MEMI52",null,"Catalpa Wood/Silver Aluminum",null,null,null," ",null,"h",{"$f":"IF(Suggested=\"Yes\",AA323,AG323)","v":75.05},"EA",{"$f":"+Instructions!$B$3","v":"A"},null,{"$f":"+Instructions!$C$22","v":0},75.05,null,"",75.05,0,75.05,{"$f":"(AG323-AC323)/AG323","v":0},null,3,{"$f":"SUM(AJ323:AL323)+AE323","v":75.05},null,null,{"$f":"ROUND(AC323/(1-VLOOKUP(AF323,Group,2,FALSE)),2)","v":75.05},{"$f":"IF(VLOOKUP(AF323,Group,5,FALSE)=\"YES\",VLOOKUP(ROUND(ROUND(AJ323,1)-AJ323,2),Round,2,FALSE)+VLOOKUP(AF323,Group,6,FALSE),0)","v":0},{"$f":"IF(VLOOKUP(AF323,Group,7,FALSE)=\"\",0,ROUND(AJ323-0.04999,1)-AJ323+AM323)","v":0},{"$f":"IF(VLOOKUP(AF323,Group,7,FALSE)=\"\",\"\",VLOOKUP(AF323,Group,7,FALSE))","v":""},null,"X"]
[null,"Decos",null,null,"11.2\" x 11.7\"",null,"Mosaic",null,null,"MEMI56",null,"Baguette Glass/Metal Mix Beige Grey",null,null,null,null,null,null,{"$f":"IF(Suggested=\"Yes\",AA324,AG324)","v":76.05},"EA",{"$f":"+Instructions!$B$3","v":"A"},null,{"$f":"+Instructions!$C$22","v":0},{"$f":"ROUND($AA324*(1-W324)+0.004999,2)","v":76.05},null,"",76.05,{"$f":"+W324","v":0},76.05,{"$f":"(AG324-AC324)/AG324","v":0},null,3,{"$f":"SUM(AJ324:AL324)+AE324","v":76.05},null,null,{"$f":"ROUND(AC324/(1-VLOOKUP(AF324,Group,2,FALSE)),2)","v":76.05},{"$f":"IF(VLOOKUP(AF324,Group,5,FALSE)=\"YES\",VLOOKUP(ROUND(ROUND(AJ324,1)-AJ324,2),Round,2,FALSE)+VLOOKUP(AF324,Group,6,FALSE),0)","v":0},{"$f":"IF(VLOOKUP(AF324,Group,7,FALSE)=\"\",0,ROUND(AJ324-0.04999,1)-AJ324+AM324)","v":0},{"$f":"IF(VLOOKUP(AF324,Group,7,FALSE)=\"\",\"\",VLOOKUP(AF324,Group,7,FALSE))","v":""},null,"X"]
[null,"Decos",null,null,"11.4\" x 12.2\"",null,"Mosaic",null,null,"MEMI58",null,"Hexagon Mix Metallic Green Rust",null,null,null,null,null,null,72.849999999999994,"EA",{"$f":"+Instructions!$B$3","v":"A"},null,{"$f":"+Instructions!$C$22","v":0},72.849999999999994,null,"",72.849999999999994,0,72.849999999999994,0,null,3,72.849999999999994,null,null,72.849999999999994,0,0,"",null,"X"]
[null,"Decos",null,null,"11.8\" x 11.8\"",null,"Mosaic",null,null,"MEMI59",null,"2\" x 2\" Blue Aluminum Mix",null,null,null,null,null,null,80.25,"EA",{"$f":"+Instructions!$B$3","v":"A"},null,{"$f":"+Instructions!$C$22","v":0},80.25,null,"",80.25,{"$f":"+W326","v":0},{"$f":"+X326","v":80.25},0,null,3,80.25,null,null,80.25,0,0,"",null,"X"]
[null,"Decos",null,null,"11.1\" x 11.6\"",null,"Mosaic",null,null,"MEMI60",null,"Aluminum & Marble Leaves Silver Grey Brown",null,null,null,null,null,null,69.05,"EA",{"$f":"+Instructions!$B$3","v":"A"},null,{"$f":"+Instructions!$C$22","v":0},69.05,null,"",69.05,{"$f":"+W327","v":0},{"$f":"+X327","v":69.05},0,null,3,69.05,null,null,69.05,0,0,"",null,"X"]
[null,"Decos",null,null,"11.8\" x 12\"",null,"Mosaic",null,null,"MEMI61",null,"Aluminum Hexagon Silver Brown",null,null,null,null,null,null,74,"EA",{"$f":"+Instructions!$B$3","v":"A"},null,{"$f":"+Instructions!$C$22","v":0},74,null,"",74,0,74,0,null,3,74,null,null,74,0,0,"",null,"X"]
[null,"Decos",null,null,"11.8\" x 13.7\"",null,"Mosaic",null,null,"MEMI63",null,"Aluminum & Marble Semi Circle Silver Brown",null,null,null,null,null,null,90,"EA",{"$f":"+Instructions!$B$3","v":"A"},null,{"$f":"+Instructions!$C$22","v":0},90,null,"",90,{"$f":"+W329","v":0},{"$f":"+X329","v":90},0,null,3,90,null,null,90,0,0,"",null,"X"]
[null,"Decos",null,null,"11.4\" x 12.2\"",null,"Mosaic",null,null,"MEMI64",null,"Hexagon Aluminum Mix Green Grey Beige",null,null,null,null,null,null,{"$f":"IF(Suggested=\"Yes\",AA330,AG330)","v":71.05},"EA",{"$f":"+Instructions!$B$3","v":"A"},null,{"$f":"+Instructions!$C$22","v":0},{"$f":"ROUND($AA330*(1-W330)+0.004999,2)","v":71.05},null,"",71.05,{"$f":"+W330","v":0},{"$f":"+X330","v":71.05},{"$f":"(AG330-AC330)/AG330","v":0},null,3,{"$f":"SUM(AJ330:AL330)+AE330","v":71.05},null,null,{"$f":"ROUND(AC330/(1-VLOOKUP(AF330,Group,2,FALSE)),2)","v":71.05},{"$f":"IF(VLOOKUP(AF330,Group,5,FALSE)=\"YES\",VLOOKUP(ROUND(ROUND(AJ330,1)-AJ330,2),Round,2,FALSE)+VLOOKUP(AF330,Group,6,FALSE),0)","v":0},{"$f":"IF(VLOOKUP(AF330,Group,7,FALSE)=\"\",0,ROUND(AJ330-0.04999,1)-AJ330+AM330)","v":0},{"$f":"IF(VLOOKUP(AF330,Group,7,FALSE)=\"\",\"\",VLOOKUP(AF330,Group,7,FALSE))","v":""},null,"X"]
[null,"Decos",null,null,"14\" x 11.8\"",null,"Mosaic",null,null,"MEMI66",null,"Multicolor Round Aluminum",null,null,null,null,null,null,91.95,"EA",{"$f":"+Instructions!$B$3","v":"A"},null,{"$f":"+Instructions!$C$22","v":0},91.95,null,"new",91.95,0,91.95,0,null,3,91.95,null,null,91.95,0,0,"",null,"X"]
[null,"Decos",null,null,"14\" x 11.8\"",null,"Mosaic",null,null,"MEMI67",null,"Wood Look Round Aluminum",null,null,null,null,null,null,91.95,"EA",{"$f":"+Instructions!$B$3","v":"A"},null,{"$f":"+Instructions!$C$22","v":0},91.95,null,"new",91.95,0,91.95,0,null,3,91.95,null,null,91.95,0,0,"",null,"X"]
[null,"Decos",null,null,"11.5\" x 11.5\"",null,"Mosaic",null,null,"MENO09",null,"Black 3D Metal Mix Finish 2\" x 2\"",null,null,null,null,null,null,58.85,"EA",{"$f":"+Instructions!$B$3","v":"A"},null,{"$f":"+Instructions!$C$22","v":0},58.85,null,"",58.85,{"$f":"+W333","v":0},{"$f":"+X333","v":58.85},0,null,3,58.85,null,null,58.85,0,0,"",null,"X"]
[null,"Decos",null,null,"11.8\" x 11.8\"",null,"Mosaic",null,null,"MEOR10",null,"Medium Hexagon Gold Aluminum",null,null,null,null,null,"a",97.25,"EA",{"$f":"+Instructions!$B$3","v":"A"},null,{"$f":"+Instructions!$C$22","v":0},97.25,null,"",97.25,0,97.25,0,null,3,97.25,null,null,97.25,0,0,"",null,"X"]
[null,"Decos",null,null,"11.9\" x 11.9\"",null,"Mosaic",null,null,"MEOR11",null,"Mini Hexagon Gold Aluminum",null,null,null,null,null,"a",97.2,"EA",{"$f":"+Instructions!$B$3","v":"A"},null,{"$f":"+Instructions!$C$22","v":0},97.2,null,"",97.2,{"$f":"+W335","v":0},{"$f":"+X335","v":97.2},0,null,3,97.2,null,null,97.2,0,0,"",null,"X"]
[null,"Decos",null,null,"12\" x 12\"",null,"Mosaic",null,null,"PIBL10",null,"White Reconstituted Round",null,null,null,null,null,null,{"$f":"IF(Suggested=\"Yes\",AA336,AG336)","v":79.25},"EA",{"$f":"+Instructions!$B$3","v":"A"},null,{"$f":"+Instructions!$C$22","v":0},79.25,null,"",79.25,{"$f":"+W336","v":0},79.25,{"$f":"(AG336-AC336)/AG336","v":0},null,3,{"$f":"SUM(AJ336:AL336)+AE336","v":79.25},null,null,{"$f":"ROUND(AC336/(1-VLOOKUP(AF336,Group,2,FALSE)),2)","v":79.25},{"$f":"IF(VLOOKUP(AF336,Group,5,FALSE)=\"YES\",VLOOKUP(ROUND(ROUND(AJ336,1)-AJ336,2),Round,2,FALSE)+VLOOKUP(AF336,Group,6,FALSE),0)","v":0},{"$f":"IF(VLOOKUP(AF336,Group,7,FALSE)=\"\",0,ROUND(AJ336-0.04999,1)-AJ336+AM336)","v":0},{"$f":"IF(VLOOKUP(AF336,Group,7,FALSE)=\"\",\"\",VLOOKUP(AF336,Group,7,FALSE))","v":""},null,"X"]
[null,"Decos",null,null,"4\" x 12\"",null,"Border",null,null,"PIBL11",null,"White Reconstituted Round",null,null,null,null,null,null,{"$f":"IF(Suggested=\"Yes\",AA337,AG337)","v":33.85},"EA",{"$f":"+Instructions!$B$3","v":"A"},null,{"$f":"+Instructions!$C$22","v":0},33.85,null,"",33.85,0,33.85,{"$f":"(AG337-AC337)/AG337","v":0},null,3,{"$f":"SUM(AJ337:AL337)+AE337","v":33.85},null,null,{"$f":"ROUND(AC337/(1-VLOOKUP(AF337,Group,2,FALSE)),2)","v":33.85},{"$f":"IF(VLOOKUP(AF337,Group,5,FALSE)=\"YES\",VLOOKUP(ROUND(ROUND(AJ337,1)-AJ337,2),Round,2,FALSE)+VLOOKUP(AF337,Group,6,FALSE),0)","v":0},{"$f":"IF(VLOOKUP(AF337,Group,7,FALSE)=\"\",0,ROUND(AJ337-0.04999,1)-AJ337+AM337)","v":0},{"$f":"IF(VLOOKUP(AF337,Group,7,FALSE)=\"\",\"\",VLOOKUP(AF337,Group,7,FALSE))","v":""},null,"X"]
[null,"Decos",null,null,"12\" x 12\"",null,"Mosaic",null,null,"PIBL12",null,"White Reconstituted Round Pebble",null,null,null,null,null,null,{"$f":"IF(Suggested=\"Yes\",AA338,AG338)","v":75.75},"EA",{"$f":"+Instructions!$B$3","v":"A"},null,{"$f":"+Instructions!$C$22","v":0},75.75,null,"",75.75,0,75.75,{"$f":"(AG338-AC338)/AG338","v":0},null,3,{"$f":"SUM(AJ338:AL338)+AE338","v":75.75},null,null,{"$f":"ROUND(AC338/(1-VLOOKUP(AF338,Group,2,FALSE)),2)","v":75.75},{"$f":"IF(VLOOKUP(AF338,Group,5,FALSE)=\"YES\",VLOOKUP(ROUND(ROUND(AJ338,1)-AJ338,2),Round,2,FALSE)+VLOOKUP(AF338,Group,6,FALSE),0)","v":0},{"$f":"IF(VLOOKUP(AF338,Group,7,FALSE)=\"\",0,ROUND(AJ338-0.04999,1)-AJ338+AM338)","v":0},{"$f":"IF(VLOOKUP(AF338,Group,7,FALSE)=\"\",\"\",VLOOKUP(AF338,Group,7,FALSE))","v":""},null,"X"]
[null,"Decos",null,null,"4\" x 12\"",null,"Border",null,null,"PIBL13",null,"White Reconstituted Round Pebble",null,null,null,null,null,null,{"$f":"IF(Suggested=\"Yes\",AA339,AG339)","v":33.799999999999997},"EA",{"$f":"+Instructions!$B$3","v":"A"},null,{"$f":"+Instructions!$C$22","v":0},33.799999999999997,null,"",33.799999999999997,{"$f":"+W339","v":0},33.799999999999997,{"$f":"(AG339-AC339)/AG339","v":0},null,3,{"$f":"SUM(AJ339:AL339)+AE339","v":33.799999999999997},null,null,{"$f":"ROUND(AC339/(1-VLOOKUP(AF339,Group,2,FALSE)),2)","v":33.799999999999997},{"$f":"IF(VLOOKUP(AF339,Group,5,FALSE)=\"YES\",VLOOKUP(ROUND(ROUND(AJ339,1)-AJ339,2),Round,2,FALSE)+VLOOKUP(AF339,Group,6,FALSE),0)","v":0},{"$f":"IF(VLOOKUP(AF339,Group,7,FALSE)=\"\",0,ROUND(AJ339-0.04999,1)-AJ339+AM339)","v":0},{"$f":"IF(VLOOKUP(AF339,Group,7,FALSE)=\"\",\"\",VLOOKUP(AF339,Group,7,FALSE))","v":""},null,"X"]
[null,"Decos",null,null,"12\" x 12\"",null,"Mosaic",null,null,"PIBL14",null,"White Reconstituted Sliced Pebble",null,null,null,null,null,null,79.150000000000006,"EA",{"$f":"+Instructions!$B$3","v":"A"},null,{"$f":"+Instructions!$C$22","v":0},79.150000000000006,null,"",79.150000000000006,0,79.150000000000006,0,null,3,79.150000000000006,null,null,79.150000000000006,0,0,"",null,"X"]
[null,"Decos",null,null,"4\" x 12\"",null,"Border",null,null,"PIBL15",null,"White Reconstituted Sliced Pebble",null,null,null,null,null,null,32.799999999999997,"EA",{"$f":"+Instructions!$B$3","v":"A"},null,{"$f":"+Instructions!$C$22","v":0},32.799999999999997,null,"",32.799999999999997,0,32.799999999999997,0,null,3,32.799999999999997,null,null,32.799999999999997,0,0,"",null,"X"]
[null,"Decos",null,null,"12\" x 12\"",null,"Mosaic",null,null,"PIBL18",null,"White Reconstituted XL Sliced Pebble",null,null,null,null,null,null,79.2,"EA",{"$f":"+Instructions!$B$3","v":"A"},null,{"$f":"+Instructions!$C$22","v":0},{"$f":"ROUND($AA342*(1-W342)+0.004999,2)","v":79.2},null,"",79.2,{"$f":"+W342","v":0},79.2,0,null,3,79.2,null,null,79.2,0,0,"",null,"X"]
[null,"Decos",null,null,"4\" x 12\"",null,"Border",null,null,"PIBL19",null,"White Reconstituted XL Sliced Pebble",null,null,null,null,null,null,32.799999999999997,"EA",{"$f":"+Instructions!$B$3","v":"A"},null,{"$f":"+Instructions!$C$22","v":0},{"$f":"ROUND($AA343*(1-W343)+0.004999,2)","v":32.799999999999997},null,"",32.799999999999997,0,32.799999999999997,0,null,3,32.799999999999997,null,null,32.799999999999997,0,0,"",null,"X"]
[null,"Decos",null,null,"12\" x 12\"",null,"Mosaic",null,null,"PIGR28",null,"Grey Reconstituted Round Pebble",null,null,null,null,null,null,{"$f":"IF(Suggested=\"Yes\",AA344,AG344)","v":76.05},"EA",{"$f":"+Instructions!$B$3","v":"A"},null,{"$f":"+Instructions!$C$22","v":0},76.05,null,"",76.05,{"$f":"+W344","v":0},{"$f":"+X344","v":76.05},{"$f":"(AG344-AC344)/AG344","v":0},null,3,{"$f":"SUM(AJ344:AL344)+AE344","v":76.05},null,null,{"$f":"ROUND(AC344/(1-VLOOKUP(AF344,Group,2,FALSE)),2)","v":76.05},{"$f":"IF(VLOOKUP(AF344,Group,5,FALSE)=\"YES\",VLOOKUP(ROUND(ROUND(AJ344,1)-AJ344,2),Round,2,FALSE)+VLOOKUP(AF344,Group,6,FALSE),0)","v":0},{"$f":"IF(VLOOKUP(AF344,Group,7,FALSE)=\"\",0,ROUND(AJ344-0.04999,1)-AJ344+AM344)","v":0},{"$f":"IF(VLOOKUP(AF344,Group,7,FALSE)=\"\",\"\",VLOOKUP(AF344,Group,7,FALSE))","v":""},null,"X"]
[null,"Decos",null,null,"4\" x 12\"",null,"Border",null,null,"PIGR29",null,"Grey Reconstituted Round Pebble",null,null,null,null,null,null,32.799999999999997,"EA",{"$f":"+Instructions!$B$3","v":"A"},null,{"$f":"+Instructions!$C$22","v":0},32.799999999999997,null,"",32.799999999999997,0,32.799999999999997,0,null,3,32.799999999999997,null,null,32.799999999999997,0,0,"",null,"X"]
[null,"Decos",null,null,"12\" x 12\"",null,"Mosaic",null,null,"PIGR30",null,"Light Grey Reconstituted Sliced Pebble",null,null,null,null,null,null,76.05,"EA",{"$f":"+Instructions!$B$3","v":"A"},null,{"$f":"+Instructions!$C$22","v":0},76.05,null,"",76.05,0,76.05,0,null,3,76.05,null,null,76.05,0,0,"",null,"X"]
[null,"Decos",null,null,"4\" x 12\"",null,"Border",null,null,"PIGR31",null,"Light Grey Reconstituted Sliced Pebble",null,null,null,null,null,null,32.799999999999997,"EA",{"$f":"+Instructions!$B$3","v":"A"},null,{"$f":"+Instructions!$C$22","v":0},32.799999999999997,null,"",32.799999999999997,0,32.799999999999997,0,null,3,32.799999999999997,null,null,32.799999999999997,0,0,"",null,"X"]
[null,"Decos",null,null,"12\" x 12\"",null,"Mosaic",null,null,"PIGR32",null,"Grey Reconstituted Opus",null,null,null,null,null,null,76.099999999999994,"EA",{"$f":"+Instructions!$B$3","v":"A"},null,{"$f":"+Instructions!$C$22","v":0},76.099999999999994,null,"",76.099999999999994,0,76.099999999999994,0,null,3,76.099999999999994,null,null,76.099999999999994,0,0,"",null,"X"]
[null,"Decos",null,null,"4\" x 12\"",null,"Border",null,null,"PIGR33",null,"Grey Reconstituted Opus",null,null,null,null,null,null,32.85,"EA",{"$f":"+Instructions!$B$3","v":"A"},null,{"$f":"+Instructions!$C$22","v":0},32.85,null,"",32.85,0,32.85,0,null,3,32.85,null,null,32.85,0,0,"",null,"X"]
[null,"Decos",null,null,"12\" x 12\"",null,"Mosaic",null,null,"PIGR34",null,"Grey Mix Reconstituted XL Sliced Pebble",null,null,null,null,null,null,76.099999999999994,"EA",{"$f":"+Instructions!$B$3","v":"A"},null,{"$f":"+Instructions!$C$22","v":0},76.099999999999994,null,"",76.099999999999994,0,76.099999999999994,0,null,3,76.099999999999994,null,null,76.099999999999994,0,0,"",null,"X"]
[null,"Decos",null,null,"4\" x 12\"",null,"Border",null,null,"PIGR35",null,"Grey Mix Reconstituted XL Sliced Pebble",null,null,null,null,null,null,32.799999999999997,"EA",{"$f":"+Instructions!$B$3","v":"A"},null,{"$f":"+Instructions!$C$22","v":0},32.799999999999997,null,"",32.799999999999997,0,32.799999999999997,0,null,3,32.799999999999997,null,null,32.799999999999997,0,0,"",null,"X"]
[null,"Decos",null,null,"12\" x 12\"",null,"Mosaic",null,null,"PIMI07",null,"Mix White/Black Reconstituted Round",null,null,null,null,null,"f",74.2,"EA",{"$f":"+Instructions!$B$3","v":"A"},null,{"$f":"+Instructions!$C$22","v":0},{"$f":"ROUND($AA352*(1-W352)+0.004999,2)","v":74.2},null,"",74.2,0,74.2,0,null,3,74.2,null,null,74.2,0,0,"",null,"X"]
[null,"Decos",null,null,"4\" x 12\"",null,"Border",null,null,"PIMI08",null,"Mix White/Black Reconstituted Round",null,null,null,null,null,"f",31.55,"EA",{"$f":"+Instructions!$B$3","v":"A"},null,{"$f":"+Instructions!$C$22","v":0},31.55,null,"",31.55,0,31.55,0,null,3,31.55,null,null,31.55,0,0,"",null,"X"]
[null,"Decos",null,null,"12\" x 12\"",null,"Mosaic",null," ","PIMI09",null,"Mix White/Black/Grey Reconstituted Round",null,null,null,null,null,"f",74.2,"EA",{"$f":"+Instructions!$B$3","v":"A"},null,{"$f":"+Instructions!$C$22","v":0},74.2,null,"",74.2,0,74.2,0,null,3,74.2,null,null,74.2,0,0,"",null,"X"]
[null,"Decos",null,null,"4\" x 12\"",null,"Border",null,null,"PIMI10",null,"Mix White/Black/Grey Reconstituted Round",null,null,null,null,null,"f",31.55,"EA",{"$f":"+Instructions!$B$3","v":"A"},null,{"$f":"+Instructions!$C$22","v":0},31.55,null,"",31.55,0,31.55,0,null,3,31.55,null,null,31.55,0,0,"",null,"X"]
[null,"Decos",null,null,"12\" x 12\"",null,"Mosaic",null,null,"PIMI18",null,"White/Grey/Silver Reconstituted Round",null,null,null,null,null,"f",74.3,"EA",{"$f":"+Instructions!$B$3","v":"A"},null,{"$f":"+Instructions!$C$22","v":0},74.3,null,"",74.3,0,74.3,0,null,3,74.3,null,null,74.3,0,0,"",null,"X"]
[null,"Decos",null,null,"4\" x 12\"",null,"Border",null,null,"PIMI19",null,"White/Grey/Silver Reconstituted Round",null,null,null,null,null,"f",31.5,"EA",{"$f":"+Instructions!$B$3","v":"A"},null,{"$f":"+Instructions!$C$22","v":0},31.5,null,"",31.5,0,31.5,0,null,3,31.5,null,null,31.5,0,0,"",null,"X"]
[null,"Decos",null,null,"12\" x 12\"",null,"Mosaic",null,null,"PIMI20",null,"Taupe/Gold Reconstituted Round",null,null,null,null,null,"f",74.3,"EA",{"$f":"+Instructions!$B$3","v":"A"},null,{"$f":"+Instructions!$C$22","v":0},74.3,null,"",74.3,0,74.3,0,null,3,74.3,null,null,74.3,0,0,"",null,"X"]
[null,"Decos",null,null,"4\" x 12\"",null,"Border",null,null,"PIMI21",null,"Taupe/Gold Reconstituted Round",null,null,null,null,null,"f",31.5,"EA",{"$f":"+Instructions!$B$3","v":"A"},null,{"$f":"+Instructions!$C$22","v":0},31.5,null,"",31.5,0,31.5,0,null,3,31.5,null,null,31.5,0,0,"",null,"X"]
[null,"Decos",null,null,"12\" x 12\"",null,"Mosaic",null," ","PIMI22",null,"White/Grey/Red Reconstituted Round",null,null,null,null,null,"f",70.75,"EA",{"$f":"+Instructions!$B$3","v":"A"},null,{"$f":"+Instructions!$C$22","v":0},70.75,null,"",70.75,0,70.75,0,null,3,70.75,null,null,70.75,0,0,"",null,"X"]
[null,"Decos",null,null,"4\" x 12\"",null,"Border",null,null,"PIMI23",null,"White/Grey/Red Reconstituted Round",null,null,null,null,null,"f",31.5,"EA",{"$f":"+Instructions!$B$3","v":"A"},null,{"$f":"+Instructions!$C$22","v":0},31.5,null,"",31.5,0,31.5,0,null,3,31.5,null,null,31.5,0,0,"",null,"X"]
[null,"Decos",null,null,"12\" x 12\"",null,"Mosaic",null,null,"PIMI26",null,"Black & White Reconstituted Round Pebble",null,null,null,null,null,null,{"$f":"IF(Suggested=\"Yes\",AA362,AG362)","v":76.05},"EA",{"$f":"+Instructions!$B$3","v":"A"},null,{"$f":"+Instructions!$C$22","v":0},{"$f":"ROUND($AA362*(1-W362)+0.004999,2)","v":76.05},null,"",76.05,{"$f":"+W362","v":0},76.05,{"$f":"(AG362-AC362)/AG362","v":0},null,3,{"$f":"SUM(AJ362:AL362)+AE362","v":76.05},null,null,{"$f":"ROUND(AC362/(1-VLOOKUP(AF362,Group,2,FALSE)),2)","v":76.05},{"$f":"IF(VLOOKUP(AF362,Group,5,FALSE)=\"YES\",VLOOKUP(ROUND(ROUND(AJ362,1)-AJ362,2),Round,2,FALSE)+VLOOKUP(AF362,Group,6,FALSE),0)","v":0},{"$f":"IF(VLOOKUP(AF362,Group,7,FALSE)=\"\",0,ROUND(AJ362-0.04999,1)-AJ362+AM362)","v":0},{"$f":"IF(VLOOKUP(AF362,Group,7,FALSE)=\"\",\"\",VLOOKUP(AF362,Group,7,FALSE))","v":""},null,"X"]
[null,"Decos",null,null,"4\" x 12\"",null,"Mosaic",null,null,"PIMI27",null,"Black & White Reconstituted Round Pebble",null,null,null,null,null,null,{"$f":"IF(Suggested=\"Yes\",AA363,AG363)","v":32.799999999999997},"EA",{"$f":"+Instructions!$B$3","v":"A"},null,{"$f":"+Instructions!$C$22","v":0},{"$f":"ROUND($AA363*(1-W363)+0.004999,2)","v":32.799999999999997},null,"",32.799999999999997,0,32.799999999999997,{"$f":"(AG363-AC363)/AG363","v":0},null,3,{"$f":"SUM(AJ363:AL363)+AE363","v":32.799999999999997},null,null,{"$f":"ROUND(AC363/(1-VLOOKUP(AF363,Group,2,FALSE)),2)","v":32.799999999999997},{"$f":"IF(VLOOKUP(AF363,Group,5,FALSE)=\"YES\",VLOOKUP(ROUND(ROUND(AJ363,1)-AJ363,2),Round,2,FALSE)+VLOOKUP(AF363,Group,6,FALSE),0)","v":0},{"$f":"IF(VLOOKUP(AF363,Group,7,FALSE)=\"\",0,ROUND(AJ363-0.04999,1)-AJ363+AM363)","v":0},{"$f":"IF(VLOOKUP(AF363,Group,7,FALSE)=\"\",\"\",VLOOKUP(AF363,Group,7,FALSE))","v":""},null,"X"]
[null,null,null,null,null,null,null,null,null,null,null,"",null,null,null,null,null,null,null,null,null,null,null,null,null,null,null,null,null,null,null,null,null,null,null,null,null,null,null,null,"X"]
[null,null,"continued on next page",null,null,null,null,null,null,null,null,"",null,null,null,null,null,null,null,null,null,null,null,null,null,null,null,null,null,null,null,null,null,null,null,null,null,null,null,null,"X"]
[null,null,"DÉCOR & STYLE - continued",null,null,null,null,null,null,null,null,null,null,null,null,null,null,"Item # Lookup:","BO"]
[null,null,null,null,null,null,null,null,null,null,null,null,null,null,null,null,null,null,null,null,null,null,null,null,null,null,null,null,null,null,null,null,null,null,null,null,null,null,null,null,"X"]
[null,"Decos",null,null,"12\" x 12\"",null,"Mosaic",null,null,"PIMI28",null,"Black Reconstituted Sliced Pebble",null,null,null,null,null,null,{"$f":"IF(Suggested=\"Yes\",AA368,AG368)","v":76.05},"EA",{"$f":"+Instructions!$B$3","v":"A"},null,{"$f":"+Instructions!$C$22","v":0},{"$f":"ROUND($AA368*(1-W368)+0.004999,2)","v":76.05},null,"",76.05,0,76.05,{"$f":"(AG368-AC368)/AG368","v":0},null,3,{"$f":"SUM(AJ368:AL368)+AE368","v":76.05},null,null,{"$f":"ROUND(AC368/(1-VLOOKUP(AF368,Group,2,FALSE)),2)","v":76.05},{"$f":"IF(VLOOKUP(AF368,Group,5,FALSE)=\"YES\",VLOOKUP(ROUND(ROUND(AJ368,1)-AJ368,2),Round,2,FALSE)+VLOOKUP(AF368,Group,6,FALSE),0)","v":0},{"$f":"IF(VLOOKUP(AF368,Group,7,FALSE)=\"\",0,ROUND(AJ368-0.04999,1)-AJ368+AM368)","v":0},{"$f":"IF(VLOOKUP(AF368,Group,7,FALSE)=\"\",\"\",VLOOKUP(AF368,Group,7,FALSE))","v":""},null,"X"]
[null,"Decos",null,null,"4\" x 12\"",null,"Mosaic",null,null,"PIMI29",null,"Black Reconstituted Sliced Pebble",null,null,null,null,null,null,32.799999999999997,"EA",{"$f":"+Instructions!$B$3","v":"A"},null,{"$f":"+Instructions!$C$22","v":0},32.799999999999997,null,"",32.799999999999997,0,32.799999999999997,0,null,3,32.799999999999997,null,null,32.799999999999997,0,0,"",null,"X"]
[null,"Decos",null,null,"12\" x 12\"",null,"Mosaic",null,null,"PIMI31",null,"Beige Stone/Beige Brown Ceramic Mix 7/8\" x 7/8\"",null,null,null,null,null,null,53.65,"EA",{"$f":"+Instructions!$B$3","v":"A"},null,{"$f":"+Instructions!$C$22","v":0},53.65,null,"",53.65,0,53.65,0,null,3,53.65,null,null,53.65,0,0,"",null,"X"]
[null,"Decos",null,null,"12\" x 12\"",null,"Mosaic",null,null,"PIMI32",null,"Black Stone/Grey White Ceramic Mix 7/8\" x 7/8\"",null,null,null,null,null,null,53.65,"EA",{"$f":"+Instructions!$B$3","v":"A"},null,{"$f":"+Instructions!$C$22","v":0},53.65,null,"",53.65,0,53.65,0,null,3,53.65,null,null,53.65,0,0,"",null,"X"]
[null,"Decos",null,null,"12\" x 12\"",null,"Mosaic",null," ","PIMI36",null,"White Grey Mix Mini Stone Reconstituted Opus",null,null,null,null,null,null,{"$f":"IF(Suggested=\"Yes\",AA372,AG372)","v":83.6},"EA",{"$f":"+Instructions!$B$3","v":"A"},null,{"$f":"+Instructions!$C$22","v":0},83.6,null,"",83.6,{"$f":"+W372","v":0},83.6,{"$f":"(AG372-AC372)/AG372","v":0},null,3,{"$f":"SUM(AJ372:AL372)+AE372","v":83.6},null,null,{"$f":"ROUND(AC372/(1-VLOOKUP(AF372,Group,2,FALSE)),2)","v":83.6},{"$f":"IF(VLOOKUP(AF372,Group,5,FALSE)=\"YES\",VLOOKUP(ROUND(ROUND(AJ372,1)-AJ372,2),Round,2,FALSE)+VLOOKUP(AF372,Group,6,FALSE),0)","v":0},{"$f":"IF(VLOOKUP(AF372,Group,7,FALSE)=\"\",0,ROUND(AJ372-0.04999,1)-AJ372+AM372)","v":0},{"$f":"IF(VLOOKUP(AF372,Group,7,FALSE)=\"\",\"\",VLOOKUP(AF372,Group,7,FALSE))","v":""},null,"X"]
[null,"Decos",null,null,"11.8\" x 12\"",null,"Mosaic",null,null,"PIMI40",null,"Lantern Terrazzo Marble White Grey",null,null,null,null,null,null,{"$f":"IF(Suggested=\"Yes\",AA373,AG373)","v":79.8},"EA",{"$f":"+Instructions!$B$3","v":"A"},null,{"$f":"+Instructions!$C$22","v":0},79.8,null,"",79.8,0,79.8,{"$f":"(AG373-AC373)/AG373","v":0},null,3,{"$f":"SUM(AJ373:AL373)+AE373","v":79.8},null,null,{"$f":"ROUND(AC373/(1-VLOOKUP(AF373,Group,2,FALSE)),2)","v":79.8},{"$f":"IF(VLOOKUP(AF373,Group,5,FALSE)=\"YES\",VLOOKUP(ROUND(ROUND(AJ373,1)-AJ373,2),Round,2,FALSE)+VLOOKUP(AF373,Group,6,FALSE),0)","v":0},{"$f":"IF(VLOOKUP(AF373,Group,7,FALSE)=\"\",0,ROUND(AJ373-0.04999,1)-AJ373+AM373)","v":0},{"$f":"IF(VLOOKUP(AF373,Group,7,FALSE)=\"\",\"\",VLOOKUP(AF373,Group,7,FALSE))","v":""},null,"X"]
[null,"Decos",null,null,"13\" x 13.8\"",null,"Mosaic",null,null,"PIMI41",null,"Long Hexagon Terrazzo Marble White Grey Black Mix",null,null,null,null,null,null,{"$f":"IF(Suggested=\"Yes\",AA374,AG374)","v":81.8},"EA",{"$f":"+Instructions!$B$3","v":"A"},null,{"$f":"+Instructions!$C$22","v":0},{"$f":"ROUND($AA374*(1-W374)+0.004999,2)","v":81.8},null,"",81.8,0,81.8,{"$f":"(AG374-AC374)/AG374","v":0},null,3,{"$f":"SUM(AJ374:AL374)+AE374","v":81.8},null,null,{"$f":"ROUND(AC374/(1-VLOOKUP(AF374,Group,2,FALSE)),2)","v":81.8},{"$f":"IF(VLOOKUP(AF374,Group,5,FALSE)=\"YES\",VLOOKUP(ROUND(ROUND(AJ374,1)-AJ374,2),Round,2,FALSE)+VLOOKUP(AF374,Group,6,FALSE),0)","v":0},{"$f":"IF(VLOOKUP(AF374,Group,7,FALSE)=\"\",0,ROUND(AJ374-0.04999,1)-AJ374+AM374)","v":0},{"$f":"IF(VLOOKUP(AF374,Group,7,FALSE)=\"\",\"\",VLOOKUP(AF374,Group,7,FALSE))","v":""},null,"X"]
[null,"Decos",null,null,"12\" x 12\"",null,"Mosaic",null,null,"PIMI42",null,"Mini Opus Terrazzo Marble White Grey Black Mix",null,null,null,null,null,null,{"$f":"IF(Suggested=\"Yes\",AA375,AG375)","v":71.05},"EA",{"$f":"+Instructions!$B$3","v":"A"},null,{"$f":"+Instructions!$C$22","v":0},71.05,null,"",71.05,0,71.05,{"$f":"(AG375-AC375)/AG375","v":0},null,3,{"$f":"SUM(AJ375:AL375)+AE375","v":71.05},null,null,{"$f":"ROUND(AC375/(1-VLOOKUP(AF375,Group,2,FALSE)),2)","v":71.05},{"$f":"IF(VLOOKUP(AF375,Group,5,FALSE)=\"YES\",VLOOKUP(ROUND(ROUND(AJ375,1)-AJ375,2),Round,2,FALSE)+VLOOKUP(AF375,Group,6,FALSE),0)","v":0},{"$f":"IF(VLOOKUP(AF375,Group,7,FALSE)=\"\",0,ROUND(AJ375-0.04999,1)-AJ375+AM375)","v":0},{"$f":"IF(VLOOKUP(AF375,Group,7,FALSE)=\"\",\"\",VLOOKUP(AF375,Group,7,FALSE))","v":""},null,"X"]
[null,"Decos",null,null,"12\" x 12\"",null,"Mosaic",null,null,"QUBE02",null,"Beige Quartzite Brick 3/4\" x 1-5/8\"",null,null,null,null,null,null,54.45,"EA",{"$f":"+Instructions!$B$3","v":"A"},null,{"$f":"+Instructions!$C$22","v":0},54.45,null,"",54.45,0,54.45,0,null,3,54.45,null,null,54.45,0,0,"",null,"X"]
[null,"Decos",null,null,"12\" x 12\"",null,"Mosaic",null,null,"QUBE04",null,"Beige/Grey Opus",null,null,null,null,null,null,50.5,"EA",{"$f":"+Instructions!$B$3","v":"A"},null,{"$f":"+Instructions!$C$22","v":0},50.5,null,"",50.5,0,50.5,0,null,3,50.5,null,null,50.5,0,0,"",null,"X"]
[null,"Decos",null,null,"4\" x 12\"",null,"Border",null,null,"QUBE05/30",null,"Beige/Grey Opus",null,null," ",null,null,null,31.55,"EA",{"$f":"+Instructions!$B$3","v":"A"},null,{"$f":"+Instructions!$C$22","v":0},31.55,null,"",31.55,0,31.55,0,null,3,31.55,null,null,31.55,0,0,"",null,"X"]
[null,"Decos",null,null,"4\" x 14\"",null,"Wall Cladding",null,null,"QUBE23",null,"Beige/Grey Quartzite",null,null,null,"12 PCS/CTN",null,null,{"$f":"IF(Suggested=\"Yes\",AA379,AG379)","v":20.100000000000001},"EA",{"$f":"+Instructions!$B$3","v":"A"},null,{"$f":"+Instructions!$C$22","v":0},{"$f":"ROUND($AA379*(1-W379)+0.004999,2)","v":20.100000000000001},null,"",20.100000000000001,{"$f":"+W379","v":0},{"$f":"+X379","v":20.100000000000001},{"$f":"(AG379-AC379)/AG379","v":0},null,3,{"$f":"SUM(AJ379:AL379)+AE379","v":20.100000000000001},null,null,{"$f":"ROUND(AC379/(1-VLOOKUP(AF379,Group,2,FALSE)),2)","v":20.100000000000001},{"$f":"IF(VLOOKUP(AF379,Group,5,FALSE)=\"YES\",VLOOKUP(ROUND(ROUND(AJ379,1)-AJ379,2),Round,2,FALSE)+VLOOKUP(AF379,Group,6,FALSE),0)","v":0},{"$f":"IF(VLOOKUP(AF379,Group,7,FALSE)=\"\",0,ROUND(AJ379-0.04999,1)-AJ379+AM379)","v":0},{"$f":"IF(VLOOKUP(AF379,Group,7,FALSE)=\"\",\"\",VLOOKUP(AF379,Group,7,FALSE))","v":""},null,"X"]
[null,"Decos",null,null,"12\" x 12\"",null,"Mosaic",null,null,"QUGR01",null,"Silver Grey Quartzite Natural 2\" x 2\"",null,null,null,null,null,"i",40.75,"EA",{"$f":"+Instructions!$B$3","v":"A"},null,{"$f":"+Instructions!$C$22","v":0},40.75,null,"",40.75,0,40.75,0,null,3,40.75,null,null,40.75,0,0,"",null,"X"]
[null,"Decos",null,null,"12\" x 12\"",null,"Mosaic",null,null,"QUMI11",null,"Silver Grey Natural Slate/Turquoise Glass 7/8\" x 2\" Stacked",null,null,null,null,null,null,78.95,"EA",{"$f":"+Instructions!$B$3","v":"A"},null,{"$f":"+Instructions!$C$22","v":0},78.95,null,"",78.95,0,78.95,0,null,3,78.95,null,null,78.95,0,0,"",null,"X"]
[null,"Decos",null,null,"12\" x 12\"",null,"Mosaic",null,null,"QUMI12",null,"Silver Grey Natural Slate/Red & Black Glass 7/8\" x 2\" Stacked",null,null,null,null,null,null,78.95,"EA",{"$f":"+Instructions!$B$3","v":"A"},null,{"$f":"+Instructions!$C$22","v":0},78.95,null,"",78.95,0,78.95,0,null,3,78.95,null,null,78.95,0,0,"",null,"X"]
[null,"Decos",null,null,"12\" x 12\"",null,"Mosaic",null,null,"QUMI13",null,"Silver Grey Polished Slate/Purple & White Glass 7/8\" x 2\" Stacked",null,null,null,null,null,null,78.95,"EA",{"$f":"+Instructions!$B$3","v":"A"},null,{"$f":"+Instructions!$C$22","v":0},78.95,null,"",78.95,0,78.95,0,null,3,78.95,null,null,78.95,0,0,"",null,"X"]
[null,"Decos",null,null,"12\" x 12\"",null,"Mosaic",null,null,"QUMI17",null,"Grey/Beige Glass Quartzite Metal 7/8\" x 7/8\"",null,null,null,null,null,null,81,"EA",{"$f":"+Instructions!$B$3","v":"A"},null,{"$f":"+Instructions!$C$22","v":0},81,null,"",81,0,81,0,null,3,81,null,null,81,0,0,"",null,"X"]
[null,"Decos",null,null,"11.8\" x 11.8\"",null,"Mosaic",null,null,"VEBE09",null,"White Beige Frosted Glass Round Pebble",null,null,null,null,null,null,95,"EA",{"$f":"+Instructions!$B$3","v":"A"},null,{"$f":"+Instructions!$C$22","v":0},95,null,"new",95,0,95,0,null,3,95,null,null,95,0,0,"",null,"X"]
[null,"Decos",null,null,"11.8\" x 11.8\"",null,"Mosaic",null,null,"VEBE10",null,"Beige Mix Frosted Glass Brick 2\" x 6\"",null,null,null,null,null,null,{"$f":"IF(Suggested=\"Yes\",AA386,AG386)","v":81.599999999999994},"EA",{"$f":"+Instructions!$B$3","v":"A"},null,{"$f":"+Instructions!$C$22","v":0},{"$f":"ROUND($AA386*(1-W386)+0.004999,2)","v":81.599999999999994},null,"new",81.599999999999994,{"$f":"+W386","v":0},{"$f":"+X386","v":81.599999999999994},{"$f":"(AG386-AC386)/AG386","v":0},null,3,{"$f":"SUM(AJ386:AL386)+AE386","v":81.599999999999994},null,null,{"$f":"ROUND(AC386/(1-VLOOKUP(AF386,Group,2,FALSE)),2)","v":81.599999999999994},{"$f":"IF(VLOOKUP(AF386,Group,5,FALSE)=\"YES\",VLOOKUP(ROUND(ROUND(AJ386,1)-AJ386,2),Round,2,FALSE)+VLOOKUP(AF386,Group,6,FALSE),0)","v":0},{"$f":"IF(VLOOKUP(AF386,Group,7,FALSE)=\"\",0,ROUND(AJ386-0.04999,1)-AJ386+AM386)","v":0},{"$f":"IF(VLOOKUP(AF386,Group,7,FALSE)=\"\",\"\",VLOOKUP(AF386,Group,7,FALSE))","v":""},null,"X"]
[null,"Decos",null,null,"12\" x 12\"",null,"Mosaic",null,null,"VEBL12",null,"White Matte & Glossy Glass Mix 1/2\" x 1/2\"",null,null,null,null,null,null,{"$f":"IF(Suggested=\"Yes\",AA387,AG387)","v":61.6},"EA",{"$f":"+Instructions!$B$3","v":"A"},null,{"$f":"+Instructions!$C$22","v":0},{"$f":"ROUND($AA387*(1-W387)+0.004999,2)","v":61.6},null,"",61.6,{"$f":"+W387","v":0},61.6,{"$f":"(AG387-AC387)/AG387","v":0},null,3,{"$f":"SUM(AJ387:AL387)+AE387","v":61.6},null,null,{"$f":"ROUND(AC387/(1-VLOOKUP(AF387,Group,2,FALSE)),2)","v":61.6},{"$f":"IF(VLOOKUP(AF387,Group,5,FALSE)=\"YES\",VLOOKUP(ROUND(ROUND(AJ387,1)-AJ387,2),Round,2,FALSE)+VLOOKUP(AF387,Group,6,FALSE),0)","v":0},{"$f":"IF(VLOOKUP(AF387,Group,7,FALSE)=\"\",0,ROUND(AJ387-0.04999,1)-AJ387+AM387)","v":0},{"$f":"IF(VLOOKUP(AF387,Group,7,FALSE)=\"\",\"\",VLOOKUP(AF387,Group,7,FALSE))","v":""},null,"X"]
[null,"Decos",null,null,"12.1\" x 12.1\"",null,"Mosaic",null,null,"VEBL36",null,"White Glass Pebbles",null,null,null,null,null,"g",59.6,"EA",{"$f":"+Instructions!$B$3","v":"A"},null,{"$f":"+Instructions!$C$22","v":0},59.6,null,"",59.6,0,59.6,0,null,3,59.6,null,null,59.6,0,0,"",null,"X"]
[null,"Decos",null,null,"11.8\" x 23.8\"",null,"Décor",null,null,"VEBL37",null,"Blue Glass Tile",null,null,null,null,null,null,267.89999999999998,"EA",{"$f":"+Instructions!$B$3","v":"A"},null,{"$f":"+Instructions!$C$22","v":0},267.89999999999998,null,"",267.89999999999998,0,267.89999999999998,0,null,3,267.89999999999998,null,null,267.89999999999998,0,0,"",null,"X"]
[null,"Decos",null,null,"12\" x 12\"",null,"Mosaic",null,null,"VEBL40",null,"Turquoise Glass/Ceramic Mix 3/4\" x 1-3/4\" Stacked",null,null,null,null,null,null,65.849999999999994,"EA",{"$f":"+Instructions!$B$3","v":"A"},null,{"$f":"+Instructions!$C$22","v":0},65.849999999999994,null,"",65.849999999999994,{"$f":"+W390","v":0},65.849999999999994,0,null,3,65.849999999999994,null,null,65.849999999999994,0,0,"",null,"X"]
[null,"Decos",null,null,"12\" x 12\"",null,"Mosaic",null,null,"VEBL41",null,"White Marble/White Glass Matte & Glossy Mix",null,null,null,null,null,null,89.2,"EA",{"$f":"+Instructions!$B$3","v":"A"},null,{"$f":"+Instructions!$C$22","v":0},89.2,null,"",89.2,0,89.2,0,null,3,89.2,null,null,89.2,0,0,"",null,"X"]
[null,"Decos",null,null,"11.5\" x 12\"",null,"Mosaic",null,null,"VEBL43",null,"White Glass Round",null,null,null,null,null,null,52,"EA",{"$f":"+Instructions!$B$3","v":"A"},null,{"$f":"+Instructions!$C$22","v":0},52,null,"",52,{"$f":"+W392","v":0},52,0,null,3,52,null,null,52,0,0,"",null,"X"]
[null,"Decos",null,null,"11.8\" x 11.7\"",null,"Mosaic",null,null,"VEBL45",null,"Glass Baguette Blue Mix Matte",null,null,null,null,null,null,65.849999999999994,"EA",{"$f":"+Instructions!$B$3","v":"A"},null,{"$f":"+Instructions!$C$22","v":0},65.849999999999994,null,"",65.849999999999994,0,65.849999999999994,0,null,3,65.849999999999994,null,null,65.849999999999994,0,0,"",null,"X"]
[null,"Decos",null,null,"11.8\" x 11.8\"",null,"Mosaic",null,null,"VEBL46",null,"Glass Classic Décor Blue Glossy 1\" x 1\"",null,null,null,null,null,null,76.150000000000006,"EA",{"$f":"+Instructions!$B$3","v":"A"},null,{"$f":"+Instructions!$C$22","v":0},76.150000000000006,null,"",76.150000000000006,0,76.150000000000006,0,null,3,76.150000000000006,null,null,76.150000000000006,0,0,"",null,"X"]
[null,"Decos",null,null,"11.8\" x 11.8\"",null,"Mosaic",null,null,"VEBL48",null,"Onyx Pattern Blue Glass 2\" x 4\"",null,null,null,null,null,null,65.3,"EA",{"$f":"+Instructions!$B$3","v":"A"},null,{"$f":"+Instructions!$C$22","v":0},65.3,null,"",65.3,0,65.3,0,null,3,65.3,null,null,65.3,0,0,"",null,"X"]
[null,"Decos",null,null,"11.8\" x 11.8\"",null,"Mosaic",null,null,"VEBL49",null,"Glass Pool Striped Light Blue 3\" x 3\"",null,null,null,null,null,null,68.2,"EA",{"$f":"+Instructions!$B$3","v":"A"},null,{"$f":"+Instructions!$C$22","v":0},68.2,null,"",68.2,0,68.2,0,null,3,68.2,null,null,68.2,0,0,"",null,"X"]
[null,"Decos",null,null,"11.8\" x 11.8\"",null,"Mosaic",null,null,"VEBL50",null,"Glass Pool Striped Cobalt Blue 3\" x 3\"",null,null,null,null,null,null,68.2,"EA",{"$f":"+Instructions!$B$3","v":"A"},null,{"$f":"+Instructions!$C$22","v":0},68.2,null,"",68.2,0,68.2,0,null,3,68.2,null,null,68.2,0,0,"",null,"X"]
[null,"Decos",null,null,"11.8\" x 11.8\"",null,"Mosaic",null,null,"VEBL63",null,"3\" x 3\" White Glass Mosaic",null,null,null,null,null,null,{"$f":"IF(Suggested=\"Yes\",AA398,AG398)","v":64.599999999999994},"EA",{"$f":"+Instructions!$B$3","v":"A"},null,{"$f":"+Instructions!$C$22","v":0},{"$f":"ROUND($AA398*(1-W398)+0.004999,2)","v":64.599999999999994},null,"",64.599999999999994,{"$f":"+W398","v":0},64.599999999999994,{"$f":"(AG398-AC398)/AG398","v":0},null,3,{"$f":"SUM(AJ398:AL398)+AE398","v":64.599999999999994},null,null,{"$f":"ROUND(AC398/(1-VLOOKUP(AF398,Group,2,FALSE)),2)","v":64.599999999999994},{"$f":"IF(VLOOKUP(AF398,Group,5,FALSE)=\"YES\",VLOOKUP(ROUND(ROUND(AJ398,1)-AJ398,2),Round,2,FALSE)+VLOOKUP(AF398,Group,6,FALSE),0)","v":0},{"$f":"IF(VLOOKUP(AF398,Group,7,FALSE)=\"\",0,ROUND(AJ398-0.04999,1)-AJ398+AM398)","v":0},{"$f":"IF(VLOOKUP(AF398,Group,7,FALSE)=\"\",\"\",VLOOKUP(AF398,Group,7,FALSE))","v":""},null,"X"]
[null,"Decos",null,null,"11.9\" x 10.8\"",null,"Mosaic",null,null,"VEBL64",null,"Glass Tears White",null,null,null,null,null,null,106.05,"EA",{"$f":"+Instructions!$B$3","v":"A"},null,{"$f":"+Instructions!$C$22","v":0},106.05,null,"",106.05,0,106.05,0,null,3,106.05,null,null,106.05,0,0,"",null,"X"]
[null,"Decos",null,null,"11.8\" x 11.8\"",null,"Mosaic",null,null,"VEBL65",null,"White Blue Frosted Glass Round Pebble",null,null,null,null,null,null,95,"EA",{"$f":"+Instructions!$B$3","v":"A"},null,{"$f":"+Instructions!$C$22","v":0},95,null,"new",95,0,95,0,null,3,95,null,null,95,0,0,"",null,"X"]
[null,"Decos",null,null,"12\" x 12\"",null,"Mosaic",null,null,"VEGR39",null,"Black-Grey-White Iridescent Glass Mix",null,null,null," ",null,null,{"$f":"IF(Suggested=\"Yes\",AA401,AG401)","v":75.900000000000006},"EA",{"$f":"+Instructions!$B$3","v":"A"},null,{"$f":"+Instructions!$C$22","v":0},{"$f":"ROUND($AA401*(1-W401)+0.004999,2)","v":75.900000000000006},null,"",75.900000000000006,{"$f":"+W401","v":0},{"$f":"+X401","v":75.900000000000006},{"$f":"(AG401-AC401)/AG401","v":0},null,3,{"$f":"SUM(AJ401:AL401)+AE401","v":75.900000000000006},null,null,{"$f":"ROUND(AC401/(1-VLOOKUP(AF401,Group,2,FALSE)),2)","v":75.900000000000006},{"$f":"IF(VLOOKUP(AF401,Group,5,FALSE)=\"YES\",VLOOKUP(ROUND(ROUND(AJ401,1)-AJ401,2),Round,2,FALSE)+VLOOKUP(AF401,Group,6,FALSE),0)","v":0},{"$f":"IF(VLOOKUP(AF401,Group,7,FALSE)=\"\",0,ROUND(AJ401-0.04999,1)-AJ401+AM401)","v":0},{"$f":"IF(VLOOKUP(AF401,Group,7,FALSE)=\"\",\"\",VLOOKUP(AF401,Group,7,FALSE))","v":""},null,"X"]
[null,"Decos",null,null,"11.8\" x 12.6\"",null,"Mosaic",null,null,"VEGR41",null,"Light Grey Faux Relief Glass Rectangles",null,null,null,null,null,null,70.900000000000006,"EA",{"$f":"+Instructions!$B$3","v":"A"},null,{"$f":"+Instructions!$C$22","v":0},70.900000000000006,null,"",70.900000000000006,0,70.900000000000006,0,null,3,70.900000000000006,null,null,70.900000000000006,0,0,"",null,"X"]
[null,"Decos",null,null,"11.8\" x 11.8\"",null,"Mosaic",null,null,"VEGR48",null,"Glass Classic Décor Grey Black Glossy 1\" x 1\"",null,null,null,null,null,null,75.849999999999994,"EA",{"$f":"+Instructions!$B$3","v":"A"},null,{"$f":"+Instructions!$C$22","v":0},75.849999999999994,null,"",75.849999999999994,0,75.849999999999994,0,null,3,75.849999999999994,null,null,75.849999999999994,0,0,"",null,"X"]
[null,"Decos",null,null,"11.8\" x 11.8\"",null,"Mosaic",null,null,"VEGR50",null,"Onyx Pattern Grey Glass 2\" x 4\"",null,null,null,null,null,null,{"$f":"IF(Suggested=\"Yes\",AA404,AG404)","v":70.849999999999994},"EA",{"$f":"+Instructions!$B$3","v":"A"},null,{"$f":"+Instructions!$C$22","v":0},{"$f":"ROUND($AA404*(1-W404)+0.004999,2)","v":70.849999999999994},null,"",70.849999999999994,0,70.849999999999994,{"$f":"(AG404-AC404)/AG404","v":0},null,3,{"$f":"SUM(AJ404:AL404)+AE404","v":70.849999999999994},null,null,{"$f":"ROUND(AC404/(1-VLOOKUP(AF404,Group,2,FALSE)),2)","v":70.849999999999994},{"$f":"IF(VLOOKUP(AF404,Group,5,FALSE)=\"YES\",VLOOKUP(ROUND(ROUND(AJ404,1)-AJ404,2),Round,2,FALSE)+VLOOKUP(AF404,Group,6,FALSE),0)","v":0},{"$f":"IF(VLOOKUP(AF404,Group,7,FALSE)=\"\",0,ROUND(AJ404-0.04999,1)-AJ404+AM404)","v":0},{"$f":"IF(VLOOKUP(AF404,Group,7,FALSE)=\"\",\"\",VLOOKUP(AF404,Group,7,FALSE))","v":""},null,"X"]
[null,"Decos",null,null,"11.8\" x 11.8\"",null,"Mosaic",null,null,"VEGR52",null,"Linear Light Grey Glass Brick Pattern 2\" x 4\"",null,null,null,null,null,null,{"$f":"IF(Suggested=\"Yes\",AA405,AG405)","v":81.05},"EA",{"$f":"+Instructions!$B$3","v":"A"},null,{"$f":"+Instructions!$C$22","v":0},{"$f":"ROUND($AA405*(1-W405)+0.004999,2)","v":81.05},null,"",81.05,0,81.05,{"$f":"(AG405-AC405)/AG405","v":0},null,3,{"$f":"SUM(AJ405:AL405)+AE405","v":81.05},null,null,{"$f":"ROUND(AC405/(1-VLOOKUP(AF405,Group,2,FALSE)),2)","v":81.05},{"$f":"IF(VLOOKUP(AF405,Group,5,FALSE)=\"YES\",VLOOKUP(ROUND(ROUND(AJ405,1)-AJ405,2),Round,2,FALSE)+VLOOKUP(AF405,Group,6,FALSE),0)","v":0},{"$f":"IF(VLOOKUP(AF405,Group,7,FALSE)=\"\",0,ROUND(AJ405-0.04999,1)-AJ405+AM405)","v":0},{"$f":"IF(VLOOKUP(AF405,Group,7,FALSE)=\"\",\"\",VLOOKUP(AF405,Group,7,FALSE))","v":""},null,"X"]
[null,"Decos",null,null,"11.8\" x 11.8\"",null,"Mosaic",null,null,"VEGR56",null,"Grey Mix Frosted Glass Brick 2\" x 6\"",null,null,null,null,null,null,{"$f":"IF(Suggested=\"Yes\",AA406,AG406)","v":81.599999999999994},"EA",{"$f":"+Instructions!$B$3","v":"A"},null,{"$f":"+Instructions!$C$22","v":0},{"$f":"ROUND($AA406*(1-W406)+0.004999,2)","v":81.599999999999994},null,"new",81.599999999999994,0,81.599999999999994,{"$f":"(AG406-AC406)/AG406","v":0},null,3,{"$f":"SUM(AJ406:AL406)+AE406","v":81.599999999999994},null,null,{"$f":"ROUND(AC406/(1-VLOOKUP(AF406,Group,2,FALSE)),2)","v":81.599999999999994},{"$f":"IF(VLOOKUP(AF406,Group,5,FALSE)=\"YES\",VLOOKUP(ROUND(ROUND(AJ406,1)-AJ406,2),Round,2,FALSE)+VLOOKUP(AF406,Group,6,FALSE),0)","v":0},{"$f":"IF(VLOOKUP(AF406,Group,7,FALSE)=\"\",0,ROUND(AJ406-0.04999,1)-AJ406+AM406)","v":0},{"$f":"IF(VLOOKUP(AF406,Group,7,FALSE)=\"\",\"\",VLOOKUP(AF406,Group,7,FALSE))","v":""},null,"X"]
[null,"Decos",null,null,"12\" x 12\"",null,"Mosaic",null,null,"VEMI27",null,"Mix Steel/Matt-Glossy Glass 5/8\" x 5/8\"",null,null,null,null,null,"a",82.6,"EA",{"$f":"+Instructions!$B$3","v":"A"},null,{"$f":"+Instructions!$C$22","v":0},82.6,null,"",82.6,0,82.6,0,null,3,82.6,null,null,82.6,0,0,"",null,"X"]
[null,"Decos",null,null,"11.7\" x 11.7\"",null,"Mosaic",null,null,"VEMI77",null,"Stacked Square Wood Look Beige Brown Blue Matte Recycled Glass",null,null,null,null,null,null,59.4,"EA",{"$f":"+Instructions!$B$3","v":"A"},null,{"$f":"+Instructions!$C$22","v":0},59.4,null,"",59.4,0,59.4,0,null,3,59.4,null,null,59.4,0,0,"",null,"X"]
[null,"Decos",null,null,"11.7\" x 11.7\"",null,"Mosaic",null," ","VEMI78",null,"Stacked Square Wood Look Beige Brown Matte Recycled Glass",null,null,null,null,null,null,59.4,"EA",{"$f":"+Instructions!$B$3","v":"A"},null,{"$f":"+Instructions!$C$22","v":0},59.4,null,"",59.4,0,59.4,0,null,3,59.4,null,null,59.4,0,0,"",null,"X"]
[null,"Decos",null,null,"12\" x 12\"",null,"Mosaic",null,null,"VEMI87",null,"White Marble/Grey-Light Blue Glossy Glass 5/8\" x 5/8\"",null,null,null,null,null,"a",61.75,"EA",{"$f":"+Instructions!$B$3","v":"A"},null,{"$f":"+Instructions!$C$22","v":0},61.75,null,"",61.75,0,61.75,0,null,3,61.75,null,null,61.75,0,0,"",null,"X"]
[null,"Decos",null,null,"12\" x 12\"",null,"Mosaic",null,null,"VEMI89",null,"White Marble/Blue Matte Glass 5/8\" x 5/8\"",null,null,null,null,null,"a",75.8,"EA",{"$f":"+Instructions!$B$3","v":"A"},null,{"$f":"+Instructions!$C$22","v":0},75.8,null,"",75.8,0,75.8,0,null,3,75.8,null,null,75.8,0,0,"",null,"X"]
[null,"Decos",null,null,"12.1\" x 11.9\"",null,"Mosaic",null,null,"VEMI90",null,"Brown Marble/Beige Glass Mix",null,null,null,null,null,"a",85.05,"EA",{"$f":"+Instructions!$B$3","v":"A"},null,{"$f":"+Instructions!$C$22","v":0},85.05,null,"",85.05,0,85.05,0,null,3,85.05,null,null,85.05,0,0,"",null,"X"]
[null,"Decos",null,null,"12\" x 12\"",null,"Mosaic",null,null,"VEMI93",null,"Mix Blue/Steel/Blue Glass 5/8\" x 5/8\"",null,null,null,null,null,"a",85.45,"EA",{"$f":"+Instructions!$B$3","v":"A"},null,{"$f":"+Instructions!$C$22","v":0},85.45,null,"",85.45,0,85.45,0,null,3,85.45,null,null,85.45,0,0,"",null,"X"]
[null,"Decos",null,null,"12\" x 12\"",null,"Mosaic",null," ","VEMI98",null,"Grey-Blue Glass/Décor 5/8\" x 5/8\"",null,null,null,null,null,null,93.05,"EA",{"$f":"+Instructions!$B$3","v":"A"},null,{"$f":"+Instructions!$C$22","v":0},93.05,null,"",93.05,0,93.05,0,null,3,93.05,null,null,93.05,0,0,"",null,"X"]
[null,"Decos",null,null,"12\" x 12\"",null,"Mosaic",null,null,"VEMI99",null,"Brown Décor/Brown Glass 7/8\" x 7/8\"",null,null,null," ",null,"a",82.1,"EA",{"$f":"+Instructions!$B$3","v":"A"},null,{"$f":"+Instructions!$C$22","v":0},82.1,null,"",82.1,0,82.1,0,null,3,82.1,null,null,82.1,0,0,"",null,"X"]
[null,"Decos",null,null,"12\" x 12\"",null,"Mosaic",null,null,"VEMI109",null,"Quartzite-Glass Beige/White 7/8\" x 7/8\"",null,null,null,null,null,"a",{"$f":"IF(Suggested=\"Yes\",AA416,AG416)","v":65.8},"EA",{"$f":"+Instructions!$B$3","v":"A"},null,{"$f":"+Instructions!$C$22","v":0},{"$f":"ROUND($AA416*(1-W416)+0.004999,2)","v":65.8},null,"",65.8,{"$f":"+W416","v":0},65.8,{"$f":"(AG416-AC416)/AG416","v":0},null,3,{"$f":"SUM(AJ416:AL416)+AE416","v":65.8},null,null,{"$f":"ROUND(AC416/(1-VLOOKUP(AF416,Group,2,FALSE)),2)","v":65.8},{"$f":"IF(VLOOKUP(AF416,Group,5,FALSE)=\"YES\",VLOOKUP(ROUND(ROUND(AJ416,1)-AJ416,2),Round,2,FALSE)+VLOOKUP(AF416,Group,6,FALSE),0)","v":0},{"$f":"IF(VLOOKUP(AF416,Group,7,FALSE)=\"\",0,ROUND(AJ416-0.04999,1)-AJ416+AM416)","v":0},{"$f":"IF(VLOOKUP(AF416,Group,7,FALSE)=\"\",\"\",VLOOKUP(AF416,Group,7,FALSE))","v":""},null,"X"]
[null,"Decos",null,null,"12\" x 12\"",null,"Mosaic",null,null,"VEMI111",null,"Grey Stone/Black-Grey Glass Mix 2\" x 2\"",null,null,null,null,null,"a",82.1,"EA",{"$f":"+Instructions!$B$3","v":"A"},null,{"$f":"+Instructions!$C$22","v":0},82.1,null,"",82.1,0,82.1,0,null,3,82.1,null,null,82.1,0,0,"",null,"X"]
[null,"Decos",null,null,"12\" x 12\"",null,"Mosaic",null,null,"VEMI114",null,"White Marble/Grey-White Glass 5/8\" x 5/8\"",null,null,null,null,null,null,75.8,"EA",{"$f":"+Instructions!$B$3","v":"A"},null,{"$f":"+Instructions!$C$22","v":0},75.8,null,"",75.8,0,75.8,0,null,3,75.8,null,null,75.8,0,0,"",null,"X"]
[null,"Decos",null,null,"11.8\" x 11.8\"",null,"Mosaic",null,null,"VEMI131",null,"Grey Matte Glossy Wood Look Recycled Glass",null,null,null,null,null,null,{"$f":"IF(Suggested=\"Yes\",AA419,AG419)","v":57.75},"EA",{"$f":"+Instructions!$B$3","v":"A"},null,{"$f":"+Instructions!$C$22","v":0},{"$f":"ROUND($AA419*(1-W419)+0.004999,2)","v":57.75},null,"",57.75,{"$f":"+W419","v":0},{"$f":"+X419","v":57.75},{"$f":"(AG419-AC419)/AG419","v":0},null,3,{"$f":"SUM(AJ419:AL419)+AE419","v":57.75},null,null,{"$f":"ROUND(AC419/(1-VLOOKUP(AF419,Group,2,FALSE)),2)","v":57.75},{"$f":"IF(VLOOKUP(AF419,Group,5,FALSE)=\"YES\",VLOOKUP(ROUND(ROUND(AJ419,1)-AJ419,2),Round,2,FALSE)+VLOOKUP(AF419,Group,6,FALSE),0)","v":0},{"$f":"IF(VLOOKUP(AF419,Group,7,FALSE)=\"\",0,ROUND(AJ419-0.04999,1)-AJ419+AM419)","v":0},{"$f":"IF(VLOOKUP(AF419,Group,7,FALSE)=\"\",\"\",VLOOKUP(AF419,Group,7,FALSE))","v":""},null,"X"]
[null,"Decos",null,null,"11.8\" x 11.8\"",null,"Mosaic",null,null,"VEMI134",null,"Beige Mix Wood Look Squares Recycled Glass",null,null,null,null,null,null,{"$f":"IF(Suggested=\"Yes\",AA420,AG420)","v":61.75},"EA",{"$f":"+Instructions!$B$3","v":"A"},null,{"$f":"+Instructions!$C$22","v":0},{"$f":"ROUND($AA420*(1-W420)+0.004999,2)","v":61.75},null,"",61.75,{"$f":"+W420","v":0},{"$f":"+X420","v":61.75},{"$f":"(AG420-AC420)/AG420","v":0},null,3,{"$f":"SUM(AJ420:AL420)+AE420","v":61.75},null,null,{"$f":"ROUND(AC420/(1-VLOOKUP(AF420,Group,2,FALSE)),2)","v":61.75},{"$f":"IF(VLOOKUP(AF420,Group,5,FALSE)=\"YES\",VLOOKUP(ROUND(ROUND(AJ420,1)-AJ420,2),Round,2,FALSE)+VLOOKUP(AF420,Group,6,FALSE),0)","v":0},{"$f":"IF(VLOOKUP(AF420,Group,7,FALSE)=\"\",0,ROUND(AJ420-0.04999,1)-AJ420+AM420)","v":0},{"$f":"IF(VLOOKUP(AF420,Group,7,FALSE)=\"\",\"\",VLOOKUP(AF420,Group,7,FALSE))","v":""},null,"X"]
[null,"Decos",null,null,"11.8\" x 11.8\"",null,"Mosaic",null,null,"VEMI136",null,"Black Grey Mix Wood Look Squares Recycled Glass",null,null,null,null,null,null,61.75,"EA",{"$f":"+Instructions!$B$3","v":"A"},null,{"$f":"+Instructions!$C$22","v":0},61.75,null,"",61.75,0,61.75,0,null,3,61.75,null,null,61.75,0,0,"",null,"X"]
[null,"Decos",null,null,"11.8\" x 11.8\"",null,"Mosaic",null,null,"VEMI137",null,"Grey Mix Wood Look Squares Recycled Glass",null,null,null,null,null,null,61.75,"EA",{"$f":"+Instructions!$B$3","v":"A"},null,{"$f":"+Instructions!$C$22","v":0},61.75,null,"",61.75,0,61.75,0,null,3,61.75,null,null,61.75,0,0,"",null,"X"]
[null,"Decos",null,null,"11.8\" x 11.8\"",null,"Mosaic",null,null,"VEMI138",null,"Stone & Glass Grey Beige Black Mix Brick",null,null,null,null,null,null,60.05,"EA",{"$f":"+Instructions!$B$3","v":"A"},null,{"$f":"+Instructions!$C$22","v":0},60.05,null,"",60.05,0,60.05,0,null,3,60.05,null,null,60.05,0,0,"",null,"X"]
[null,"Decos",null,null,"11\" x 11.1\"",null,"Mosaic",null,null,"VEMI143",null,"Herringbone Wood Look Beige Brown Matte Recycled Glass",null,null,null,null,null,null,{"$f":"IF(Suggested=\"Yes\",AA424,AG424)","v":59.4},"EA",{"$f":"+Instructions!$B$3","v":"A"},null,{"$f":"+Instructions!$C$22","v":0},{"$f":"ROUND($AA424*(1-W424)+0.004999,2)","v":59.4},null,"",59.4,{"$f":"+W424","v":0},{"$f":"+X424","v":59.4},{"$f":"(AG424-AC424)/AG424","v":0},null,3,{"$f":"SUM(AJ424:AL424)+AE424","v":59.4},null,null,{"$f":"ROUND(AC424/(1-VLOOKUP(AF424,Group,2,FALSE)),2)","v":59.4},{"$f":"IF(VLOOKUP(AF424,Group,5,FALSE)=\"YES\",VLOOKUP(ROUND(ROUND(AJ424,1)-AJ424,2),Round,2,FALSE)+VLOOKUP(AF424,Group,6,FALSE),0)","v":0},{"$f":"IF(VLOOKUP(AF424,Group,7,FALSE)=\"\",0,ROUND(AJ424-0.04999,1)-AJ424+AM424)","v":0},{"$f":"IF(VLOOKUP(AF424,Group,7,FALSE)=\"\",\"\",VLOOKUP(AF424,Group,7,FALSE))","v":""},null,"X"]
[null,"Decos",null,null,"11\" x 11.1\"",null,"Mosaic",null,null,"VEMI145",null,"Herringbone Wood Look Beige Brown Blue Matte Recycled Glass",null,null,null,null,null,null,59.4,"EA",{"$f":"+Instructions!$B$3","v":"A"},null,{"$f":"+Instructions!$C$22","v":0},59.4,null,"",59.4,0,59.4,0,null,3,59.4,null,null,59.4,0,0,"",null,"X"]
[null,"Decos",null,null,"10.3\" x 11.7\"",null,"Mosaic",null,null,"VEMI151",null,"Fabric Print Brick Grey Blue Matte Recycled Glass",null,null,null,null,null,null,{"$f":"IF(Suggested=\"Yes\",AA426,AG426)","v":61.35},"EA",{"$f":"+Instructions!$B$3","v":"A"},null,{"$f":"+Instructions!$C$22","v":0},{"$f":"ROUND($AA426*(1-W426)+0.004999,2)","v":61.35},null,"",61.35,{"$f":"+W426","v":0},{"$f":"+X426","v":61.35},{"$f":"(AG426-AC426)/AG426","v":0},null,3,{"$f":"SUM(AJ426:AL426)+AE426","v":61.35},null,null,{"$f":"ROUND(AC426/(1-VLOOKUP(AF426,Group,2,FALSE)),2)","v":61.35},{"$f":"IF(VLOOKUP(AF426,Group,5,FALSE)=\"YES\",VLOOKUP(ROUND(ROUND(AJ426,1)-AJ426,2),Round,2,FALSE)+VLOOKUP(AF426,Group,6,FALSE),0)","v":0},{"$f":"IF(VLOOKUP(AF426,Group,7,FALSE)=\"\",0,ROUND(AJ426-0.04999,1)-AJ426+AM426)","v":0},{"$f":"IF(VLOOKUP(AF426,Group,7,FALSE)=\"\",\"\",VLOOKUP(AF426,Group,7,FALSE))","v":""},null,"X"]
[null,"Decos",null,null,"10.3\" x 11.7\"",null,"Mosaic",null,null,"VEMI152",null,"Fabric Print Brick Grey Matte Recycled Glass",null,null,null,null,null,null,{"$f":"IF(Suggested=\"Yes\",AA427,AG427)","v":61.35},"EA",{"$f":"+Instructions!$B$3","v":"A"},null,{"$f":"+Instructions!$C$22","v":0},{"$f":"ROUND($AA427*(1-W427)+0.004999,2)","v":61.35},null,"",61.35,{"$f":"+W427","v":0},{"$f":"+X427","v":61.35},{"$f":"(AG427-AC427)/AG427","v":0},null,3,{"$f":"SUM(AJ427:AL427)+AE427","v":61.35},null,null,{"$f":"ROUND(AC427/(1-VLOOKUP(AF427,Group,2,FALSE)),2)","v":61.35},{"$f":"IF(VLOOKUP(AF427,Group,5,FALSE)=\"YES\",VLOOKUP(ROUND(ROUND(AJ427,1)-AJ427,2),Round,2,FALSE)+VLOOKUP(AF427,Group,6,FALSE),0)","v":0},{"$f":"IF(VLOOKUP(AF427,Group,7,FALSE)=\"\",0,ROUND(AJ427-0.04999,1)-AJ427+AM427)","v":0},{"$f":"IF(VLOOKUP(AF427,Group,7,FALSE)=\"\",\"\",VLOOKUP(AF427,Group,7,FALSE))","v":""},null,"X"]
[null,"Decos",null,null,"11.8\" x 11.8\"",null,"Mosaic",null,null,"VEMI155",null,"Glass Brick Glossy Silver",null,null,null,null,null,null,{"$f":"IF(Suggested=\"Yes\",AA428,AG428)","v":69.05},"EA",{"$f":"+Instructions!$B$3","v":"A"},null,{"$f":"+Instructions!$C$22","v":0},{"$f":"ROUND($AA428*(1-W428)+0.004999,2)","v":69.05},null,"",69.05,{"$f":"+W428","v":0},69.05,{"$f":"(AG428-AC428)/AG428","v":0},null,3,{"$f":"SUM(AJ428:AL428)+AE428","v":69.05},null,null,{"$f":"ROUND(AC428/(1-VLOOKUP(AF428,Group,2,FALSE)),2)","v":69.05},{"$f":"IF(VLOOKUP(AF428,Group,5,FALSE)=\"YES\",VLOOKUP(ROUND(ROUND(AJ428,1)-AJ428,2),Round,2,FALSE)+VLOOKUP(AF428,Group,6,FALSE),0)","v":0},{"$f":"IF(VLOOKUP(AF428,Group,7,FALSE)=\"\",0,ROUND(AJ428-0.04999,1)-AJ428+AM428)","v":0},{"$f":"IF(VLOOKUP(AF428,Group,7,FALSE)=\"\",\"\",VLOOKUP(AF428,Group,7,FALSE))","v":""},null,"X"]
[null,"Decos",null,null,"11.8\" x 11.8\"",null,"Mosaic",null,null,"VEMI156",null,"Glass Patchwork Glossy & Matte White/Grey Mix 2\" x 2\"",null,null,null,null,null,null,82.1,"EA",{"$f":"+Instructions!$B$3","v":"A"},null,{"$f":"+Instructions!$C$22","v":0},82.1,null,"",82.1,0,82.1,0,null,3,82.1,null,null,82.1,0,0,"",null,"X"]
[null,"Decos",null,null,"11.8\" x 11.8\"",null,"Mosaic",null,null,"VEMI166",null,"Multicolor Square Mix Glass Resin",null,null,null,null,null,null,84,"EA",{"$f":"+Instructions!$B$3","v":"A"},null,{"$f":"+Instructions!$C$22","v":0},84,null,"",84,0,84,0,null,3,84,null,null,84,0,0,"",null,"X"]
[null,"Decos",null,null,"11.8\" x 11.8\"",null,"Mosaic",null,null,"VEMI169",null,"Multicolor Frosted Glass Round Pebble",null,null,null,null,null,null,{"$f":"IF(Suggested=\"Yes\",AA431,AG431)","v":95},"EA",{"$f":"+Instructions!$B$3","v":"A"},null,{"$f":"+Instructions!$C$22","v":0},{"$f":"ROUND($AA431*(1-W431)+0.004999,2)","v":95},null,"new",95,{"$f":"+W431","v":0},{"$f":"+X431","v":95},{"$f":"(AG431-AC431)/AG431","v":0},null,3,{"$f":"SUM(AJ431:AL431)+AE431","v":95},null,null,{"$f":"ROUND(AC431/(1-VLOOKUP(AF431,Group,2,FALSE)),2)","v":95},{"$f":"IF(VLOOKUP(AF431,Group,5,FALSE)=\"YES\",VLOOKUP(ROUND(ROUND(AJ431,1)-AJ431,2),Round,2,FALSE)+VLOOKUP(AF431,Group,6,FALSE),0)","v":0},{"$f":"IF(VLOOKUP(AF431,Group,7,FALSE)=\"\",0,ROUND(AJ431-0.04999,1)-AJ431+AM431)","v":0},{"$f":"IF(VLOOKUP(AF431,Group,7,FALSE)=\"\",\"\",VLOOKUP(AF431,Group,7,FALSE))","v":""},null,"X"]
[null,"Decos",null,null,"11.8\" x 11.8\"",null,"Mosaic",null,null,"VEMI170",null,"Beige Blue Mix Frosted Glass Brick 2\" x 6\"",null,null,null,null,null,null,81.599999999999994,"EA",{"$f":"+Instructions!$B$3","v":"A"},null,{"$f":"+Instructions!$C$22","v":0},81.599999999999994,null,"new",81.599999999999994,0,81.599999999999994,0,null,3,81.599999999999994,null,null,81.599999999999994,0,0,"",null,"X"]
[null,null,null,null,null,null,null,null,null,null,null,"",null,null,null,null,null,null,null,null,null,null,null,null,null,null,null,null,null,null,null,null,null,null,null,null,null,null,null,null,"X"]
[null,null,"continued on next page",null,null,null,null,null,null,null,null,"",null,null,null,null,null,null,null,null,null,null,null,null,null,null,null,null,null,null,null,null,null,null,null,null,null,null,null,null,"X"]
[null,null,"DÉCOR & STYLE - continued",null,null,null,null,null,null,null,null,null,null,null,null,null,null,"Item # Lookup:","BO"]
[null,null,null,null,null,null,null,null,null,null,null,null,null,null,null,null,null,null,null,null,null,null,null,null,null,null,null,null,null,null,null,null,null,null,null,null,null,null,null,null,"X"]
[null,"Decos",null,null,"12.1\" x 12.1\"",null,"Mosaic",null,null,"VENO02",null,"Black Glass Pebbles",null,null,null,null,null,"g",{"$f":"IF(Suggested=\"Yes\",AA437,AG437)","v":57.35},"EA",{"$f":"+Instructions!$B$3","v":"A"},null,{"$f":"+Instructions!$C$22","v":0},{"$f":"ROUND($AA437*(1-W437)+0.004999,2)","v":57.35},null,"",57.35,{"$f":"+W437","v":0},{"$f":"+X437","v":57.35},{"$f":"(AG437-AC437)/AG437","v":0},null,3,{"$f":"SUM(AJ437:AL437)+AE437","v":57.35},null,null,{"$f":"ROUND(AC437/(1-VLOOKUP(AF437,Group,2,FALSE)),2)","v":57.35},{"$f":"IF(VLOOKUP(AF437,Group,5,FALSE)=\"YES\",VLOOKUP(ROUND(ROUND(AJ437,1)-AJ437,2),Round,2,FALSE)+VLOOKUP(AF437,Group,6,FALSE),0)","v":0},{"$f":"IF(VLOOKUP(AF437,Group,7,FALSE)=\"\",0,ROUND(AJ437-0.04999,1)-AJ437+AM437)","v":0},{"$f":"IF(VLOOKUP(AF437,Group,7,FALSE)=\"\",\"\",VLOOKUP(AF437,Group,7,FALSE))","v":""},null,"X"]
[null,"Decos",null,null,"12\" x 12\"",null,"Mosaic",null,null,"VENO04",null,"Black Matte & Glossy Glass Mix 1/2\" x 1/2\"",null,null,null,null,null,null,71.8,"EA",{"$f":"+Instructions!$B$3","v":"A"},null,{"$f":"+Instructions!$C$22","v":0},71.8,null,"",71.8,0,71.8,0,null,3,71.8,null,null,71.8,0,0,"",null,"X"]
[null,"Decos",null,null,"12\" x 12\"",null,"Mosaic",null,null,"VENO34",null,"Black Marble/Black Glass/Steel Mix",null,null,null,null,null,null,89.2,"EA",{"$f":"+Instructions!$B$3","v":"A"},null,{"$f":"+Instructions!$C$22","v":0},89.2,null,"",89.2,0,89.2,0,null,3,89.2,null,null,89.2,0,0,"",null,"X"]
[null,"Decos",null,null,"12\" x 12\"",null,"Mosaic",null,null,"VENO35",null,"Glass Linear Black Grey Mix Brick Glossy",null,null,null,null,null,null,{"$f":"IF(Suggested=\"Yes\",AA440,AG440)","v":76.150000000000006},"EA",{"$f":"+Instructions!$B$3","v":"A"},null,{"$f":"+Instructions!$C$22","v":0},{"$f":"ROUND($AA440*(1-W440)+0.004999,2)","v":76.150000000000006},null,"",76.150000000000006,{"$f":"+W440","v":0},{"$f":"+X440","v":76.150000000000006},{"$f":"(AG440-AC440)/AG440","v":0},null,3,{"$f":"SUM(AJ440:AL440)+AE440","v":76.150000000000006},null,null,{"$f":"ROUND(AC440/(1-VLOOKUP(AF440,Group,2,FALSE)),2)","v":76.150000000000006},{"$f":"IF(VLOOKUP(AF440,Group,5,FALSE)=\"YES\",VLOOKUP(ROUND(ROUND(AJ440,1)-AJ440,2),Round,2,FALSE)+VLOOKUP(AF440,Group,6,FALSE),0)","v":0},{"$f":"IF(VLOOKUP(AF440,Group,7,FALSE)=\"\",0,ROUND(AJ440-0.04999,1)-AJ440+AM440)","v":0},{"$f":"IF(VLOOKUP(AF440,Group,7,FALSE)=\"\",\"\",VLOOKUP(AF440,Group,7,FALSE))","v":""},null,"X"]
[null,"Decos",null,null,"11.5\" x 12\"",null,"Mosaic",null,null,"VENO36",null,"Black Glass Round",null,null,null,null,null,null,54.35,"EA",{"$f":"+Instructions!$B$3","v":"A"},null,{"$f":"+Instructions!$C$22","v":0},54.35,null,"",54.35,0,54.35,0,null,3,54.35,null,null,54.35,0,0,"",null,"X"]
[null,"Decos",null,null,"12\" x 12\"",null,"Mosaic",null,null,"VERO33",null,"Glossy Red Glass 7/8\" x 7/8\"",null,null,null,null,null,null,75.849999999999994,"EA",{"$f":"+Instructions!$B$3","v":"A"},null,{"$f":"+Instructions!$C$22","v":0},75.849999999999994,null,"",75.849999999999994,0,75.849999999999994,0,null,3,75.849999999999994,null,null,75.849999999999994,0,0,"",null,"X"]
[null,"Decos",null,null,"11.8\" x 23.8\"",null,"Décor",null,null,"VERO34",null,"Red Glass Tile",null,null,null,null,null,null,267.89999999999998,"EA",{"$f":"+Instructions!$B$3","v":"A"},null,{"$f":"+Instructions!$C$22","v":0},267.89999999999998,null,"",267.89999999999998,0,267.89999999999998,0,null,3,267.89999999999998,null,null,267.89999999999998,0,0,"",null,"X"]
[null,"Decos",null,null,"12\" x 12\"",null,"Mosaic",null,null,"VEVE40",null,"Blue Green Glass",null,null,null,null,null,null,75.900000000000006,"EA",{"$f":"+Instructions!$B$3","v":"A"},null,{"$f":"+Instructions!$C$22","v":0},75.900000000000006,null,"",75.900000000000006,0,75.900000000000006,0,null,3,75.900000000000006,null,null,75.900000000000006,0,0,"",null,"X"]
[null,"Decos",null,null,"11.8\" x 11.8\"",null,"Mosaic",null,null,"VEVE43",null,"Onyx Pattern Grey Green Glass 2\" x 4\"",null,null,null,null,null,null,{"$f":"IF(Suggested=\"Yes\",AA445,AG445)","v":65.3},"EA",{"$f":"+Instructions!$B$3","v":"A"},null,{"$f":"+Instructions!$C$22","v":0},{"$f":"ROUND($AA445*(1-W445)+0.004999,2)","v":65.3},null,"",65.3,0,65.3,{"$f":"(AG445-AC445)/AG445","v":0},null,3,{"$f":"SUM(AJ445:AL445)+AE445","v":65.3},null,null,{"$f":"ROUND(AC445/(1-VLOOKUP(AF445,Group,2,FALSE)),2)","v":65.3},{"$f":"IF(VLOOKUP(AF445,Group,5,FALSE)=\"YES\",VLOOKUP(ROUND(ROUND(AJ445,1)-AJ445,2),Round,2,FALSE)+VLOOKUP(AF445,Group,6,FALSE),0)","v":0},{"$f":"IF(VLOOKUP(AF445,Group,7,FALSE)=\"\",0,ROUND(AJ445-0.04999,1)-AJ445+AM445)","v":0},{"$f":"IF(VLOOKUP(AF445,Group,7,FALSE)=\"\",\"\",VLOOKUP(AF445,Group,7,FALSE))","v":""},null,"X"]
[null,"Decos",null,null,"11.8\" x 11.8\"",null,"Mosaic",null,null,"VEVE44",null,"Glass Pool Striped Aquamarine 3\" x 3\"",null,null,null,null,null,null,{"$f":"IF(Suggested=\"Yes\",AA446,AG446)","v":68.2},"EA",{"$f":"+Instructions!$B$3","v":"A"},null,{"$f":"+Instructions!$C$22","v":0},{"$f":"ROUND($AA446*(1-W446)+0.004999,2)","v":68.2},null,"",68.2,0,68.2,{"$f":"(AG446-AC446)/AG446","v":0},null,3,{"$f":"SUM(AJ446:AL446)+AE446","v":68.2},null,null,{"$f":"ROUND(AC446/(1-VLOOKUP(AF446,Group,2,FALSE)),2)","v":68.2},{"$f":"IF(VLOOKUP(AF446,Group,5,FALSE)=\"YES\",VLOOKUP(ROUND(ROUND(AJ446,1)-AJ446,2),Round,2,FALSE)+VLOOKUP(AF446,Group,6,FALSE),0)","v":0},{"$f":"IF(VLOOKUP(AF446,Group,7,FALSE)=\"\",0,ROUND(AJ446-0.04999,1)-AJ446+AM446)","v":0},{"$f":"IF(VLOOKUP(AF446,Group,7,FALSE)=\"\",\"\",VLOOKUP(AF446,Group,7,FALSE))","v":""},null,"X"]
[null,"Decos",null,null,"11.8\" x 23.8\"",null,"Décor",null,null,"VEVI02",null,"Purple Glass Tile",null,null," ",null,null,null,267.89999999999998,"EA",{"$f":"+Instructions!$B$3","v":"A"},null,{"$f":"+Instructions!$C$22","v":0},267.89999999999998,null,"",267.89999999999998,0,267.89999999999998,0,null,3,267.89999999999998,null,null,267.89999999999998,0,0,"",null,"X"]
[null,null,null,null,null,null,null,null,null,null,null,null,null,null,null,null,null,null,null,null,null,null,null,null,null,null,null,null,null,null,null,null,null,null,null,null,null,null,null,null,"X"]
[null,null,"Notes: Prior to full treatment or sealer application, Bati strongly advises to test on a small clean and dry area of the stone to determine the reaction.",null,null,null,null,null,null,null,null,null,null,null,null,null,null,null,null,null,null,null,null,null,null,null,null,null,null,null,null,null,null,null,null,null,null,null,null,null,"X"]
[null,null,null,null,"a) Do not use a Sanded Grout.  Do not use for floor decoration, including shower floors.  ",null,null,null,null,null,null,null,null,null,null,null,null,null,null,null,null,null,null,null,null,null,null,null,null,null,null,null,null,null,null,null,null,null,null,null,"X"]
[null,null,null,null,"b) For wall decoration only.  Not recommended to install this product in a bathroom.  Not only should water projections be avoided but is",null,null,null,null,null,null,null,null,null,null,null,null,null,null,null,null,null,null,null,null,null,null,null,null,null,null,null,null,null,null,null,null,null,null,null,"X"]
[null,null,null,null,"not recommended to install the product in wet areas.  Mosaics should be put in the targeted room three days before installation so they",null,null,null,null,null,null,null,null,null,null,null,null,null,null,null,null,null,null,null,null,null,null,null,null,null,null,null,null,null,null,null,null,null,null,null,"X"]
[null,null,null,null,"adapt to the environment from a humidity point of view.  The product can be installed with Laticrete Latisil or a polyurethane adhesive",null,null,null,null,null,null,null,null,null,null,null,null,null,null,null,null,null,null,null,null,null,null,null,null,null,null,null,null,null,null,null,null,null,null,null,"X"]
[null,null,null,null,"sealant in cartridge.  It is not recommended to grout this product as it just does not look good & the cleaning takes time and hard work.",null,null,null,null,null,null,null,null,null,null,null,null,null,null,null,null,null,null,null,null,null,null,null,null,null,null,null,null,null,null,null,null,null,null,null,"X"]
[null,null,null,null,"Also, the difference in density between the wood and the grout might cause problems and cracking of the grout.  If the installation is",null,null,null,null,null,null,null,null,null,null,null,null,null,null,null,null,null,null,null,null,null,null,null,null,null,null,null,null,null,null,null,null,null,null,null,"X"]
[null,null,null,null,"grouted, then the mosaics should be treated before grouting.  The treatment will modify the color of the product and it will darken.  Overall,",null,null,null,null,null,null,null,null,null,null,null,null,null,null,null,null,null,null,null,null,null,null,null,null,null,null,null,null,null,null,null,null,null,null,null,"X"]
[null,null,null,null,"when installed without grout, the treatment is strongly advised but not mandatory.",null,null,null,null,null,null,null,null,null,null,null,null,null,null,null,null,null,null,null,null,null,null,null,null,null,null,null,null,null,null,null,null,null,null,null,"X"]
[null,null,null,null,"c) For wall decoration only.  To be placed in the room 72 hours before installation.  Use Laticrete Latisil or a polyurethane adhesive sealant ",null,null,null,null,null,null,null,null,null,null,null,null,null,null,null,null,null,null,null,null,null,null,null,null,null,null,null,null,null,null,null,null,null,null,null,"X"]
[null,null,null,null,"in cartridge to set the mosaics.  Can be painted, stained or varnished before sealing.  Not suitable for surfaces subject to water projections",null,null,null,null,null,null,null,null,null,null,null,null,null,null,null,null,null,null,null,null,null,null,null,null,null,null,null,null,null,null,null,null,null,null,null,"X"]
[null,null,null,null,"or wet areas.  Thickness is 3/8\".",null,null,null,null,null,null,null,null,null,null,null,null,null,null,null,null,null,null,null,null,null,null,null,null,null,null,null,null,null,null,null,null,null,null,null,"X"]
[null,null,null,null,"d) Rectified pebbles have a cut flat base and make tile installation easier and allow a better adherence of the interlocking tiles and borders. ",null,null,null,null,null,null,null,null,null,null,null,null,null,null,null,null,null,null,null,null,null,null,null,null,null,null,null,null,null,null,null,null,null,null,null,"X"]
[null,null,null,null,"e) For Wall use only.  Recommended using colored grout that will match the color of the stone.  Irregular height 3/4\" to 1\".",null,null,null,null,null,null,null,null,null,null,null,null,null,null,null,null,null,null,null,null,null,null,null,null,null,null,null,null,null,null,null,null,null,null,null,"X"]
[null,null,null,null,"f) Grouting with epoxy grout revives the color of artificial stone.  Therefore it is strongly recommended to test prior to installation. ",null,null,null,null,null,null,null,null,null,null,null,null,null,null,null,null,null,null,null,null,null,null,null,null,null,null,null,null,null,null,null,null,null,null,null,"X"]
[null,null,null,null,"g) Due to transparency of some of these products, the use of a neutral or white mortar is recommended.",null,null,null,null,null,null,null,null,null,null,null,null,null,null,null,null,null,null,null,null,null,null,null,null,null,null,null,null,null,null,null,null,null,null,null,"X"]
[null,null,null,null,"h) For wall decoration only.  To be placed in the room 72 hours before installation.  Use Laticrete Latisil or a polyurethane adhesive sealant ",null,null,null,null,null,null,null,null,null,null,null,null,null,null,null,null,null,null,null,null,null,null,null,null,null,null,null,null,null,null,null,null,null,null,null,"X"]
[null,null,null,null,"in cartridge to set the mosaics.  Can be painted, stained or varnished before sealing.  Not suitable for surfaces subject to water projections",null,null,null,null,null,null,null,null,null,null,null,null,null,null,null,null,null,null,null,null,null,null,null,null,null,null,null,null,null,null,null,null,null,null,null,"X"]
[null,null,null,null,"or wet areas.  Thickness is 5/16\".",null,null,null,null,null,null,null,null,null,null,null,null,null,null,null,null,null,null,null,null,null,null,null,null,null,null,null,null,null,null,null,null,null,null,null,"X"]
[null,null,null,null,"i) This product may contain particles of iron and must be sealed.",null,null,null,null,null,null,null,null,null,null,null,null,null,null,null,null,null,null,null,null,null,null,null,null,null,null,null,null,null,null,null,null,null,null,null,"X"]
[null,null,null,null,"j) Not suitable for wet areas.  Not suitable for shower floors or walls.  30% lighter than natural stone, Eco-friendly and stain resistant.  No",null,null,null,null,null,null,null,null,null,null,null,null,null,null,null,null,null,null,null,null,null,null,null,null,null,null,null,null,null,null,null,null,null,null,null,"X"]
[null,null,null,null,"sealing required or pre-sealing during installation.",null,null,null,null,null,null,null,null,null,null,null,null,null,null,null,null,null,null,null,null,null,null,null,null,null,null,null,null,null,null,null,null,null,null,null,"X"]
[null,null,null,null,null,null,null,null,null,null,null,null,null,null,null,null,null,null,null,null,null,null,null,null,null,null,null,null,null,null,null,null,null,null,null,null,null,null,null,null,"X"]
[null,null,"CEMENT TILES",null,null,null,null,null,null,null,null,null,null,null,null,null,null,"Item # Lookup:","BOCECI"]
[null,null,null,null,null,null,null,null,null,null,null,null,null,null,null,null,null,null,null,null,null,null,null,null,null,null,null,null,null,null,null,null,null,null,null,null,null,null,null,null,"X"]
[null,"Decos",null,null,"8\" x 8\"",null,"Field",null,"CIBE01","Beige",null,null,null,null,null,"12 PCS/CTN",null,null,{"$f":"IF(Suggested=\"Yes\",AA474,AG474)","v":8.5},"EA",{"$f":"+Instructions!$B$3","v":"A"},null,{"$f":"+Instructions!$C$22","v":0},{"$f":"ROUND($AA474*(1-W474)+0.004999,2)","v":8.5},null,"",8.5,{"$f":"+W474","v":0},{"$f":"+X474","v":8.5},{"$f":"(AG474-AC474)/AG474","v":0},null,3,{"$f":"SUM(AJ474:AL474)+AE474","v":8.5},null,null,{"$f":"ROUND(AC474/(1-VLOOKUP(AF474,Group,2,FALSE)),2)","v":8.5},{"$f":"IF(VLOOKUP(AF474,Group,5,FALSE)=\"YES\",VLOOKUP(ROUND(ROUND(AJ474,1)-AJ474,2),Round,2,FALSE)+VLOOKUP(AF474,Group,6,FALSE),0)","v":0},{"$f":"IF(VLOOKUP(AF474,Group,7,FALSE)=\"\",0,ROUND(AJ474-0.04999,1)-AJ474+AM474)","v":0},{"$f":"IF(VLOOKUP(AF474,Group,7,FALSE)=\"\",\"\",VLOOKUP(AF474,Group,7,FALSE))","v":""},null,"X"]
[null,"Decos",null,null,"8\" x 8\"",null,"Field",null,"CIBL01","Blue",null,null,null,null,null,"12 PCS/CTN",null,null,{"$f":"IF(Suggested=\"Yes\",AA475,AG475)","v":8.5},"EA",{"$f":"+Instructions!$B$3","v":"A"},null,{"$f":"+Instructions!$C$22","v":0},{"$f":"ROUND($AA475*(1-W475)+0.004999,2)","v":8.5},null,"",8.5,{"$f":"+W475","v":0},{"$f":"+X475","v":8.5},{"$f":"(AG475-AC475)/AG475","v":0},null,3,{"$f":"SUM(AJ475:AL475)+AE475","v":8.5},null,null,{"$f":"ROUND(AC475/(1-VLOOKUP(AF475,Group,2,FALSE)),2)","v":8.5},{"$f":"IF(VLOOKUP(AF475,Group,5,FALSE)=\"YES\",VLOOKUP(ROUND(ROUND(AJ475,1)-AJ475,2),Round,2,FALSE)+VLOOKUP(AF475,Group,6,FALSE),0)","v":0},{"$f":"IF(VLOOKUP(AF475,Group,7,FALSE)=\"\",0,ROUND(AJ475-0.04999,1)-AJ475+AM475)","v":0},{"$f":"IF(VLOOKUP(AF475,Group,7,FALSE)=\"\",\"\",VLOOKUP(AF475,Group,7,FALSE))","v":""},null,"X"]
[null,"Decos",null,null,"8\" x 8\"",null,"Field",null,"CIBL02","Off White",null,null,null,null,null,"12 PCS/CTN",null,null,8.5,"EA",{"$f":"+Instructions!$B$3","v":"A"},null,{"$f":"+Instructions!$C$22","v":0},8.5,null,"",8.5,0,8.5,0,null,3,8.5,null,null,8.5,0,0,"",null,"X"]
[null,"Decos",null,null,"8\" x 8\"",null,"Field",null,"CIBL06","Deep Blue",null,null,null,null,null,"12 PCS/CTN",null,null,8.5,"EA",{"$f":"+Instructions!$B$3","v":"A"},null,{"$f":"+Instructions!$C$22","v":0},8.5,null,"",8.5,0,8.5,0,null,3,8.5,null,null,8.5,0,0,"",null,"X"]
[null,"Decos",null,null,"8\" x 8\"",null,"Field",null,"CIGR01","Light Grey",null,null,null,null,null,"12 PCS/CTN",null,null,8.5,"EA",{"$f":"+Instructions!$B$3","v":"A"},null,{"$f":"+Instructions!$C$22","v":0},8.5,null,"",8.5,0,8.5,0,null,3,8.5,null,null,8.5,0,0,"",null,"X"]
[null,"Decos",null,null,"8\" x 8\"",null,"Field",null,"CIGR02","Dark Grey",null,null,null,null,null,"12 PCS/CTN",null,null,8.5,"EA",{"$f":"+Instructions!$B$3","v":"A"},null,{"$f":"+Instructions!$C$22","v":0},8.5,null,"",8.5,0,8.5,0,null,3,8.5,null,null,8.5,0,0,"",null,"X"]
[null,"Decos",null,null,"8\" x 8\"",null,"Field",null,"CIJA01","Yellow",null,null,null,null,null,"12 PCS/CTN",null,null,8.5,"EA",{"$f":"+Instructions!$B$3","v":"A"},null,{"$f":"+Instructions!$C$22","v":0},8.5,null,"",8.5,0,8.5,0,null,3,8.5,null,null,8.5,0,0,"",null,"X"]
[null,"Decos",null,null,"8\" x 8\"",null,"Field",null,"CINO01","Antracite",null,null,null,null,null,"12 PCS/CTN",null,null,8.5,"EA",{"$f":"+Instructions!$B$3","v":"A"},null,{"$f":"+Instructions!$C$22","v":0},8.5,null,"",8.5,0,8.5,0,null,3,8.5,null,null,8.5,0,0,"",null,"X"]
[null,"Decos",null,null,"8\" x 8\"",null,"Field",null,"CIRO01","Red",null,null,null,null,null,"12 PCS/CTN",null,null,8.5,"EA",{"$f":"+Instructions!$B$3","v":"A"},null,{"$f":"+Instructions!$C$22","v":0},8.5,null,"",8.5,0,8.5,0,null,3,8.5,null,null,8.5,0,0,"",null,"X"]
[null,"Decos",null,null,"8\" x 8\"",null,"Field",null,"CITA01","Taupe",null,null,null,null,null,"12 PCS/CTN",null,null,8.5,"EA",{"$f":"+Instructions!$B$3","v":"A"},null,{"$f":"+Instructions!$C$22","v":0},8.5,null,"",8.5,0,8.5,0,null,3,8.5,null,null,8.5,0,0,"",null,"X"]
[null,"Decos",null,null,"8\" x 8\"",null,"Field",null,"CIVE01","Green",null,null,null,null,null,"12 PCS/CTN",null,null,8.5,"EA",{"$f":"+Instructions!$B$3","v":"A"},null,{"$f":"+Instructions!$C$22","v":0},8.5,null,"",8.5,0,8.5,0,null,3,8.5,null,null,8.5,0,0,"",null,"X"]
[null,null,null,null,null,null,null,null,null,null,null,null,null,null,null,null,null,null,null,null,null,null,null,null,null,null,null,null,null,null,null,null,null,null,null,null,null,null,null,null,"X"]
[null,"Decos",null,null,"4\" x 8\"",null,"Bullnose",null,"CIBE02","Beige",null,null,null,null,null,"12 PCS/CTN",null,null,{"$f":"IF(Suggested=\"Yes\",AA486,AG486)","v":15.3},"EA",{"$f":"+Instructions!$B$3","v":"A"},null,{"$f":"+Instructions!$C$22","v":0},{"$f":"ROUND($AA486*(1-W486)+0.004999,2)","v":15.3},null,"",15.3,{"$f":"+W486","v":0},{"$f":"+X486","v":15.3},{"$f":"(AG486-AC486)/AG486","v":0},null,3,{"$f":"SUM(AJ486:AL486)+AE486","v":15.3},null,null,{"$f":"ROUND(AC486/(1-VLOOKUP(AF486,Group,2,FALSE)),2)","v":15.3},{"$f":"IF(VLOOKUP(AF486,Group,5,FALSE)=\"YES\",VLOOKUP(ROUND(ROUND(AJ486,1)-AJ486,2),Round,2,FALSE)+VLOOKUP(AF486,Group,6,FALSE),0)","v":0},{"$f":"IF(VLOOKUP(AF486,Group,7,FALSE)=\"\",0,ROUND(AJ486-0.04999,1)-AJ486+AM486)","v":0},{"$f":"IF(VLOOKUP(AF486,Group,7,FALSE)=\"\",\"\",VLOOKUP(AF486,Group,7,FALSE))","v":""},null,"X"]
[null,"Decos",null,null,"4\" x 8\"",null,"Bullnose",null,"CIBL04","Blue",null,null,null,null,null,"12 PCS/CTN",null,null,{"$f":"IF(Suggested=\"Yes\",AA487,AG487)","v":15.3},"EA",{"$f":"+Instructions!$B$3","v":"A"},null,{"$f":"+Instructions!$C$22","v":0},{"$f":"ROUND($AA487*(1-W487)+0.004999,2)","v":15.3},null,"",15.3,{"$f":"+W487","v":0},{"$f":"+X487","v":15.3},{"$f":"(AG487-AC487)/AG487","v":0},null,3,{"$f":"SUM(AJ487:AL487)+AE487","v":15.3},null,null,{"$f":"ROUND(AC487/(1-VLOOKUP(AF487,Group,2,FALSE)),2)","v":15.3},{"$f":"IF(VLOOKUP(AF487,Group,5,FALSE)=\"YES\",VLOOKUP(ROUND(ROUND(AJ487,1)-AJ487,2),Round,2,FALSE)+VLOOKUP(AF487,Group,6,FALSE),0)","v":0},{"$f":"IF(VLOOKUP(AF487,Group,7,FALSE)=\"\",0,ROUND(AJ487-0.04999,1)-AJ487+AM487)","v":0},{"$f":"IF(VLOOKUP(AF487,Group,7,FALSE)=\"\",\"\",VLOOKUP(AF487,Group,7,FALSE))","v":""},null,"X"]
[null,"Decos",null,null,"4\" x 8\"",null,"Bullnose",null,"CIBL05","Off White",null,null,null,null,null,"12 PCS/CTN",null,null,15.3,"EA",{"$f":"+Instructions!$B$3","v":"A"},null,{"$f":"+Instructions!$C$22","v":0},15.3,null,"",15.3,0,15.3,0,null,3,15.3,null,null,15.3,0,0,"",null,"X"]
[null,"Decos",null,null,"4\" x 8\"",null,"Bullnose",null,"CIBL07","Deep Blue",null,null,null,null,null,"12 PCS/CTN",null,null,15.3,"EA",{"$f":"+Instructions!$B$3","v":"A"},null,{"$f":"+Instructions!$C$22","v":0},15.3,null,"",15.3,0,15.3,0,null,3,15.3,null,null,15.3,0,0,"",null,"X"]
[null,"Decos",null,null,"4\" x 8\"",null,"Bullnose",null,"CIGR05","Light Grey",null,null,null,null,null,"12 PCS/CTN",null,null,15.3,"EA",{"$f":"+Instructions!$B$3","v":"A"},null,{"$f":"+Instructions!$C$22","v":0},15.3,null,"",15.3,0,15.3,0,null,3,15.3,null,null,15.3,0,0,"",null,"X"]
[null,"Decos",null,null,"4\" x 8\"",null,"Bullnose",null,"CIGR06","Dark Grey",null,null,null,null,null,"12 PCS/CTN",null,null,15.3,"EA",{"$f":"+Instructions!$B$3","v":"A"},null,{"$f":"+Instructions!$C$22","v":0},15.3,null,"",15.3,0,15.3,0,null,3,15.3,null,null,15.3,0,0,"",null,"X"]
[null,"Decos",null,null,"4\" x 8\"",null,"Bullnose",null,"CIJA02","Yellow",null,null,null,null,null,"12 PCS/CTN",null,null,15.3,"EA",{"$f":"+Instructions!$B$3","v":"A"},null,{"$f":"+Instructions!$C$22","v":0},15.3,null,"",15.3,0,15.3,0,null,3,15.3,null,null,15.3,0,0,"",null,"X"]
[null,"Decos",null,null,"4\" x 8\"",null,"Bullnose",null,"CINO03","Antracite",null,null,null,null,null,"12 PCS/CTN",null,null,15.3,"EA",{"$f":"+Instructions!$B$3","v":"A"},null,{"$f":"+Instructions!$C$22","v":0},15.3,null,"",15.3,0,15.3,0,null,3,15.3,null,null,15.3,0,0,"",null,"X"]
[null,"Decos",null,null,"4\" x 8\"",null,"Bullnose",null,"CIRO02","Red",null,null,null,null,null,"12 PCS/CTN",null,null,15.3,"EA",{"$f":"+Instructions!$B$3","v":"A"},null,{"$f":"+Instructions!$C$22","v":0},15.3,null,"",15.3,0,15.3,0,null,3,15.3,null,null,15.3,0,0,"",null,"X"]
[null,"Decos",null,null,"4\" x 8\"",null,"Bullnose",null,"CITA02","Taupe",null,null,null,null,null,"12 PCS/CTN",null,null,15.3,"EA",{"$f":"+Instructions!$B$3","v":"A"},null,{"$f":"+Instructions!$C$22","v":0},15.3,null,"",15.3,0,15.3,0,null,3,15.3,null,null,15.3,0,0,"",null,"X"]
[null,"Decos",null,null,"4\" x 8\"",null,"Bullnose",null,"CIVE02","Green",null,null,null,null,null,"12 PCS/CTN",null,null,15.3,"EA",{"$f":"+Instructions!$B$3","v":"A"},null,{"$f":"+Instructions!$C$22","v":0},15.3,null,"",15.3,0,15.3,0,null,3,15.3,null,null,15.3,0,0,"",null,"X"]
[null,null,null,null,null,null,null,null,null,null,null,null,null,null,null,null,null,null,null,null,null,null,null,null,null,null,null,null,null,null,null,null,null,null,null,null,null,null,null,null,"X"]
[null,"Decos",null,null,"8\" x 8\"",null,"Deco",null,"CIMI01","Classic - Off White/Antracite",null,null,null,null,null,"12 PCS/CTN",null,null,{"$f":"IF(Suggested=\"Yes\",AA498,AG498)","v":8.9499999999999993},"EA",{"$f":"+Instructions!$B$3","v":"A"},null,{"$f":"+Instructions!$C$22","v":0},{"$f":"ROUND($AA498*(1-W498)+0.004999,2)","v":8.9499999999999993},null,"",8.9499999999999993,{"$f":"+W498","v":0},8.9499999999999993,{"$f":"(AG498-AC498)/AG498","v":0},null,3,{"$f":"SUM(AJ498:AL498)+AE498","v":8.9499999999999993},null,null,{"$f":"ROUND(AC498/(1-VLOOKUP(AF498,Group,2,FALSE)),2)","v":8.9499999999999993},{"$f":"IF(VLOOKUP(AF498,Group,5,FALSE)=\"YES\",VLOOKUP(ROUND(ROUND(AJ498,1)-AJ498,2),Round,2,FALSE)+VLOOKUP(AF498,Group,6,FALSE),0)","v":0},{"$f":"IF(VLOOKUP(AF498,Group,7,FALSE)=\"\",0,ROUND(AJ498-0.04999,1)-AJ498+AM498)","v":0},{"$f":"IF(VLOOKUP(AF498,Group,7,FALSE)=\"\",\"\",VLOOKUP(AF498,Group,7,FALSE))","v":""},null,"X"]
[null,"Decos",null,null,"8\" x 8\"",null,"Deco",null,"CIMI02","Classic - Antracite/Off White",null,null,null,null,null,"12 PCS/CTN",null,null,8.9499999999999993,"EA",{"$f":"+Instructions!$B$3","v":"A"},null,{"$f":"+Instructions!$C$22","v":0},8.9499999999999993,null,"",8.9499999999999993,0,8.9499999999999993,0,null,3,8.9499999999999993,null,null,8.9499999999999993,0,0,"",null,"X"]
[null,"Decos",null,null,"8\" x 8\"",null,"Deco",null,"CIMI03","Classic - Off White/Taupe",null,null,null,null,null,"12 PCS/CTN",null,null,8.9499999999999993,"EA",{"$f":"+Instructions!$B$3","v":"A"},null,{"$f":"+Instructions!$C$22","v":0},8.9499999999999993,null,"",8.9499999999999993,0,8.9499999999999993,0,null,3,8.9499999999999993,null,null,8.9499999999999993,0,0,"",null,"X"]
[null,"Decos",null,null,"8\" x 8\"",null,"Deco",null,"CIMI04","Modern - Off White/Antracite",null,null,null,null,null,"12 PCS/CTN",null,null,8.9499999999999993,"EA",{"$f":"+Instructions!$B$3","v":"A"},null,{"$f":"+Instructions!$C$22","v":0},8.9499999999999993,null,"",8.9499999999999993,0,8.9499999999999993,0,null,3,8.9499999999999993,null,null,8.9499999999999993,0,0,"",null,"X"]
[null,"Decos",null,null,"8\" x 8\"",null,"Deco",null,"CIMI05","Classic - Off White/Dark Grey/Light Grey",null,null,null,null,null,"12 PCS/CTN",null,null,8.9499999999999993,"EA",{"$f":"+Instructions!$B$3","v":"A"},null,{"$f":"+Instructions!$C$22","v":0},8.9499999999999993,null,"",8.9499999999999993,0,8.9499999999999993,0,null,3,8.9499999999999993,null,null,8.9499999999999993,0,0,"",null,"X"]
[null,"Decos",null,null,"8\" x 8\"",null,"Deco",null,"CIMI06","Classic - Off White/Dark Grey/Blue",null,null,null,null,null,"12 PCS/CTN",null,null,8.9499999999999993,"EA",{"$f":"+Instructions!$B$3","v":"A"},null,{"$f":"+Instructions!$C$22","v":0},8.9499999999999993,null,"",8.9499999999999993,0,8.9499999999999993,0,null,3,8.9499999999999993,null,null,8.9499999999999993,0,0,"",null,"X"]
[null,"Decos",null,null,"8\" x 8\"",null,"Deco",null,"CIMI08","Classic - Off White/Dark Grey",null,null,null,null,null,"12 PCS/CTN",null,null,8.9499999999999993,"EA",{"$f":"+Instructions!$B$3","v":"A"},null,{"$f":"+Instructions!$C$22","v":0},8.9499999999999993,null,"",8.9499999999999993,0,8.9499999999999993,0,null,3,8.9499999999999993,null,null,8.9499999999999993,0,0,"",null,"X"]
[null,"Decos",null,null,"8\" x 8\"",null,"Deco",null,"CIMI09","Classic - Dark Grey/Light Grey",null,null,null,null,null,"12 PCS/CTN",null,null,8.9499999999999993,"EA",{"$f":"+Instructions!$B$3","v":"A"},null,{"$f":"+Instructions!$C$22","v":0},8.9499999999999993,null,"",8.9499999999999993,0,8.9499999999999993,0,null,3,8.9499999999999993,null,null,8.9499999999999993,0,0,"",null,"X"]
[null,null,null,null,null,null,null,null,null,null,null,null,null,null,null,null,null,null,null,null,null,null,null,null,null,null,null,null,null,null,null,null,null,null,null,null,null,null,null,null,"X"]
[null,null,"continued on next page",null,null,null,null,null,null,null,null,"",null,null,null,null,null,null,null,null,null,null,null,null,null,null,null,null,null,null,null,null,null,null,null,null,null,null,null,null,"X"]
[null,null,"CEMENT TILES - continued",null,null,null,null,null,null,null,null,null,null,null,null,null,null,"Item # Lookup:","BOCECI"]
[null,null,null,null,null,null,null,null,null,null,null,null,null,null,null,null,null,null,null,null,null,null,null,null,null,null,null,null,null,null,null,null,null,null,null,null,null,null,null,null,"X"]
[null,"Decos",null,null,"8\" x 8\"",null,"Deco",null,"CIMI13","Classic Geo Corner - Antracite/Off White",null,null,null,null,null,"12 PCS/CTN",null,null,{"$f":"IF(Suggested=\"Yes\",AA510,AG510)","v":8.9499999999999993},"EA",{"$f":"+Instructions!$B$3","v":"A"},null,{"$f":"+Instructions!$C$22","v":0},{"$f":"ROUND($AA510*(1-W510)+0.004999,2)","v":8.9499999999999993},null,"",8.9499999999999993,{"$f":"+W510","v":0},{"$f":"+X510","v":8.9499999999999993},{"$f":"(AG510-AC510)/AG510","v":0},null,3,{"$f":"SUM(AJ510:AL510)+AE510","v":8.9499999999999993},null,null,{"$f":"ROUND(AC510/(1-VLOOKUP(AF510,Group,2,FALSE)),2)","v":8.9499999999999993},{"$f":"IF(VLOOKUP(AF510,Group,5,FALSE)=\"YES\",VLOOKUP(ROUND(ROUND(AJ510,1)-AJ510,2),Round,2,FALSE)+VLOOKUP(AF510,Group,6,FALSE),0)","v":0},{"$f":"IF(VLOOKUP(AF510,Group,7,FALSE)=\"\",0,ROUND(AJ510-0.04999,1)-AJ510+AM510)","v":0},{"$f":"IF(VLOOKUP(AF510,Group,7,FALSE)=\"\",\"\",VLOOKUP(AF510,Group,7,FALSE))","v":""},null,"X"]
[null,"Decos",null,null,"8\" x 8\"",null,"Deco",null,"CIMI14","Classic Geo - Antracite/Off White",null,null,null,null,null,"12 PCS/CTN",null,null,8.9499999999999993,"EA",{"$f":"+Instructions!$B$3","v":"A"},null,{"$f":"+Instructions!$C$22","v":0},8.9499999999999993,null,"",8.9499999999999993,0,8.9499999999999993,0,null,3,8.9499999999999993,null,null,8.9499999999999993,0,0,"",null,"X"]
[null,"Decos",null,null,"8\" x 8\"",null,"Deco",null,"CIMI18","Modern - Off White/Light Grey",null,null,null,null,null,"12 PCS/CTN",null,null,8.9499999999999993,"EA",{"$f":"+Instructions!$B$3","v":"A"},null,{"$f":"+Instructions!$C$22","v":0},8.9499999999999993,null,"",8.9499999999999993,0,8.9499999999999993,0,null,3,8.9499999999999993,null,null,8.9499999999999993,0,0,"",null,"X"]
[null,"Decos",null,null,"8\" x 8\"",null,"Deco",null,"CIMI20","Modern - Dark Grey/Off White",null,null,null,null,null,"12 PCS/CTN",null,null,8.9499999999999993,"EA",{"$f":"+Instructions!$B$3","v":"A"},null,{"$f":"+Instructions!$C$22","v":0},8.9499999999999993,null,"",8.9499999999999993,0,8.9499999999999993,0,null,3,8.9499999999999993,null,null,8.9499999999999993,0,0,"",null,"X"]
[null,"Decos",null,null,"8\" x 8\"",null,"Deco",null,"CIMI21","Classic - Off White/Dark Grey/Light Grey/Light Blue",null,null,null,null,null,"12 PCS/CTN",null,null,8.9499999999999993,"EA",{"$f":"+Instructions!$B$3","v":"A"},null,{"$f":"+Instructions!$C$22","v":0},8.9499999999999993,null,"",8.9499999999999993,0,8.9499999999999993,0,null,3,8.9499999999999993,null,null,8.9499999999999993,0,0,"",null,"X"]
[null,"Decos",null,null,"8\" x 8\"",null,"Deco",null,"CIMI28","Modern Zebra - Antracite/Off White",null,null,null,null,null,"12 PCS/CTN",null,null,8.9499999999999993,"EA",{"$f":"+Instructions!$B$3","v":"A"},null,{"$f":"+Instructions!$C$22","v":0},8.9499999999999993,null,"",8.9499999999999993,0,8.9499999999999993,0,null,3,8.9499999999999993,null,null,8.9499999999999993,0,0,"",null,"X"]
[null,"Decos",null,null,"8\" x 8\"",null,"Deco",null,"CIMI31","Classic Leaf - Off White/Yellow/Green/Red",null,null,null,null,null,"12 PCS/CTN",null,null,9.5,"EA",{"$f":"+Instructions!$B$3","v":"A"},null,{"$f":"+Instructions!$C$22","v":0},9.5,null,"",9.5,0,9.5,0,null,3,9.5,null,null,9.5,0,0,"",null,"X"]
[null,"Decos",null,null,"8\" x 8\"",null,"Deco",null,"CIMI32","Classic Leaf Corner - Off White/Yellow/Green/Red",null,null,null,null,null,"12 PCS/CTN",null,null,9.5,"EA",{"$f":"+Instructions!$B$3","v":"A"},null,{"$f":"+Instructions!$C$22","v":0},9.5,null,"",9.5,0,9.5,0,null,3,9.5,null,null,9.5,0,0,"",null,"X"]
[null,"Decos",null,null,"8\" x 8\"",null,"Deco",null,"CIMI33","Modern Off Square - Antracite/Off White",null,null,null,null,null,"12 PCS/CTN",null,null,8.9499999999999993,"EA",{"$f":"+Instructions!$B$3","v":"A"},null,{"$f":"+Instructions!$C$22","v":0},8.9499999999999993,null,"",8.9499999999999993,0,8.9499999999999993,0,null,3,8.9499999999999993,null,null,8.9499999999999993,0,0,"",null,"X"]
[null,"Decos",null,null,"8\" x 8\"",null,"Deco",null,"CIMI34","Modern Off Square - Off White/Antracite",null,null,null,null,null,"12 PCS/CTN",null,null,8.9499999999999993,"EA",{"$f":"+Instructions!$B$3","v":"A"},null,{"$f":"+Instructions!$C$22","v":0},8.9499999999999993,null,"",8.9499999999999993,0,8.9499999999999993,0,null,3,8.9499999999999993,null,null,8.9499999999999993,0,0,"",null,"X"]
[null,"Decos",null,null,"8\" x 8\"",null,"Deco",null,"CIMI37","Modern Rectangles - Antracite/Off White/Yellow/Red/Grey",null,null,null,null,null,"12 PCS/CTN",null,null,9.5,"EA",{"$f":"+Instructions!$B$3","v":"A"},null,{"$f":"+Instructions!$C$22","v":0},9.5,null,"",9.5,0,9.5,0,null,3,9.5,null,null,9.5,0,0,"",null,"X"]
[null,"Decos",null,null,"8\" x 8\"",null,"Deco",null,"CIMI43","Modern Web - Light Grey/Off White",null,null,null,null,null,"12 PCS/CTN",null,null,8.9499999999999993,"EA",{"$f":"+Instructions!$B$3","v":"A"},null,{"$f":"+Instructions!$C$22","v":0},8.9499999999999993,null,"",8.9499999999999993,0,8.9499999999999993,0,null,3,8.9499999999999993,null,null,8.9499999999999993,0,0,"",null,"X"]
[null,"Decos",null,null,"8\" x 8\"",null,"Deco",null,"CIMI47","Modern Triangle - Antracite/Off White",null,null,null,null,null,"12 PCS/CTN",null,null,{"$f":"IF(Suggested=\"Yes\",AA522,AG522)","v":8.9499999999999993},"EA",{"$f":"+Instructions!$B$3","v":"A"},null,{"$f":"+Instructions!$C$22","v":0},{"$f":"ROUND($AA522*(1-W522)+0.004999,2)","v":8.9499999999999993},null,"",8.9499999999999993,{"$f":"+W522","v":0},8.9499999999999993,{"$f":"(AG522-AC522)/AG522","v":0},null,3,{"$f":"SUM(AJ522:AL522)+AE522","v":8.9499999999999993},null,null,{"$f":"ROUND(AC522/(1-VLOOKUP(AF522,Group,2,FALSE)),2)","v":8.9499999999999993},{"$f":"IF(VLOOKUP(AF522,Group,5,FALSE)=\"YES\",VLOOKUP(ROUND(ROUND(AJ522,1)-AJ522,2),Round,2,FALSE)+VLOOKUP(AF522,Group,6,FALSE),0)","v":0},{"$f":"IF(VLOOKUP(AF522,Group,7,FALSE)=\"\",0,ROUND(AJ522-0.04999,1)-AJ522+AM522)","v":0},{"$f":"IF(VLOOKUP(AF522,Group,7,FALSE)=\"\",\"\",VLOOKUP(AF522,Group,7,FALSE))","v":""},null,"X"]
[null,"Decos",null,null,"8\" x 8\"",null,"Deco",null,"CIMI51","Modern Flower - Off White/Grey",null,null,null,null,null,"12 PCS/CTN",null,null,{"$f":"IF(Suggested=\"Yes\",AA523,AG523)","v":8.9499999999999993},"EA",{"$f":"+Instructions!$B$3","v":"A"},null,{"$f":"+Instructions!$C$22","v":0},{"$f":"ROUND($AA523*(1-W523)+0.004999,2)","v":8.9499999999999993},null,"",8.9499999999999993,0,8.9499999999999993,{"$f":"(AG523-AC523)/AG523","v":0},null,3,{"$f":"SUM(AJ523:AL523)+AE523","v":8.9499999999999993},null,null,{"$f":"ROUND(AC523/(1-VLOOKUP(AF523,Group,2,FALSE)),2)","v":8.9499999999999993},{"$f":"IF(VLOOKUP(AF523,Group,5,FALSE)=\"YES\",VLOOKUP(ROUND(ROUND(AJ523,1)-AJ523,2),Round,2,FALSE)+VLOOKUP(AF523,Group,6,FALSE),0)","v":0},{"$f":"IF(VLOOKUP(AF523,Group,7,FALSE)=\"\",0,ROUND(AJ523-0.04999,1)-AJ523+AM523)","v":0},{"$f":"IF(VLOOKUP(AF523,Group,7,FALSE)=\"\",\"\",VLOOKUP(AF523,Group,7,FALSE))","v":""},null,"X"]
[null,"Decos",null,null,"8\" x 8\"",null,"Deco",null,"CIMI59","Modern Line Corner - Antracite/Off White",null,null,null,null,null,"12 PCS/CTN",null,null,{"$f":"IF(Suggested=\"Yes\",AA524,AG524)","v":8.9499999999999993},"EA",{"$f":"+Instructions!$B$3","v":"A"},null,{"$f":"+Instructions!$C$22","v":0},{"$f":"ROUND($AA524*(1-W524)+0.004999,2)","v":8.9499999999999993},null,"",8.9499999999999993,0,8.9499999999999993,{"$f":"(AG524-AC524)/AG524","v":0},null,3,{"$f":"SUM(AJ524:AL524)+AE524","v":8.9499999999999993},null,null,{"$f":"ROUND(AC524/(1-VLOOKUP(AF524,Group,2,FALSE)),2)","v":8.9499999999999993},{"$f":"IF(VLOOKUP(AF524,Group,5,FALSE)=\"YES\",VLOOKUP(ROUND(ROUND(AJ524,1)-AJ524,2),Round,2,FALSE)+VLOOKUP(AF524,Group,6,FALSE),0)","v":0},{"$f":"IF(VLOOKUP(AF524,Group,7,FALSE)=\"\",0,ROUND(AJ524-0.04999,1)-AJ524+AM524)","v":0},{"$f":"IF(VLOOKUP(AF524,Group,7,FALSE)=\"\",\"\",VLOOKUP(AF524,Group,7,FALSE))","v":""},null,"X"]
[null,"Decos",null,null,"8\" x 8\"",null,"Deco",null,"CIMI60","Modern Line - Antracite/Off White",null,null,null,null,null,"12 PCS/CTN",null,null,8.9499999999999993,"EA",{"$f":"+Instructions!$B$3","v":"A"},null,{"$f":"+Instructions!$C$22","v":0},8.9499999999999993,null,"",8.9499999999999993,0,8.9499999999999993,0,null,3,8.9499999999999993,null,null,8.9499999999999993,0,0,"",null,"X"]
[null,"Decos",null,null,"8\" x 8\"",null,"Deco",null,"CIMI61","Modern Line Corner - Blue/Off White",null,null,null,null,null,"12 PCS/CTN",null,null,{"$f":"IF(Suggested=\"Yes\",AA526,AG526)","v":8.9499999999999993},"EA",{"$f":"+Instructions!$B$3","v":"A"},null,{"$f":"+Instructions!$C$22","v":0},{"$f":"ROUND($AA526*(1-W526)+0.004999,2)","v":8.9499999999999993},null,"",8.9499999999999993,{"$f":"+W526","v":0},{"$f":"+X526","v":8.9499999999999993},{"$f":"(AG526-AC526)/AG526","v":0},null,3,{"$f":"SUM(AJ526:AL526)+AE526","v":8.9499999999999993},null,null,{"$f":"ROUND(AC526/(1-VLOOKUP(AF526,Group,2,FALSE)),2)","v":8.9499999999999993},{"$f":"IF(VLOOKUP(AF526,Group,5,FALSE)=\"YES\",VLOOKUP(ROUND(ROUND(AJ526,1)-AJ526,2),Round,2,FALSE)+VLOOKUP(AF526,Group,6,FALSE),0)","v":0},{"$f":"IF(VLOOKUP(AF526,Group,7,FALSE)=\"\",0,ROUND(AJ526-0.04999,1)-AJ526+AM526)","v":0},{"$f":"IF(VLOOKUP(AF526,Group,7,FALSE)=\"\",\"\",VLOOKUP(AF526,Group,7,FALSE))","v":""},null,"X"]
[null,"Decos",null,null,"8\" x 8\"",null,"Deco",null,"CIMI62","Modern Line - Blue/Off White",null,null,null,null,null,"12 PCS/CTN",null,null,{"$f":"IF(Suggested=\"Yes\",AA527,AG527)","v":8.9499999999999993},"EA",{"$f":"+Instructions!$B$3","v":"A"},null,{"$f":"+Instructions!$C$22","v":0},{"$f":"ROUND($AA527*(1-W527)+0.004999,2)","v":8.9499999999999993},null,"",8.9499999999999993,{"$f":"+W527","v":0},{"$f":"+X527","v":8.9499999999999993},{"$f":"(AG527-AC527)/AG527","v":0},null,3,{"$f":"SUM(AJ527:AL527)+AE527","v":8.9499999999999993},null,null,{"$f":"ROUND(AC527/(1-VLOOKUP(AF527,Group,2,FALSE)),2)","v":8.9499999999999993},{"$f":"IF(VLOOKUP(AF527,Group,5,FALSE)=\"YES\",VLOOKUP(ROUND(ROUND(AJ527,1)-AJ527,2),Round,2,FALSE)+VLOOKUP(AF527,Group,6,FALSE),0)","v":0},{"$f":"IF(VLOOKUP(AF527,Group,7,FALSE)=\"\",0,ROUND(AJ527-0.04999,1)-AJ527+AM527)","v":0},{"$f":"IF(VLOOKUP(AF527,Group,7,FALSE)=\"\",\"\",VLOOKUP(AF527,Group,7,FALSE))","v":""},null,"X"]
[null,"Decos",null,null,"8\" x 8\"",null,"Deco",null,"CIMI64","Modern Diagonal - Off White/Black/Grey",null,null,null,null,null,"12 PCS/CTN",null,null,8.9499999999999993,"EA",{"$f":"+Instructions!$B$3","v":"A"},null,{"$f":"+Instructions!$C$22","v":0},8.9499999999999993,null,"",8.9499999999999993,0,8.9499999999999993,0,null,3,8.9499999999999993,null,null,8.9499999999999993,0,0,"",null,"X"]
[null,"Decos",null,null,"8\" x 8\"",null,"Deco",null,"CIMI67","Classic - Antracite/Dark Grey/Off White/Red",null,null,null,null,null,"12 PCS/CTN",null,null,9.5,"EA",{"$f":"+Instructions!$B$3","v":"A"},null,{"$f":"+Instructions!$C$22","v":0},9.5,null,"",9.5,0,9.5,0,null,3,9.5,null,null,9.5,0,0,"",null,"X"]
[null,"Decos",null,null,"8\" x 8\"",null,"Deco",null,"CIMI68","Modern Line - Antracite/Dark Grey/Off White",null,null,null,null,null,"12 PCS/CTN",null,null,8.9499999999999993,"EA",{"$f":"+Instructions!$B$3","v":"A"},null,{"$f":"+Instructions!$C$22","v":0},8.9499999999999993,null,"",8.9499999999999993,0,8.9499999999999993,0,null,3,8.9499999999999993,null,null,8.9499999999999993,0,0,"",null,"X"]
[null,"Decos",null,null,"8\" x 8\"",null,"Deco",null,"CIMI73","Modern Flower - Dark Grey/Light Blue",null,null,null,null,null,"12 PCS/CTN",null,null,9.5,"EA",{"$f":"+Instructions!$B$3","v":"A"},null,{"$f":"+Instructions!$C$22","v":0},9.5,null,"",9.5,0,9.5,0,null,3,9.5,null,null,9.5,0,0,"",null,"X"]
[null,"Decos",null,null,"8\" x 8\"",null,"Deco",null,"CIMI74","Modern - White/Black/Red",null,null,null,null,null,"12 PCS/CTN",null,null,{"$f":"IF(Suggested=\"Yes\",AA532,AG532)","v":8.9499999999999993},"EA",{"$f":"+Instructions!$B$3","v":"A"},null,{"$f":"+Instructions!$C$22","v":0},{"$f":"ROUND($AA532*(1-W532)+0.004999,2)","v":8.9499999999999993},null,"",8.9499999999999993,{"$f":"+W532","v":0},{"$f":"+X532","v":8.9499999999999993},{"$f":"(AG532-AC532)/AG532","v":0},null,3,{"$f":"SUM(AJ532:AL532)+AE532","v":8.9499999999999993},null,null,{"$f":"ROUND(AC532/(1-VLOOKUP(AF532,Group,2,FALSE)),2)","v":8.9499999999999993},{"$f":"IF(VLOOKUP(AF532,Group,5,FALSE)=\"YES\",VLOOKUP(ROUND(ROUND(AJ532,1)-AJ532,2),Round,2,FALSE)+VLOOKUP(AF532,Group,6,FALSE),0)","v":0},{"$f":"IF(VLOOKUP(AF532,Group,7,FALSE)=\"\",0,ROUND(AJ532-0.04999,1)-AJ532+AM532)","v":0},{"$f":"IF(VLOOKUP(AF532,Group,7,FALSE)=\"\",\"\",VLOOKUP(AF532,Group,7,FALSE))","v":""},null,"X"]
[null,"Decos",null,null,"8\" x 8\"",null,"Deco",null,"CIMI79","Modern Triangle - Deep Blue/Beige",null,null,null,null,null,"12 PCS/CTN",null,null,9.5,"EA",{"$f":"+Instructions!$B$3","v":"A"},null,{"$f":"+Instructions!$C$22","v":0},9.5,null,"",9.5,0,9.5,0,null,3,9.5,null,null,9.5,0,0,"",null,"X"]
[null,"Decos",null,null,"8\" x 8\"",null,"Deco",null,"CIMI80","Modern 1/4 Circle - Off White/Grey",null,null,null,null,null,"12 PCS/CTN",null,null,8.9499999999999993,"EA",{"$f":"+Instructions!$B$3","v":"A"},null,{"$f":"+Instructions!$C$22","v":0},8.9499999999999993,null,"",8.9499999999999993,0,8.9499999999999993,0,null,3,8.9499999999999993,null,null,8.9499999999999993,0,0,"",null,"X"]
[null,"Decos",null,null,"8\" x 8\"",null,"Deco",null,"CIMI82","Modern Textile - Off White/Dark Grey",null,null,null,null,null,"12 PCS/CTN",null,null,8.9499999999999993,"EA",{"$f":"+Instructions!$B$3","v":"A"},null,{"$f":"+Instructions!$C$22","v":0},8.9499999999999993,null,"",8.9499999999999993,0,8.9499999999999993,0,null,3,8.9499999999999993,null,null,8.9499999999999993,0,0,"",null,"X"]
[null,"Decos",null,null,"8\" x 8\"",null,"Deco",null,"CIMI83","Modern - White/Light Blue/Grey",null,null,null,null,null,"12 PCS/CTN",null,null,8.9499999999999993,"EA",{"$f":"+Instructions!$B$3","v":"A"},null,{"$f":"+Instructions!$C$22","v":0},8.9499999999999993,null,"",8.9499999999999993,0,8.9499999999999993,0,null,3,8.9499999999999993,null,null,8.9499999999999993,0,0,"",null,"X"]
[null,"Decos",null,null,"8\" x 8\"",null,"Deco",null,"CIMI106","Classic - Off White/Anthracite Grey Mix",null,null,null,null,null,"12 PCS/CTN",null,null,8.9499999999999993,"EA",{"$f":"+Instructions!$B$3","v":"A"},null,{"$f":"+Instructions!$C$22","v":0},8.9499999999999993,null,"",8.9499999999999993,0,8.9499999999999993,0,null,3,8.9499999999999993,null,null,8.9499999999999993,0,0,"",null,"X"]
[null,null,null,null,null,null,null,null,null,null,null,null,null,null,null,null,null,null,null,null,null,null,null,null,null,null,null,null,null,null,null,null,null,null,null,null,null,null,null,null,"X"]
[null,"Decos",null,null,"8\" Hexagon",null,"Field",null,"CIBL03","Off White",null,null,null,null,null,"12 PCS/CTN",null,null,{"$f":"IF(Suggested=\"Yes\",AA539,AG539)","v":8.5},"EA",{"$f":"+Instructions!$B$3","v":"A"},null,{"$f":"+Instructions!$C$22","v":0},{"$f":"ROUND($AA539*(1-W539)+0.004999,2)","v":8.5},null,"",8.5,{"$f":"+W539","v":0},8.5,{"$f":"(AG539-AC539)/AG539","v":0},null,3,{"$f":"SUM(AJ539:AL539)+AE539","v":8.5},null,null,{"$f":"ROUND(AC539/(1-VLOOKUP(AF539,Group,2,FALSE)),2)","v":8.5},{"$f":"IF(VLOOKUP(AF539,Group,5,FALSE)=\"YES\",VLOOKUP(ROUND(ROUND(AJ539,1)-AJ539,2),Round,2,FALSE)+VLOOKUP(AF539,Group,6,FALSE),0)","v":0},{"$f":"IF(VLOOKUP(AF539,Group,7,FALSE)=\"\",0,ROUND(AJ539-0.04999,1)-AJ539+AM539)","v":0},{"$f":"IF(VLOOKUP(AF539,Group,7,FALSE)=\"\",\"\",VLOOKUP(AF539,Group,7,FALSE))","v":""},null,"X"]
[null,"Decos",null,null,"8\" Hexagon",null,"Field",null,"CIGR03","Light Grey",null,null,null,null,null,"12 PCS/CTN",null,null,{"$f":"IF(Suggested=\"Yes\",AA540,AG540)","v":8.5},"EA",{"$f":"+Instructions!$B$3","v":"A"},null,{"$f":"+Instructions!$C$22","v":0},{"$f":"ROUND($AA540*(1-W540)+0.004999,2)","v":8.5},null,"",8.5,0,8.5,{"$f":"(AG540-AC540)/AG540","v":0},null,3,{"$f":"SUM(AJ540:AL540)+AE540","v":8.5},null,null,{"$f":"ROUND(AC540/(1-VLOOKUP(AF540,Group,2,FALSE)),2)","v":8.5},{"$f":"IF(VLOOKUP(AF540,Group,5,FALSE)=\"YES\",VLOOKUP(ROUND(ROUND(AJ540,1)-AJ540,2),Round,2,FALSE)+VLOOKUP(AF540,Group,6,FALSE),0)","v":0},{"$f":"IF(VLOOKUP(AF540,Group,7,FALSE)=\"\",0,ROUND(AJ540-0.04999,1)-AJ540+AM540)","v":0},{"$f":"IF(VLOOKUP(AF540,Group,7,FALSE)=\"\",\"\",VLOOKUP(AF540,Group,7,FALSE))","v":""},null,"X"]
[null,"Decos",null,null,"8\" Hexagon",null,"Field",null,"CIGR04","Dark Grey",null,null," ",null,null,"12 PCS/CTN",null,null,{"$f":"IF(Suggested=\"Yes\",AA541,AG541)","v":8.5},"EA",{"$f":"+Instructions!$B$3","v":"A"},null,{"$f":"+Instructions!$C$22","v":0},{"$f":"ROUND($AA541*(1-W541)+0.004999,2)","v":8.5},null,"",8.5,0,8.5,{"$f":"(AG541-AC541)/AG541","v":0},null,3,{"$f":"SUM(AJ541:AL541)+AE541","v":8.5},null,null,{"$f":"ROUND(AC541/(1-VLOOKUP(AF541,Group,2,FALSE)),2)","v":8.5},{"$f":"IF(VLOOKUP(AF541,Group,5,FALSE)=\"YES\",VLOOKUP(ROUND(ROUND(AJ541,1)-AJ541,2),Round,2,FALSE)+VLOOKUP(AF541,Group,6,FALSE),0)","v":0},{"$f":"IF(VLOOKUP(AF541,Group,7,FALSE)=\"\",0,ROUND(AJ541-0.04999,1)-AJ541+AM541)","v":0},{"$f":"IF(VLOOKUP(AF541,Group,7,FALSE)=\"\",\"\",VLOOKUP(AF541,Group,7,FALSE))","v":""},null,"X"]
[null,"Decos",null,null,"8\" Hexagon",null,"Field",null,"CINO02","Antracite",null,null,null,null,null,"12 PCS/CTN",null,null,{"$f":"IF(Suggested=\"Yes\",AA542,AG542)","v":8.5},"EA",{"$f":"+Instructions!$B$3","v":"A"},null,{"$f":"+Instructions!$C$22","v":0},{"$f":"ROUND($AA542*(1-W542)+0.004999,2)","v":8.5},null,"",8.5,0,8.5,{"$f":"(AG542-AC542)/AG542","v":0},null,3,{"$f":"SUM(AJ542:AL542)+AE542","v":8.5},null,null,{"$f":"ROUND(AC542/(1-VLOOKUP(AF542,Group,2,FALSE)),2)","v":8.5},{"$f":"IF(VLOOKUP(AF542,Group,5,FALSE)=\"YES\",VLOOKUP(ROUND(ROUND(AJ542,1)-AJ542,2),Round,2,FALSE)+VLOOKUP(AF542,Group,6,FALSE),0)","v":0},{"$f":"IF(VLOOKUP(AF542,Group,7,FALSE)=\"\",0,ROUND(AJ542-0.04999,1)-AJ542+AM542)","v":0},{"$f":"IF(VLOOKUP(AF542,Group,7,FALSE)=\"\",\"\",VLOOKUP(AF542,Group,7,FALSE))","v":""},null,"X"]
[null,null,null,null,null,null,null,null,null,null,null,null,null,null,null,null,null,null,null,null,null,null,null,null,null,null,null,null,null,null,null,null,null,null,null,null,null,null,null,null,"X"]
[null,"Decos",null,null,"8\" Hexagon",null,"Deco",null,"CIMI22","Modern - Off White/Antracite",null,null,null,null,null,"12 PCS/CTN",null,null,{"$f":"IF(Suggested=\"Yes\",AA544,AG544)","v":8.9},"EA",{"$f":"+Instructions!$B$3","v":"A"},null,{"$f":"+Instructions!$C$22","v":0},{"$f":"ROUND($AA544*(1-W544)+0.004999,2)","v":8.9},null,"",8.9,{"$f":"+W544","v":0},8.9,{"$f":"(AG544-AC544)/AG544","v":0},null,3,{"$f":"SUM(AJ544:AL544)+AE544","v":8.9},null,null,{"$f":"ROUND(AC544/(1-VLOOKUP(AF544,Group,2,FALSE)),2)","v":8.9},{"$f":"IF(VLOOKUP(AF544,Group,5,FALSE)=\"YES\",VLOOKUP(ROUND(ROUND(AJ544,1)-AJ544,2),Round,2,FALSE)+VLOOKUP(AF544,Group,6,FALSE),0)","v":0},{"$f":"IF(VLOOKUP(AF544,Group,7,FALSE)=\"\",0,ROUND(AJ544-0.04999,1)-AJ544+AM544)","v":0},{"$f":"IF(VLOOKUP(AF544,Group,7,FALSE)=\"\",\"\",VLOOKUP(AF544,Group,7,FALSE))","v":""},null,"X"]
[null,"Decos",null,null,"8\" Hexagon",null,"Deco",null,"CIMI23","Modern - Antracite/Off White",null,null,null,null,null,"12 PCS/CTN",null,null,{"$f":"IF(Suggested=\"Yes\",AA545,AG545)","v":8.9},"EA",{"$f":"+Instructions!$B$3","v":"A"},null,{"$f":"+Instructions!$C$22","v":0},{"$f":"ROUND($AA545*(1-W545)+0.004999,2)","v":8.9},null,"",8.9,0,8.9,{"$f":"(AG545-AC545)/AG545","v":0},null,3,{"$f":"SUM(AJ545:AL545)+AE545","v":8.9},null,null,{"$f":"ROUND(AC545/(1-VLOOKUP(AF545,Group,2,FALSE)),2)","v":8.9},{"$f":"IF(VLOOKUP(AF545,Group,5,FALSE)=\"YES\",VLOOKUP(ROUND(ROUND(AJ545,1)-AJ545,2),Round,2,FALSE)+VLOOKUP(AF545,Group,6,FALSE),0)","v":0},{"$f":"IF(VLOOKUP(AF545,Group,7,FALSE)=\"\",0,ROUND(AJ545-0.04999,1)-AJ545+AM545)","v":0},{"$f":"IF(VLOOKUP(AF545,Group,7,FALSE)=\"\",\"\",VLOOKUP(AF545,Group,7,FALSE))","v":""},null,"X"]
[null,"Decos",null,null,"8\" Hexagon",null,"Deco",null,"CIMI45","Modern - Antracite/Grey",null,null,null,null,null,"12 PCS/CTN",null,null,{"$f":"IF(Suggested=\"Yes\",AA546,AG546)","v":8.9},"EA",{"$f":"+Instructions!$B$3","v":"A"},null,{"$f":"+Instructions!$C$22","v":0},{"$f":"ROUND($AA546*(1-W546)+0.004999,2)","v":8.9},null,"",8.9,0,8.9,{"$f":"(AG546-AC546)/AG546","v":0},null,3,{"$f":"SUM(AJ546:AL546)+AE546","v":8.9},null,null,{"$f":"ROUND(AC546/(1-VLOOKUP(AF546,Group,2,FALSE)),2)","v":8.9},{"$f":"IF(VLOOKUP(AF546,Group,5,FALSE)=\"YES\",VLOOKUP(ROUND(ROUND(AJ546,1)-AJ546,2),Round,2,FALSE)+VLOOKUP(AF546,Group,6,FALSE),0)","v":0},{"$f":"IF(VLOOKUP(AF546,Group,7,FALSE)=\"\",0,ROUND(AJ546-0.04999,1)-AJ546+AM546)","v":0},{"$f":"IF(VLOOKUP(AF546,Group,7,FALSE)=\"\",\"\",VLOOKUP(AF546,Group,7,FALSE))","v":""},null,"X"]
[null,"Decos",null,null,"8\" Hexagon",null,"Deco",null,"CIMI46","Modern - Off White/Grey",null,null,null,null,null,"12 PCS/CTN",null,null,{"$f":"IF(Suggested=\"Yes\",AA547,AG547)","v":8.9},"EA",{"$f":"+Instructions!$B$3","v":"A"},null,{"$f":"+Instructions!$C$22","v":0},{"$f":"ROUND($AA547*(1-W547)+0.004999,2)","v":8.9},null,"",8.9,0,8.9,{"$f":"(AG547-AC547)/AG547","v":0},null,3,{"$f":"SUM(AJ547:AL547)+AE547","v":8.9},null,null,{"$f":"ROUND(AC547/(1-VLOOKUP(AF547,Group,2,FALSE)),2)","v":8.9},{"$f":"IF(VLOOKUP(AF547,Group,5,FALSE)=\"YES\",VLOOKUP(ROUND(ROUND(AJ547,1)-AJ547,2),Round,2,FALSE)+VLOOKUP(AF547,Group,6,FALSE),0)","v":0},{"$f":"IF(VLOOKUP(AF547,Group,7,FALSE)=\"\",0,ROUND(AJ547-0.04999,1)-AJ547+AM547)","v":0},{"$f":"IF(VLOOKUP(AF547,Group,7,FALSE)=\"\",\"\",VLOOKUP(AF547,Group,7,FALSE))","v":""},null,"X"]
[null,"Decos",null,null,"8\" Hexagon",null,"Deco",null,"CIMI48","Modern Double Hex - Light Grey/Off White",null,null,null,null,null,"12 PCS/CTN",null,null,{"$f":"IF(Suggested=\"Yes\",AA548,AG548)","v":8.9},"EA",{"$f":"+Instructions!$B$3","v":"A"},null,{"$f":"+Instructions!$C$22","v":0},{"$f":"ROUND($AA548*(1-W548)+0.004999,2)","v":8.9},null,"",8.9,0,8.9,{"$f":"(AG548-AC548)/AG548","v":0},null,3,{"$f":"SUM(AJ548:AL548)+AE548","v":8.9},null,null,{"$f":"ROUND(AC548/(1-VLOOKUP(AF548,Group,2,FALSE)),2)","v":8.9},{"$f":"IF(VLOOKUP(AF548,Group,5,FALSE)=\"YES\",VLOOKUP(ROUND(ROUND(AJ548,1)-AJ548,2),Round,2,FALSE)+VLOOKUP(AF548,Group,6,FALSE),0)","v":0},{"$f":"IF(VLOOKUP(AF548,Group,7,FALSE)=\"\",0,ROUND(AJ548-0.04999,1)-AJ548+AM548)","v":0},{"$f":"IF(VLOOKUP(AF548,Group,7,FALSE)=\"\",\"\",VLOOKUP(AF548,Group,7,FALSE))","v":""},null,"X"]
[null,null,null,null,null,null,null,null,null,null,null,null,null,null,null,null,null,null,null,null,null,null,null,null,null,null,null,null,null,null,null,null,null,null,null,null,null,null,null,null,"X"]
[null,null,null,null,null,null,null,null,null,null,null,null,null,null,null,null,null,null,null,null,null,null,null,null,null,null,null,null,null,null,null,null,null,null,null,null,null,null,null,null,"X"]
[null,null,null,null,null,null,null,null,null,null,null,null,null,null,null,null,null,null,null,null,null,null,null,null,null,null,null,null,null,null,null,null,null,null,null,null,null,null,null,null,"X"]
[null,null,null,"Material is a cement based product.  Colored decoratives are comprised of cement, pigments, and natural stone material.",null,null,null,null,null,null,null,null,null,null,null,null,null,null,null,null,null,null,null,null,null,null,null,null,null,null,null,null,null,null,null,null,null,null,null,null,"X"]
[null,null,null,null,null,null,null,null,null,null,null,null,null,null,null,null,null,null,null,null,null,null,null,null,null,null,null,null,null,null,null,null,null,null,null,null,null,null,null,null,"X"]
[null,null,null,"Product must be sealed with Laticrete Stonetech BulletProof Sealer at least (1) coat prior to grouting and an additional (2) coats after grouting.",null,null,null,null,null,null,null,null,null,null,null,null,null,null,null,null,null,null,null,null,null,null,null,null,null,null,null,null,null,null,null,null,null,null,null,null,"X"]
[null,null,null,null,null,null,null,null,null,null,null,null,null,null,null,null,null,null,null,null,null,null,null,null,null,null,null,null,null,null,null,null,null,null,null,null,null,null,null,null,"X"]
[null,null,null,"The use of epoxy is NOT recommended for the installation of Cement Tiles.  Product is typically set with a grout joint 3/64\"-5/64\", therefore a non-sanded grout (Laticrete 1600 Series or Permacolor NS) or a sanded grout formulated for narrow joints (Laticrete Permacolor) should be used.  Due to the nature of the product, white or very light grout colors should be selected.",null,null,null,null,null,null,null,null,null,null,null,null,null,null,null,null,null,null,null,null,null,null,null,null,null,null,null,null,null,null,null,null,null,null,null,null,"X"]
[null,null,null,null,null,null,null,null,null,null,null,null,null,null,null,null,null,null,null,null,null,null,null,null,null,null,null,null,null,null,null,null,null,null,null,null,null,null,null,null,"X"]
[null,null,null,"Cement tiles may have residue on the surface.  These residues will be removed during the initial cleaning of the tiles, before grouting.  It is also recommended to wipe the back of the tiles with a damp sponge prior to placing in the thin set to remove concrete dust residue and enable proper adhesion.",null,null,null,null,null,null,null,null,null,null,null,null,null,null,null,null,null,null,null,null,null,null,null,null,null,null,null,null,null,null,null,null,null,null,null,null,"X"]
[null,null,null,null,null,null,null,null,null,null,null,null,null,null,null,null,null,null,null,null,null,null,null,null,null,null,null,null,null,null,null,null,null,null,null,null,null,null,null,null,"X"]
[null,null,null,"After installation the surface must be cleaned with a neutral detergent, (1/4 part detergent & 3/4 part water).  Do not use an acid based cleaner after installation.  Any extra residue or mortar should be removed immediately.  Do not allow water or other liquids to spot or pond on the surface of smooth tiles.  (Do not leave drips or wet buckets, cups, foot marks, etc. on the surface at any time.)",null,null,null,null,null,null,null,null,null,null,null,null,null,null,null,null,null,null,null,null,null,null,null,null,null,null,null,null,null,null,null,null,null,null,null,null,"X"]
[null,null,null,null,null,null,null,null,null,null,null,null,null,null,null,null,null,null,null,null,null,null,null,null,null,null,null,null,null,null,null,null,null,null,null,null,null,null,null,null,"X"]
[null,null,"This price list is available electronically on an Excel spreadsheet at www.conestogatile.com/pricelists.",null,null,null,null,null,null,null,null,null,null,null,null,null,null,null,null,null,null,null,null,null,null,null,null,null,null,null,null,null,null,null,null,null,null,null,null,null,"X"]
[null,null,null,null,null,null,null,null,null,null,null,null,null,null,null,null,null,null,null,null,null,null,null,null,null,null,null,null,null,null,null,null,null,null,null,null,null,null,null,null,"X"]
[null,null,"The spreadsheet has many special features to assist you.  Apply your discount to generate your net costs for your purchasing department.  Apply your standard gross margin percentage or custom prices to generate your own custom price list for your showroom.  Print out individual price list for each series that can be attached to the back of your sample boards for easy reference."]
[]
["X","X","X","X","X","X","X","X","X","X","X","X","X","X","X","X","X","X","X","X","X","X","X","X","X","X","X","X","X","X","X","X","X","X","X","X","X","X","X","X","X"]
[]
[null,null,null,"$.05 Round Matrix"]
[null,null,null,-0.04,0.01]
[null,null,null,-0.03,0.02]
[null,null,null,-0.02,0.03]
[null,null,null,-0.01,-0.01]
[null,null,null,0,0]
[null,null,null,0.01,1.0000000000005116E-2]
[null,null,null,0.02,2.0000000000003126E-2]
[null,null,null,0.03,3.0000000000001137E-2]
[null,null,null,0.04,-0.01]
[null,null,null,0.05,0]

{"sheet":"Websites","index":3,"n_rows":8,"n_cols":2,"rows_kept":8,"cut":false,"hidden":false,"merged":[]}
["Easy Access Website links"]
[]
["ConestogaTile's Website","http://www.conestogatile.com/"]
[]
["Manufacturer's Home Page","https://www.batiorientusa.com/en/home"]
[]
[]
["Product","Direct Website Link"]

{"sheet":"Changes","index":4,"n_rows":626,"n_cols":15,"rows_kept":626,"cut":false,"hidden":false,"merged":[]}
["Date Announced","Series"]
[]
["New Products"]
[]
["2013-04-01","Decorative Mosaics"]
["2013-04-01","Marble"]
["2013-04-01","Pebbles"]
["2013-04-01","Quartzite / Slate"]
["2013-05-28","Decorative Mosaics"]
["2013-05-28","Marble"]
["2013-05-28","Marble"]
["2013-05-28","Pebbles"]
["2013-05-28","Quartzite / Slate"]
["2013-05-28","Quartzite / Slate"]
["2014-08-12","ARRO16 - Slate / Beige & Brown Glass 12\" x 11.6\" Mosaic"]
["      \"","ARRO17 - Slate / Beige & Brown Glass 12\" x 12\" Mosaic"]
["      \"","MABL75/30 - White 5-1/2\" x 12\" Border"]
["      \"","MACA02/30 - Cappuccino 5-1/2\" x 12\" Border"]
["      \"","MACA03 - Cappuccino 11.6\" x 12\" Mosaic"]
["      \"","MAGR89/30 - Grey 5-1/2\" x 12\" Border"]
["      \"","MAGR92 - Dark Grey 11.6\" x 12\" Mosaic"]
["      \"","MAMI92 - Marble / Beige & Brown Glass 12\" x 12\" Mosaic"]
["      \"","MAMI93 - Marble / Beige & Brown Glass 12\" x 12\" Mosaic"]
["      \"","MAMI94 - Marble / Black, Grey & White Glass 12\" x 12\" Mosaic"]
["      \"","MAMI95 - Marble / Black, Grey & White Glass 12\" x 12\" Mosaic"]
["      \"","MAMI96/30 - White / Grey / Dark Grey 5-1/2\" x 12\" Border"]
["      \"","MAMI101 - Black 12\" x 12\" Mosaic",null,null,null,null," "]
["      \"","MAMI102 - Black 4\" x 12\" Border"]
["      \"","MAMI103 - Beige 12\" x 12\" Mosaic"]
["      \"","MAMI104 - Beige 4\" x 12\" Border"]
["      \"","MAMI119 - Beige / Shell Brown 11.6\" x 12\" Mosaic"]
["      \"","MAMI120 - Beige / White / Shell Beige 11.6\" x 12\" Mosaic"]
["      \"","MAMI123 - Cappuccino / Onyx Cream 11.6\" x 12\" Mosaic"]
["      \"","PIMI19 - White / Grey / Silver 4\" x 12\" Border"]
["      \"","PIMI21 - Taupe / Gold 4\" x 12\" Border"]
["      \"","PIMI23 - White / Grey / Red 4\" x 12\" Border"]
["      \"","PIMI24 - Zebra 2\" x 2\" White / Black Décor 12\" x 12\" Mosaic"]
["      \"","QUMI17 - Grey / Beige Glass / Quartzite / Metal 12\" x 12\" Mosaic"]
["      \"","VEMI65 - Blue / Light Blue / White 3\" x 7.9\" Border "]
["      \"","VEMI66 - Black / Grey / White 3\" x 7.9\" Border  "]
["      \"","VEMI68 - Green / Orange / Red 3\" x 7.9\" Border  "]
["      \"","VEMI100 - Mix Grey / Glass / Inox 12\" x 12\" Mosaic"]
["      \"","VEMI114 - White / Grey / Glass 12\" x 12\" Mosaic"]
["2015-05-14","ARNO19 - Black Slate 4\" x 4\", 12\" x 12\" Mosaic"]
["2015-05-14","ARNO20 - Black Slate 4\" x 13.78\" Wall Cladding"]
["2015-05-14","ARNO21 - Black Slate 4\" x 7.87\" Wall Cladding Corner"]
["2015-05-14","ARRO18 - Rust Slate 4\" x 4\", 12\" x 12\" Mosaic"]
["2015-05-14","ARRO19 - Rust Slate 4\" x 13.78\" Wall Cladding"]
["2015-05-14","ARRO21 - Rust Slate 4\" x 7.87\" Wall Cladding Corner"]
["2015-05-14","MAMI50 - Blue Glass / Shell Mix 12\" x 12\" Mosaic"]
["2015-05-14","MAMI134 - White Marble / White & Turquoise Glass Mix 12\" x 12\" Mosaic"]
["2015-05-14","MEMI21 - Brushed / Silver / White Glass 12\" x 12\" Mosaic"]
["2015-05-14","MEMI22 - Brushed / Black / White Glass 12\" x 12\" Mosaic"]
["2015-05-14","MEMI29 - Grey Mix / Brushed Aluminum 12\" x 12\" Mosaic"]
["2015-05-14","MEMI32 - Taupe Mix / Brushed Aluminum 12\" x 12\" Mosaic"]
["2015-05-14","MEMI35 - Black / Mix Steel / Grey Glass 12\" x 12\" Mosaic"]
["2015-05-14","MEMI36 - Silver / Mix Steel / Grey Glass 12\" x 12\" Mosaic"]
["2015-05-14","PIGR16 - Quartzite Grey 12\" x 12\" Mosaic"]
["2015-05-14","PIGR17 - Quartzite Grey / Silver Glass Mix 12\" x 12\" Mosaic"]
["2015-05-14","QUMA03 - Quartzite Brown 12\" x 12\" Mosaic"]
["2015-05-14","QUMI18 - Quartzite Mix Beige / Glass Mix 12.2\" x 12.4\" Mosaic"]
["2015-05-14","QUMI19 - Quartzite Brown / White, Gold Glass 12\" x 12\" Mosaic"]
["2015-05-14","VEBE02 - Beige Glass / Ceramic 12\" x 12\" Mosaic"]
["2015-05-14","VEBL11 - White Glass Golf Mix 11.6\" x 11.6\" Mosaic"]
["2015-05-14","VEBL40 - Turquoise Glass / Ceramic 12\" x 12\" Mosaic"]
["2015-05-14","VEGR06 - Grey Matte & Polished Glass Mix 12\" x 12\" Mosaic"]
["2015-05-14","VEGR08 - Grey Glass \"Golf\" Mix 11.6\" x 11.6\" Mosaic"]
["2015-05-14","VEGR13 - Teal-Grey Glass Broken Edges 12.2\" x 12.4\" Mosaic"]
["2015-05-14","VEGR35 - Grey Glass / Ceramic 12\" x 12\" Mosaic"]
["2015-05-14","VEMA10 - Brown Matte & Polished Glass Mix 12\" x 12\" Mosaic"]
["2015-05-14","VEMA11 - Brown Glass Broken Edges 12.2\" x 12.4\" Mosaic"]
["2015-05-14","VEMA12 - Brown Glass \"Golf\" Mix 11.6\" x 11.6\" Mosaic"]
["2015-05-14","VEMI98 - Blue Glass & Décor 12\" x 12\" Mosaic"]
["2015-05-14","VEMI113 - Caramel Glass & Décor 12\" x 12\" Mosaic"]
["2015-05-14","VEMI118 - Grey Glass / Chrome 12\" x 12\" Mosaic"]
["2015-05-14","VEMI120 - White Glass / Chrome 12\" x 12\" Mosaic"]
["2015-05-14","VEMI121 - Black Glass \"Golf\" Mix 11.6\" x 11.6\" Mosaic"]
["2015-05-14","VEMI123 - Mix Grey Glass / Green Jean Print / Steel 12\" x 12\" Mosaic"]
["2015-05-14","VENO03 - Black Matte & Polished Glass Mix 12\" x 12\" Mosaic"]
["2015-05-14","VENO12 - Black Glass Broken Edges 12.2\" x 12.4\" Mosaic"]
["2016-06-06","ARNO10 - Black 12\" x 12\" Mosaic"]
["2016-06-06","BOMA01 - Natural Wood Look 13\" x 14.4\" Mosaic "]
["2016-06-06","BOMA04 - Natural Wood Look 21\" x 8\" Mosaic"]
["2016-06-06","BOMI01 - Washed Wood Look 13\" x 14.4\" Mosaic"]
["2016-06-06","BOMI04 - Washed Wood Look 21\" x 8\" Mosaic"]
["2016-06-06","GABL25 - White 6\" x 12\" Mosaic"]
["2016-06-06","GAMI76 - Mix Grey / Green / White 12\" x 12\" Mosaic"]
["2016-06-06","GAMI78 - Mix Beige / Pink / White 12\" x 12\" Mosaic"]
["2016-06-06","GAMI92 - Golden Mix 6\" x 12\" Mosaic"]
["2016-06-06","GANO21 - Black 6\" x 12\" Mosaic"]
["2016-06-06","MABL03 - White 11\" x 12\" Mosaic"]
["2016-06-06","MABL57 - Onyx Beige 11.6\" x 11.6\" Mosaic"]
["2016-06-06","MABL93 - White Marble 11.8\" x 12\" Mosaic"]
["2016-06-06","MABL95 - White Marble 12\" x 12\" Mosaic"]
["2016-06-06","MABL96 - White Marble 3.2\" x 12\" Rope Cladding"]
["2016-06-06","MAGR03 - Grey 11\" x 12\" Mosaic"]
["2016-06-06","MAMI143 - Black Glass / Marble 12\" x 12\" Mosaic"]
["2016-06-06","MAMI144 - Black / White Glass 12\" x 12\" Mosaic"]
["2016-06-06","MAMI25 - Beige Marble / Brown Glass/ Décor 12\" x 12\" Mosaic"]
["2016-06-06","MANO62 - Black Marble 3.2\" x 12\" Rope Cladding"]
["2016-06-06","MARO41 - Red 11.6\" x 11.6\" Mosaic"]
["2016-06-06","MEMI47 - Aluminum / Grey Glass 12\" x 12\" Mosaic"]
["2016-06-06","MEMI49 - Aluminum / White Glass 12\" x 12\" Mosaic"]
["2016-06-06","PIBE24 - Beige Sandstone 11.8\" x 12\" Mosaic"]
["2016-06-06","PIBE25 - Beige Sandstone 6\" x 12\" Rope Cladding"]
["2016-06-06","PIBL10 - White 12\" x 12\" Mosaic"]
["2016-06-06","PIBL11 - White 4\" x 12\" Border"]
["2016-06-06","PIBL12 - White 12\" x 12\" Mosaic"]
["2016-06-06","PIBL13 - White 4\" x 12\" Border"]
["2016-06-06","PIBL14 - White 12\" x 12\" Mosaic"]
["2016-06-06","PIBL15 - White 4\" x 12\" Border"]
["2016-06-06","PIGR28 - Grey 12\" x 12\" Mosaic"]
["2016-06-06","PIGR29 - Grey 4\" x 12\" Border"]
["2016-06-06","PIGR30 - Light Grey 12\" x 12\" Mosaic"]
["2016-06-06","PIGR31 - Light Grey 4\" x 12\" Border"]
["2016-06-06","PIMI25 - Black Stone / Turquoise Ceramic Mix 12\" x 12\" Mosaic"]
["2016-06-06","PIMI26 - Black / White 12\" x 12\" Mosaic"]
["2016-06-06","PIMI27 - Black / White 4\" x 12\" Mosaic"]
["2016-06-06","PIMI28 - Black 12\" x 12\" Mosaic"]
["2016-06-06","PIMI29 - Black 4\" x 12\" Mosaic"]
["2016-06-06","PIMI30 - White Marble 11.8\" x 12\" Mosaic"]
["2016-06-06","PIMI31 - Sandstone / Multi Beige Ceramic Mix 12\" x 12\" Mosaic"]
["2016-06-06","PIMI32 - Black Stone / Grey & White Ceramic Mix 12\" x 12\" Mosaic"]
["2016-06-06","PINO21 - Black Marble 11.8\" x 12\" Mosaic"]
["2016-06-06","QUBE13 - Beige 12\" x 12\" Mosaic"]
["2016-06-06","QUGR04 - Quartzite Grey 12\" x 12\" Mosaic"]
["2016-06-06","QUMI20 - White Marble 11.8\" x 12\" Mosaic"]
["2016-06-06","VEBL12 - White Matte & Glossy Mix 12\" x 12\" Mosaic"]
["2016-06-06","VEBL41 - White Glass / Marble 12\" x 12\" Mosaic"]
["2016-06-06","VEBL43 - White Glass 11.5\" x 12\" Mosaic"]
["2016-06-06","VEGR14 - Grey Matte & Glossy Mix 12\" x 12\" Mosaic"]
["2016-06-06","VEGR39 - Black / Grey / White Glass 12\" x 12\" Mosaic"]
["2016-06-06","VEMA13 - Taupe Matte & Glossy Mix 12\" x 12\" Mosaic"]
["2016-06-06","VENO04 - Black Matte & Glossy Mix 12\" x 12\" Mosaic"]
["2016-06-06","VENO34 - Black Glass / Marble / Steel 12\" x 12\" Mosaic"]
["2016-06-06","VENO36 - Black Glass 11.5\" x 12\" Mosaic"]
["2016-06-06","VERO33 - Red Glass 12\" x 12\" Mosaic"]
["2016-06-06","VEVE40 - Blue Green Glass 12\" x 12\" Mosaic"]
["2017-01-06","Cement Tiles"]
["2017-05-31","ARNO22 - Black Slate Baguette Squares"]
["2017-05-31","GABL26 - White"]
["2017-05-31","GANO22 - Black Mix"]
["2017-05-31","GANO23 - Black"]
["2017-05-31","MABE123 - Beige Nature Print"]
["2017-05-31","MABG01 - White"]
["2017-05-31","MACA04 - Cappuccino Mix"]
["2017-05-31","MAGR103 - Grey / White Mix"]
["2017-05-31","MAGR104 - Grey Mix"]
["2017-05-31","MAGR105 - Grey Nature Print"]
["2017-05-31","MAGR106 - Black / Grey / White Mix"]
["2017-05-31","MAMI145 - White / Grey Stone Mix"]
["2017-05-31","MAMI146 - White / Beige Stone Mix"]
["2017-05-31","MAMI147 - White Stone / Glass Mix"]
["2017-05-31","MAMI148 - White Stone / Grey Glass Mix"]
["2017-05-31","MAMI149 - White / Grey / Beige Stone / Glass Mix"]
["2017-05-31","MAMI150 - Grey / Black Stone / Aluminum Mix"]
["2017-05-31","MAMI151 - Grey / Green / Beige Stone Mix"]
["2017-05-31","MAMI152 - White / Grey / Black Mix"]
["2017-05-31","MAMI153 - Grey / Black Stone / Aluminum Mix"]
["2017-05-31","MEMI51 - Wood / Gold Aluminum"]
["2017-05-31","MEMI52 - Wood / Silver Aluminum"]
["2017-05-31","PIBL16 - White Paladiana"]
["2017-05-31","PIBL17 - White Paladiana"]
["2017-05-31","PIBL18 - White"]
["2017-05-31","PIBL19 - White"]
["2017-05-31","PIGR32 - Grey Paladiana"]
["2017-05-31","PIGR33 - Grey Paladiana"]
["2017-05-31","PIGR34 - Grey"]
["2017-05-31","PIGR35 - Grey"]
["2017-05-31","QUBE23 - Beige / Grey Quartzite"]
["2017-05-31","QUBE24 - Beige / Grey Quartzite"]
["2017-05-31","VEGR41 - Light Grey Glass Wood Look"]
["2017-05-31","VEGR42 - Grey Mix Glass Wood Look"]
["2017-05-31","VEGR43 - Black / Grey Mix Glass"]
["2017-05-31","VEMI130 - Grey / Beige Glass Wood Look"]
["2017-05-31","VEMI131 - Grey / Dark Grey Glass Wood Look"]
["2017-05-31","VEMI134 - Beige Mix Glass Wood Look"]
["2017-05-31","VEMI135 - Beige / Brown Mix Glass Wood Look"]
["2017-05-31","VEMI136 - Black / Grey Mix Glass Wood Look"]
["2017-05-31","VEMI137 - Grey Mix Glass Wood Look"]
["2017-05-31","VEMI138 - Grey / Green / Beige Stone & Glass Mix"]
["2018-01-02","Cement Tiles - Colors and patterns added."]
["2018-06-12","CEBL17 Ceramic Patchwork Square Blue 11.8\" x 11.8\" Mosaic"]
["2018-06-12","CEBL18 Ceramic Patchwork Square Blue & White Mix 11.8\" x 11.8\" Mosaic"]
["2018-06-12","CEBL19 Ceramic Patchwork Diamond Blue 11.8\" x 11.8\" Mosaic"]
["2018-06-12","CEMI09 Ceramic Patchwork Square Black & White Mix 11.8\" x 11.8\" Mosaic"]
["2018-06-12","CEMI11 Ceramic Patchwork Rectangle Multi Color 3\" x 11.8\" Wall Field"]
["2018-06-12","GABE19 Sliced Onyx Crema Polished 11.8\" x 11.8\" Mosaic"]
["2018-06-12","GABE20 Sliced Onyx Yellow Brown Polished 11.8\" x 11.8\" Mosaic"]
["2018-06-12","GAGR09 Marble Striped Sliced Tumbled Grey 11.8\" x 11.8\" Mosaic"]
["2018-06-12","GAMI94 Deco Print Marble Grey Matte 11.8\" x 11.8\" Mosaic"]
["2018-06-12","GAVE09 Sliced Onyx Jade Brown Polished 11.8\" x 11.8\" Mosaic"]
["2018-06-12","MABE124 Sandstone Circle Design Sand 4\" x 4\" Field"]
["2018-06-12","MAGR107 Hexagon Limestone Multi Finish Grey 12.5\" x 12.5\" Mosaic"]
["2018-06-12","MAGR108 Brick Limestone Multi Finish Grey 11.7\" x 11.7\" Mosaic"]
["2018-06-12","MAGR109 Brick Limestone Sand Blasted Grey 11.7\" x 11.7\" Mosaic"]
["2018-06-12","MAGR110 3D Diamond Limestone Multi Finish Grey 12.4\" x 9.5\" Mosaic"]
["2018-06-12","MAGR111 Sandstone Circle Design Sand Blasted Grey  9 PCS/CTN 4\" x 4\" Field"]
["2018-06-12","MAMI163 Hexagon Mix Glass / Marble Silver Grey 9.8\" x 12\" Mosaic"]
["2018-06-12","MAMI164 Mother Of Pearl Glass / Marble White Mix Brick 11.4\" x 12\" Mosaic"]
["2018-06-12","MAMI165 Mother Of Pearl Glass / Marble Taupe Grey Mix Brick 11.4\" x 12\" Mosaic"]
["2018-06-12","MAMI166 Mother Of Pearl Glass / Marble White Mix 11.7\" x 11.7\" Mosaic"]
["2018-06-12","MAMI167 Mother Of Pearl Glass / Marble Beige Brown Mix 11.7\" x 11.7\" Mosaic"]
["2018-06-12","MAMI168 Hexagon Mix Marble / Aluminum Multi Finish Silver 11.2\" x 10.4\" Mosaic"]
["2018-06-12","MEMI54 Aluminum Patchwork Design Silver Black Mix Matte 11.8\" x 11.8\" Mosaic"]
["2018-06-12","MEMI56 Baguette Glass / Metal Mix Beige Grey 11.2\" x 11.7\" Mosaic"]
["2018-06-12","MEMI57 Diamond Glass / Aluminum Mix Silver Grey 13\" x 8.9\" Mosaic"]
["2018-06-12","VEBL42 Glass Linear Grey Mix Brick Glossy 12\" x 12\" Mosaic"]
["2018-06-12","VEBL45 Glass Baguette Blue Mix Matte 11.8\" x 11.7\" Mosaic"]
["2018-06-12","VEBL46 Glass Classic Décor Blue Glossy 11.8\" x 11.8\" Mosaic"]
["2018-06-12","VEGR47 Glass Brick Multi Deco Grey Mix 11.7\" x 11.7\" Mosaic"]
["2018-06-12","VEGR48 Glass Classic Décor Grey Black Glossy 11.8\" x 11.8\" Mosaic"]
["2018-06-12","VEMI35 Glass Patchwork Black Grey Mix Glossy 11.7\" x 11.7\" Mosaic"]
["2018-06-12","VEMI77 Stacked Square Wood Look Beige Brown Blue Matte 11.7\" x 11.7\" Mosaic"]
["2018-06-12","VEMI78 Stacked Square Wood Look Beige Brown Matte 11.7\" x 11.7\" Mosaic"]
["2018-06-12","VEMI79 Stacked Square Wood Look Grey Beige Matte 11.7\" x 11.7\" Mosaic"]
["2018-06-12","VEMI143 Herringbone Wood Look Beige Brown Matte 11\" x 11.1\" Mosaic"]
["2018-06-12","VEMI144 Herringbone Wood Look Grey Beige Matte 11\" x 11.1\" Mosaic"]
["2018-06-12","VEMI145 Herringbone Wood Look Beige Brown Blue Matte 11\" x 11.1\" Mosaic"]
["2018-06-12","VEMI148 Fabric Print Grey Blue Matte / Polished Mix 10.3\" x 11.7\" Mosaic"]
["2018-06-12","VEMI149 Fabric Print Grey Matte / Polished Mix 10.3\" x 11.7\" Mosaic"]
["2018-06-12","VEMI150 Fabric Print Beige Matte / Polished Mix 10.3\" x 11.7\" Mosaic"]
["2018-06-12","VEMI151 Fabric Print Brick Grey Blue Matte 10.3\" x 11.7\" Mosaic"]
["2018-06-12","VEMI152 Fabric Print Brick Grey Matte 10.3\" x 11.7\" Mosaic"]
["2018-06-12","VEMI153 Hexagon Glass Silver Matte 11.6\" x 10.1\" Mosaic"]
["2018-06-12","VEMI154 Glass Square Silver Glossy 11.8\" x 11.8\" Mosaic"]
["2018-06-12","VENO35 Glass Linear Black Grey Mix Brick Glossy 12\" x 12\" Mosaic"]
["2018-06-12","VERO42 Glass Linear Fushia Brick Glossy 12\" x 12\" Mosaic"]
["2019-09-13","BOBO08 Fossil Wood Stone Beige Brown Mix"]
["2019-09-13","BOBO09 Fossil Wood Stone Beige Brown Mix"]
["2019-09-13","CEBE06 Ceramic Basket Weave Wood Look Beige Mix"]
["2019-09-13","CEGR20 Ceramic Striped Squares Grey Mix"]
["2019-09-13","CEGR21 Ceramic Striped Baguette Grey Mix"]
["2019-09-13","CEGR22 Ceramic Basket Weave Wood Look Grey Mix"]
["2019-09-13","CEMI28 Ceramic Striped Squares Beige / Brown Mix"]
["2019-09-13","CEMI29 Ceramic Striped Baguette Beige / Brown Mix"]
["2019-09-13","MAMI174 Hexagon Mother Of Pearl Glass / Marble Beige Mix"]
["2019-09-13","MAMI175 Hexagon Mother Of Pearl Glass / Marble White Mix"]
["2019-09-13","PIBE27 Hexagon Fabric Print Patchwork Off White / Beige Mix"]
["2019-09-13","PIBE28 Basket Weave Fabric Print Patchwork Off White / Beige Mix"]
["2019-09-13","PIBE29 Baguette Fabric Print Patchwork Off White / Beige Mix"]
["2019-09-13","PIBL20 Cement Patchwork Design Grey / White Mix"]
["2019-09-13","PIBL21 Cement Patchwork Design Blue / White Mix"]
["2019-09-13","PIBL22 Square Fabric Print Patchwork Super White"]
["2019-09-13","PIBL23 Hexagon Fabric Print Patchwork Super White"]
["2019-09-13","PIBL24 Basket Weave Fabric Print Patchwork Super White"]
["2019-09-13","PIBL25 Baguette Fabric Print Patchwork Super White"]
["2019-09-13","PIGR38 Hexagon Fabric Print Patchwork Super White / Grey Mix"]
["2019-09-13","PIGR39 Basket Weave Fabric Print Patchwork Super White / Grey Mix"]
["2019-09-13","PIGR40 Baguette Fabric Print Patchwork Super White / Grey Mix"]
["2019-09-13","VEMI155 Glass Brick Glossy Silver"]
["2019-09-13","VEMI156 Glass Patchwork Glossy & Matte White / Grey Mix"]
["2020-06-23","CEBL25 Mini Subway White Glazed Porcelain 2\" x 4\""]
["2020-06-23","CEBL29 Blue & White Palm Tree Pattern Glazed Ceramic 3\" x 3\""]
["2020-06-23","CEBL30 Blue Mix Geometric Pattern Glazed Ceramic 4\" x 4\""]
["2020-06-23","CEMA04 Gold Brown Mix Flower Pattern Glazed Ceramic 3\" x 3\""]
["2020-06-23","CEMI45 Multi Color Beige Mix Deco Brick Pattern Matte Glazed Ceramic 1\" x 3\""]
["2020-06-23","CEMI46 Black & White Palm Tree Pattern Glazed Ceramic 3\" x 3\""]
["2020-06-23","CEMI47 Grey Blue Mix Triangle Glazed Ceramic 3\""]
["2020-06-23","CENO31 Mini Subway Black Glazed Porcelain 2\" x 4\""]
["2020-06-23","GAGR10 Light Grey Mix Shiny Engineered Stone Pebble"]
["2020-06-23","GAGR11 Light Grey Mix Matte Engineered Stone Pebble"]
["2020-06-23","GAGR12 Grey Mix Shiny Engineered Stone Pebble"]
["2020-06-23","GAGR13 Grey Mix Matte Engineered Stone Pebble"]
["2020-06-23","GAMI100 Grey Beige Mix Matte Engineered Stone Pebble"]
["2020-06-23","GAMI95 Black Beige Blue Mix Shiny Engineered Stone Pebble"]
["2020-06-23","GAMI96 Black Beige Blue Mix Matte Engineered Stone Pebble"]
["2020-06-23","GAMI97 Grey Blue Mix Shiny Engineered Stone Pebble"]
["2020-06-23","GAMI98 Grey Blue Mix Matte Engineered Stone Pebble"]
["2020-06-23","GAMI99 Grey Beige Mix Shiny Engineered Stone Pebble"]
["2020-06-23","GANO24 Black Mix Shiny Engineered Stone Pebble"]
["2020-06-23","GANO25 Black Mix Matte Engineered Stone Pebble"]
["2020-06-23","MABL104 White Mix Marble"]
["2020-06-23","MACA05 Brown Beige Mix Marble"]
["2020-06-23","PIBL29 Palm Tree Blue & White Engineered Stone 3\" x 3\""]
["2020-06-23","PIGR43 Plant Print Deco Black Grey Mix Engineered Stone 3\" x 3\""]
["2020-06-23","PIGR44 Palm Tree Black & White Engineered Stone 3\" x 3\""]
["2020-06-23","PIMI36 White Grey Mix Mini Stone"]
["2020-06-23","VEBL48 Onyx Pattern Blue Glass 2\" x 4\""]
["2020-06-23","VEGR50 Onyx Pattern Grey Glass 2\" x 4\""]
["2020-06-23","VEVE43 Onyx Pattern Grey Green Glass 2\" x 4\""]
["2020-06-23","(Cement Tiles) CIMI74 Modern - White/Black/Red"]
["2020-06-23","(Cement Tiles) CIMI106 Classic - Off White/Anthracite Grey Mix"]
["2021-08-30","CEBL36 Ceramic Wood Rectangles Mix Grey 0.7\" x 4\""]
["2021-08-30","CEGR28 Silver Industrial Relief Pattern Glazed Ceramic 4\" x 4\""]
["2021-08-30","CEGR29 Silver Industrial Linear Relief Pattern Glazed Ceramic 2.8\" x 6\""]
["2021-08-30","CEMI48 Rust Industrial Relief Pattern Glazed Ceramic 4\" x 4\""]
["2021-08-30","CEMI49 Rust Industrial Linear Relief Pattern Glazed Ceramic 2.8\" x 6\""]
["2021-08-30","CEMI50 Ceramic Wood Rectangles Mix Beige Blue 0.7\" x 4\""]
["2021-08-30","CEMI51 Aztec Native Series Black & White Glazed Ceramic 4\" x 4\""]
["2021-08-30","CEMI52 Island Native Series Black & White Glazed Ceramic 4\" x 4\""]
["2021-08-30","CEMI53 Maori Native Series Black & White Glazed Ceramic 4\" x 4\""]
["2021-08-30","GABL27 White Sliced Polished Pebble"]
["2021-08-30","GAVE11 Crystal Green Semi-Precious Stone"]
["2021-08-30","MABL105 Opus White Marble"]
["2021-08-30","MAGR113 Opus Light Grey Marble"]
["2021-08-30","MAJA52 Yellow/Beige Mix Opus"]
["2021-08-30","MEAR22 Medium Hexagon Silver Aluminum"]
["2021-08-30","MEAR23 Mini Hexagon Silver Aluminum"]
["2021-08-30","MEMI58 Hexagon Mix Metallic Green Rust"]
["2021-08-30","MEOR10 Medium Hexagon Gold Aluminum"]
["2021-08-30","MEOR11 Mini Hexagon Gold Aluminum"]
["2021-08-30","PIMI40 Lantern Terrazzo Marble White Grey"]
["2021-08-30","PIMI41 Long Hexagon Terrazzo Marble White Grey Black Mix"]
["2021-08-30","PIMI42 Mini Opus Terrazzo Marble White Grey Black Mix"]
["2021-08-30","VEBL49 Glass Pool Striped Light Blue 3\" x 3\""]
["2021-08-30","VEBL50 Glass Pool Striped Cobalt Blue 3\" x 3\""]
["2021-08-30","VEBL51 Linear Acqua Glass Brick Pattern 2\" x 4\""]
["2021-08-30","VEGR51 Linear Dark Grey Glass Brick Pattern 2\" x 4\""]
["2021-08-30","VEGR52 Linear Light Grey Glass Brick Pattern 2\" x 4\""]
["2021-08-30","VEMI163 Beige Green Glass Geometric Random Pattern 4\" x 4\""]
["2021-08-30","VEVE44 Glass Pool Striped Aquamarine 3\" x 3\""]
["2022-06-20","CEBE09 2\" x 4\" Glazed Ceramic Beige Mix Rough Surface",null,null,null,null,null,null,null,null,null,null,null,null,{"$f":"G313&\" \"&I313","v":" "}]
["2022-06-20","CEGR32 2\" x 4\" Glazed Ceramic Grey Beige Mix Rough Surface",null,null,null,null,null,null,null,null,null,null,null,null,{"$f":"G314&\" \"&I314","v":" "}]
["2022-06-20","CEMA07 Beige Brown Mix Wood 1.1\" x 4\" Glazed Ceramic",null,null,null,null,null,null,null,null,null,null,null,null," "]
["2022-06-20","CEMI64 4\" x 4\" Floral Palm Grey Beige",null,null,null,null,null,null,null,null,null,null,null,null," "]
["2022-06-20","CEMI67 Multicolor Wood 1.1\" x 4\" Glazed Ceramic",null,null,null,null,null,null,null,null,null,null,null,null," "]
["2022-06-20","CEMI68 4\" x 4\" Floral Multicolor",null,null,null,null,null,null,null,null,null,null,null,null," "]
["2022-06-20","MAGR116 Elongated Hexagon Ice Grey Leaves",null,null,null,null,null,null,null,null,null,null,null,null," "]
["2022-06-20","MAGR117 2\" x 4\" Brick Ice Grey",null,null,null,null,null,null,null,null,null,null,null,null," "]
["2022-06-20","MAGR118 Elongated Hexagon White Grey Leaves",null,null,null,null,null,null,null,null,null,null,null,null," "]
["2022-06-20","MAGR119 2\" x 4\" Brick White Grey",null,null,null,null,null,null,null,null,null,null,null,null," "]
["2022-06-20","MAMI180 2\" x 2\" Marble & Glass White Mix",null,null,null,null,null,null,null,null,null,null,null,null," "]
["2022-06-20","MAMI181 Glass 2\" x 2\" Grey Mix",null,null,null,null,null,null,null,null,null,null,null,null," "]
["2022-06-20","MAMI182 Elongated Hexagon Royal Vein Leaves",null,null,null,null,null,null,null,null,null,null,null,null," "]
["2022-06-20","MAMI183 2\" x 4\" Brick Royal Vein",null,null,null,null,null,null,null,null,null,null,null,null," "]
["2022-06-20","MAMI184 Hexagon Royal Vein",null,null,null,null,null,null,null,null,null,null,null,null," "]
["2022-06-20","MAMI185 Baguette Royal Vein",null,null,null,null,null,null,null,null,null,null,null,null," "]
["2022-06-20","MEMI59 2\" x 2\" Blue Aluminum Mix",null,null,null,null,null,null,null,null,null,null,null,null," "]
["2022-06-20","MEMI60 Aluminum & Marble Leaves Silver Grey Brown",null,null,null,null,null,null,null,null,null,null,null,null," "]
["2022-06-20","MEMI61 Aluminum Hexagon Silver Brown",null,null,null,null,null,null,null,null,null,null,null,null," "]
["2022-06-20","MEMI63 Aluminum & Marble Semi Circle Silver Brown",null,null,null,null,null,null,null,null,null,null,null,null," "]
["2022-06-20","VEBL55 Glass Pebble Blue Marble Pattern Mix",null,null,null,null,null,null,null,null,null,null,null,null," "]
["2022-06-20","VEBL56 Glass Square Blue Marble Pattern Mix",null,null,null,null,null,null,null,null,null,null,null,null," "]
["2022-06-20","VEBL57 Glass Pebble Light Grey Marble Pattern Mix",null,null,null,null,null,null,null,null,null,null,null,null," "]
["2022-06-20","VEBL58 Glass Square Light Grey Marble Pattern Mix",null,null,null,null,null,null,null,null,null,null,null,null," "]
["2022-06-20","VEBL64 Glass Tears White",null,null,null,null,null,null,null,null,null,null,null,null," "]
["2022-06-20","VEGR53 Glass Pebble Grey Mix Marble Pattern Mix",null,null,null,null,null,null,null,null,null,null,null,null," "]
["2022-06-20","VEGR54 Glass Square Grey Mix Marble Pattern Mix",null,null,null,null,null,null,null,null,null,null,null,null," "]
["2023-06-14","BOFO01 Cubic Fossil Wood Stone 11.8\" x 11.8\""]
["2023-06-14","CEBE10 Slate Stone Beige Glazed Ceramic 2\" x 6\" Brick 11.8\" x 12.2\""]
["2023-06-14","CEBL47 Zellige Glazed Ceramic White 3\" x 3\" 11.2\" x 11.2\""]
["2023-06-14","CEBL48 Zellige Glazed Ceramic Soft Blue Mix 3\" x 3\" 11.2\" x 11.2\"",null,null,null,null,null,null,null,null,null,null," "]
["2023-06-14","CEBL49 White Brick Pattern Glossy Glazed Ceramic 2\" x 6\" 11.2\" x 11.6\""]
["2023-06-14","CEGR35 Zellige Glazed Ceramic Grey Mix 3\" x 3\" 11.2\" x 11.2\""]
["2023-06-14","CEGR36 Slate Stone Grey Glazed Ceramic 2\" x 6\" Brick 11.8\" x 12.2\""]
["2023-06-14","CEGR37 Grey Mix Pattern Deco Brick Matte Glazed Porcelain 1\" x 3\" 11.8\" x 11.8\""]
["2023-06-14","CENO40 Black Brick Pattern Glossy Glazed Ceramic 2\" x 6\" 11.2\" x 11.6\""]
["2023-06-14","CEVE16 Zellige Glazed Ceramic Soft Green Mix 3\" x 3\" 11.2\" x 11.2\""]
["2023-06-14","ECO08 Black Slate 2\" x 2\" 11.8\" x 11.8\""]
["2023-06-14","ECO09 Rust Slate 2\" x 2\" 11.8\" x 11.8\""]
["2023-06-14","ECO11 Grey Mix Sliced Matte Pebble 11.8\" x 11.8\""]
["2023-06-14","ECO12 Grey Mix Mini Opus Marble 11.8\" x 11.8\""]
["2023-06-14","ECO13 Round Marble Light & Dark Grey Mix 11.8\" x 11.8\""]
["2023-06-14","ECO14 Round Marble Off White Mix 11.8\" x 11.8\""]
["2023-06-14","ECO21 Glass Stripe Effect Polished 2\" x 2\" Grey Mix 11.8\" x 11.8\""]
["2023-06-14","ECO23 Baguette Glass Polished Grey Brown Mix 11.8\" x 11.8\""]
["2023-06-14","ECO24 Glass Polished Grey Mix 1\" x 1\" 11.8\" x 11.8\""]
["2023-06-14","ECO25 Baguette Glass Polished Grey Mix 11.8\" x 11.8\"",null,null,null,null,null,null,null,null,null,null," "]
["2023-06-14","ECO27 Glass Brick 1\" x 2\" Glossy Silver 11.8\" x 11.8\""]
["2023-06-14","ECO28 White Glass & Aluminum Mix 11.6\" x 11.7\""]
["2023-06-14","GABE21 Onyx Light Beige Pebble 11.8\" x 12\""]
["2023-06-14","MABL109 Herringbone Crystal White Marble Polished 1\" x 2\" 11\" x 11\""]
["2023-06-14","MABL110 Crystal White Multicolor Marble Diamond Honed 11.4\" x 11.3\""]
["2023-06-14","MABL111 Crystal White Marble Scale Polished 11.7\" x 11.1\""]
["2023-06-14","MAMI186 Grey White Multicolor Marble Diamond Honed 11.4\" x 11.3\""]
["2023-06-14","MEGR01 Hexagon Aluminum Mix Grey 11.4\" x 12.2\""]
["2023-06-14","MEMI64 Hexagon Aluminum Mix Green Grey Beige 11.4\" x 12.2\""]
["2023-06-14","MENO09 Black 3D Metal Mix Finish 2\" x 2\" 11.5\" x 11.5\""]
["2023-06-14","VEMI166 Multicolor Square Mix Glass Resin 11.8\" x 11.8\""]
["2024-01-18","VEMI134 Beige Mix Wood Look Squares Recycled Glass","(Bati mistakenly indicated that this mosaic was discontinued back in November 2021.)"]
["2024-05-29","MABE131 Mini Opus Matte Beige Brown Marble Stone"]
["2024-05-29","MABE132 6\" x 6\" Green Palm Leaf Printed Beige Marble"]
["2024-05-29","MABE133 3\" x 3\" Cross & Star Beige Marble"]
["2024-05-29","MABL117 Mini Opus Matte White Grey Marble Stone"]
["2024-05-29","MABL118 6\" x 6\" Grey Palm Leaf Printed White Marble"]
["2024-05-29","MABL119 2\" x 4\" Brick Pattern White Grey Marble"]
["2024-05-29","MABL120 2\" x 6\" Picket White Grey Marble",null,null,null,null,null,null,null,null,null,null," "]
["2024-05-29","MABL121 Irregular Hexagon White Grey Marble"]
["2024-05-29","MABL122 3\" x 3\" Cross & Star White Grey Marble"]
["2024-05-29","MAGR120 Beige Limestone Matte Mini Opus"]
["2024-05-29","MAGR121 Mini Opus Matte Grey Mix Marble Stone"]
["2024-05-29","MAMI187 Mini Opus Beige Grey Marble Mix & Blue Glass"]
["2024-05-29","MAMI188 Mini Opus Beige Grey Marble Mix & Green Glass"]
["2024-05-29","MAMI191 2\" x 6\" Elongated Round White Grey Beige Marble Mix"]
["2024-05-29","MAMI192 2\" x 6\" Picket White Grey Beige Marble Mix"]
["2024-05-29","MAMI193 Star & Square White & Grey Mix Marble"]
["2024-05-29","MAMI194 Star & Square White & Beige Mix Marble"]
["2024-05-29","VEBL63 3\" x 3\" White Glass Mosaic"]
["2025-05-01","BEGR03 Grey Concrete Circle Mix Mosaic"]
["2025-05-01","BEGR04 Grey Concrete Multi Star Mix Mosaic"]
["2025-05-01","BEMI13 Red White Square Mix Mosaic"]
["2025-05-01","BEMI14 Grey Mix Square Mix Mosaic"]
["2025-05-01","BERO01 Red Concrete Circle Mix Mosaic"]
["2025-05-01","BERO02 Red Concrete Multi Star Mix Mosaic","VEMI169",null,"Multicolor Frosted Glass Round Pebble",null,null,{"$f":"C395&\" \"&E395","v":"VEMI169 Multicolor Frosted Glass Round Pebble"}]
["2025-05-01","BOFO03 New Fossil Wood Brick Mosaic","VEMI170",null,"Beige Blue Mix Frosted Glass Brick 2\" x 6\"",null,null,{"$f":"C396&\" \"&E396","v":"VEMI170 Beige Blue Mix Frosted Glass Brick 2\" x 6\""}]
["2025-05-01","GAMI100 Multicolor Sliced Pebble Mosaic",null,null,null,null,null,{"$f":"C397&\" \"&E397","v":" "}]
["2025-05-01","GAMI101 Multicolor Sliced Pebble Mix Mosaic",null,null,null,null,null," "]
["2025-05-01","MABE134 Beige Marble 1\" x 6\" Baguette",null,null,null,null,null," "]
["2025-05-01","MABL125 White Marble 1\" x 6\" Baguette",null,null,null,null,null," "]
["2025-05-01","MAGR122 Hexagon Grey Mix Honed Marble 4\" x 5\"",null,null,null,null,null," "]
["2025-05-01","MAMI197 Hexagon Beige Brown Mix Honed Marble 4\" x 5\"",null,null,null,null,null," "]
["2025-05-01","MAMI198 Blue Mother of Pearl Glass Mix 1\" x 1\""]
["2025-05-01","MAMI199 Blue Mother of Pearl Glass Mix 1/2\" x 1\" Brick"]
["2025-05-01","MAMI203 Black Marble & Black Ceramic Picket & Square Mix"]
["2025-05-01","MAMI204 White Mix Marble & White Ceramic Picket & Square Mix"]
["2025-05-01","MAMI205 Beige Marble & Off White Ceramic Picket & Square Mix"]
["2025-05-01","MAVE04 Green Bali Stone 4\" x 4\""]
["2025-05-01","MEMI66 Multicolor Round Aluminum"]
["2025-05-01","MEMI67 Wood Look Round Aluminum"]
["2025-05-01","VEBE09 White Beige Frosted Glass Round Pebble"]
["2025-05-01","VEBE10 Beige Mix Frosted Glass Brick 2\" x 6\""]
["2025-05-01","VEBL65 White Blue Frosted Glass Round Pebble"]
["2025-05-01","VEGR56 Grey Mix Frosted Glass Brick 2\" x 6\""]
["2025-05-01","VEMI169 Multicolor Frosted Glass Round Pebble"]
["2025-05-01","VEMI170 Beige Blue Mix Frosted Glass Brick 2\" x 6\""]
[]
[]
[]
["Discontinued Products"]
[]
["2015-09-01","MAMI31 - Gold / White Glass 12\" x 12\" Mosaic"]
["2015-09-01","MAMI52 - Red / Red Glass / Shell Mix 12\" x 12\" Mosaic"]
["2015-09-01","MAMI81 - Brown / Beige / Orange 12\" x 12\" Mosaic"]
["2015-09-01","MENO05 - Pebble Black 12.2\" x 12.2\" Mosaic"]
["2015-09-01","MENO06 - Penny Round Black 12.2\" x 12.2\" Mosaic"]
["2015-09-01","PIMI11 - Mix Beige / Brown 12\" x 12\" Mosaic"]
["2015-09-01","PIMI12 - Mix Beige / Brown 4\" x 12\" Border"]
["2015-09-01","QUMI08 - Silver Grey Polished / Blue Glass 12\" x 12\" Mosaic"]
["2015-09-01","QUMI09 - Silver Grey Polished / Red Glass 12\" x 12\" Mosaic"]
["2015-09-01","QUMI10 - Silver Grey Natural / Turquoise Glass 12\" x 12\" Mosaic"]
["2015-09-01","QUVE05 - Green 12\" x 12\" Mosaic"]
["2015-09-01","QUVE07 - Green 4-3/4\" x 12\" Border"]
["2015-09-01","QUVE10 - Green 12\" x 12\" Mosaic"]
["2015-09-01","VEBL38 - Turquoise Glass 11.8\" x 23.8\" Décor"]
["2015-09-01","VEMI88 - Beige / Yellow Glass 12\" x 12\" Mosaic"]
["2015-09-01","VEMI110 - Mix Red / Steel / White Glass 12\" x 12\" Mosaic"]
["2016-06-06","QUVE02 - Green 12\" x 12\" Mosaic"]
["2017-01-30","ARNO10 - Black 12\" x 12\" Mosaic"]
["2017-01-30","GAPE01 - Mix Peach 12\" x 12\" Mosaic"]
["2017-01-30","GAPE02/30 - Mix Peach 4\" x 12\" Border"]
["2017-01-30","MAMI13 - White / Red 11\" x 12\" Mosaic"]
["2017-01-30","MARO41 - Red 11.6\" x 11.6\" Mosaic"]
["2017-01-30","MEMI21 - Brushed / Silver / White Glass 12\" x 12\" Mosaic"]
["2017-01-30","MEMI22 - Brushed / Black / White Glass 12\" x 12\" Mosaic"]
["2017-01-30","QUMI19 - Quartzite Brown / White, Gold Glass 12\" x 12\" Mosaic"]
["2017-01-30","VEMA12 - Brown Glass \"Golf\" Mix 11.6\" x 11.6\" Mosaic"]
["2017-01-30","VEMI121 - Black Glass \"Golf\" Mix 11.6\" x 11.6\" Mosaic"]
["2017-05-31","MABL93 - White Marble 11.8\" x 12\" Mosaic"]
["2018-05-30","MAMI25 - Beige Marble / Brown Glass/ Décor 12\" x 12\" Mosaic"]
["2018-05-30","MEMI35 - Black / Mix Steel / Grey Glass 12\" x 12\" Mosaic"]
["2018-05-30","MEMI36 - Silver / Mix Steel / Grey Glass 12\" x 12\" Mosaic"]
["2018-05-30","VEMA13 - Taupe Matte & Glossy Mix 12\" x 12\" Mosaic"]
["2018-12-28","ARRO18 - Rust Slate 4\" x 4\" 12\" x 12\" Mosaic"]
["2018-12-28","GABL26 - White 12\" x 12\" Mosaic"]
["2018-12-28","GAMI78 - Mix Beige / Pink / White 12\" x 12\" Mosaic"]
["2018-12-28","GANO22 - Black Mix 12\" x 12\" Mosaic"]
["2018-12-28","MABL03 - White 11\" x 12\" Mosaic"]
["2018-12-28","MAMI144 - Black / White Glass 12\" x 12\" Mosaic"]
["2018-12-28","MEMI32 - Taupe Mix / Brushed Aluminum 12\" x 12\" Mosaic"]
["2018-12-28","PIBE24 - Beige Sandstone 11.8\" x 12\" Mosaic"]
["2018-12-28","PIBE25 - Beige Sandstone 6\" x 12\" Rope Cladding"]
["2018-12-28","QUBE01 - Beige 12\" x 12\" Mosaic"]
["2018-12-28","QUBE03 - Beige 4-3/4\" x 12\" Border"]
["2018-12-28","QUGR04 - Quartzite Grey 12\" x 12\" Mosaic"]
["2018-12-28","VEMI80 - Brown / Brown Glass 12\" x 12\" Mosaic","(Bati mistakenly indicated that this mosaic was discontinued on their February 1st, 2019 price list.)"]
["2018-12-28","VEMI84 - Mix Steel / Dark Grey Glass 12\" x 12\" Mosaic","(Bati mistakenly indicated that this mosaic was discontinued on their February 1st, 2019 price list.)"]
["2019-09-13","MABL96 - White Marble 3/4\" x 12\" Rope"]
["2020-06-23","GAMI01 Mix White / Brown"]
["2020-06-23","GAMI08/30 Mix White / Brown"]
["2020-06-23","GAMI88 Mix White / Brown"]
["2020-06-23","GAMI89/30 Mix White / Brown"]
["2020-06-23","GAMI94 Deco Print Marble Grey Matte"]
["2020-06-23","MABE124 Sandstone Circle Design Sand Blasted Beige"]
["2020-06-23","MAGR111 Sandstone Circle Design Sand Blasted Grey"]
["2020-06-23","MAMI148 White Stone / Grey Glass Mix"]
["2020-06-23","MAMI21 White / Red"]
["2020-06-23","MAMI53 Black / Grey Glass / Shell Mix"]
["2020-06-23","MAMI84 Mix Color"]
["2020-06-23","MARO01 Red"]
["2020-06-23","MARO02/30 Red"]
["2020-06-23","PIBL22 Square Fabric Print Patchwork Super White"]
["2020-06-23","PIBL23 Hexagon Fabric Print Patchwork Super White"]
["2020-06-23","PIBL24 Basket Weave Fabric Print Patchwork Super White"]
["2020-06-23","PIBL25 Baguette Fabric Print Patchwork Super White"]
["2020-06-23","PIGR17 Quartzite Grey / Silver Glass Mix"]
["2020-06-23","VEGR14 Grey Matte & Glossy Mix"]
["2020-06-23","VEMI149 Fabric Print Grey Matte / Polished Mix"]
["2020-06-23","VEMI150 Fabric Print Beige Matte / Polished Mix"]
["2021-08-24","GABE16 Beige Stacked Pebble"]
["2021-08-24","GABE20 Sliced Onyx Yellow Brown Polished Pebble"]
["2021-08-24","GAGR12 Grey Mix Shiny Engineered Stone Pebble"]
["2021-08-24","GAGR13 Grey Mix Matte Engineered Stone Pebble"]
["2021-08-24","GAMI95 Black Beige Blue Mix Shiny Engineered Stone Pebble"]
["2021-08-24","GAMI96 Black Beige Blue Mix Matte Engineered Stone Pebble"]
["2021-08-24","GAMI99 Grey Beige Mix Shiny Engineered Stone Pebble"]
["2021-08-24","GAMI100 Grey Beige Mix Matte Engineered Stone Pebble"]
["2021-08-24","GANO24 Black Mix Shiny Engineered Stone Pebble"]
["2021-08-24","GANO25 Black Mix Matte Engineered Stone Pebble"]
["2021-08-24","GAVE09 Sliced Onyx Jade Brown Polished Pebble"]
["2021-08-24","MAGR03 Grey Marble"]
["2021-08-24","MAMI146 Grey Beige Black Stone Glass Mix Hexagon"]
["2021-08-24","MEMI57 Diamond Glass/Aluminum Mix Silver Grey"]
["2021-08-24","PIBE27 Fabric Print Patchwork Off White/Beige Mix Engineered Stone Hexagon"]
["2021-08-24","PIBE28 Fabric Print Patchwork Off White/Beige Mix Engineered Stone Basket Weave"]
["2021-08-24","PIBL20 Cement Patchwork Design Grey/White Mix Engineered Stone"]
["2021-08-24","PIBL21 Cement Patchwork Design Blue/White Mix Engineered Stone"]
["2021-08-24","PIBL29 Palm Tree Blue & White Engineered Stone 3\" x 3\""]
["2021-08-24","PIGR16 Sandstone Grey 2\" x 2\""]
["2021-08-24","PIGR38 Fabric Print Patchwork Super White/Grey Mix Engineered Stone Hexagon"]
["2021-08-24","PIGR39 Fabric Print Patchwork Super White/Grey Mix Engineered Stone Basket Weave"]
["2021-08-24","PIGR43 Plant Print Deco Black Grey Mix Engineered Stone 3\" x 3\""]
["2021-08-24","PIGR44 Palm Tree Black & White Engineered Stone 3\" x 3\""]
["2021-08-24","PINO21 Black Marble Sand Blasted & Honed"]
["2021-08-24","QUBE13 Beige Stone Mini Baguette"]
["2021-08-24","QUGR03 Silver Grey Quartzite Polished 2\" x 2\""]
["2021-08-24","QUMA01 Copper Quartzite Natural 2\" x 2\""]
["2021-08-24","QUMA02 Copper Quartzite Polished 2\" x 2\""]
["2021-08-24","QUMA03 Sandstone Brown 2\" x 2\""]
["2021-08-24","VEMI64 Green/Orange/Red Glass"]
["2021-08-24","VEMI65 Blue/Light Blue/White Glass "]
["2021-08-24","VEMI66 Black/Grey/White Glass "]
["2021-08-24","VEMI68 Green/Orange/Red Glass"]
["2021-08-24","VEMI79 Stacked Square Wood Look Grey Beige Matte Recycled Glass"]
["2021-08-24","VEMI81 Beige Marble/Beige Matte Glass 5/8\" x 5/8\""]
["2021-08-24","VEMI130 Brown Beige Matte Glossy & Stone Wood Look Recycled Glass"]
["2021-08-24","VEMI135 Beige/Brown Mix Wood Look Squares Recycled Glass"]
["2021-08-24","VEMI144 Herringbone Wood Look Grey Beige Matte Recycled Glass"]
["2021-08-24","VEMI148 Fabric Print Grey Blue Matte/Polished Mix Recycled Glass"]
["2021-08-24","VERO42 Glass Linear Fushia Brick Glossy"]
["2021-11-18","VEMI134 Beige Mix Wood Look Squares Recycled Glass","(Bati mistakenly indicated that this mosaic was discontinued back in November 2021.)"]
["2022-07-01","ARNO19 Black Slate 4\" x 4\""]
["2022-07-01","ARRO10 Rust Slate Mini Baguette"]
["2022-07-01","CEGR20 Ceramic Striped Squares Grey Mix"]
["2022-07-01","CEMI11 Ceramic Patchwork Rectangle Multi Color"]
["2022-07-01","CEMI28 Ceramic Striped Squares Beige/Brown Mix"]
["2022-07-01","GAMA13 Brown Sliced Matte Pebble"]
["2022-07-01","GAMA14/30 Brown Sliced Matte Pebble"]
["2022-07-01","MABL57 Beige Marble",null,null,null,null,null,null,null,null,null,null," "]
["2022-07-01","MAGR109 Brick Limestone Sand Blasted Grey 2\" x 4\""]
["2022-07-01","MAMI145 Beige Grey Stone Mix Hexagon Irregular"]
["2022-07-01","VEBE02 Beige Glass/Ceramic Mix 3/4\" x 1-3/4\" Stacked"]
["2022-07-01","VEGR08 Golf Grey Glossy Glass Mix 1\" x 1\""]
["2022-07-01","VEGR35 Grey Glass/Ceramic Mix 3/4\" x 1-3/4\" Stacked"]
["2022-07-01","VEGR47 Glass Brick Multi Deco Grey Mix"]
["2022-07-01","VEMI35 Patchwork Black Grey Mix Glossy Glass"]
["2022-07-01","VEMI61 Blue/Light Blue/White Glass"]
["2022-07-01","VEMI62 Black/Grey/White Glass"]
["2022-07-01","VEMI92 Brown/Mix Glass 7/8\" x 7/8\""]
["2022-07-01","VEMI100 Mix Grey/Glass/Inox Glossy 5/8\" x 5/8\""]
["2022-07-01","VENO03 Black Matte & Polished Glass Mix 7/8\" x 7/8\""]
["2023-07-11","ARNO21 Black Slate 4\" x 8\""]
["2023-07-11","ARRO21 Rust Slate 4\" x 8\""]
["2023-07-11","CEGR21 Ceramic Striped Baguette Grey Mix 11.8\" x 11.8\""]
["2023-07-11","CEMI29 Ceramic Striped Baguette Beige/Brown Mix 11.8\" x 11.8\"",null,null,null,null,null,null,null,null,null,null," "]
["2023-07-11","MAMI147 Grey Stone Mix Hexagon 11.7\" x 12.7\""]
["2023-07-11","MAMI149 Grey Stone Glass Mix Hexagon 11.7\" x 12.7\""]
["2023-07-11","PIBE29 Fabric Print Patchwork Off White/Beige Mix Engineered Stone Baguette 12.2\" x 11.8\""]
["2023-07-11","PIBL16 White Reconstituted Opus 12\" x 12\""]
["2023-07-11","PIBL17 White Reconstituted Opus 4\" x 12\""]
["2023-07-11","QUBE24 Beige/Grey Quartzite 4\" x 8\""]
["2023-07-11","VEBL11 Golf White Glossy Glass Mix 1\" x 1\" 11.6\" x 11.6\""]
["2023-07-11","VEBL42 Glass Linear Grey Mix Brick Glossy 12\" x 12\""]
["2023-07-11","VEMI113 Caramel Stone/Light Blue-Beige Glass/Décor 5/8\" x 5/8\" 12\" x 12\""]
["2023-07-11","VEMI123 Mix Grey Glass/Green Jean Print/Steel/Décor 5/8\" x 5/8\" 12\" x 12\""]
["2023-07-11","VEMI80 Brown Marble/Maroon Glossy Glass 5/8\" x 5/8\" 12\" x 12\""]
["2023-07-11","VEMI84 Mix Steel/Black Grey Glossy Glass 5/8\" x 5/8\" 12\" x 12\""]
["2024-03-06","CEBE06 Ceramic Basket Weave Wood Look Beige Mix"]
["2024-03-06","CEGR22 Ceramic Basket Weave Wood Look Grey Mix"]
["2024-03-06","MAMI134 White Marble/Glass Mix Turquoise 7/8\" x 2\" Stacked"]
["2024-03-06","MAMI163 Hexagon Mix Glass/Marble Silver Grey"]
["2024-03-06","PIMI25 Black Stone/Turquoise Ceramic Mix 7/8\" x 7/8\""]
["2024-03-06","VEGR06 Grey Matte & Polished Glass Mix 7/8\" x 7/8\""]
["2024-03-06","VEGR43 Black Grey Glass Mix 1\" x 1\""]
["2024-03-06","VEMA10 Brown Matte & Polished Glass Mix 7/8\" x 7/8\""]
["2024-03-06","VEMA11 Brown Broken Edges Glossy Glass"]
["2024-03-06","VEMI83 Beige/Steel/Gold Glass 5/8\" x 5/8\""]
["2024-03-06","VEMI86 Onyx Marble/Beige Matte-Glossy Glass Mix 5/8\" x 5/8\""]
["2024-03-06","VEMI154 Glass Square Silver Glossy 1\" x 1\""]
["2024-05-29","VEGR13 Grey Broken Edges Glossy Glass"]
["2024-05-29","VEGR42 Gold Faux Relief Glass Rectangles"]
["2024-05-29","VEMI118 Grey Glass Polished/Chrome"]
["2024-11-21","BOMA04 Natural Wood"]
["2024-11-21","BOMI04 Washed Wood"]
["2024-11-21","ECO24 Glass Polished Grey Mix 1\" x 1\""]
["2024-11-21","ECO28 White Glass & Aluminum Mix"]
["2024-11-21","GABL25 White Stacked Sliced Pebble"]
["2024-11-21","GAGR05R Speckled Matte Pebble"]
["2024-11-21","GAGR06R/30 Speckled Matte Pebble"]
["2024-11-21","MABE123 Beige Nature Print Marble Brick"]
["2024-11-21","MABL110 Crystal White Multicolor Marble Diamond Honed"]
["2024-11-21","MABL111 Crystal White Marble Scale Polished"]
["2024-11-21","MAGR118 Elongated Hexagon White Grey Leaves"]
["2024-11-21","MAGR119 2\" x 4\" Brick White Grey"]
["2024-11-21","MAJA52 Yellow/Beige Mix Opus"]
["2024-11-21","MEMI29 Brushed Aluminum Grey Mix 5/8\" x 5/8\""]
["2024-11-21","MEMI47 Aluminum/Grey Glass/Stone Mix 7/8\" x 2\""]
["2024-11-21","MEMI49 Aluminum/White Glass 7/8\" x 2\""]
["2024-11-21","MEMI54 Aluminum Patchwork Design Silver Black Mix Matte 2\" x 2\""]
["2024-11-21","PIGR40 Fabric Print Patchwork Super White/Grey Mix Engineered Stone Baguette"]
["2024-11-21","PIMI24 Black & White Matte Stone Zebra 2\" x 2\""]
["2024-11-21","PIMI30 White Marble Sand Blasted Stone"]
["2024-11-21","QUMI18 Quartzite Beige/Grey-Beige-Brown Glossy Glass Mix"]
["2024-11-21","QUMI20 White Marble Sand Blasted Stone"]
["2024-11-21","VEBL51 Linear Acqua Glass Brick Pattern 2\" x 4\""]
["2024-11-21","VEBL55 Glass Pebble Blue Marble Pattern Mix"]
["2024-11-21","VEBL56 Glass Square Blue Marble Pattern Mix"]
["2024-11-21","VEBL57 Glass Pebble Light Grey Marble Pattern Mix"]
["2024-11-21","VEBL58 Glass Square Light Grey Marble Pattern Mix"]
["2024-11-21","VEGR51 Linear Dark Grey Glass Brick Pattern 2\" x 4\""]
["2024-11-21","VEGR53 Glass Pebble Grey Mix Marble Pattern Mix"]
["2024-11-21","VEGR54 Glass Square Grey Mix Marble Pattern Mix"]
["2024-11-21","VEMI85 Black Marble /Black Glossy Glass 5/8\" x 5/8\""]
["2024-11-21","VEMI120 White Glass Polished/Chrome"]
["2024-11-21","VEMI153 Glass Silver Matte Hexagon"]
["2024-11-21","VEMI163 Beige Green Glass Geometric Random Pattern 4\" x 4\""]
["2024-11-21","VENO12 Black Broken Edges Glossy Glass"]
[]
[" "]
[]
["Changes"]
[]
["2016-11-17","MABL93 - After thorough quality control reveiw, Bati Orient will not be able to offer this item at this time.  They anticipate being able to offer a better quality stone with better sorting and unity in color by April 2017 at which time this item will be available once again."]
["2016-11-17","MABL96 & MANO62 - Bati Orient has decided to sell these items by the single Rope piece instead of the four Rope pieces mesh-mounted on a 3.2\" x 12\" Rope Cladding configuration.  Size of each Rope is 3/4\" x 12\"."]
["2019-03-18","Cement Tiles - Packaging for all formats is changing to 12 PCS/CTN.  Bati Orient made this change because the 12 carton count will be much more stable and will reduce damage during transport. "]
["2019-09-13","The following items were discontinued by Bati mistakenly on their February 1, 2019 price list.  They have been added back to our price list:  VEMI80 - Brown / Brown Glass 12\" x 12\" Mosaic and VEMI84 - Mix Steel / Dark Grey Glass 12\" x 12\" Mosaic."]